Workbook

Sheet Contents
B1: REGULATORY REPORTING STATEMENT
B2: Australian Distribution Co.
B3: Category Analysis RIN response 2014-15
B4: CONTENTS
E7: 1. Business details | L7: 2. Expenditure
E27: 4. Alternative control services | L27: 5. Network information | S27: 6. Service & quality

Sheet Business & other details
A1: HIDE THIS COLUMN | C1: =(LOOKUP(dms_Model,dms_Model_List,dms_Worksheet_List)) -> REGULATORY REPORTING STATEMENT | L1: Data in these columns used for data validation and database purposes.
C2: =dms_TradingName -> ActewAGL Distribution | L2: Date last modified:
C3: =CONCATENATE("Category Analysis RIN response ",CRY) -> Category Analysis RIN response 2014-15 | L3: 14 April 2015 | M3: merged cell C46/47
C4: BUSINESS & OTHER DETAILS | L4: 17 April 2015 | M4: adjusted dms_RYE to automate based on dms_Model (NB: EB & CA refer to CRCP_y5)
L5: 14 May 2015 | M5: adapted this cover for use in CA & EB RINs
C7: Instructions
C8: Complete the following business details regulatory template before entering data or values in any other regulatory template. This regulatory template is linked to other cells within the spreadsheet and automatically generates column headings.
C10: SUBMISSION PARTICULARS INPUT SHEETS
C12: Entity details
C14: Trading name | D14: ActewAGL Distribution
C15: ACN / ABN | D15: =INDEX(dms_ABN_List,MATCH(dms_TradingName,dms_TradingName_List)) -> 76670568688
L17: dms_Model_List | M17: dms_Worksheet_List | O17: dms_RYE_List1 | P17: dms_RYE_List2
C18: Business address | D18: Address 1 | F18: 40 Bunda Street | L18: CA | M18: REGULATORY REPORTING STATEMENT | O18: dms_RYE | P18: =CONCATENATE(LEFT(CRY, 2) &IF(CRY>"2009-10",,"") &RIGHT(CRY,2)) -> 2015
E19: Address 2 | L19: CAM/Service change Backcast | M19: REGULATORY REPORTING STATEMENT | O19: dms_RYE | P19: =CONCATENATE(LEFT(CRCP_y5, 2) &IF(CRCP_y5>"2009-10",,"") &RIGHT(CRCP_y5,2)) -> 2016
D20: Suburb | F20: Canberra | L20: CPI | M20: CPI | O20: dms_RYE | P20: =CONCATENATE(LEFT(CRCP_y5, 2) &IF(CRCP_y5>"2009-10",,"") &RIGHT(CRCP_y5,2)) -> 2016
E21: State | F21: =INDEX(dms_State_List,MATCH(dms_TradingName,dms_TradingName_List)) -> ACT | G21: p/code | H21: 260 | L21: EB | M21: REGULATORY REPORTING STATEMENT | O21: dms_RYE | P21: =CONCATENATE(LEFT(CRY, 2) &IF(CRY>"2009-10",,"") &RIGHT(CRY,2)) -> 2015
L22: PTRM | M22: POST TAX REVENUE MODEL | O22: FRCP | P22: =CONCATENATE(LEFT(FRCP_y5, 2) &IF(FRCP_y1>"2009-10",,"") &RIGHT(FRCP_y5,2)) -> 2021
C23: Postal address | D23: Address 1 | F23: GPO Box 366 | L23: Reset | M23: REGULATORY REPORTING STATEMENT | O23: FRCP | P23: =CONCATENATE(LEFT(CRCP_y5, 2) &IF(CRCP_y5>"2009-10",,"") &RIGHT(CRCP_y5,2)) -> 2016
E24: Address 2 | L24: RFM | M24: ROLL FORWARD MODEL | O24: CRCP | P24: =CONCATENATE(LEFT(CRCP_y5, 2) &IF(CRCP_y1>"2009-10",,"") &RIGHT(CRCP_y5,2)) -> 2016
D25: Suburb | F25: Canberra | L25: WACC | M25: WEIGHTED AVERAGE COST OF CAPITAL | O25: dms_RYE | P25: =CONCATENATE(LEFT(CRCP_y5, 2) &IF(CRCP_y5>"2009-10",,"") &RIGHT(CRCP_y5,2)) -> 2016
E26: State | F26: ACT | G26: p/code | H26: 2601
L28: dms_TradingName_List | M28: dms_ABN_List | N28: dms_State_List | O28: dms_Sector_List | P28: dms_Segment_List | Q28: dms_FormControl | R28: dms_CRCPlength_List | S28: dms_FRCPlength_List | T28: dms_JurisdictionList
C29: Contact name/s | D29: Robert Walker | G29: Peter Cunningham | L29: ActewAGL Distribution | M29: 76670568688 | N29: ACT | O29: Electricity | P29: Distribution | Q29: Revenue cap | R29: 5 | S29: 6 | T29: ACT
C30: Contact phone/s | D30: 02 6248 3847 | G30: 02 6293 5108 | L30: ActewAGL Distribution (Tx Assets) | M30: 76670568688 | N30: ACT | O30: Electricity | P30: Distribution | Q30: Revenue cap | R30: 5 | S30: 5 | T30: ACT
C31: Contact email address/s | D31: Robert.Walker@actewagl.com.au | G31: Peter.Cunningham@actewagl.com.au | L31: AGN | M31: 78551685 | N31: SA | O31: Gas | P31: Distribution | Q31: Revenue cap | R31: 5 | S31: 5 | T31: SA
L32: Ausgrid | M32: 67505337385 | N32: NSW | O32: Electricity | P32: Distribution | Q32: Revenue cap | R32: 5 | S32: 5 | T32: NSW
A33: KEEP VISIBLE FOR RESET, PTRM & RFMS | C33: Regulatory control period details | L33: Ausgrid (Tx Assets) | M33: 67505337385 | N33: NSW | O33: Electricity | P33: Distribution | Q33: Revenue cap | R33: 5 | S33: 5 | T33: NSW
L34: AusNet (D) | M34: 91064651118 | N34: Vic | O34: Electricity | P34: Distribution | Q34: Revenue cap | R34: 5 | S34: 5 | T34: Vic
C35: Forthcoming regulatory control period | D35: =CONCATENATE(IF(dms_RPT="Calendar",CRCP_y5+1,(LEFT(CRCP_y5,4)+1&"-"&IF(MID(CRCP_y5,6,2)<"09","0"&RIGHT(CRCP_y5,1)+1,RIGHT(CRCP_y5,2)+1)))) -> 2016-17 | E35: =CONCATENATE(IF(dms_RPT="Calendar",FRCP_y1+1,(LEFT(FRCP_y1,4)+1&"-"&IF(MID(FRCP_y1,6,2)<"09","0"&RIGHT(FRCP_y1,1)+1,RIGHT(FRCP_y1,2)+1)))) -> 2017-18 | F35: =CONCATENATE(IF(dms_RPT="Calendar",FRCP_y2+1,(LEFT(FRCP_y2,4)+1&"-"&IF(MID(FRCP_y2,6,2)<"09","0"&RIGHT(FRCP_y2,1)+1,RIGHT(FRCP_y2,2)+1)))) -> 2018-19 | G35: =CONCATENATE(IF(dms_RPT="Calendar",FRCP_y3+1,(LEFT(FRCP_y3,4)+1&"-"&IF(MID(FRCP_y3,6,2)<"09","0"&RIGHT(FRCP_y3,1)+1,RIGHT(FRCP_y3,2)+1)))) -> 2019-20 | H35: =CONCATENATE(IF(dms_RPT="Calendar",FRCP_y4+1,(LEFT(FRCP_y4,4)+1&"-"&IF(MID(FRCP_y4,6,2)<"09","0"&RIGHT(FRCP_y4,1)+1,RIGHT(FRCP_y4,2)+1)))) -> 2020-21 | L35: AusNet (T) | M35: 78079798173 | N35: Vic | O35: Electricity | P35: Transmission | Q35: Revenue cap | R35: 5 | S35: 5 | T35: Vic
L36: Australian Distribution Co. | M36: 11222333444 | N36: - | O36: Electricity | P36: Distribution | Q36: Revenue cap | R36: 5 | S36: 5 | T36: -
L37: Australian Transmission Co. | M37: 11222333444 | N37: - | O37: Electricity | P37: Transmission | Q37: Revenue cap | R37: 5 | S37: 5 | T37: -
C38: Current regulatory control period | D38: 2011-12 | E38: =CONCATENATE(IF(dms_RPT="Calendar",CRCP_y1+1,(LEFT(CRCP_y1,4)+1&"-"&IF(MID(CRCP_y1,6,2)<"09","0"&RIGHT(CRCP_y1,1)+1,RIGHT(CRCP_y1,2)+1)))) -> 2012-13 | F38: =CONCATENATE(IF(dms_RPT="Calendar",CRCP_y2+1,(LEFT(CRCP_y2,4)+1&"-"&IF(MID(CRCP_y2,6,2)<"09","0"&RIGHT(CRCP_y2,1)+1,RIGHT(CRCP_y2,2)+1)))) -> 2013-14 | G38: =CONCATENATE(IF(dms_RPT="Calendar",CRCP_y3+1,(LEFT(CRCP_y3,4)+1&"-"&IF(MID(CRCP_y3,6,2)<"09","0"&RIGHT(CRCP_y3,1)+1,RIGHT(CRCP_y3,2)+1)))) -> 2014-15 | H38: =CONCATENATE(IF(dms_RPT="Calendar",CRCP_y4+1,(LEFT(CRCP_y4,4)+1&"-"&IF(MID(CRCP_y4,6,2)<"09","0"&RIGHT(CRCP_y4,1)+1,RIGHT(CRCP_y4,2)+1)))) -> 2015-16 | L38: CitiPower | M38: 76064651056 | N38: Vic | O38: Electricity | P38: Distribution | Q38: Revenue cap | R38: 5 | S38: 5 | T38: Vic
L39: Directlink | M39: 16779340889 | N39: NSW | O39: Electricity | P39: Transmission | Q39: Revenue cap | R39: 10 | S39: 5 | T39: Qld
L40: ElectraNet | M40: 41094482416 | N40: SA | O40: Electricity | P40: Transmission | Q40: Revenue cap | R40: 5 | S40: 5 | T40: SA
C41: Previous regulatory control period | D41: =CONCATENATE(IF(dms_RPT="Calendar",PRCP_y2-1,(LEFT(PRCP_y2,4)-1&"-"&IF(MID(PRCP_y2,3,1)="0","0"&RIGHT(PRCP_y2,2)-1,RIGHT(PRCP_y2,2)-1)))) -> 2006-07 | E41: =CONCATENATE(IF(dms_RPT="Calendar",PRCP_y3-1,(LEFT(PRCP_y3,4)-1&"-"&IF(MID(PRCP_y3,3,1)="0","0"&RIGHT(PRCP_y3,2)-1,RIGHT(PRCP_y3,2)-1)))) -> 2007-08 | F41: =CONCATENATE(IF(dms_RPT="Calendar",PRCP_y4-1,(LEFT(PRCP_y4,4)-1&"-"&IF(MID(PRCP_y4,3,1)="0","0"&RIGHT(PRCP_y4,2)-1,RIGHT(PRCP_y4,2)-1)))) -> 2008-09 | G41: =CONCATENATE(IF(dms_RPT="Calendar",PRCP_y5-1,(LEFT(PRCP_y5,4)-1&"-"&IF(MID(PRCP_y5,3,1)="0","0"&RIGHT(PRCP_y5,2)-1,RIGHT(PRCP_y5,2)-1)))) -> 2009-10 | H41: =CONCATENATE(IF(dms_RPT="Calendar",CRCP_y1-1,(LEFT(CRCP_y1,4)-1&"-"&IF(MID(CRCP_y1,3,1)="0","0"&RIGHT(CRCP_y1,2)-1,RIGHT(CRCP_y1,2)-1)))) -> 2010-11 | L41: Endeavour Energy | M41: 59253130878 | N41: NSW | O41: Electricity | P41: Distribution | Q41: Revenue cap | R41: 5 | S41: 5 | T41: NSW
L42: Energex | M42: 40078849055 | N42: Qld | O42: Electricity | P42: Distribution | Q42: Revenue cap | R42: 5 | S42: 5 | T42: Qld
L43: Ergon Energy | M43: 50087646062 | N43: Qld | O43: Electricity | P43: Distribution | Q43: Revenue cap | R43: 5 | S43: 5 | T43: Qld
A44: KEEP VISIBLE FOR CA & EB ONLY | L44: Essential Energy | M44: 37428185226 | N44: NSW | O44: Electricity | P44: Distribution | Q44: Revenue cap | R44: 5 | S44: 5 | T44: NSW
C45: Current regulatory year | D45: 2014-15 | L45: Jemena Electricity | M45: 82064651083 | N45: Vic | O45: Electricity | P45: Distribution | Q45: Revenue cap | R45: 5 | S45: 5 | T45: Vic
L46: Murraylink | M46: 79181207909 | N46: NSW | O46: Electricity | P46: Transmission | Q46: Revenue cap | R46: 5 | S46: 5 | T46: SA
L47: Powercor Australia | M47: 89064651109 | N47: Vic | O47: Electricity | P47: Distribution | Q47: Revenue cap | R47: 5 | S47: 5 | T47: Vic
L48: Powerlink | M48: 82078849233 | N48: Qld | O48: Electricity | P48: Transmission | Q48: Revenue cap | R48: 5 | S48: 5 | T48: Qld
L49: Qld,SA &ACT Gas Reset | M49: 22222222222 | N49: - | O49: Gas | P49: Distribution | Q49: ? | R49: 5 | S49: 5 | T49: -
C50: Sector | D50: =INDEX(dms_Sector_List,MATCH(dms_TradingName,dms_TradingName_List)) -> Electricity | L50: SA Power Networks | M50: 13332330749 | N50: SA | O50: Electricity | P50: Distribution | Q50: Revenue cap | R50: 5 | S50: 5 | T50: SA
C51: Segment | D51: =INDEX(dms_Segment_List,MATCH(dms_TradingName,dms_TradingName_List)) -> Distribution | L51: TasNetworks (D) | M51: 24167357299 | N51: Tas | O51: Electricity | P51: Distribution | Q51: Revenue cap | R51: 5 | S51: 5 | T51: Tas
C52: Source | D52: Reporting | L52: TasNetworks (T) | M52: 24167357299 | N52: Tas | O52: Electricity | P52: Transmission | Q52: Revenue cap | R52: 5 | S52: 5 | T52: Tas
C53: Regulatory Year Ending | D53: =(LOOKUP(dms_Model,dms_Model_List,dms_RYE_List2)) -> 2015 | L53: TransGrid | M53: 19622755774 | N53: NSW | O53: Electricity | P53: Transmission | Q53: Revenue cap | R53: 5 | S53: 5 | T53: NSW
C54: Reporting Period Type | D54: =IF(LEN(CRCP_y1)>4,"Financial","Calendar") -> Financial | L54: United Energy | M54: 70064651029 | N54: Vic | O54: Electricity | P54: Distribution | Q54: Revenue cap | R54: 5 | S54: 5 | T54: Vic
C55: Model or RIN Type | D55: CA | L55: Victorian DNSP Backcasting | M55: 33333333666 | N55: Vic | O55: Electricity | P55: Distribution | Q55: ? | R55: 5 | S55: 5 | T55: Vic
C56: Security Classification | D56: =IF(dms_DataQuality="Public","Public","Confidential") -> Public | L56: Victorian DNSP Reset | M56: 33333333333 | N56: Vic | O56: Electricity | P56: Distribution | Q56: ? | R56: 5 | S56: 5 | T56: Vic
C57: Data quality (actual, estimate, public, consolidated) | D57: Public
C58: EBSS - First application of scheme in forthcoming period? | D58: No
C59: Amended RIN submission - amendment reason
A60: HIDE THESE ROWS | C60: Template - version no. | D60: 3
C61: Dollar $ real (the last month before the FRCP_y1) | D61: =CONCATENATE(IF(dms_RPT="Financial","June ","December "),(dms_RYE)) -> June 2015 | L61: dms_SourceList | M61: dms_FormControl
C62: Form of control | D62: =INDEX(dms_FormControl_List,MATCH(dms_TradingName,dms_TradingName_List)) -> Revenue cap | L62: After appeal | M62: Revenue cap
C63: Length of current reg control period | D63: =INDEX(dms_CRCPlength_List,MATCH(dms_TradingName,dms_TradingName_List)) -> 5 | L63: Draft decision | M63: Revenue yield
C64: Length of forthcoming reg control period | D64: =INDEX(dms_FRCPlength_List,MATCH(dms_TradingName,dms_TradingName_List)) -> 6 | L64: Final decision | M64: Weighted average price cap
C65: RIN response - version no. | D65: 1 | L65: Pass through decision
C66: Jurisdiction | D66: =INDEX(dms_JurisdictionList,MATCH(dms_TradingName,dms_TradingName_List)) -> ACT | L66: PTRM annual update
L67: PTRM interim update 1
L68: PTRM interim update 2
L69: PTRM interim update 3
L70: PTRM interim update 4
L71: Regulatory proposal
L72: Reporting
L73: Revised regulatory proposal
L74: RFM annual update
L75: WACC annual update
L79: Notes
L80: RFM - Base year is usually CRCP_y1 | M80: EG. Victorian 2016-20 - base year = 2011
L81: RFM - Form of Control Field is not relevant
L82: PTRM - capture base year input by NSP | M82: ='[Published version - PTRM - TNSP - version 3 - January 2015 - Appendix A.xlsm]PTRM input'!Q7

Sheet 2.1 Expenditure summary
B1: =(LOOKUP(dms_Model,dms_Model_List,dms_Worksheet_List)) -> REGULATORY REPORTING STATEMENT
B2: Australian Distribution Co.
B3: =CONCATENATE("Category Analysis RIN response ",CRY) -> Category Analysis RIN response 2014-15
B4: 2.1 EXPENDITURE SUMMARY & RECONCILIATION
B11: TABLE 2.1.1 - STANDARD CONTROL SERVICES CAPEX
C14: Actual ($0's)
C15: =CRY -> 2014-15
A16: ED_EXP211_00001 | B16: Replacement expenditure | C16: ='[2]2.1 Expenditure summary'!C16+'[3]2.1 Expenditure summary'!C16 -> 16765428
A17: ED_EXP211_00002 | B17: Connections | C17: ='[2]2.1 Expenditure summary'!C17+'[3]2.1 Expenditure summary'!C17 -> 18468999.93
A18: ED_EXP211_00003 | B18: Augmentation Expenditure | C18: ='[2]2.1 Expenditure summary'!C18+'[3]2.1 Expenditure summary'!C18 -> 2252094.875
A19: ED_EXP211_00004 | B19: Non-network | C19: ='[2]2.1 Expenditure summary'!C19+'[3]2.1 Expenditure summary'!C19 -> 17699344.31
A20: ED_EXP211_00005 | B20: capitalised network overheads | C20: ='[2]2.1 Expenditure summary'!C20+'[3]2.1 Expenditure summary'!C20 -> 0
A21: ED_EXP211_00006 | B21: capitalised corporate overheads | C21: ='[2]2.1 Expenditure summary'!C21+'[3]2.1 Expenditure summary'!C21 -> 12968249.96
A22: ED_EXP211_00007 | B22: Metering | C22: ='[2]2.1 Expenditure summary'!C22+'[3]2.1 Expenditure summary'!C22 -> 0
A23: ED_EXP211_00008 | B23: Public Lighting | C23: ='[2]2.1 Expenditure summary'!C23+'[3]2.1 Expenditure summary'!C23 -> 0
A24: ED_EXP211_00002
A25: ED_EXP211_00003
A26: ED_EXP211_00004
A27: ED_EXP211_00005
A28: ED_EXP211_00006
A29: ED_EXP211_00007
A30: ED_EXP211_00008
A31: ED_EXP211_00009 | B31: balancing item
A32: ED_EXP211_00010 | B32: TOTAL GROSS CAPEX (includes capcons) | C32: =+SUM(C16:C31) -> 68154117.07
A33: ED_EXP211_00011 | B33: capcons
B35: TABLE 2.1.2 - STANDARD CONTROL SERVICES OPEX
C38: Actual ($0's)
C39: =CRY -> 2014-15
A40: ED_EXP212_00001 | B40: Vegetation management | C40: ='[2]2.1 Expenditure summary'!C40+'[3]2.1 Expenditure summary'!C40 -> 2445890.35
A41: ED_EXP212_00002 | B41: Maintenance | C41: ='[2]2.1 Expenditure summary'!C41+'[3]2.1 Expenditure summary'!C41 -> 6452911.34
A42: ED_EXP212_00003 | B42: Emergency response | C42: ='[2]2.1 Expenditure summary'!C42+'[3]2.1 Expenditure summary'!C42 -> 3051187.35
A43: ED_EXP212_00004 | B43: Non-network | C43: ='[2]2.1 Expenditure summary'!C43+'[3]2.1 Expenditure summary'!C43 -> 6119757.616
A44: ED_EXP212_00005 | B44: network overheads | C44: ='[2]2.1 Expenditure summary'!C44+'[3]2.1 Expenditure summary'!C44 -> 39859901.36
A45: ED_EXP212_00006 | B45: corporate overheads | C45: ='[2]2.1 Expenditure summary'!C45+'[3]2.1 Expenditure summary'!C45 -> 7195724.63
A46: ED_EXP212_00007 | B46: Metering | C46: ='[2]2.1 Expenditure summary'!C46+'[3]2.1 Expenditure summary'!C46 -> 0
A47: ED_EXP212_00008 | B47: Public Lighting | C47: ='[2]2.1 Expenditure summary'!C47+'[3]2.1 Expenditure summary'!C47 -> 0
A48: ED_EXP211_00002
A49: ED_EXP211_00003
A50: ED_EXP211_00004
A51: ED_EXP211_00005
A52: ED_EXP211_00006
A53: ED_EXP211_00007
A54: ED_EXP211_00008
A55: ED_EXP212_00009 | B55: balancing item
B56: TOTAL OPEX | C56: =+SUM(C40:C55) -> 65125372.64
B58: TABLE 2.1.3 - ALTERNATIVE CONTROL SERVICES CAPEX
C61: Actual ($0's)
C62: =CRY -> 2014-15
A63: ED_EXP213_00001 | B63: Connections | C63: ='[2]2.1 Expenditure summary'!C63+'[3]2.1 Expenditure summary'!C63 -> 0
A64: ED_EXP213_00002 | B64: capitalised network overheads | C64: ='[2]2.1 Expenditure summary'!C64+'[3]2.1 Expenditure summary'!C64 -> 0
A65: ED_EXP213_00003 | B65: capitalised corporate overheads | C65: ='[2]2.1 Expenditure summary'!C65+'[3]2.1 Expenditure summary'!C65 -> 1661026.52
A66: ED_EXP213_00004 | B66: Metering | C66: ='[2]2.1 Expenditure summary'!C66+'[3]2.1 Expenditure summary'!C66 -> 3902426.72
A67: ED_EXP213_00005 | B67: Public lighting | C67: ='[2]2.1 Expenditure summary'!C67+'[3]2.1 Expenditure summary'!C67 -> 0
A68: ED_EXP213_00006 | B68: Fee and quoted | C68: ='[2]2.1 Expenditure summary'!C68+'[3]2.1 Expenditure summary'!C68 -> 2916148.55
A69: ED_EXP211_00002
A70: ED_EXP211_00003
A71: ED_EXP211_00004
A72: ED_EXP211_00005
A73: ED_EXP211_00006
A74: ED_EXP211_00007
A75: ED_EXP211_00008
A76: ED_EXP213_00007 | B76: balancing item
B77: TOTAL CAPEX | C77: =+SUM(C63:C76) -> 8479601.79
B79: TABLE 2.1.4 - ALTERNATIVE CONTROL SERVICES OPEX
C82: Actual ($0's)
C83: =CRY -> 2014-15
A84: ED_EXP214_00001 | B84: Connections | C84: ='[2]2.1 Expenditure summary'!C84+'[3]2.1 Expenditure summary'!C84 -> 0
A85: ED_EXP214_00002 | B85: network overheads | C85: ='[2]2.1 Expenditure summary'!C85+'[3]2.1 Expenditure summary'!C85 -> 0
A86: ED_EXP214_00003 | B86: corporate overheads | C86: ='[2]2.1 Expenditure summary'!C86+'[3]2.1 Expenditure summary'!C86 -> 1318828.25
A87: ED_EXP214_00004 | B87: Metering | C87: ='[2]2.1 Expenditure summary'!C87+'[3]2.1 Expenditure summary'!C87 -> 2840968.54
A88: ED_EXP214_00005 | B88: Public lighting | C88: ='[2]2.1 Expenditure summary'!C88+'[3]2.1 Expenditure summary'!C88 -> 0
A89: ED_EXP214_00006 | B89: Fee and quoted | C89: ='[2]2.1 Expenditure summary'!C89+'[3]2.1 Expenditure summary'!C89 -> 3727309.52
A90: ED_EXP211_00002
A91: ED_EXP211_00003
A92: ED_EXP211_00004
A93: ED_EXP211_00005
A94: ED_EXP211_00006
A95: ED_EXP211_00007
A96: ED_EXP211_00008
A97: ED_EXP214_00007 | B97: balancing item
B98: TOTAL OPEX | C98: =+SUM(C84:C97) -> 7887106.31
B100: TABLE 2.1.5 - DUAL FUNCTION ASSETS CAPEX
C103: Actual ($0's)
C104: =CRY -> 2014-15
A105: ED_EXP215_00001 | B105: Replacement expenditure | C105: ='[2]2.1 Expenditure summary'!C105+'[3]2.1 Expenditure summary'!C105 -> 2046115.345
A106: ED_EXP215_00002 | B106: Connections | C106: ='[2]2.1 Expenditure summary'!C106+'[3]2.1 Expenditure summary'!C106 -> 52309.0014
A107: ED_EXP215_00003 | B107: Augmentation Expenditure | C107: ='[2]2.1 Expenditure summary'!C107+'[3]2.1 Expenditure summary'!C107 -> 632726.1353
A108: ED_EXP215_00004 | B108: Non-network | C108: ='[2]2.1 Expenditure summary'!C108+'[3]2.1 Expenditure summary'!C108 -> 6976697.754
A109: ED_EXP215_00005 | B109: Capitalised network overheads | C109: ='[2]2.1 Expenditure summary'!C109+'[3]2.1 Expenditure summary'!C109 -> 0
A110: ED_EXP215_00006 | B110: Capitalised corporate overheads | C110: ='[2]2.1 Expenditure summary'!C110+'[3]2.1 Expenditure summary'!C110 -> 930468.1476
A111: ED_EXP211_00002
A112: ED_EXP211_00003
A113: ED_EXP211_00004
A114: ED_EXP211_00005
A115: ED_EXP211_00006
A116: ED_EXP211_00007
A117: ED_EXP211_00008
A118: ED_EXP215_00007 | B118: balancing item
A119: ED_EXP215_00008 | B119: TOTAL GROSS CAPEX (includes capcons) | C119: =SUM(C105:C118) -> 10638316.38
A120: ED_EXP215_00009 | B120: capcons
B122: TABLE 2.1.6 - DUAL FUNCTION ASSETS OPEX
C125: Actual ($0's)
C126: =CRY -> 2014-15
A127: ED_EXP216_00001 | B127: Vegetation management | C127: ='[2]2.1 Expenditure summary'!C127+'[3]2.1 Expenditure summary'!C127 -> 0
A128: ED_EXP216_00002 | B128: Maintenance | C128: ='[2]2.1 Expenditure summary'!C128+'[3]2.1 Expenditure summary'!C128 -> 1376233.65
A129: ED_EXP216_00003 | B129: Emergency response | C129: ='[2]2.1 Expenditure summary'!C129+'[3]2.1 Expenditure summary'!C129 -> 215926.25
A130: ED_EXP216_00004 | B130: Non-network | C130: ='[2]2.1 Expenditure summary'!C130+'[3]2.1 Expenditure summary'!C130 -> 789757.814
A131: ED_EXP216_00005 | B131: Network overheads | C131: ='[2]2.1 Expenditure summary'!C131+'[3]2.1 Expenditure summary'!C131 -> 5143940.421
A132: ED_EXP216_00006 | B132: Corporate overheads | C132: ='[2]2.1 Expenditure summary'!C132+'[3]2.1 Expenditure summary'!C132 -> 928611.9011
A133: ED_EXP211_00002
A134: ED_EXP211_00003
A135: ED_EXP211_00004
A136: ED_EXP211_00005
A137: ED_EXP211_00006
A138: ED_EXP211_00007
A139: ED_EXP211_00008
A140: ED_EXP216_00007 | B140: balancing item
B141: TOTAL OPEX | C141: =SUM(C127:C140) -> 8454470.036

Sheet 2.2 Repex
B1: =(LOOKUP(dms_Model,dms_Model_List,dms_Worksheet_List)) -> REGULATORY REPORTING STATEMENT
B2: Australian Distribution Co.
B3: =CONCATENATE("Category Analysis RIN response ",CRY) -> Category Analysis RIN response 2014-15
B4: 2.2 REPEX
B6: TABLE 2.2.1 - REPLACEMENT EXPENDITURE, VOLUMES AND ASSET FAILURES BY ASSET CATEGORY | H6: Table 2.2.2 - SELECTED ASSET CHARACTERISTICS
D9: EXPENDITURE ($0's) | E9: ASSET REPLACEMENTS | F9: ASSET FAILURES | J9: ASSET VOLUMES CURRENTLY IN COMMISSION | K9: ASSET REPLACEMENTS
B10: ASSET GROUP | C10: ASSET CATEGORY | D10: =CRY -> 2014-15 | E10: =CRY -> 2014-15 | F10: =CRY -> 2014-15 | H10: ASSET GROUP | I10: METRIC | J10: =CRY -> 2014-15 | K10: =CRY -> 2014-15
A11: ED_REP221_00001 | B11: POLES BY: HIGHEST OPERATING VOLTAGE ; MATERIAL TYPE; STAKING (IF WOOD) | C11: Staking of a wooden pole | D11: ='[2]2.2 Repex'!$D$11+'[3]2.2 Repex'!$D$11 -> 710416.56 | E11: ='[2]2.2 Repex'!E11+'[3]2.2 Repex'!E11 -> 676 | F11: ='[2]2.2 Repex'!$F$11+'[3]2.2 Repex'!$F$11 -> 0 | G11: ED_REP222_00001 | H11: TOTAL POLES BY: FEEDER TYPE | I11: Total CBD poles | J11: ='[2]2.2 Repex'!J11 -> 0 | K11: ='[2]2.2 Repex'!K11 -> 0
A12: ED_REP221_00002 | C12: ˂ = 1 kV; Wood | D12: ='[2]2.2 Repex'!D12+'[3]2.2 Repex'!D12 -> 0 | E12: ='[2]2.2 Repex'!E12+'[3]2.2 Repex'!E12 -> 0 | F12: ='[2]2.2 Repex'!$F$11+'[3]2.2 Repex'!$F$11 -> 0 | G12: ED_REP222_00002 | I12: Total urban poles | J12: ='[2]2.2 Repex'!J12 -> 42594 | K12: ='[2]2.2 Repex'!K12 -> 785
A13: ED_REP221_00003 | C13: > 1 kV & < = 11 kV; Wood | D13: ='[2]2.2 Repex'!D13+'[3]2.2 Repex'!D13 -> 0 | E13: ='[2]2.2 Repex'!E13+'[3]2.2 Repex'!E13 -> 0 | F13: ='[2]2.2 Repex'!$F$11+'[3]2.2 Repex'!$F$11 -> 0 | G13: ED_REP222_00003 | I13: Total rural long poles | J13: ='[2]2.2 Repex'!J13 -> 0 | K13: ='[2]2.2 Repex'!K13 -> 0
A14: ED_REP221_00004 | C14: ˃ 11 kV & < = 22 kV; Wood | D14: ='[2]2.2 Repex'!D14+'[3]2.2 Repex'!D14 -> 0 | E14: ='[2]2.2 Repex'!E14+'[3]2.2 Repex'!E14 -> 0 | F14: ='[2]2.2 Repex'!$F$11+'[3]2.2 Repex'!$F$11 -> 0 | G14: ED_REP222_00004 | I14: Total rural short poles | J14: ='[2]2.2 Repex'!J14 -> 6682 | K14: ='[2]2.2 Repex'!K14 -> 49
A15: ED_REP221_00005 | C15: > 22 kV & < = 66 kV; Wood | D15: ='[2]2.2 Repex'!D15+'[3]2.2 Repex'!D15 -> 0 | E15: ='[2]2.2 Repex'!E15+'[3]2.2 Repex'!E15 -> 0 | F15: ='[2]2.2 Repex'!$F$11+'[3]2.2 Repex'!$F$11 -> 0 | G15: ED_REP222_00005 | H15: OVERHEAD CONDUCTORS BY: CONDUCTOR LENGTH BY FEEDER TYPE | I15: Conductors CBD (km) | J15: ='[2]2.2 Repex'!J15 -> 0 | K15: ='[2]2.2 Repex'!K15 -> 0
A16: ED_REP221_00006 | C16: > 66 kV & < = 132 kV; Wood | D16: ='[2]2.2 Repex'!D16+'[3]2.2 Repex'!D16 -> 0 | E16: ='[2]2.2 Repex'!E16+'[3]2.2 Repex'!E16 -> 0 | F16: ='[2]2.2 Repex'!$F$11+'[3]2.2 Repex'!$F$11 -> 0 | G16: ED_REP222_00006 | I16: Conductors urban (km) | J16: ='[2]2.2 Repex'!J16 -> 380.629 | K16: ='[2]2.2 Repex'!K16 -> 0.219
A17: ED_REP221_00007 | C17: > 132 kV; Wood | D17: ='[2]2.2 Repex'!D17+'[3]2.2 Repex'!D17 -> 0 | E17: ='[2]2.2 Repex'!E17+'[3]2.2 Repex'!E17 -> 0 | F17: ='[2]2.2 Repex'!$F$11+'[3]2.2 Repex'!$F$11 -> 0 | G17: ED_REP222_00007 | I17: Conductors rural long (km) | J17: ='[2]2.2 Repex'!J17 -> 0 | K17: ='[2]2.2 Repex'!K17 -> 0
A18: ED_REP221_00008 | C18: ˂ = 1 kV; Concrete | D18: ='[2]2.2 Repex'!D18+'[3]2.2 Repex'!D18 -> 203025.6876 | E18: ='[2]2.2 Repex'!E18+'[3]2.2 Repex'!E18 -> 24 | F18: ='[2]2.2 Repex'!$F$11+'[3]2.2 Repex'!$F$11 -> 0 | G18: ED_REP222_00008 | I18: Conductors rural short (km) | J18: ='[2]2.2 Repex'!J18 -> 621.69 | K18: ='[2]2.2 Repex'!K18 -> 0.357
A19: ED_REP221_00009 | C19: > 1 kV & < = 11 kV; Concrete | D19: ='[2]2.2 Repex'!D19+'[3]2.2 Repex'!D19 -> 1053974.994 | E19: ='[2]2.2 Repex'!E19+'[3]2.2 Repex'!E19 -> 97 | F19: ='[2]2.2 Repex'!$F$11+'[3]2.2 Repex'!$F$11 -> 0 | G19: ED_REP222_00009 | H19: OVERHEAD CONDUCTORS BY: CONDUCTOR LENGTH MATERIAL TYPE | I19: OH conductor LV ABC | J19: ='[2]2.2 Repex'!J19 -> 83.189 | K19: ='[2]2.2 Repex'!K19 -> 2.975
A20: ED_REP221_00010 | C20: ˃ 11 kV & < = 22 kV; Concrete | D20: ='[2]2.2 Repex'!D20+'[3]2.2 Repex'!D20 -> 0 | E20: ='[2]2.2 Repex'!E20+'[3]2.2 Repex'!E20 -> 0 | F20: ='[2]2.2 Repex'!$F$11+'[3]2.2 Repex'!$F$11 -> 0 | G20: ED_REP222_00010 | I20: OH conductor steel | J20: ='[2]2.2 Repex'!J20 -> 210.605 | K20: ='[2]2.2 Repex'!K20 -> 0.44
A21: ED_REP221_00011 | C21: > 22 kV & < = 66 kV; Concrete | D21: ='[2]2.2 Repex'!D21+'[3]2.2 Repex'!D21 -> 0 | E21: ='[2]2.2 Repex'!E21+'[3]2.2 Repex'!E21 -> 0 | F21: ='[2]2.2 Repex'!$F$11+'[3]2.2 Repex'!$F$11 -> 0 | G21: ED_REP222_00011 | I21: OH conductor ACSR | J21: ='[2]2.2 Repex'!J21 -> 336.136 | K21: ='[2]2.2 Repex'!K21 -> 0
A22: ED_REP221_00012 | C22: > 66 kV & < = 132 kV; Concrete | D22: ='[2]2.2 Repex'!D22+'[3]2.2 Repex'!D22 -> 413398.62 | E22: ='[2]2.2 Repex'!E22+'[3]2.2 Repex'!E22 -> 10 | F22: ='[2]2.2 Repex'!$F$11+'[3]2.2 Repex'!$F$11 -> 0 | G22: ED_REP222_00012 | I22: OH conductor AAAC | J22: ='[2]2.2 Repex'!J22 -> 0 | K22: ='[2]2.2 Repex'!K22 -> 0
A23: ED_REP221_00013 | C23: > 132 kV; Concrete | D23: ='[2]2.2 Repex'!D23+'[3]2.2 Repex'!D23 -> 0 | E23: ='[2]2.2 Repex'!E23+'[3]2.2 Repex'!E23 -> 0 | F23: ='[2]2.2 Repex'!$F$11+'[3]2.2 Repex'!$F$11 -> 0 | G23: ED_REP222_00013 | I23: OH conductor AAC | J23: ='[2]2.2 Repex'!J23 -> 1176.205 | K23: ='[2]2.2 Repex'!K23 -> 1.833
A24: ED_REP221_00014 | C24: ˂ = 1 kV; Steel | D24: ='[2]2.2 Repex'!D24+'[3]2.2 Repex'!D24 -> 0 | E24: ='[2]2.2 Repex'!E24+'[3]2.2 Repex'!E24 -> 0 | F24: ='[2]2.2 Repex'!$F$11+'[3]2.2 Repex'!$F$11 -> 0 | G24: ED_REP222_00014 | I24: OH conductor HDBC | J24: ='[2]2.2 Repex'!J24 -> 564.438 | K24: ='[2]2.2 Repex'!K24 -> 3.584
A25: ED_REP221_00015 | C25: > 1 kV & < = 11 kV; Steel | D25: ='[2]2.2 Repex'!D25+'[3]2.2 Repex'!D25 -> 0 | E25: ='[2]2.2 Repex'!E25+'[3]2.2 Repex'!E25 -> 0 | F25: ='[2]2.2 Repex'!$F$11+'[3]2.2 Repex'!$F$11 -> 0 | G25: ED_REP222_00015 | I25: Other | J25: ='[2]2.2 Repex'!J25 -> 0 | K25: ='[2]2.2 Repex'!K25 -> 0
A26: ED_REP221_00016 | C26: ˃ 11 kV & < = 22 kV; Steel | D26: ='[2]2.2 Repex'!D26+'[3]2.2 Repex'!D26 -> 0 | E26: ='[2]2.2 Repex'!E26+'[3]2.2 Repex'!E26 -> 0 | F26: ='[2]2.2 Repex'!$F$11+'[3]2.2 Repex'!$F$11 -> 0 | G26: ED_REP222_00016 | H26: UNDERGROUND CABLES BY: CABLE LENGTH BY FEEDER TYPE | I26: Cable CBD (km) | J26: ='[2]2.2 Repex'!J26 -> 0 | K26: ='[2]2.2 Repex'!K26 -> 0
A27: ED_REP221_00017 | C27: > 22 kV & < = 66 kV; Steel | D27: ='[2]2.2 Repex'!D27+'[3]2.2 Repex'!D27 -> 0 | E27: ='[2]2.2 Repex'!E27+'[3]2.2 Repex'!E27 -> 0 | F27: ='[2]2.2 Repex'!$F$11+'[3]2.2 Repex'!$F$11 -> 0 | G27: ED_REP222_00017 | I27: Cable urban (km) | J27: ='[2]2.2 Repex'!J27 -> 955.467 | K27: ='[2]2.2 Repex'!K27 -> 1.641
A28: ED_REP221_00018 | C28: > 66 kV & < = 132 kV; Steel | D28: ='[2]2.2 Repex'!D28+'[3]2.2 Repex'!D28 -> 0 | E28: ='[2]2.2 Repex'!E28+'[3]2.2 Repex'!E28 -> 0 | F28: ='[2]2.2 Repex'!$F$11+'[3]2.2 Repex'!$F$11 -> 0 | G28: ED_REP222_00018 | I28: Cable rural long (km) | J28: ='[2]2.2 Repex'!J28 -> 0 | K28: ='[2]2.2 Repex'!K28 -> 0
A29: ED_REP221_00019 | C29: > 132 kV; Steel | D29: ='[2]2.2 Repex'!D29+'[3]2.2 Repex'!D29 -> 0 | E29: ='[2]2.2 Repex'!E29+'[3]2.2 Repex'!E29 -> 0 | F29: ='[2]2.2 Repex'!$F$11+'[3]2.2 Repex'!$F$11 -> 0 | G29: ED_REP222_00019 | I29: Cable rural short (km) | J29: ='[2]2.2 Repex'!J29 -> 573.856 | K29: ='[2]2.2 Repex'!K29 -> 0.986
A30: ED_REP221_00020 | C30: Other | D30: ='[2]2.2 Repex'!D30+'[3]2.2 Repex'!D30 -> 8303989.179 | E30: ='[2]2.2 Repex'!E30+'[3]2.2 Repex'!E30 -> 713 | F30: ='[2]2.2 Repex'!$F$11+'[3]2.2 Repex'!$F$11 -> 0 | G30: ED_REP222_00020 | H30: TRANSFORMERS BY: TOTAL MVA | I30: Total MVA replaced | J30: ='[2]2.2 Repex'!J30 -> 2151.015 | K30: ='[2]2.2 Repex'!K30 -> 9.993
A31: ED_REP221_00021 | B31: POLE TOP STRUCTURES BY: HIGHEST OPERATING VOLTAGE | C31: ˂ = 1 kV | D31: ='[2]2.2 Repex'!D31+'[3]2.2 Repex'!D31 -> 349639.99 | E31: ='[2]2.2 Repex'!E31+'[3]2.2 Repex'!E31 -> 53 | F31: ='[2]2.2 Repex'!$F$11+'[3]2.2 Repex'!$F$11 -> 0 | G31: ED_REP222_00021 | I31: Total MVA disposed of | J31: ='[2]2.2 Repex'!J31 -> 9.991 | K31: ='[2]2.2 Repex'!K31 -> 0
A32: ED_REP221_00022 | C32: > 1 kV & < = 11 kV | D32: ='[2]2.2 Repex'!D32+'[3]2.2 Repex'!D32 -> 600410.71 | E32: ='[2]2.2 Repex'!E32+'[3]2.2 Repex'!E32 -> 71 | F32: ='[2]2.2 Repex'!$F$11+'[3]2.2 Repex'!$F$11 -> 0
A33: ED_REP221_00023 | C33: ˃ 11 kV & < = 22 kV | D33: ='[2]2.2 Repex'!D33+'[3]2.2 Repex'!D33 -> 0 | E33: ='[2]2.2 Repex'!E33+'[3]2.2 Repex'!E33 -> 0 | F33: ='[2]2.2 Repex'!$F$11+'[3]2.2 Repex'!$F$11 -> 0
A34: ED_REP221_00024 | C34: > 22 kV & < = 66 kV | D34: ='[2]2.2 Repex'!D34+'[3]2.2 Repex'!D34 -> 0 | E34: ='[2]2.2 Repex'!E34+'[3]2.2 Repex'!E34 -> 0 | F34: ='[2]2.2 Repex'!$F$11+'[3]2.2 Repex'!$F$11 -> 0
A35: ED_REP221_00025 | C35: > 66 kV & < = 132 kV | D35: ='[2]2.2 Repex'!D35+'[3]2.2 Repex'!D35 -> 0 | E35: ='[2]2.2 Repex'!E35+'[3]2.2 Repex'!E35 -> 0 | F35: ='[2]2.2 Repex'!$F$11+'[3]2.2 Repex'!$F$11 -> 0
A36: ED_REP221_00026 | C36: > 132 kV | D36: ='[2]2.2 Repex'!D36+'[3]2.2 Repex'!D36 -> 0 | E36: ='[2]2.2 Repex'!E36+'[3]2.2 Repex'!E36 -> 0 | F36: ='[2]2.2 Repex'!$F$11+'[3]2.2 Repex'!$F$11 -> 0
A37: ED_REP221_00027 | C37: Other | D37: ='[2]2.2 Repex'!D37+'[3]2.2 Repex'!D37 -> 47234.72 | E37: ='[2]2.2 Repex'!E37+'[3]2.2 Repex'!E37 -> 0 | F37: ='[2]2.2 Repex'!$F$11+'[3]2.2 Repex'!$F$11 -> 0
A38: ED_REP221_00028 | B38: OVERHEAD CONDUCTORS BY: HIGHEST OPERATING VOLTAGE; NUMBER OF PHASES (AT HV) | C38: ˂ = 1 kV | D38: ='[2]2.2 Repex'!D38+'[3]2.2 Repex'!D38 -> 149997.62 | E38: ='[2]2.2 Repex'!E38+'[3]2.2 Repex'!E38 -> 8.301 | F38: ='[2]2.2 Repex'!$F$11+'[3]2.2 Repex'!$F$11 -> 0
A39: ED_REP221_00029 | C39: > 1 kV & < = 11 kV | D39: ='[2]2.2 Repex'!D39+'[3]2.2 Repex'!D39 -> 82070 | E39: ='[2]2.2 Repex'!E39+'[3]2.2 Repex'!E39 -> 0.577 | F39: ='[2]2.2 Repex'!$F$11+'[3]2.2 Repex'!$F$11 -> 0
A40: ED_REP221_00030 | C40: ˃ 11 kV & < = 22 kV ; SWER | D40: ='[2]2.2 Repex'!D40+'[3]2.2 Repex'!D40 -> 0 | E40: ='[2]2.2 Repex'!E40+'[3]2.2 Repex'!E40 -> 0 | F40: ='[2]2.2 Repex'!$F$11+'[3]2.2 Repex'!$F$11 -> 0
A41: ED_REP221_00031 | C41: ˃ 11 kV & < = 22 kV ; Single-Phase | D41: ='[2]2.2 Repex'!D41+'[3]2.2 Repex'!D41 -> 0 | E41: ='[2]2.2 Repex'!E41+'[3]2.2 Repex'!E41 -> 0 | F41: ='[2]2.2 Repex'!$F$11+'[3]2.2 Repex'!$F$11 -> 0
A42: ED_REP221_00032 | C42: ˃ 11 kV & < = 22 kV ; Multiple-Phase | D42: ='[2]2.2 Repex'!D42+'[3]2.2 Repex'!D42 -> 0 | E42: ='[2]2.2 Repex'!E42+'[3]2.2 Repex'!E42 -> 0 | F42: ='[2]2.2 Repex'!$F$11+'[3]2.2 Repex'!$F$11 -> 0
A43: ED_REP221_00033 | C43: > 22 kV & < = 66 kV | D43: ='[2]2.2 Repex'!D43+'[3]2.2 Repex'!D43 -> 0 | E43: ='[2]2.2 Repex'!E43+'[3]2.2 Repex'!E43 -> 0 | F43: ='[2]2.2 Repex'!$F$11+'[3]2.2 Repex'!$F$11 -> 0
A44: ED_REP221_00034 | C44: > 66 kV & < = 132 kV | D44: ='[2]2.2 Repex'!D44+'[3]2.2 Repex'!D44 -> 0 | E44: ='[2]2.2 Repex'!E44+'[3]2.2 Repex'!E44 -> 0 | F44: ='[2]2.2 Repex'!$F$11+'[3]2.2 Repex'!$F$11 -> 0
A45: ED_REP221_00035 | C45: > 132 kV | D45: ='[2]2.2 Repex'!D45+'[3]2.2 Repex'!D45 -> 0 | E45: ='[2]2.2 Repex'!E45+'[3]2.2 Repex'!E45 -> 0 | F45: ='[2]2.2 Repex'!$F$11+'[3]2.2 Repex'!$F$11 -> 0
A46: ED_REP221_00036 | C46: Other | D46: ='[2]2.2 Repex'!D46+'[3]2.2 Repex'!D46 -> 0 | E46: ='[2]2.2 Repex'!E46+'[3]2.2 Repex'!E46 -> 0 | F46: ='[2]2.2 Repex'!$F$11+'[3]2.2 Repex'!$F$11 -> 0
A47: ED_REP221_00037 | B47: UNDERGROUND CABLES BY: HIGHEST OPERATING VOLTAGE | C47: ˂ = 1 kV | D47: ='[2]2.2 Repex'!D47+'[3]2.2 Repex'!D47 -> 875558.38 | E47: ='[2]2.2 Repex'!E47+'[3]2.2 Repex'!E47 -> 1.756 | F47: ='[2]2.2 Repex'!$F$11+'[3]2.2 Repex'!$F$11 -> 0
A48: ED_REP221_00038 | C48: > 1 kV & < = 11 kV | D48: ='[2]2.2 Repex'!D48+'[3]2.2 Repex'!D48 -> 85274.71 | E48: ='[2]2.2 Repex'!E48+'[3]2.2 Repex'!E48 -> 1.91 | F48: ='[2]2.2 Repex'!$F$11+'[3]2.2 Repex'!$F$11 -> 0
A49: ED_REP221_00039 | C49: > 11 kV & < = 22 kV | D49: ='[2]2.2 Repex'!D49+'[3]2.2 Repex'!D49 -> 187097.13 | E49: ='[2]2.2 Repex'!E49+'[3]2.2 Repex'!E49 -> 0.717 | F49: ='[2]2.2 Repex'!$F$11+'[3]2.2 Repex'!$F$11 -> 0
A50: ED_REP221_00040 | C50: > 22 kV & < = 33 kV | D50: ='[2]2.2 Repex'!D50+'[3]2.2 Repex'!D50 -> 0 | E50: ='[2]2.2 Repex'!E50+'[3]2.2 Repex'!E50 -> 0 | F50: ='[2]2.2 Repex'!$F$11+'[3]2.2 Repex'!$F$11 -> 0
A51: ED_REP221_00041 | C51: > 33 kV & < = 66 kV | D51: ='[2]2.2 Repex'!D51+'[3]2.2 Repex'!D51 -> 0 | E51: ='[2]2.2 Repex'!E51+'[3]2.2 Repex'!E51 -> 0 | F51: ='[2]2.2 Repex'!$F$11+'[3]2.2 Repex'!$F$11 -> 0
A52: ED_REP221_00042 | C52: > 66 kV & < = 132 kV | D52: ='[2]2.2 Repex'!D52+'[3]2.2 Repex'!D52 -> 0 | E52: ='[2]2.2 Repex'!E52+'[3]2.2 Repex'!E52 -> 0 | F52: ='[2]2.2 Repex'!$F$11+'[3]2.2 Repex'!$F$11 -> 0
A53: ED_REP221_00043 | C53: > 132 kV | D53: ='[2]2.2 Repex'!D53+'[3]2.2 Repex'!D53 -> 0 | E53: ='[2]2.2 Repex'!E53+'[3]2.2 Repex'!E53 -> 0 | F53: ='[2]2.2 Repex'!$F$11+'[3]2.2 Repex'!$F$11 -> 0
A54: ED_REP221_00044 | C54: Other | D54: ='[2]2.2 Repex'!D54+'[3]2.2 Repex'!D54 -> 0 | E54: ='[2]2.2 Repex'!E54+'[3]2.2 Repex'!E54 -> 0 | F54: ='[2]2.2 Repex'!$F$11+'[3]2.2 Repex'!$F$11 -> 0
A55: ED_REP221_00045 | B55: SERVICE LINES BY: CONNECTION VOLTAGE; CUSTOMER TYPE; CONNECTION COMPLEXITY | C55: ˂ = 11 kV ; Residential ; Simple Type | D55: ='[2]2.2 Repex'!D55+'[3]2.2 Repex'!D55 -> 39507.44 | E55: ='[2]2.2 Repex'!E55+'[3]2.2 Repex'!E55 -> 1304 | F55: ='[2]2.2 Repex'!$F$11+'[3]2.2 Repex'!$F$11 -> 0
A56: ED_REP221_00046 | C56: ˂ = 11 kV ; Commercial & Industrial ; Simple Type | D56: ='[2]2.2 Repex'!D56+'[3]2.2 Repex'!D56 -> 0 | E56: ='[2]2.2 Repex'!E56+'[3]2.2 Repex'!E56 -> 0 | F56: ='[2]2.2 Repex'!$F$11+'[3]2.2 Repex'!$F$11 -> 0
A57: ED_REP221_00047 | C57: ˂ = 11 kV ; Residential ; Complex Type | D57: ='[2]2.2 Repex'!D57+'[3]2.2 Repex'!D57 -> 0 | E57: ='[2]2.2 Repex'!E57+'[3]2.2 Repex'!E57 -> 0 | F57: ='[2]2.2 Repex'!$F$11+'[3]2.2 Repex'!$F$11 -> 0
A58: ED_REP221_00048 | C58: ˂ = 11 kV ; Commercial & Industrial ; Complex Type | D58: ='[2]2.2 Repex'!D58+'[3]2.2 Repex'!D58 -> 0 | E58: ='[2]2.2 Repex'!E58+'[3]2.2 Repex'!E58 -> 0 | F58: ='[2]2.2 Repex'!$F$11+'[3]2.2 Repex'!$F$11 -> 0
A59: ED_REP221_00049 | C59: ˂ = 11 kV ; Subdivision ; Complex Type | D59: ='[2]2.2 Repex'!D59+'[3]2.2 Repex'!D59 -> 0 | E59: ='[2]2.2 Repex'!E59+'[3]2.2 Repex'!E59 -> 0 | F59: ='[2]2.2 Repex'!$F$11+'[3]2.2 Repex'!$F$11 -> 0
A60: ED_REP221_00050 | C60: > 11 kV & < = 22 kV ; Commercial & Industrial | D60: ='[2]2.2 Repex'!D60+'[3]2.2 Repex'!D60 -> 0 | E60: ='[2]2.2 Repex'!E60+'[3]2.2 Repex'!E60 -> 0 | F60: ='[2]2.2 Repex'!$F$11+'[3]2.2 Repex'!$F$11 -> 0
A61: ED_REP221_00051 | C61: > 11 kV & < = 22 kV ; Subdivision | D61: ='[2]2.2 Repex'!D61+'[3]2.2 Repex'!D61 -> 0 | E61: ='[2]2.2 Repex'!E61+'[3]2.2 Repex'!E61 -> 0 | F61: ='[2]2.2 Repex'!$F$11+'[3]2.2 Repex'!$F$11 -> 0
A62: ED_REP221_00052 | C62: > 22 kV & < = 33 kV ; Commercial & Industrial | D62: ='[2]2.2 Repex'!D62+'[3]2.2 Repex'!D62 -> 0 | E62: ='[2]2.2 Repex'!E62+'[3]2.2 Repex'!E62 -> 0 | F62: ='[2]2.2 Repex'!$F$11+'[3]2.2 Repex'!$F$11 -> 0
A63: ED_REP221_00053 | C63: > 22 kV & < = 33 kV ; Subdivision | D63: ='[2]2.2 Repex'!D63+'[3]2.2 Repex'!D63 -> 0 | E63: ='[2]2.2 Repex'!E63+'[3]2.2 Repex'!E63 -> 0 | F63: ='[2]2.2 Repex'!$F$11+'[3]2.2 Repex'!$F$11 -> 0
A64: ED_REP221_00054 | C64: > 33 kV & < = 66 kV ; Commercial & Industrial | D64: ='[2]2.2 Repex'!D64+'[3]2.2 Repex'!D64 -> 0 | E64: ='[2]2.2 Repex'!E64+'[3]2.2 Repex'!E64 -> 0 | F64: ='[2]2.2 Repex'!$F$11+'[3]2.2 Repex'!$F$11 -> 0
A65: ED_REP221_00055 | C65: > 33 kV & < = 66 kV ; Subdivision | D65: ='[2]2.2 Repex'!D65+'[3]2.2 Repex'!D65 -> 0 | E65: ='[2]2.2 Repex'!E65+'[3]2.2 Repex'!E65 -> 0 | F65: ='[2]2.2 Repex'!$F$11+'[3]2.2 Repex'!$F$11 -> 0
A66: ED_REP221_00056 | C66: > 66 kV & < = 132 kV ; Commercial & Industrial | D66: ='[2]2.2 Repex'!D66+'[3]2.2 Repex'!D66 -> 0 | E66: ='[2]2.2 Repex'!E66+'[3]2.2 Repex'!E66 -> 0 | F66: ='[2]2.2 Repex'!$F$11+'[3]2.2 Repex'!$F$11 -> 0
A67: ED_REP221_00057 | C67: > 66 kV & < = 132 kV ; Subdivision | D67: ='[2]2.2 Repex'!D67+'[3]2.2 Repex'!D67 -> 0 | E67: ='[2]2.2 Repex'!E67+'[3]2.2 Repex'!E67 -> 0 | F67: ='[2]2.2 Repex'!$F$11+'[3]2.2 Repex'!$F$11 -> 0
A68: ED_REP221_00058 | C68: > 132 kV ; Commercial & Industrial | D68: ='[2]2.2 Repex'!D68+'[3]2.2 Repex'!D68 -> 0 | E68: ='[2]2.2 Repex'!E68+'[3]2.2 Repex'!E68 -> 0 | F68: ='[2]2.2 Repex'!$F$11+'[3]2.2 Repex'!$F$11 -> 0
A69: ED_REP221_00059 | C69: > 132 kV ; Subdivision | D69: ='[2]2.2 Repex'!D69+'[3]2.2 Repex'!D69 -> 0 | E69: ='[2]2.2 Repex'!E69+'[3]2.2 Repex'!E69 -> 0 | F69: ='[2]2.2 Repex'!$F$11+'[3]2.2 Repex'!$F$11 -> 0
A70: ED_REP221_00060 | C70: Other | D70: ='[2]2.2 Repex'!D70+'[3]2.2 Repex'!D70 -> 0 | E70: ='[2]2.2 Repex'!E70+'[3]2.2 Repex'!E70 -> 0 | F70: ='[2]2.2 Repex'!$F$11+'[3]2.2 Repex'!$F$11 -> 0
A71: ED_REP221_00061 | B71: TRANSFORMERS BY: MOUNTING TYPE; HIGHEST OPERATING VOLTAGE ; AMPERE RATING; NUMBER OF PHASES (AT LV) | C71: Pole Mounted ; < = 22kV ; < = 60 kVA ; Single Phase | D71: ='[2]2.2 Repex'!D71+'[3]2.2 Repex'!D71 -> 50281.68 | E71: ='[2]2.2 Repex'!E71+'[3]2.2 Repex'!E71 -> 3 | F71: ='[2]2.2 Repex'!$F$11+'[3]2.2 Repex'!$F$11 -> 0
A72: ED_REP221_00062 | C72: Pole Mounted ; < = 22kV ; > 60 kVA and < = 600 kVA ; Single Phase | D72: ='[2]2.2 Repex'!D72+'[3]2.2 Repex'!D72 -> 0 | E72: ='[2]2.2 Repex'!E72+'[3]2.2 Repex'!E72 -> 0 | F72: ='[2]2.2 Repex'!$F$11+'[3]2.2 Repex'!$F$11 -> 0
A73: ED_REP221_00063 | C73: Pole Mounted ; < = 22kV ; > 600 kVA ; Single Phase | D73: ='[2]2.2 Repex'!D73+'[3]2.2 Repex'!D73 -> 0 | E73: ='[2]2.2 Repex'!E73+'[3]2.2 Repex'!E73 -> 0 | F73: ='[2]2.2 Repex'!$F$11+'[3]2.2 Repex'!$F$11 -> 0
A74: ED_REP221_00064 | C74: Pole Mounted ; < = 22kV ; < = 60 kVA ; Multiple Phase | D74: ='[2]2.2 Repex'!D74+'[3]2.2 Repex'!D74 -> 0 | E74: ='[2]2.2 Repex'!E74+'[3]2.2 Repex'!E74 -> 0 | F74: ='[2]2.2 Repex'!$F$11+'[3]2.2 Repex'!$F$11 -> 0
A75: ED_REP221_00065 | C75: Pole Mounted ; < = 22kV ; > 60 kVA and < = 600 kVA ; Multiple Phase | D75: ='[2]2.2 Repex'!D75+'[3]2.2 Repex'!D75 -> 709792.87 | E75: ='[2]2.2 Repex'!E75+'[3]2.2 Repex'!E75 -> 13 | F75: ='[2]2.2 Repex'!$F$11+'[3]2.2 Repex'!$F$11 -> 0
A76: ED_REP221_00066 | C76: Pole Mounted ; < = 22kV ; > 600 kVA ; Multiple Phase | D76: ='[2]2.2 Repex'!D76+'[3]2.2 Repex'!D76 -> 0 | E76: ='[2]2.2 Repex'!E76+'[3]2.2 Repex'!E76 -> 0 | F76: ='[2]2.2 Repex'!$F$11+'[3]2.2 Repex'!$F$11 -> 0
A77: ED_REP221_00073 | C77: Kiosk Mounted ; < = 22kV ; < = 60 kVA ; Single Phase | D77: ='[2]2.2 Repex'!D77+'[3]2.2 Repex'!D77 -> 0 | E77: ='[2]2.2 Repex'!E77+'[3]2.2 Repex'!E77 -> 0 | F77: ='[2]2.2 Repex'!$F$11+'[3]2.2 Repex'!$F$11 -> 0
A78: ED_REP221_00074 | C78: Kiosk Mounted ; < = 22kV ; > 60 kVA and < = 600 kVA ; Single Phase | D78: ='[2]2.2 Repex'!D78+'[3]2.2 Repex'!D78 -> 0 | E78: ='[2]2.2 Repex'!E78+'[3]2.2 Repex'!E78 -> 0 | F78: ='[2]2.2 Repex'!$F$11+'[3]2.2 Repex'!$F$11 -> 0
A79: ED_REP221_00075 | C79: Kiosk Mounted ; < = 22kV ; > 600 kVA ; Single Phase | D79: ='[2]2.2 Repex'!D79+'[3]2.2 Repex'!D79 -> 0 | E79: ='[2]2.2 Repex'!E79+'[3]2.2 Repex'!E79 -> 0 | F79: ='[2]2.2 Repex'!$F$11+'[3]2.2 Repex'!$F$11 -> 0
A80: ED_REP221_00076 | C80: Kiosk Mounted ; < = 22kV ; < = 60 kVA ; Multiple Phase | D80: ='[2]2.2 Repex'!D80+'[3]2.2 Repex'!D80 -> 0 | E80: ='[2]2.2 Repex'!E80+'[3]2.2 Repex'!E80 -> 0 | F80: ='[2]2.2 Repex'!$F$11+'[3]2.2 Repex'!$F$11 -> 0
A81: ED_REP221_00077 | C81: Kiosk Mounted ; < = 22kV ; > 60 kVA and < = 600 kVA ; Multiple Phase | D81: ='[2]2.2 Repex'!D81+'[3]2.2 Repex'!D81 -> 538229.06 | E81: ='[2]2.2 Repex'!E81+'[3]2.2 Repex'!E81 -> 4 | F81: ='[2]2.2 Repex'!$F$11+'[3]2.2 Repex'!$F$11 -> 0
A82: ED_REP221_00078 | C82: Kiosk Mounted ; < = 22kV ; > 600 kVA ; Multiple Phase | D82: ='[2]2.2 Repex'!D82+'[3]2.2 Repex'!D82 -> 0 | E82: ='[2]2.2 Repex'!E82+'[3]2.2 Repex'!E82 -> 0 | F82: ='[2]2.2 Repex'!$F$11+'[3]2.2 Repex'!$F$11 -> 0
A83: ED_REP221_00085 | C83: Ground Outdoor / Indoor Chamber Mounted; ˂ 22 kV ; < = 60 kVA ; Single Phase | D83: ='[2]2.2 Repex'!D83+'[3]2.2 Repex'!D83 -> 0 | E83: ='[2]2.2 Repex'!E83+'[3]2.2 Repex'!E83 -> 0 | F83: ='[2]2.2 Repex'!$F$11+'[3]2.2 Repex'!$F$11 -> 0
A84: ED_REP221_00086 | C84: Ground Outdoor / Indoor Chamber Mounted; ˂ 22 kV ; > 60 kVA and < = 600 kVA ; Single Phase | D84: ='[2]2.2 Repex'!D84+'[3]2.2 Repex'!D84 -> 0 | E84: ='[2]2.2 Repex'!E84+'[3]2.2 Repex'!E84 -> 0 | F84: ='[2]2.2 Repex'!$F$11+'[3]2.2 Repex'!$F$11 -> 0
A85: ED_REP221_00087 | C85: Ground Outdoor / Indoor Chamber Mounted; ˂ 22 kV ; > 600 kVA ; Single Phase | D85: ='[2]2.2 Repex'!D85+'[3]2.2 Repex'!D85 -> 0 | E85: ='[2]2.2 Repex'!E85+'[3]2.2 Repex'!E85 -> 0 | F85: ='[2]2.2 Repex'!$F$11+'[3]2.2 Repex'!$F$11 -> 0
A86: ED_REP221_00088 | C86: Ground Outdoor / Indoor Chamber Mounted; ˂ 22 kV ; < = 60 kVA ; Multiple Phase | D86: ='[2]2.2 Repex'!D86+'[3]2.2 Repex'!D86 -> 0 | E86: ='[2]2.2 Repex'!E86+'[3]2.2 Repex'!E86 -> 0 | F86: ='[2]2.2 Repex'!$F$11+'[3]2.2 Repex'!$F$11 -> 0
A87: ED_REP221_00089 | C87: Ground Outdoor / Indoor Chamber Mounted; ˂ 22 kV ; > 60 kVA and < = 600 kVA ; Multiple Phase | D87: ='[2]2.2 Repex'!D87+'[3]2.2 Repex'!D87 -> 31865.43 | E87: ='[2]2.2 Repex'!E87+'[3]2.2 Repex'!E87 -> 1 | F87: ='[2]2.2 Repex'!$F$11+'[3]2.2 Repex'!$F$11 -> 0
A88: ED_REP221_00090 | C88: Ground Outdoor / Indoor Chamber Mounted; ˂ 22 kV ; > 600 kVA ; Multiple Phase | D88: ='[2]2.2 Repex'!D88+'[3]2.2 Repex'!D88 -> 0 | E88: ='[2]2.2 Repex'!E88+'[3]2.2 Repex'!E88 -> 0 | F88: ='[2]2.2 Repex'!$F$11+'[3]2.2 Repex'!$F$11 -> 0
A89: ED_REP221_00091 | C89: Ground Outdoor / Indoor Chamber Mounted; > = 22 kV & < = 33 kV ; < = 15 MVA | D89: ='[2]2.2 Repex'!D89+'[3]2.2 Repex'!D89 -> 0 | E89: ='[2]2.2 Repex'!E89+'[3]2.2 Repex'!E89 -> 0 | F89: ='[2]2.2 Repex'!$F$11+'[3]2.2 Repex'!$F$11 -> 0
A90: ED_REP221_00092 | C90: Ground Outdoor / Indoor Chamber Mounted; > = 22 kV & < = 33 kV ; > 15 MVA and < = 40 MVA | D90: ='[2]2.2 Repex'!D90+'[3]2.2 Repex'!D90 -> 0 | E90: ='[2]2.2 Repex'!E90+'[3]2.2 Repex'!E90 -> 0 | F90: ='[2]2.2 Repex'!$F$11+'[3]2.2 Repex'!$F$11 -> 0
A91: ED_REP221_00093 | C91: Ground Outdoor / Indoor Chamber Mounted; > = 22 kV & < = 33 kV ; > 40 MVA | D91: ='[2]2.2 Repex'!D91+'[3]2.2 Repex'!D91 -> 0 | E91: ='[2]2.2 Repex'!E91+'[3]2.2 Repex'!E91 -> 0 | F91: ='[2]2.2 Repex'!$F$11+'[3]2.2 Repex'!$F$11 -> 0
A92: ED_REP221_00094 | C92: Ground Outdoor / Indoor Chamber Mounted; > 33 kV & < = 66 kV ; < = 15 MVA | D92: ='[2]2.2 Repex'!D92+'[3]2.2 Repex'!D92 -> 0 | E92: ='[2]2.2 Repex'!E92+'[3]2.2 Repex'!E92 -> 0 | F92: ='[2]2.2 Repex'!$F$11+'[3]2.2 Repex'!$F$11 -> 0
A93: ED_REP221_00095 | C93: Ground Outdoor / Indoor Chamber Mounted; > 33 kV & < = 66 kV ; > 15 MVA and < = 40 MVA | D93: ='[2]2.2 Repex'!D93+'[3]2.2 Repex'!D93 -> 0 | E93: ='[2]2.2 Repex'!E93+'[3]2.2 Repex'!E93 -> 0 | F93: ='[2]2.2 Repex'!$F$11+'[3]2.2 Repex'!$F$11 -> 0
A94: ED_REP221_00096 | C94: Ground Outdoor / Indoor Chamber Mounted; > 33 kV & < = 66 kV ; > 40 MVA | D94: ='[2]2.2 Repex'!D94+'[3]2.2 Repex'!D94 -> 0 | E94: ='[2]2.2 Repex'!E94+'[3]2.2 Repex'!E94 -> 0 | F94: ='[2]2.2 Repex'!$F$11+'[3]2.2 Repex'!$F$11 -> 0
A95: ED_REP221_00097 | C95: Ground Outdoor / Indoor Chamber Mounted; > 66 kV & < = 132 kV ; < = 100 MVA | D95: ='[2]2.2 Repex'!D95+'[3]2.2 Repex'!D95 -> 0 | E95: ='[2]2.2 Repex'!E95+'[3]2.2 Repex'!E95 -> 0 | F95: ='[2]2.2 Repex'!$F$11+'[3]2.2 Repex'!$F$11 -> 0
A96: ED_REP221_00098 | C96: Ground Outdoor / Indoor Chamber Mounted; > 66 kV & < = 132 kV ; > 100 MVA | D96: ='[2]2.2 Repex'!D96+'[3]2.2 Repex'!D96 -> 0 | E96: ='[2]2.2 Repex'!E96+'[3]2.2 Repex'!E96 -> 0 | F96: ='[2]2.2 Repex'!$F$11+'[3]2.2 Repex'!$F$11 -> 0
A97: ED_REP221_00099 | C97: Ground Outdoor / Indoor Chamber Mounted; > 132 kV ; < = 100 MVA | D97: ='[2]2.2 Repex'!D97+'[3]2.2 Repex'!D97 -> 0 | E97: ='[2]2.2 Repex'!E97+'[3]2.2 Repex'!E97 -> 0 | F97: ='[2]2.2 Repex'!$F$11+'[3]2.2 Repex'!$F$11 -> 0
A98: ED_REP221_00100 | C98: Ground Outdoor / Indoor Chamber Mounted; > 132 kV ; > 100 MVA | D98: ='[2]2.2 Repex'!D98+'[3]2.2 Repex'!D98 -> 0 | E98: ='[2]2.2 Repex'!E98+'[3]2.2 Repex'!E98 -> 0 | F98: ='[2]2.2 Repex'!$F$11+'[3]2.2 Repex'!$F$11 -> 0
A99: ED_REP221_00101 | C99: Other | D99: ='[2]2.2 Repex'!D99+'[3]2.2 Repex'!D99 -> 0 | E99: ='[2]2.2 Repex'!E99+'[3]2.2 Repex'!E99 -> 1 | F99: ='[2]2.2 Repex'!$F$11+'[3]2.2 Repex'!$F$11 -> 0
A100: ED_REP221_00102 | B100: SWITCHGEAR BY: HIGHEST OPERATING VOLTAGE ; SWITCH FUNCTION | C100: ˂ = 11 kV ; FUSE | D100: ='[2]2.2 Repex'!D100+'[3]2.2 Repex'!D100 -> 0 | E100: ='[2]2.2 Repex'!E100+'[3]2.2 Repex'!E100 -> 1232 | F100: ='[2]2.2 Repex'!$F$11+'[3]2.2 Repex'!$F$11 -> 0
A101: ED_REP221_00103 | C101: ˂ = 11 kV ; Switch | D101: ='[2]2.2 Repex'!D101+'[3]2.2 Repex'!D101 -> 893968.08 | E101: ='[2]2.2 Repex'!E101+'[3]2.2 Repex'!E101 -> 481 | F101: ='[2]2.2 Repex'!$F$11+'[3]2.2 Repex'!$F$11 -> 0
A102: ED_REP221_00104 | C102: ˂ = 11 kV ; Circuit Breaker | D102: ='[2]2.2 Repex'!D102+'[3]2.2 Repex'!D102 -> 260146.43 | E102: ='[2]2.2 Repex'!E102+'[3]2.2 Repex'!E102 -> 12 | F102: ='[2]2.2 Repex'!$F$11+'[3]2.2 Repex'!$F$11 -> 0
A103: ED_REP221_00105 | C103: > 11 kV & < = 22 kV ; Switch | D103: ='[2]2.2 Repex'!D103+'[3]2.2 Repex'!D103 -> 0 | E103: ='[2]2.2 Repex'!E103+'[3]2.2 Repex'!E103 -> 2 | F103: ='[2]2.2 Repex'!$F$11+'[3]2.2 Repex'!$F$11 -> 0
A104: ED_REP221_00106 | C104: > 11 kV & < = 22 kV ; Circuit Breaker | D104: ='[2]2.2 Repex'!D104+'[3]2.2 Repex'!D104 -> 0 | E104: ='[2]2.2 Repex'!E104+'[3]2.2 Repex'!E104 -> 0 | F104: ='[2]2.2 Repex'!$F$11+'[3]2.2 Repex'!$F$11 -> 0
A105: ED_REP221_00107 | C105: > 22 kV & < = 33 kV ; Switch | D105: ='[2]2.2 Repex'!D105+'[3]2.2 Repex'!D105 -> 0 | E105: ='[2]2.2 Repex'!E105+'[3]2.2 Repex'!E105 -> 0 | F105: ='[2]2.2 Repex'!$F$11+'[3]2.2 Repex'!$F$11 -> 0
A106: ED_REP221_00108 | C106: > 22 kV & < = 33 kV ; Circuit Breaker | D106: ='[2]2.2 Repex'!D106+'[3]2.2 Repex'!D106 -> 0 | E106: ='[2]2.2 Repex'!E106+'[3]2.2 Repex'!E106 -> 0 | F106: ='[2]2.2 Repex'!$F$11+'[3]2.2 Repex'!$F$11 -> 0
A107: ED_REP221_00109 | C107: > 33 kV & < = 66 kV ; Switch | D107: ='[2]2.2 Repex'!D107+'[3]2.2 Repex'!D107 -> 0 | E107: ='[2]2.2 Repex'!E107+'[3]2.2 Repex'!E107 -> 0 | F107: ='[2]2.2 Repex'!$F$11+'[3]2.2 Repex'!$F$11 -> 0
A108: ED_REP221_00110 | C108: > 33 kV & < = 66 kV ; Circuit Breaker | D108: ='[2]2.2 Repex'!D108+'[3]2.2 Repex'!D108 -> 0 | E108: ='[2]2.2 Repex'!E108+'[3]2.2 Repex'!E108 -> 0 | F108: ='[2]2.2 Repex'!$F$11+'[3]2.2 Repex'!$F$11 -> 0
A109: ED_REP221_00111 | C109: > 66 kV & < = 132 kV ; Switch | D109: ='[2]2.2 Repex'!D109+'[3]2.2 Repex'!D109 -> 0 | E109: ='[2]2.2 Repex'!E109+'[3]2.2 Repex'!E109 -> 0 | F109: ='[2]2.2 Repex'!$F$11+'[3]2.2 Repex'!$F$11 -> 0
A110: ED_REP221_00112 | C110: > 66 kV & < = 132 kV ; Circuit Breaker | D110: ='[2]2.2 Repex'!D110+'[3]2.2 Repex'!D110 -> 1328876.95 | E110: ='[2]2.2 Repex'!E110+'[3]2.2 Repex'!E110 -> 4 | F110: ='[2]2.2 Repex'!$F$11+'[3]2.2 Repex'!$F$11 -> 0
A111: ED_REP221_00113 | C111: > 132 kV ; Switch | D111: ='[2]2.2 Repex'!D111+'[3]2.2 Repex'!D111 -> 0 | E111: ='[2]2.2 Repex'!E111+'[3]2.2 Repex'!E111 -> 0 | F111: ='[2]2.2 Repex'!$F$11+'[3]2.2 Repex'!$F$11 -> 0
A112: ED_REP221_00114 | C112: > 132 kV ; Circuit Breaker | D112: ='[2]2.2 Repex'!D112+'[3]2.2 Repex'!D112 -> 0 | E112: ='[2]2.2 Repex'!E112+'[3]2.2 Repex'!E112 -> 0 | F112: ='[2]2.2 Repex'!$F$11+'[3]2.2 Repex'!$F$11 -> 0
A113: ED_REP221_00115 | C113: Other | D113: ='[2]2.2 Repex'!D113+'[3]2.2 Repex'!D113 -> 0 | E113: ='[2]2.2 Repex'!E113+'[3]2.2 Repex'!E113 -> 4 | F113: ='[2]2.2 Repex'!$F$11+'[3]2.2 Repex'!$F$11 -> 0
A114: ED_REP221_00116 | B114: PUBLIC LIGHTING BY: ASSET TYPE ; LIGHTING OBLIGATION | C114: Luminaires ; Major Road | D114: ='[2]2.2 Repex'!D114+'[3]2.2 Repex'!D114 -> 0 | E114: ='[2]2.2 Repex'!E114+'[3]2.2 Repex'!E114 -> 0 | F114: ='[2]2.2 Repex'!$F$11+'[3]2.2 Repex'!$F$11 -> 0
A115: ED_REP221_00117 | C115: Luminaires ; Minor Road | D115: ='[2]2.2 Repex'!D115+'[3]2.2 Repex'!D115 -> 0 | E115: ='[2]2.2 Repex'!E115+'[3]2.2 Repex'!E115 -> 0 | F115: ='[2]2.2 Repex'!$F$11+'[3]2.2 Repex'!$F$11 -> 0
A116: ED_REP221_00118 | C116: Brackets ; Major Road | D116: ='[2]2.2 Repex'!D116+'[3]2.2 Repex'!D116 -> 0 | E116: ='[2]2.2 Repex'!E116+'[3]2.2 Repex'!E116 -> 0 | F116: ='[2]2.2 Repex'!$F$11+'[3]2.2 Repex'!$F$11 -> 0
A117: ED_REP221_00119 | C117: Brackets ; Minor Road | D117: ='[2]2.2 Repex'!D117+'[3]2.2 Repex'!D117 -> 0 | E117: ='[2]2.2 Repex'!E117+'[3]2.2 Repex'!E117 -> 0 | F117: ='[2]2.2 Repex'!$F$11+'[3]2.2 Repex'!$F$11 -> 0
A118: ED_REP221_00120 | C118: Lamps ; Major Road | D118: ='[2]2.2 Repex'!D118+'[3]2.2 Repex'!D118 -> 0 | E118: ='[2]2.2 Repex'!E118+'[3]2.2 Repex'!E118 -> 0 | F118: ='[2]2.2 Repex'!$F$11+'[3]2.2 Repex'!$F$11 -> 0
A119: ED_REP221_00121 | C119: Lamps ; Minor Road | D119: ='[2]2.2 Repex'!D119+'[3]2.2 Repex'!D119 -> 0 | E119: ='[2]2.2 Repex'!E119+'[3]2.2 Repex'!E119 -> 0 | F119: ='[2]2.2 Repex'!$F$11+'[3]2.2 Repex'!$F$11 -> 0
A120: ED_REP221_00122 | C120: Poles / Columns ; Major Road | D120: ='[2]2.2 Repex'!D120+'[3]2.2 Repex'!D120 -> 0 | E120: ='[2]2.2 Repex'!E120+'[3]2.2 Repex'!E120 -> 0 | F120: ='[2]2.2 Repex'!$F$11+'[3]2.2 Repex'!$F$11 -> 0
A121: ED_REP221_00123 | C121: Poles / Columns ; Minor Road | D121: ='[2]2.2 Repex'!D121+'[3]2.2 Repex'!D121 -> 0 | E121: ='[2]2.2 Repex'!E121+'[3]2.2 Repex'!E121 -> 0 | F121: ='[2]2.2 Repex'!$F$11+'[3]2.2 Repex'!$F$11 -> 0
A122: ED_REP221_00124 | C122: Other | D122: ='[2]2.2 Repex'!D122+'[3]2.2 Repex'!D122 -> 0 | E122: ='[2]2.2 Repex'!E122+'[3]2.2 Repex'!E122 -> 0 | F122: ='[2]2.2 Repex'!$F$11+'[3]2.2 Repex'!$F$11 -> 0
A123: ED_REP221_00125 | B123: SCADA, NETWORK CONTROL AND PROTECTION SYSTEMS BY: FUNCTION | C123: Field Devices | D123: ='[2]2.2 Repex'!D123+'[3]2.2 Repex'!D123 -> 402076.69 | E123: ='[2]2.2 Repex'!E123+'[3]2.2 Repex'!E123 -> 14 | F123: ='[2]2.2 Repex'!$F$11+'[3]2.2 Repex'!$F$11 -> 0
A124: ED_REP221_00126 | C124: Local Network Wiring Assets | D124: ='[2]2.2 Repex'!D124+'[3]2.2 Repex'!D124 -> 254196.98 | E124: ='[2]2.2 Repex'!E124+'[3]2.2 Repex'!E124 -> 0 | F124: ='[2]2.2 Repex'!$F$11+'[3]2.2 Repex'!$F$11 -> 0
A125: ED_REP221_00127 | C125: Communications Network Assets | D125: ='[2]2.2 Repex'!D125+'[3]2.2 Repex'!D125 -> 108138.26 | E125: ='[2]2.2 Repex'!E125+'[3]2.2 Repex'!E125 -> 0 | F125: ='[2]2.2 Repex'!$F$11+'[3]2.2 Repex'!$F$11 -> 0
A126: ED_REP221_00128 | C126: Master Station Assets | D126: ='[2]2.2 Repex'!D126+'[3]2.2 Repex'!D126 -> 171192.91 | E126: ='[2]2.2 Repex'!E126+'[3]2.2 Repex'!E126 -> 0 | F126: ='[2]2.2 Repex'!$F$11+'[3]2.2 Repex'!$F$11 -> 0
A127: ED_REP221_00129 | C127: Communications Site Infrastructure | D127: ='[2]2.2 Repex'!D127+'[3]2.2 Repex'!D127 -> 0 | E127: ='[2]2.2 Repex'!E127+'[3]2.2 Repex'!E127 -> 0 | F127: ='[2]2.2 Repex'!$F$11+'[3]2.2 Repex'!$F$11 -> 0
A128: ED_REP221_00130 | C128: Communications Linear Assets | D128: ='[2]2.2 Repex'!D128+'[3]2.2 Repex'!D128 -> 0 | E128: ='[2]2.2 Repex'!E128+'[3]2.2 Repex'!E128 -> 0 | F128: ='[2]2.2 Repex'!$F$11+'[3]2.2 Repex'!$F$11 -> 0
A129: ED_REP221_00131 | C129: AFLC | D129: ='[2]2.2 Repex'!D129+'[3]2.2 Repex'!D129 -> 0 | E129: ='[2]2.2 Repex'!E129+'[3]2.2 Repex'!E129 -> 0 | F129: ='[2]2.2 Repex'!$F$11+'[3]2.2 Repex'!$F$11 -> 0
A130: ED_REP221_00124 | C130: Other | D130: ='[2]2.2 Repex'!D130+'[3]2.2 Repex'!D130 -> 232228.15 | E130: ='[2]2.2 Repex'!E130+'[3]2.2 Repex'!E130 -> 0 | F130: ='[2]2.2 Repex'!$F$11+'[3]2.2 Repex'!$F$11 -> 0
A131: ED_REP221_00132 | B131: OTHER BY: DNSP DEFINED
A132: ED_REP221_00133
A133: ED_REP221_00134
A134: ED_REP221_00135
A135: ED_REP221_00136
A136: ED_REP221_00137
A137: ED_REP221_00138
A138: ED_REP221_00139
A139: ED_REP221_00140
A140: ED_REP221_00141
A141: ED_REP221_00142
A142: ED_REP221_00143
A143: ED_REP221_00144
A144: ED_REP221_00145
A145: ED_REP221_00146
A146: ED_REP221_00147

Sheet 2.3 Augex
B1: =(LOOKUP(dms_Model,dms_Model_List,dms_Worksheet_List)) -> REGULATORY REPORTING STATEMENT | K1: New line on new route - single circuit | L1: New line on new route - dual circuit | O1: Worksheet navigation
B2: Australian Distribution Co.
B3: =CONCATENATE("Category Analysis RIN response ",CRY) -> Category Analysis RIN response 2014-15
B4: 2.3 AUGEX PROJECT DATA
B7: TABLE 2.3.1 - AUGEX ASSET DATA - SUBTRANSMISSION SUBSTATIONS, SWITCHING STATIONS AND ZONE SUBSTATIONS
B8: NOTE: DNSP MUST PROVIDE EXPENDITURE INFORMATION ON A PROJECT CLOSE BASIS.
A9: AUG231 | B9: AUG231_1 | M9: AUG231_2 | N9: AUG231_3 | O9: AUG231_4 | P9: AUG231_5 | Q9: AUG231_6 | R9: ED_AUG231_00001 | S9: ED_AUG231_00002 | T9: ED_AUG231_00003 | U9: ED_AUG231_00004 | V9: ED_AUG231_00005 | W9: ED_AUG231_00006 | X9: ED_AUG231_00007 | Y9: ED_AUG231_00008 | Z9: ED_AUG231_00009 | AK9: ED_AUG231_00010 | AL9: ED_AUG231_00011 | AM9: ED_AUG231_00012 | AN9: ED_AUG231_00013 | AO9: ED_AUG231_00014 | AP9: ED_AUG231_00015 | AQ9: ED_AUG231_00016 | AR9: ED_AUG231_00017 | AS9: ED_AUG231_00018 | AT9: ED_AUG231_00019 | AU9: ED_AUG231_00020 | AV9: ED_AUG231_00021 | AW9: ED_AUG231_00022 | AX9: ED_AUG231_00023
B10: PROJECT DESCRIPTION AND CHANGES | V10: PLANT AND EQUIPMENT EXPENDITURE AND VOLUME | AP10: OTHER EXPENDITURE | AR10: TOTAL DIRECT EXPENDITURE ($0's) | AS10: YEARS INCURRED | AT10: ALL RELATED PARTY CONTRACTS | AV10: ALL NON RELATED PARTYCONTRACTS | AW10: LAND AND EASEMENTS
B11: SUBSTATION ID | M11: SUBSTATION TYPE | N11: PROJECT ID | O11: PROJECT TYPE | P11: PROJECT TRIGGER | Q11: VOLTAGE (KV) | R11: SUBSTATION RATING NORMAL CYCLIC (MVA) | T11: SUBSTATION RATING N-1 EMERGENCY (MVA) | V11: TRANSFORMERS | Y11: SWITCHGEAR | AK11: CAPACITORS | AM11: OTHER PLANT ITEM | AN11: INSTALLATION (LABOUR) | AP11: CIVIL WORKS | AQ11: OTHER DIRECT | AT11: RELATED PARTY MARGINS | AU11: TOTAL | AW11: LAND PURCHASE | AX11: EASEMENTS
R12: PRE | S12: POST | T12: PRE | U12: POST | V12: UNITS ADDED | W12: MVA ADDED | X12: EXPENDITURE ($0's) | Y12: UNITS ADDED | Z12: EXPENDITURE ($0's) | AK12: MVAR ADDED | AL12: EXPENDITURE ($0's) | AM12: EXPENDITURE ($0's) | AN12: VOLUME | AO12: EXPENDITURE ($0's) | AP12: EXPENDITURE ($0's) | AT12: EXPENDITURE ($0's) | AW12: EXPENDITURE ($0's)
A13: AUG231_1 | C13: Zone substation | D13: 7519205 | E13: New substation establishment | F13: Demand growth | G13: 132kV/11kV | H13: 0 | I13: 55 | J13: 0 | K13: 0 | L13: 1 | Q13: - | AR13: =SUM(X13,Z13,AL13,AM13,AO13,AP13,AQ13) -> 0
A14: AUG231_2 | AR14: =SUM(X14,Z14,AL14,AM14,AO14,AP14,AQ14) -> 0
A15: AUG231_3 | AR15: 0
A16: AUG231_4 | AR16: 0
A17: AUG231_5 | AR17: 0
A18: AUG231_6 | AR18: 0
A19: AUG231_7 | AR19: 0
A20: AUG231_8 | AR20: 0
A21: AUG231_9 | AR21: 0
A22: AUG231_10 | AR22: 0
A23: AUG231_11 | AR23: 0
A24: AUG231_12 | AR24: 0
A25: AUG231_13 | AR25: 0
A26: AUG231_14 | AR26: 0
A27: AUG231_15 | AR27: 0
A28: AUG231_16 | AR28: 0
A29: AUG231_17 | AR29: 0
A30: AUG231_18 | AR30: 0
A31: AUG231_19 | AR31: 0
A32: AUG231_20 | AR32: 0
A33: AUG231_21 | AR33: 0
A34: AUG231_22 | AR34: 0
A35: AUG231_23 | AR35: 0
A36: AUG231_24 | AR36: 0
A37: AUG231_25 | AR37: 0
A38: AUG231_26 | AR38: 0
A39: AUG231_27 | AR39: 0
A40: AUG231_28 | AR40: 0
A41: AUG231_29 | AR41: 0
A42: AUG231_30 | AR42: 0
A43: AUG231_31 | AR43: 0
A44: AUG231_32 | AR44: 0
A45: AUG231_33 | AR45: 0
A46: AUG231_34 | AR46: 0
A47: AUG231_35 | AR47: 0
A48: AUG231_36 | AR48: 0
A49: AUG231_37 | AR49: 0
A50: AUG231_38 | AR50: 0
A51: AUG231_39 | AR51: 0
A52: AUG231_40 | AR52: 0
A53: AUG231_41 | AR53: 0
A54: AUG231_42 | AR54: 0
A55: AUG231_43 | AR55: 0
A56: AUG231_44 | AR56: 0
A57: AUG231_45 | AR57: 0
A58: AUG231_46 | AR58: 0
A59: AUG231_47 | AR59: 0
A60: AUG231_48 | AR60: 0
A61: AUG231_49 | AR61: 0
A62: AUG231_50 | AR62: 0
A63: AUG231_51 | AR63: 0
A64: AUG231_52 | AR64: 0
N65: Non material projects - [actual]
N66: Non material projects - [forecast]
A68: AUG232 | B68: AUG232_1 | C68: AUG232_2 | D68: AUG232_3 | E68: AUG232_4 | F68: AUG232_5 | G68: AUG232_6 | H68: AUG232_7 | I68: AUG232_8 | J68: AUG232_9 | K68: AUG232_10 | L68: AUG232_11 | M68: AUG232_2 | N68: AUG232_3 | O68: AUG232_4 | P68: AUG232_5 | Q68: AUG232_6 | R68: ED_AUG232_00001 | S68: ED_AUG232_00002 | T68: ED_AUG232_00003 | U68: ED_AUG232_00004 | V68: ED_AUG232_00005 | W68: ED_AUG232_00006 | X68: ED_AUG232_00007 | Y68: ED_AUG232_00008 | Z68: ED_AUG232_00009 | AK68: ED_AUG232_00010 | AL68: ED_AUG232_00011 | AM68: ED_AUG232_00012 | AN68: ED_AUG232_00013 | AO68: ED_AUG232_00014 | AP68: ED_AUG232_00015 | AQ68: ED_AUG232_00016 | AR68: ED_AUG232_00017 | AS68: ED_AUG232_00018 | AT68: ED_AUG232_00019 | AU68: ED_AUG232_00020 | AV68: ED_AUG232_00021
B69: TABLE 2.3.2 - AUGEX ASSET DATA - SUBTRANSMISSION LINES
B70: NOTE: DNSP MUST PROVIDE EXPENDITURE INFORMATION ON A PROJECT CLOSE BASIS.
B71: PROJECT DESCRIPTION AND CHANGES | R71: PLANT AND EQUIPMENT EXPENDITURE AND VOLUME | AN71: OTHER EXPENDITURE | AP71: TOTAL DIRECT EXPENDITURE ($0's) | AQ71: YEARS INCURRED | AR71: ALL RELATED PARTY CONTRACTS | AT71: ALL NON RELATED PARTYCONTRACTS | AU71: LAND AND EASEMENTS
B72: LINE ID | M72: PROJECT ID | N72: PROJECT TYPE | O72: PROJECT TRIGGER | P72: VOLTAGE (KV) | Q72: ROUTE LINE LENGTH ADDED | R72: POLES/TOWERS (INCLUDING STRUCTURES, AND CIVIL WORKS) | U72: OVERHEAD LINES | X72: UNDERGROUND CABLES | AK72: OTHER PLANT ITEM | AL72: INSTALLATION (LABOUR) | AN72: CIVIL WORKS | AO72: OTHER DIRECT | AR72: RELATED PARTY MARGINS | AS72: TOTAL | AU72: LAND PURCHASE | AV72: EASEMENTS
Q73: KM ADDED | R73: POLES/TOWERS ADDED | S73: POLES/TOWERS UPGRADED | T73: EXPENDITURE ($0's) | U73: CIRCUIT KM ADDED | V73: CIRCUIT KM UPGRADED | W73: EXPENDITURE ($0's) | X73: CIRCUIT KM ADDED | Y73: CIRCUIT KM UPGRADED | Z73: EXPENDITURE ($0's) | AK73: EXPENDITURE ($0's) | AL73: VOLUME | AM73: EXPENDITURE ($0's) | AN73: EXPENDITURE ($0's) | AR73: EXPENDITURE ($0's) | AU73: EXPENDITURE ($0's)
A74: AUG232_1 | AP74: =SUM(T74,W74,Z74,AK74,AM74,AN74,AO74) -> 0 | AX74: New line on new route - single circuit
A75: AUG232_2 | AP75: 0 | AX75: New line on new route - dual circuit
A76: AUG232_3 | AP76: 0 | AX76: New line on new route - other
A77: AUG232_4 | AP77: 0 | AX77: Line rebuild over existing route - single circuit
A78: AUG232_5 | AP78: 0 | AX78: Line rebuild over existing route - dual circuit
A79: AUG232_6 | AP79: 0 | AX79: Reconductor - Single circuit
A80: AUG232_7 | AP80: 0 | AX80: Reconductor - Dual circuit
A81: AUG232_8 | AP81: 0 | AX81: Reconductor - Other
A82: AUG232_9 | AP82: 0 | AX82: Line upgrade - raising/retensoring
A83: AUG232_10 | AP83: 0 | AX83: Line upgrade - voltage upgrade
A84: AUG232_11 | AP84: 0 | AX84: Line upgrade - capacity
A85: AUG232_12 | AP85: 0 | AX85: String spare circuit
A86: AUG232_13 | AP86: 0 | AX86: Other
A87: AUG232_14 | AP87: 0
A88: AUG232_15 | AP88: 0
A89: AUG232_16 | AP89: 0
A90: AUG232_17 | AP90: 0
A91: AUG232_18 | AP91: 0
A92: AUG232_19 | AP92: 0
A93: AUG232_20 | AP93: 0
A94: AUG232_21 | AP94: 0
A95: AUG232_22 | AP95: 0
A96: AUG232_23 | AP96: 0
A97: AUG232_24 | AP97: 0
A98: AUG232_25 | AP98: 0
A99: AUG232_26 | AP99: 0
A100: AUG232_27 | AP100: 0
A101: AUG232_28 | AP101: 0
A102: AUG232_29 | AP102: 0
A103: AUG232_30 | AP103: 0
A104: AUG232_31 | AP104: 0
A105: AUG232_32 | AP105: 0
A106: AUG232_33 | AP106: 0
A107: AUG232_34 | AP107: 0
A108: AUG232_35 | AP108: 0
A109: AUG232_36 | AP109: 0
A110: AUG232_37 | AP110: 0
A111: AUG232_38 | AP111: 0
A112: AUG232_39 | AP112: 0
A113: AUG232_40 | AP113: 0
A114: AUG232_41 | AP114: 0
A115: AUG232_42 | AP115: 0
A116: AUG232_43 | AP116: 0
A117: AUG232_44 | AP117: 0
A118: AUG232_45 | AP118: 0
A119: AUG232_46 | AP119: 0
A120: AUG232_47 | AP120: 0
A121: AUG232_48 | AP121: 0
A122: AUG232_49 | AP122: 0
A123: AUG232_50 | AP123: 0
A124: AUG232_51 | AP124: 0
A125: AUG232_52 | AP125: 0
A126: AUG232_53 | AP126: 0
A127: AUG232_54 | AP127: 0
M128: Non material projects - [actual]
M129: Non material projects - [forecast]
B132: TABLE 2.3.3 - AUGEX DATA - HV/LV FEEDERS AND DISTRIBUTION SUBSTATIONS
B133: NOTE: DNSP MUST PROVIDE EXPENDITURE INFORMATION ON AN AS INCURRED BASIS.
B134: Table 2.3.3.1 Descriptor Metrics
M137: UNITS ADDED | N137: UNITS UPGRADED | AK137: UNITS UPGRADED
B138: PROJECT TYPE | M138: =CRY -> 2014-15 | N138: =CRY -> 2014-15 | Z138: PROJECT TYPE | AB138: DNSP NAME | AC138: SERVICE CATEGORY | AD138: SERVICE SUB-CATEGORY | AE138: ASSET CATEGORY | AF138: ASSET SUB-CATEGORY | AG138: DATA TYPE | AH138: MEASUREMENT | AI138: DENOMINATION | AK138: 2014-15
A139: ED_AUG2331_00001 | B139: HV Feeder Augmentations - Overhead Lines (Circuit Line Length in KM) | M139: 0.979 | N139: 0 | Y139: ED_AUG2333_00001 | Z139: HV Feeder Augmentations - Overhead Lines (Circuit Line Length in KM) | AB139: DNSP NAME | AC139: AUGMENTATION | AD139: HV FEEDER PROJECTS | AE139: HV FEEDERS | AF139: OVERHEAD | AG139: DESCRIPTOR METRIC | AH139: KM UPGRADED | AI139: 0's | AK139: =N139 -> 0
A140: ED_AUG2331_00002 | B140: HV Feeder Augmentations - Underground Cables (Circuit Line Length in KM) | M140: 21.763 | N140: 0.99 | Y140: ED_AUG2333_00002 | Z140: HV Feeder Augmentations - Underground Cables (Circuit Line Length in KM) | AB140: DNSP NAME | AC140: AUGMENTATION | AD140: HV FEEDER PROJECTS | AE140: HV FEEDERS | AF140: UNDERGROUND | AG140: DESCRIPTOR METRIC | AH140: KM UPGRADED | AI140: 0's | AK140: =N140 -> 0.99
A141: ED_AUG2331_00003 | B141: LV Feeder Augmentations - Overhead Lines (Circuit Line Length in KM) | M141: 1.868 | N141: 0.65 | Y141: ED_AUG2333_00003 | Z141: LV Feeder Augmentations - Overhead Lines (Circuit Line Length in KM) | AB141: DNSP NAME | AC141: AUGMENTATION | AD141: LV FEEDER PROJECTS | AE141: HV FEEDERS | AF141: OVERHEAD | AG141: DESCRIPTOR METRIC | AH141: KM UPGRADED | AI141: 0's | AK141: 0.65
A142: ED_AUG2331_00004 | B142: LV Feeder Augmentations - Underground Cables (Circuit Line Length in KM) | M142: 70.856 | N142: 2.48 | Y142: ED_AUG2333_00004 | Z142: LV Feeder Augmentations - Underground Cables (Circuit Line Length in KM) | AB142: DNSP NAME | AC142: AUGMENTATION | AD142: LV FEEDER PROJECTS | AE142: HV FEEDERS | AF142: UNDERGROUND | AG142: DESCRIPTOR METRIC | AH142: KM UPGRADED | AI142: 0's | AK142: 2.48
A143: ED_AUG2331_00005 | B143: Distribution Substation Augmentations - Pole Mounted | M143: 15 | N143: 12 | Y143: ED_AUG2333_00005 | Z143: Distribution Substation Augmentations - Pole Mounted | AB143: DNSP NAME | AC143: AUGMENTATION | AD143: SUBSTATION AUGMENTATIONS | AE143: SUBSTATIONS | AF143: POLE MOUNTED | AG143: DESCRIPTOR METRIC | AH143: VOLUME UPGRADED | AI143: 0's | AK143: 12
A144: ED_AUG2331_00006 | B144: Distribution Substation Augmentations - Ground Mounted | M144: 64 | N144: 24 | Y144: ED_AUG2333_00006 | Z144: Distribution Substation Augmentations - Ground Mounted | AB144: DNSP NAME | AC144: AUGMENTATION | AD144: SUBSTATION AUGMENTATIONS | AE144: SUBSTATIONS | AF144: GROUND MOUNTED | AG144: DESCRIPTOR METRIC | AH144: VOLUME UPGRADED | AI144: 0's | AK144: 24
A145: ED_AUG2331_00007 | B145: Distribution Substation Augmentations - Indoor | M145: 6 | N145: 0 | Y145: ED_AUG2333_00007 | Z145: Distribution Substation Augmentations - Indoor | AB145: DNSP NAME | AC145: AUGMENTATION | AD145: SUBSTATION AUGMENTATIONS | AE145: SUBSTATIONS | AF145: INDOOR | AG145: DESCRIPTOR METRIC | AH145: VOLUME UPGRADED | AI145: 0's | AK145: 0
B147: Table 2.3.3.2 Cost Metrics
M150: TOTAL DIRECT EXPENDITURE ($0's)
B151: PROJECT TYPE | M151: =CRY -> 2014-15
A152: ED_AUG2332_00001 | B152: HV Feeder Augmentations - Overhead Lines | M152: ='[2]2.3 Augex'!M152 -> 0
A153: ED_AUG2332_00002 | B153: HV Feeder Augmentations - Underground Cables | M153: ='[2]2.3 Augex'!M153 -> 820205.09
A154: ED_AUG2332_00003 | B154: HV Feeder Non-Material Projects | M154: ='[2]2.3 Augex'!M154 -> 0
A155: ED_AUG2332_00004 | B155: LV Feeder Augmentations - Overhead Lines | M155: 0
A156: ED_AUG2332_00005 | B156: LV Feeder Augmentations - Underground Cables | M156: 0
A157: ED_AUG2332_00006 | B157: LV Feeder Non-Material Projects | M157: 0
A158: ED_AUG2332_00007 | B158: Distribution Substation Augmentations - Pole Mounted | M158: ='[2]2.3 Augex'!M158 -> 0
A159: ED_AUG2332_00008 | B159: Distribution Substation Augmentations - Ground Mounted | M159: ='[2]2.3 Augex'!M159 -> 0
A160: ED_AUG2332_00009 | B160: Distribution Substation Augmentations - Indoor | M160: ='[2]2.3 Augex'!M160 -> 0
B168: TABLE 2.3.4 - AUGEX DATA - TOTAL EXPENDITURE
B170: AUGMENTATION CAPEX | M170: Expenditure ($0's)
B171: AS INCURRED ($0's) | M171: =CRY -> 2014-15
A172: ED_AUG234_00001 | B172: Subtransmission Substations, Switching Stations, Zone Substations | M172: ='[2]2.3 Augex'!M172 -> 575815.04
A173: ED_AUG234_00002 | B173: Subtransmission Lines | M173: ='[2]2.3 Augex'!M173 -> 1488800.88
A174: ED_AUG234_00003 | B174: HV Feeders | M174: ='[2]2.3 Augex'!M174 -> 820205.09
A175: ED_AUG234_00004 | B175: HV Feeders - Land Purchases and Easements | M175: ='[2]2.3 Augex'!M175 -> 0
A176: ED_AUG234_00005 | B176: Distribution Substations | M176: ='[2]2.3 Augex'!M176 -> 0
A177: ED_AUG234_00006 | B177: Distribution Substations - Land Purchases And Easements | M177: ='[2]2.3 Augex'!M177 -> 0
A178: ED_AUG234_00007 | B178: LV Feeders | M178: ='[2]2.3 Augex'!M178 -> 0
A179: ED_AUG234_00008 | B179: LV Feeders - Land Purchases And Easements | M179: ='[2]2.3 Augex'!M179 -> 0
A180: ED_AUG234_00009 | B180: Other Assets | M180: ='[2]2.3 Augex'!M180 -> 0

Sheet 2.5 Connections
B1: =(LOOKUP(dms_Model,dms_Model_List,dms_Worksheet_List)) -> REGULATORY REPORTING STATEMENT
B2: Australian Distribution Co.
B3: =CONCATENATE("Category Analysis RIN response ",CRY) -> Category Analysis RIN response 2014-15
B4: 2.5 CONNECTIONS
B9: TABLE 2.5.1 DESCRIPTOR METRICS | F9: TABLE 2.5.2 COST METRICS BY CONNECTION CLASSIFICATION
B10: <<<GROUP-ROW>>>
D12: VOLUMES AND EXPENDITURE | H12: EXPENDITURE ($0's) | J12: VOLUMES (000s)
B13: CONNECTION SUBCATEGORY | C13: DESCRIPTOR METRIC | D13: =CRY -> 2014-15 | F13: CONNECTION SUBCATEGORY | G13: CONNECTION CLASSICIATION | H13: =CRY -> 2014-15 | J13: =CRY -> 2014-15
A14: ED_CON251_00001 | B14: RESIDENTIAL | C14: Underground connections (0's) | D14: ='[2]2.5 Connections'!D14+'[3]2.5 Connections'!D14 -> 3315 | E14: ED_CON252_00001 | F14: RESIDENTIAL | G14: Simple connection LV | H14: ='[2]2.5 Connections'!H14+'[3]2.5 Connections'!H14 -> 1328686.773 | J14: ='[2]2.5 Connections'!J14+'[3]2.5 Connections'!J14 -> 3.253
A15: ED_CON251_00002 | C15: Overhead connections (0's) | D15: ='[2]2.5 Connections'!D15+'[3]2.5 Connections'!D15 -> 0 | E15: ED_CON252_00002 | G15: Complex connection LV | H15: ='[2]2.5 Connections'!H15+'[3]2.5 Connections'!H15 -> 2670537.89 | J15: ='[2]2.5 Connections'!J15+'[3]2.5 Connections'!J15 -> 0.062
A16: ED_CON251_00003 | C16: Distribution substation installed (MVA added) | D16: ='[2]2.5 Connections'!D16+'[3]2.5 Connections'!D16 -> 23.588 | E16: ED_CON252_00003 | G16: Complex connection HV | H16: ='[2]2.5 Connections'!H16+'[3]2.5 Connections'!H16 -> 0 | J16: ='[2]2.5 Connections'!J16+'[3]2.5 Connections'!J16 -> 0
A17: ED_CON251_00004 | C17: Distribution substations installed (0's) | D17: ='[2]2.5 Connections'!D17+'[3]2.5 Connections'!D17 -> 40.04 | E17: ED_CON252_00004 | F17: COMMERCIAL/INDUSTRIAL | G17: Simple connection LV | H17: ='[2]2.5 Connections'!H17+'[3]2.5 Connections'!H17 -> 3300857.127 | J17: ='[2]2.5 Connections'!J17+'[3]2.5 Connections'!J17 -> 0.194
A18: ED_CON251_00005 | C18: Distribution substation installed (total spend $0's) | D18: ='[2]2.5 Connections'!D18+'[3]2.5 Connections'!D18 -> 830920.43 | E18: ED_CON252_00005 | G18: Complex connection HV (customer connected at LV, minor HV works) | H18: ='[2]2.5 Connections'!H18+'[3]2.5 Connections'!H18 -> 3980814.82 | J18: ='[2]2.5 Connections'!J18+'[3]2.5 Connections'!J18 -> 0.021
A19: ED_CON251_00006 | C19: Augmentation HV (net circuit KM added) | D19: ='[2]2.5 Connections'!D19+'[3]2.5 Connections'!D19 -> 9.778 | E19: ED_CON252_00006 | G19: Complex connection HV (customer connected at LV, upstream asset works) | H19: ='[2]2.5 Connections'!H19+'[3]2.5 Connections'!H19 -> 0 | J19: ='[2]2.5 Connections'!J19+'[3]2.5 Connections'!J19 -> 0
A20: ED_CON251_00007 | C20: Augmentation HV (total spend $0's) | D20: ='[2]2.5 Connections'!D20+'[3]2.5 Connections'!D20 -> 383221.17 | E20: ED_CON252_00007 | G20: Complex connection HV (customer connected at HV) | H20: ='[2]2.5 Connections'!H20+'[3]2.5 Connections'!H20 -> 0 | J20: ='[2]2.5 Connections'!J20+'[3]2.5 Connections'!J20 -> 0
A21: ED_CON251_00008 | C21: Augmentation LV (net circuit KM added) | D21: ='[2]2.5 Connections'!D21+'[3]2.5 Connections'!D21 -> 16.774 | E21: ED_CON252_00008 | G21: Complex connection sub-transmission | H21: ='[2]2.5 Connections'!H21+'[3]2.5 Connections'!H21 -> 0 | J21: ='[2]2.5 Connections'!J21+'[3]2.5 Connections'!J21 -> 0
A22: ED_CON251_00009 | C22: Augmentation LV (total spend $0's) | D22: ='[2]2.5 Connections'!D22+'[3]2.5 Connections'!D22 -> 2785083.062 | E22: ED_CON252_00009 | F22: SUBDIVISION | G22: Complex connection LV | H22: ='[2]2.5 Connections'!H22+'[3]2.5 Connections'!H22 -> 0 | J22: ='[2]2.5 Connections'!J22+'[3]2.5 Connections'!J22 -> 0
A23: ED_CON251_00010 | C23: Mean days to connect residential customer with LV single phase connection (0's) | D23: ='[2]2.5 Connections'!D23+'[3]2.5 Connections'!D23 -> 12.673 | E23: ED_CON252_00010 | G23: Complex connection HV (no upstream asset works) | H23: ='[2]2.5 Connections'!H23+'[3]2.5 Connections'!H23 -> 6118737.33 | J23: ='[2]2.5 Connections'!J23+'[3]2.5 Connections'!J23 -> 0.02
A24: ED_CON251_00011 | C24: Volume of GSL breaches for residential customers (0's) | D24: ='[2]2.5 Connections'!D24+'[3]2.5 Connections'!D24 -> 43 | E24: ED_CON252_00011 | G24: Complex connection HV (with upstream asset works) | H24: ='[2]2.5 Connections'!H24+'[3]2.5 Connections'!H24 -> 698898.64 | J24: ='[2]2.5 Connections'!J24+'[3]2.5 Connections'!J24 -> 0.001
A25: ED_CON251_00012 | C25: Volume of customer complaints relating to connection services (0's) | D25: ='[2]2.5 Connections'!D25+'[3]2.5 Connections'!D25 -> 141 | E25: ED_CON252_00012 | F25: EMBEDDED GENERATION | G25: Simple connection LV | H25: ='[2]2.5 Connections'!H25+'[3]2.5 Connections'!H25 -> 26963.95 | J25: ='[2]2.5 Connections'!J25+'[3]2.5 Connections'!J25 -> 0.011
A26: ED_CON251_00013 | C26: GSL payments ($0's) | D26: ='[2]2.5 Connections'!D26+'[3]2.5 Connections'!D26 -> 2567 | E26: ED_CON252_00013 | G26: Complex connection HV (small capacity) | H26: ='[2]2.5 Connections'!H26+'[3]2.5 Connections'!H26 -> 0 | J26: ='[2]2.5 Connections'!J26+'[3]2.5 Connections'!J26 -> 0
A27: ED_CON251_00014 | B27: COMMERCIAL/INDUSTRIAL | C27: Underground connections (0's) | D27: ='[2]2.5 Connections'!D27+'[3]2.5 Connections'!D27 -> 215 | E27: ED_CON252_00014 | G27: Complex connection HV (large capacity) | H27: ='[2]2.5 Connections'!H27+'[3]2.5 Connections'!H27 -> 395812.4 | J27: ='[2]2.5 Connections'!J27+'[3]2.5 Connections'!J27 -> 0.001
A28: ED_CON251_00015 | C28: Overhead connections (0's) | D28: ='[2]2.5 Connections'!D28+'[3]2.5 Connections'!D28 -> 0
A29: ED_CON251_00016 | C29: Distribution substation installed (MVA added) | D29: ='[2]2.5 Connections'!D29+'[3]2.5 Connections'!D29 -> 45.686
A30: ED_CON251_00017 | C30: Distribution substations installed (0's) | D30: ='[2]2.5 Connections'!D30+'[3]2.5 Connections'!D30 -> 58
A31: ED_CON251_00018 | C31: Distribution substation installed total spend ($0's) | D31: ='[2]2.5 Connections'!D31+'[3]2.5 Connections'!D31 -> 4449922.852
A32: ED_CON251_00019 | C32: Augmentation HV (net circuit KM added) | D32: ='[2]2.5 Connections'!D32+'[3]2.5 Connections'!D32 -> 14.994
A33: ED_CON251_00020 | C33: Augmentation HV (total spend $0's) | D33: ='[2]2.5 Connections'!D33+'[3]2.5 Connections'!D33 -> 1347366.02
A34: ED_CON251_00021 | C34: Augmentation LV (net circuit KM added) | D34: ='[2]2.5 Connections'!D34+'[3]2.5 Connections'!D34 -> 12.012
A35: ED_CON251_00022 | C35: Augmentation LV (total spend $0's) | D35: ='[2]2.5 Connections'!D35+'[3]2.5 Connections'!D35 -> 1484383.078
A36: ED_CON251_00023 | B36: SUBDIVISION | C36: Underground connections (0's) | D36: ='[2]2.5 Connections'!D36+'[3]2.5 Connections'!D36 -> 21
A37: ED_CON251_00024 | C37: Overhead connections (0's) | D37: ='[2]2.5 Connections'!D37+'[3]2.5 Connections'!D37 -> 0
A38: ED_CON251_00025 | C38: Distribution substation installed (MVA added) | D38: ='[2]2.5 Connections'!D38+'[3]2.5 Connections'!D38 -> 19.57
A39: ED_CON251_00026 | C39: Distribution substations installed (0's) | D39: ='[2]2.5 Connections'!D39+'[3]2.5 Connections'!D39 -> 47
A40: ED_CON251_00027 | C40: Distribution substation installed (total spend $0's) | D40: ='[2]2.5 Connections'!D40+'[3]2.5 Connections'!D40 -> 1450662.48
A41: ED_CON251_00028 | C41: Augmentation HV (net circuit KM added) | D41: ='[2]2.5 Connections'!D41+'[3]2.5 Connections'!D41 -> 38.138
A42: ED_CON251_00029 | C42: Augmentation HV (total spend $0's) | D42: ='[2]2.5 Connections'!D42+'[3]2.5 Connections'!D42 -> 1258735.12
A43: ED_CON251_00030 | C43: Augmentation LV (net circuit KM added) | D43: ='[2]2.5 Connections'!D43+'[3]2.5 Connections'!D43 -> 102.084
A44: ED_CON251_00031 | C44: Augmentation LV (total spend $0's) | D44: ='[2]2.5 Connections'!D44+'[3]2.5 Connections'!D44 -> 4108238.37
A45: ED_CON251_00032 | C45: Cost per lot ($) | D45: ='[2]2.5 Connections'!D45+'[3]2.5 Connections'!D45 -> 2894.962
A46: ED_CON251_00033 | B46: EMBEDDED GENERATION | C46: Underground connections (0's) | D46: ='[2]2.5 Connections'!D46+'[3]2.5 Connections'!D46 -> 12
A47: ED_CON251_00034 | C47: Overhead connections (0's) | D47: ='[2]2.5 Connections'!D47+'[3]2.5 Connections'!D47 -> 0
A48: ED_CON251_00035 | C48: Distribution substation installed (MVA added) | D48: ='[2]2.5 Connections'!D48+'[3]2.5 Connections'!D48 -> 0
A49: ED_CON251_00036 | C49: Distribution substations installed (0's) | D49: ='[2]2.5 Connections'!D49+'[3]2.5 Connections'!D49 -> 0
A50: ED_CON251_00037 | C50: Distribution substation installed (total spend $0's) | D50: ='[2]2.5 Connections'!D50+'[3]2.5 Connections'!D50 -> 0
A51: ED_CON251_00038 | C51: Augmentation HV (net circuit KM added) | D51: ='[2]2.5 Connections'!D51+'[3]2.5 Connections'!D51 -> 1.16
A52: ED_CON251_00039 | C52: Augmentation HV (total spend $0's) | D52: ='[2]2.5 Connections'!D52+'[3]2.5 Connections'!D52 -> 395812.4
A53: ED_CON251_00040 | C53: Augmentation LV (net circuit KM added) | D53: ='[2]2.5 Connections'!D53+'[3]2.5 Connections'!D53 -> 0
A54: ED_CON251_00041 | C54: Augmentation LV (total spend $0's) | D54: ='[2]2.5 Connections'!D54+'[3]2.5 Connections'!D54 -> 26963.95

Sheet 2.6 Non-network
B1: =(LOOKUP(dms_Model,dms_Model_List,dms_Worksheet_List)) -> REGULATORY REPORTING STATEMENT
B2: Australian Distribution Co.
B3: =CONCATENATE("Category Analysis RIN response ",CRY) -> Category Analysis RIN response 2014-15
B4: 2.6 NON NETWORK EXPENDITURE
B9: TABLE 2.6.1 NON-NETWORK EXPENDITURE | G9: TABLE 2.6.2 ANNUAL DESCRIPTOR METRICS - IT & COMMUNICATIONS EXPENDITURE | K9: TABLE 2.6.3 ANNUAL DESCRIPTOR METRICS - MOTOR VEHICLES
E12: EXPENDITURE ($0's) | I12: VOLUMES | L12: ASSET REPORTING CATEGORY | N12: VOLUMES / %
A13: ED_NON261_00001 | B13: SERVICE SUBCATEGORY | C13: ASSET CATEGORY | D13: ASSET REPORTING CATEGORY | E13: =CRY -> 2014-15 | G13: NON-NETWORK CATEGORY | H13: DESCRIPTOR METRIC | I13: =CRY -> 2014-15 | K13: NON-NETWORK CATEGORY | L13: ASSET CATEGORY | M13: DESCRIPTOR METRIC | N13: =CRY -> 2014-15
A14: ED_NON261_00002 | B14: IT & COMMUNICATIONS | C14: Client device expenditure | D14: Opex | E14: ='[2]2.6 Non-network'!E14+'[3]2.6 Non-network'!E14 -> 461294.66 | F14: ED_NON262_00001 | G14: IT & COMMUNICATIONS | H14: Employee numbers | I14: ='[2]2.6 Non-network'!I14+'[3]2.6 Non-network'!I14 -> 507 | J14: ED_NON263_00001 | K14: MOTOR VEHICLES | L14: CAR | M14: Average kilometres travelled (0's) | N14: 10600
A15: ED_NON261_00003 | D15: Capex | E15: ='[2]2.6 Non-network'!E15+'[3]2.6 Non-network'!E15 -> 602229.01 | F15: ED_NON262_00002 | H15: User numbers | I15: ='[2]2.6 Non-network'!I15+'[3]2.6 Non-network'!I15 -> 623 | J15: ED_NON263_00002 | M15: Number purchased | N15: 0
A16: ED_NON261_00004 | C16: Recurrent expenditure | D16: Opex | E16: ='[2]2.6 Non-network'!E16+'[3]2.6 Non-network'!E16 -> 3427314.95 | F16: ED_NON262_00003 | H16: Number of devices | I16: ='[2]2.6 Non-network'!I16+'[3]2.6 Non-network'!I16 -> 625 | J16: ED_NON263_00003 | M16: Number leased | N16: 15
A17: ED_NON261_00005 | D17: Capex | E17: ='[2]2.6 Non-network'!E17+'[3]2.6 Non-network'!E17 -> 0 | J17: ED_NON263_00004 | M17: Number in fleet | N17: 15
A18: ED_NON261_00006 | C18: Non-recurrent expenditure | D18: Opex | E18: ='[2]2.6 Non-network'!E18+'[3]2.6 Non-network'!E18 -> 3482200.48 | J18: ED_NON263_00005 | M18: Proportion of total fleet expenditure allocated as regulatory expenditure (%) | N18: 1
A19: ED_NON261_00007 | D19: Capex | E19: ='[2]2.6 Non-network'!E19+'[3]2.6 Non-network'!E19 -> 15648515.04 | J19: ED_NON263_00006 | L19: LIGHT COMMERCIAL VEHICLE | M19: Average kilometres travelled (0's) | N19: 19425
A20: ED_NON261_00008 | B20: MOTOR VEHICLES | C20: Car | D20: Opex | E20: ='[2]2.6 Non-network'!E20+'[3]2.6 Non-network'!E20 -> 90925.54279 | J20: ED_NON263_00007 | M20: Number purchased | N20: 49
A21: ED_NON261_00009 | D21: Capex | E21: ='[2]2.6 Non-network'!E21+'[3]2.6 Non-network'!E21 -> 190323.32 | J21: ED_NON263_00008 | M21: Number leased | N21: 75
A22: ED_NON261_00010 | C22: Light commercial vehicle | D22: Opex | E22: ='[2]2.6 Non-network'!E22+'[3]2.6 Non-network'!E22 -> 2023374.611 | J22: ED_NON263_00009 | M22: Number in fleet | N22: 124
A23: ED_NON261_00011 | D23: Capex | E23: ='[2]2.6 Non-network'!E23+'[3]2.6 Non-network'!E23 -> 1708794.76 | J23: ED_NON263_00010 | M23: Proportion of total fleet expenditure allocated as regulatory expenditure (%) | N23: 0.93
A24: ED_NON261_00012 | C24: Elevated work platform (LCV) | D24: Opex | E24: ='[2]2.6 Non-network'!E24+'[3]2.6 Non-network'!E24 -> 37513.47824 | J24: ED_NON263_00011 | L24: ELEVATED WORK PLATFORM (LCV) | M24: Average kilometres travelled (0's) | N24: 22791
A25: ED_NON261_00013 | D25: Capex | E25: ='[2]2.6 Non-network'!E25+'[3]2.6 Non-network'!E25 -> 27349.71 | J25: ED_NON263_00012 | M25: Number purchased | N25: 4
A26: ED_NON261_00014 | C26: Elevated work platform (HCV) | D26: Opex | E26: ='[2]2.6 Non-network'!E26+'[3]2.6 Non-network'!E26 -> 240652.6699 | J26: ED_NON263_00013 | M26: Number leased | N26: 3
A27: ED_NON261_00015 | D27: Capex | E27: ='[2]2.6 Non-network'!E27+'[3]2.6 Non-network'!E27 -> 557408.97 | J27: ED_NON263_00014 | M27: Number in fleet | N27: 7
A28: ED_NON261_00016 | C28: Heavy commercial vehicle | D28: Opex | E28: ='[2]2.6 Non-network'!E28+'[3]2.6 Non-network'!E28 -> 1431009.534 | J28: ED_NON263_00015 | M28: Proportion of total fleet expenditure allocated as regulatory expenditure (%) | N28: 1
A29: ED_NON261_00017 | D29: Capex | E29: ='[2]2.6 Non-network'!E29+'[3]2.6 Non-network'!E29 -> 2402609.78 | J29: ED_NON263_00016 | L29: ELEVATED WORK PLATFORM (HCV) | M29: Average kilometres travelled (0's) | N29: 11933
A30: ED_NON261_00018 | B30: BUILDINGS AND PROPERTY | C30: Total buildings and property expenditure | D30: Opex | E30: ='[2]2.6 Non-network'!E30+'[3]2.6 Non-network'!E30 -> 1189139.58 | J30: ED_NON263_00017 | M30: Number purchased | N30: 2
A31: ED_NON261_00019 | D31: Capex | E31: ='[2]2.6 Non-network'!E31+'[3]2.6 Non-network'!E31 -> 1661887.25 | J31: ED_NON263_00018 | M31: Number leased | N31: 2
A32: ED_NON261_00020 | B32: OTHER | C32: Other expenditure | D32: Opex | E32: ='[2]2.6 Non-network'!E32+'[3]2.6 Non-network'!E32 -> 0 | J32: ED_NON263_00019 | M32: Number in fleet | N32: 4
A33: ED_NON261_00021 | D33: Capex | E33: ='[2]2.6 Non-network'!E33+'[3]2.6 Non-network'!E33 -> 285073.83 | J33: ED_NON263_00020 | M33: Proportion of total fleet expenditure allocated as regulatory expenditure (%) | N33: 0.81
A34: ED_NON261_00022 | B34: OTHER - DNSP nominated | C34: < Enter description for nominated category > | D34: Opex | E34: ='[2]2.6 Non-network'!E34+'[3]2.6 Non-network'!E34 -> 19637.41451 | J34: ED_NON263_00021 | L34: HEAVY COMMERCIAL VEHICLE | M34: Average kilometres travelled (0's) | N34: 14596
A35: ED_NON261_00023 | D35: Capex | E35: ='[2]2.6 Non-network'!E35+'[3]2.6 Non-network'!E35 -> 19158.56 | J35: ED_NON263_00022 | M35: Number purchased | N35: 22
A36: ED_NON261_00024 | D36: Opex | E36: ='[2]2.6 Non-network'!E36+'[3]2.6 Non-network'!E36 -> 0 | J36: ED_NON263_00023 | M36: Number leased | N36: 22
A37: ED_NON261_00025 | D37: Capex | E37: ='[2]2.6 Non-network'!E37+'[3]2.6 Non-network'!E37 -> 418485.7762 | J37: ED_NON263_00024 | M37: Number in fleet | N37: 44
A38: ED_NON261_00026 | D38: Opex | E38: ='[2]2.6 Non-network'!E38+'[3]2.6 Non-network'!E38 -> 0 | J38: ED_NON263_00025 | M38: Proportion of total fleet expenditure allocated as regulatory expenditure (%) | N38: 1
A39: ED_NON261_00027 | D39: Capex | E39: ='[2]2.6 Non-network'!E39+'[3]2.6 Non-network'!E39 -> 1154206.058
A40: ED_NON261_00028 | D40: Opex | E40: ='[2]2.6 Non-network'!E40+'[3]2.6 Non-network'!E40 -> 0
A41: ED_NON261_00029 | D41: Capex | E41: ='[2]2.6 Non-network'!E41+'[3]2.6 Non-network'!E41 -> 0
A42: ED_NON261_00030 | D42: Opex | E42: ='[2]2.6 Non-network'!E42+'[3]2.6 Non-network'!E42 -> 0
A43: ED_NON261_00031 | D43: Capex | E43: ='[2]2.6 Non-network'!E43+'[3]2.6 Non-network'!E43 -> 0
A44: ED_NON261_00032 | D44: Opex | E44: ='[2]2.6 Non-network'!E44+'[3]2.6 Non-network'!E44 -> 0
A45: ED_NON261_00033 | D45: Capex | E45: ='[2]2.6 Non-network'!E45+'[3]2.6 Non-network'!E45 -> 0
A46: ED_NON261_00034 | D46: Opex | E46: ='[2]2.6 Non-network'!E46+'[3]2.6 Non-network'!E46 -> 0
A47: ED_NON261_00035 | D47: Capex | E47: ='[2]2.6 Non-network'!E47+'[3]2.6 Non-network'!E47 -> 0
A48: ED_NON261_00036 | D48: Opex | E48: ='[2]2.6 Non-network'!E48+'[3]2.6 Non-network'!E48 -> 0
A49: ED_NON261_00037 | D49: Capex | E49: ='[2]2.6 Non-network'!E49+'[3]2.6 Non-network'!E49 -> 0
A50: ED_NON261_00038 | D50: Opex | E50: ='[2]2.6 Non-network'!E50+'[3]2.6 Non-network'!E50 -> 0
A51: ED_NON261_00039 | D51: Capex | E51: ='[2]2.6 Non-network'!E51+'[3]2.6 Non-network'!E51 -> 0
A52: ED_NON261_00040 | D52: Opex | E52: ='[2]2.6 Non-network'!E52+'[3]2.6 Non-network'!E52 -> 0
A53: ED_NON261_00041 | D53: Capex | E53: ='[2]2.6 Non-network'!E53+'[3]2.6 Non-network'!E53 -> 0
A54: ED_NON261_00042 | D54: Opex | E54: ='[2]2.6 Non-network'!E54+'[3]2.6 Non-network'!E54 -> 0
A55: ED_NON261_00043 | D55: Capex | E55: ='[2]2.6 Non-network'!E55+'[3]2.6 Non-network'!E55 -> 0

Sheet 2.7 Vegetation management
B1: =(LOOKUP(dms_Model,dms_Model_List,dms_Worksheet_List)) -> REGULATORY REPORTING STATEMENT
B2: Australian Distribution Co.
B3: =CONCATENATE("Category Analysis RIN response ",CRY) -> Category Analysis RIN response 2014-15
B4: 2.7 VEGETATION MANAGEMENT
B6: TABLE 2.7.3 - DESCRIPTOR METRICS ACROSS ALL ZONES - UNPLANNED VEGETATION EVENTS | I6: TABLE 2.7.1 - DESCRIPTOR METRICS BY ZONE | N6: TABLE 2.7.2 - EXPENDITURE METRICS BY ZONE
C9: VOLUMES | L9: VOLUMES | P9: EXPENDITURE ($0's)
B10: DESCRIPTOR METRIC | C10: =CRY -> 2014-15 | I10: ZONES | J10: ASSET | K10: ASSET SUBCATEGORY | L10: =CRY -> 2014-15 | N10: ZONES | O10: SERVICE SUBCATEGORY | P10: =CRY -> 2014-15
A11: ED_VEG273_00001 | B11: Number of fire starts caused by vegetation grow-ins (NSP responsibility) (0's) | C11: 0 | H11: ED_VEG271_00001 | I11: ZONE 1 | J11: Route line length within zone (KM) | K11: Urban and CBD | L11: ='[2]2.7 Vegetation management'!L11+'[3]2.7 Vegetation management'!L11 -> 1485.4 | M11: ED_VEG272_00001 | N11: =I11 -> ZONE 1 | O11: Tree trimming (excluding hazard trees) | P11: ='[2]2.7 Vegetation management'!P11+'[3]2.7 Vegetation management'!P11 -> 562762.36
A12: ED_VEG273_00002 | B12: Number of fire starts caused by vegetation blow-ins and fall-ins (NSP responsibility) (0's) | C12: 0 | H12: ED_VEG271_00002 | K12: Rural | L12: ='[2]2.7 Vegetation management'!L12+'[3]2.7 Vegetation management'!L12 -> 0 | M12: ED_VEG272_00002 | O12: Hazard tree cutting | P12: ='[2]2.7 Vegetation management'!P12+'[3]2.7 Vegetation management'!P12 -> 205065.94
A13: ED_VEG273_00003 | B13: Number of fire starts caused by vegetation grow-ins (other party responsibility) (0's) | C13: 0 | H13: ED_VEG271_00003 | J13: Number of maintenance spans (0's) | K13: Urban and CBD | L13: ='[2]2.7 Vegetation management'!L13+'[3]2.7 Vegetation management'!L13 -> 5415 | M13: ED_VEG272_00003 | O13: Ground clearance | P13: ='[2]2.7 Vegetation management'!P13+'[3]2.7 Vegetation management'!P13 -> 0
A14: ED_VEG273_00004 | B14: Number of fire starts caused by vegetation blow-ins and fall-ins (other party responsibility) (0's) | C14: 0 | H14: ED_VEG271_00004 | K14: Rural | L14: ='[2]2.7 Vegetation management'!L14+'[3]2.7 Vegetation management'!L14 -> 0 | M14: ED_VEG272_00004 | O14: Vegetation corridor clearance | P14: ='[2]2.7 Vegetation management'!P14+'[3]2.7 Vegetation management'!P14 -> 0
H15: ED_VEG271_00005 | J15: Total length of maintenance spans (KM) | K15: Urban and CBD | L15: ='[2]2.7 Vegetation management'!L15+'[3]2.7 Vegetation management'!L15 -> 201.0014 | M15: ED_VEG272_00005 | O15: Inspection | P15: ='[2]2.7 Vegetation management'!P15+'[3]2.7 Vegetation management'!P15 -> 993058.96
H16: ED_VEG271_00006 | K16: Rural | L16: ='[2]2.7 Vegetation management'!L16+'[3]2.7 Vegetation management'!L16 -> 0 | M16: ED_VEG272_00006 | O16: Audit | P16: ='[2]2.7 Vegetation management'!P16+'[3]2.7 Vegetation management'!P16 -> 0
H17: ED_VEG271_00007 | J17: Length of vegetation corridors (KM) | K17: Urban and CBD | L17: ='[2]2.7 Vegetation management'!L17+'[3]2.7 Vegetation management'!L17 -> 1188.32 | M17: ED_VEG272_00007 | O17: Contractor liaison expenditure | P17: ='[2]2.7 Vegetation management'!P17+'[3]2.7 Vegetation management'!P17 -> 0
H18: ED_VEG271_00008 | K18: Rural | L18: ='[2]2.7 Vegetation management'!L18+'[3]2.7 Vegetation management'!L18 -> 0 | M18: ED_VEG272_00008 | O18: Tree replacement program costs | P18: ='[2]2.7 Vegetation management'!P18+'[3]2.7 Vegetation management'!P18 -> 0
H19: ED_VEG271_00009 | J19: Average number of trees per maintenance span (0's) | K19: Urban and CBD | L19: ='[2]2.7 Vegetation management'!L19+'[3]2.7 Vegetation management'!L19 -> 1.34 | M19: ED_VEG272_00009 | O19: Other vegetation management costs not specified in sheet | P19: ='[2]2.7 Vegetation management'!P19+'[3]2.7 Vegetation management'!P19 -> 0
H20: ED_VEG271_00010 | K20: Rural | L20: ='[2]2.7 Vegetation management'!L20+'[3]2.7 Vegetation management'!L20 -> 0 | M20: ED_VEG272_00010 | N20: =I23 -> ZONE 2 | O20: Tree trimming (excluding hazard trees) | P20: ='[2]2.7 Vegetation management'!P20+'[3]2.7 Vegetation management'!P20 -> 458841.13
H21: ED_VEG271_00011 | J21: Average frequency of cutting cycle (years) | K21: Urban and CBD | L21: ='[2]2.7 Vegetation management'!L21+'[3]2.7 Vegetation management'!L21 -> 3 | M21: ED_VEG272_00011 | O21: Hazard tree cutting | P21: ='[2]2.7 Vegetation management'!P21+'[3]2.7 Vegetation management'!P21 -> 0
H22: ED_VEG271_00012 | K22: Rural | L22: ='[2]2.7 Vegetation management'!L22+'[3]2.7 Vegetation management'!L22 -> 0 | M22: ED_VEG272_00012 | O22: Ground clearance | P22: ='[2]2.7 Vegetation management'!P22+'[3]2.7 Vegetation management'!P22 -> 0
H23: ED_VEG271_00013 | I23: ZONE 2 | J23: Route line length within zone (KM) | K23: Urban and CBD | L23: ='[2]2.7 Vegetation management'!L23+'[3]2.7 Vegetation management'!L23 -> 0 | M23: ED_VEG272_00013 | O23: Vegetation corridor clearance | P23: ='[2]2.7 Vegetation management'!P23+'[3]2.7 Vegetation management'!P23 -> 0
H24: ED_VEG271_00014 | K24: Rural | L24: ='[2]2.7 Vegetation management'!L24+'[3]2.7 Vegetation management'!L24 -> 820.6 | M24: ED_VEG272_00014 | O24: Inspection | P24: ='[2]2.7 Vegetation management'!P24+'[3]2.7 Vegetation management'!P24 -> 226161.96
H25: ED_VEG271_00015 | J25: Number of maintenance spans (0's) | K25: Urban and CBD | L25: ='[2]2.7 Vegetation management'!L25+'[3]2.7 Vegetation management'!L25 -> 0 | M25: ED_VEG272_00015 | O25: Audit | P25: ='[2]2.7 Vegetation management'!P25+'[3]2.7 Vegetation management'!P25 -> 0
H26: ED_VEG271_00016 | K26: Rural | L26: ='[2]2.7 Vegetation management'!L26+'[3]2.7 Vegetation management'!L26 -> 1082 | M26: ED_VEG272_00016 | O26: Contractor liaison expenditure | P26: ='[2]2.7 Vegetation management'!P26+'[3]2.7 Vegetation management'!P26 -> 0
H27: ED_VEG271_00017 | J27: Total length of maintenance spans (KM) | K27: Urban and CBD | L27: ='[2]2.7 Vegetation management'!L27+'[3]2.7 Vegetation management'!L27 -> 0 | M27: ED_VEG272_00017 | O27: Tree replacement program costs | P27: ='[2]2.7 Vegetation management'!P27+'[3]2.7 Vegetation management'!P27 -> 0
H28: ED_VEG271_00018 | K28: Rural | L28: ='[2]2.7 Vegetation management'!L28+'[3]2.7 Vegetation management'!L28 -> 104.223 | M28: ED_VEG272_00018 | O28: Other vegetation management costs not specified in sheet | P28: ='[2]2.7 Vegetation management'!P28+'[3]2.7 Vegetation management'!P28 -> 0
H29: ED_VEG271_00019 | J29: Length of vegetation corridors (KM) | K29: Urban and CBD | L29: ='[2]2.7 Vegetation management'!L29+'[3]2.7 Vegetation management'!L29 -> 0 | M29: ED_VEG272_00019 | N29: =I35 -> ZONE 3 | O29: Tree trimming (excluding hazard trees)
H30: ED_VEG271_00020 | K30: Rural | L30: ='[2]2.7 Vegetation management'!L30+'[3]2.7 Vegetation management'!L30 -> 492.36 | M30: ED_VEG272_00020 | O30: Hazard tree cutting
H31: ED_VEG271_00021 | J31: Average number of trees per maintenance span (0's) | K31: Urban and CBD | L31: ='[2]2.7 Vegetation management'!L31+'[3]2.7 Vegetation management'!L31 -> 0 | M31: ED_VEG272_00021 | O31: Ground clearance
H32: ED_VEG271_00022 | K32: Rural | L32: ='[2]2.7 Vegetation management'!L32+'[3]2.7 Vegetation management'!L32 -> 1.989 | M32: ED_VEG272_00022 | O32: Vegetation corridor clearance
H33: ED_VEG271_00023 | J33: Average frequency of cutting cycle (years) | K33: Urban and CBD | L33: ='[2]2.7 Vegetation management'!L33+'[3]2.7 Vegetation management'!L33 -> 0 | M33: ED_VEG272_00023 | O33: Inspection
H34: ED_VEG271_00024 | K34: Rural | L34: ='[2]2.7 Vegetation management'!L34+'[3]2.7 Vegetation management'!L34 -> 1 | M34: ED_VEG272_00024 | O34: Audit
H35: ED_VEG271_00025 | I35: ZONE 3 | J35: Route line length within zone (KM) | K35: Urban and CBD | M35: ED_VEG272_00025 | O35: Contractor liaison expenditure
H36: ED_VEG271_00026 | K36: Rural | M36: ED_VEG272_00026 | O36: Tree replacement program costs
H37: ED_VEG271_00027 | J37: Number of maintenance spans (0's) | K37: Urban and CBD | M37: ED_VEG272_00027 | O37: Other vegetation management costs not specified in sheet
H38: ED_VEG271_00028 | K38: Rural | M38: ED_VEG272_00028 | N38: =I47 -> ZONE 4 | O38: Tree trimming (excluding hazard trees)
H39: ED_VEG271_00029 | J39: Total length of maintenance spans (KM) | K39: Urban and CBD | M39: ED_VEG272_00029 | O39: Hazard tree cutting
H40: ED_VEG271_00030 | K40: Rural | M40: ED_VEG272_00030 | O40: Ground clearance
H41: ED_VEG271_00031 | J41: Length of vegetation corridors (KM) | K41: Urban and CBD | M41: ED_VEG272_00031 | O41: Vegetation corridor clearance
H42: ED_VEG271_00032 | K42: Rural | M42: ED_VEG272_00032 | O42: Inspection
H43: ED_VEG271_00033 | J43: Average number of trees per maintenance span (0's) | K43: Urban and CBD | M43: ED_VEG272_00033 | O43: Audit
H44: ED_VEG271_00034 | K44: Rural | M44: ED_VEG272_00034 | O44: Contractor liaison expenditure
H45: ED_VEG271_00035 | J45: Average frequency of cutting cycle (years) | K45: Urban and CBD | M45: ED_VEG272_00035 | O45: Tree replacement program costs
H46: ED_VEG271_00036 | K46: Rural | M46: ED_VEG272_00036 | O46: Other vegetation management costs not specified in sheet
H47: ED_VEG271_00037 | I47: ZONE 4 | J47: Route line length within zone (KM) | K47: Urban and CBD | M47: ED_VEG272_00037 | N47: =I59 -> ZONE 5 | O47: Tree trimming (excluding hazard trees)
H48: ED_VEG271_00038 | K48: Rural | M48: ED_VEG272_00038 | O48: Hazard tree cutting
H49: ED_VEG271_00039 | J49: Number of maintenance spans (0's) | K49: Urban and CBD | M49: ED_VEG272_00039 | O49: Ground clearance
H50: ED_VEG271_00040 | K50: Rural | M50: ED_VEG272_00040 | O50: Vegetation corridor clearance
H51: ED_VEG271_00041 | J51: Total length of maintenance spans (KM) | K51: Urban and CBD | M51: ED_VEG272_00041 | O51: Inspection
H52: ED_VEG271_00042 | K52: Rural | M52: ED_VEG272_00042 | O52: Audit
H53: ED_VEG271_00043 | J53: Length of vegetation corridors (KM) | K53: Urban and CBD | M53: ED_VEG272_00043 | O53: Contractor liaison expenditure
H54: ED_VEG271_00044 | K54: Rural | M54: ED_VEG272_00044 | O54: Tree replacement program costs
H55: ED_VEG271_00045 | J55: Average number of trees per maintenance span (0's) | K55: Urban and CBD | M55: ED_VEG272_00045 | O55: Other vegetation management costs not specified in sheet
H56: ED_VEG271_00046 | K56: Rural | M56: ED_VEG272_00046 | N56: =I71 -> ZONE 6 | O56: Tree trimming (excluding hazard trees)
H57: ED_VEG271_00047 | J57: Average frequency of cutting cycle (years) | K57: Urban and CBD | M57: ED_VEG272_00047 | O57: Hazard tree cutting
H58: ED_VEG271_00048 | K58: Rural | M58: ED_VEG272_00048 | O58: Ground clearance
H59: ED_VEG271_00049 | I59: ZONE 5 | J59: Route line length within zone (KM) | K59: Urban and CBD | M59: ED_VEG272_00049 | O59: Vegetation corridor clearance
H60: ED_VEG271_00050 | K60: Rural | M60: ED_VEG272_00050 | O60: Inspection
H61: ED_VEG271_00051 | J61: Number of maintenance spans (0's) | K61: Urban and CBD | M61: ED_VEG272_00051 | O61: Audit
H62: ED_VEG271_00052 | K62: Rural | M62: ED_VEG272_00052 | O62: Contractor liaison expenditure
H63: ED_VEG271_00053 | J63: Total length of maintenance spans (KM) | K63: Urban and CBD | M63: ED_VEG272_00053 | O63: Tree replacement program costs
H64: ED_VEG271_00054 | K64: Rural | M64: ED_VEG272_00054 | O64: Other vegetation management costs not specified in sheet
H65: ED_VEG271_00055 | J65: Length of vegetation corridors (KM) | K65: Urban and CBD | M65: ED_VEG272_00055 | N65: =I83 -> ZONE 7 | O65: Tree trimming (excluding hazard trees)
H66: ED_VEG271_00056 | K66: Rural | M66: ED_VEG272_00056 | O66: Hazard tree cutting
H67: ED_VEG271_00057 | J67: Average number of trees per maintenance span (0's) | K67: Urban and CBD | M67: ED_VEG272_00057 | O67: Ground clearance
H68: ED_VEG271_00058 | K68: Rural | M68: ED_VEG272_00058 | O68: Vegetation corridor clearance
H69: ED_VEG271_00059 | J69: Average frequency of cutting cycle (years) | K69: Urban and CBD | M69: ED_VEG272_00059 | O69: Inspection
H70: ED_VEG271_00060 | K70: Rural | M70: ED_VEG272_00060 | O70: Audit
H71: ED_VEG271_00061 | I71: ZONE 6 | J71: Route line length within zone (KM) | K71: Urban and CBD | M71: ED_VEG272_00061 | O71: Contractor liaison expenditure
H72: ED_VEG271_00062 | K72: Rural | M72: ED_VEG272_00062 | O72: Tree replacement program costs
H73: ED_VEG271_00063 | J73: Number of maintenance spans (0's) | K73: Urban and CBD | M73: ED_VEG272_00063 | O73: Other vegetation management costs not specified in sheet
H74: ED_VEG271_00064 | K74: Rural | M74: ED_VEG272_00064 | N74: =I95 -> ZONE 8 | O74: Tree trimming (excluding hazard trees)
H75: ED_VEG271_00065 | J75: Total length of maintenance spans (KM) | K75: Urban and CBD | M75: ED_VEG272_00065 | O75: Hazard tree cutting
H76: ED_VEG271_00066 | K76: Rural | M76: ED_VEG272_00066 | O76: Ground clearance
H77: ED_VEG271_00067 | J77: Length of vegetation corridors (KM) | K77: Urban and CBD | M77: ED_VEG272_00067 | O77: Vegetation corridor clearance
H78: ED_VEG271_00068 | K78: Rural | M78: ED_VEG272_00068 | O78: Inspection
H79: ED_VEG271_00069 | J79: Average number of trees per maintenance span (0's) | K79: Urban and CBD | M79: ED_VEG272_00069 | O79: Audit
H80: ED_VEG271_00070 | K80: Rural | M80: ED_VEG272_00070 | O80: Contractor liaison expenditure
H81: ED_VEG271_00071 | J81: Average frequency of cutting cycle (years) | K81: Urban and CBD | M81: ED_VEG272_00071 | O81: Tree replacement program costs
H82: ED_VEG271_00072 | K82: Rural | M82: ED_VEG272_00072 | O82: Other vegetation management costs not specified in sheet
H83: ED_VEG271_00073 | I83: ZONE 7 | J83: Route line length within zone (KM) | K83: Urban and CBD | M83: ED_VEG272_00073 | N83: =I107 -> ZONE 9 | O83: Tree trimming (excluding hazard trees)
H84: ED_VEG271_00074 | K84: Rural | M84: ED_VEG272_00074 | O84: Hazard tree cutting
H85: ED_VEG271_00075 | J85: Number of maintenance spans (0's) | K85: Urban and CBD | M85: ED_VEG272_00075 | O85: Ground clearance
H86: ED_VEG271_00076 | K86: Rural | M86: ED_VEG272_00076 | O86: Vegetation corridor clearance
H87: ED_VEG271_00077 | J87: Total length of maintenance spans (KM) | K87: Urban and CBD | M87: ED_VEG272_00077 | O87: Inspection
H88: ED_VEG271_00078 | K88: Rural | M88: ED_VEG272_00078 | O88: Audit
H89: ED_VEG271_00079 | J89: Length of vegetation corridors (KM) | K89: Urban and CBD | M89: ED_VEG272_00079 | O89: Contractor liaison expenditure
H90: ED_VEG271_00080 | K90: Rural | M90: ED_VEG272_00080 | O90: Tree replacement program costs
H91: ED_VEG271_00081 | J91: Average number of trees per maintenance span (0's) | K91: Urban and CBD | M91: ED_VEG272_00081 | O91: Other vegetation management costs not specified in sheet
H92: ED_VEG271_00082 | K92: Rural | M92: ED_VEG272_00082 | N92: =I119 -> ZONE 10 | O92: Tree trimming (excluding hazard trees)
H93: ED_VEG271_00083 | J93: Average frequency of cutting cycle (years) | K93: Urban and CBD | M93: ED_VEG272_00083 | O93: Hazard tree cutting
H94: ED_VEG271_00084 | K94: Rural | M94: ED_VEG272_00084 | O94: Ground clearance
H95: ED_VEG271_00085 | I95: ZONE 8 | J95: Route line length within zone (KM) | K95: Urban and CBD | M95: ED_VEG272_00085 | O95: Vegetation corridor clearance
H96: ED_VEG271_00086 | K96: Rural | M96: ED_VEG272_00086 | O96: Inspection
H97: ED_VEG271_00087 | J97: Number of maintenance spans (0's) | K97: Urban and CBD | M97: ED_VEG272_00087 | O97: Audit
H98: ED_VEG271_00088 | K98: Rural | M98: ED_VEG272_00088 | O98: Contractor liaison expenditure
H99: ED_VEG271_00089 | J99: Total length of maintenance spans (KM) | K99: Urban and CBD | M99: ED_VEG272_00089 | O99: Tree replacement program costs
H100: ED_VEG271_00090 | K100: Rural | M100: ED_VEG272_00090 | O100: Other vegetation management costs not specified in sheet
H101: ED_VEG271_00091 | J101: Length of vegetation corridors (KM) | K101: Urban and CBD | M101: ED_VEG272_00091 | N101: =I131 -> ZONE 11 | O101: Tree trimming (excluding hazard trees)
H102: ED_VEG271_00092 | K102: Rural | M102: ED_VEG272_00092 | O102: Hazard tree cutting
H103: ED_VEG271_00093 | J103: Average number of trees per maintenance span (0's) | K103: Urban and CBD | M103: ED_VEG272_00093 | O103: Ground clearance
H104: ED_VEG271_00094 | K104: Rural | M104: ED_VEG272_00094 | O104: Vegetation corridor clearance
H105: ED_VEG271_00095 | J105: Average frequency of cutting cycle (years) | K105: Urban and CBD | M105: ED_VEG272_00095 | O105: Inspection
H106: ED_VEG271_00096 | K106: Rural | M106: ED_VEG272_00096 | O106: Audit
H107: ED_VEG271_00097 | I107: ZONE 9 | J107: Route line length within zone (KM) | K107: Urban and CBD | M107: ED_VEG272_00097 | O107: Contractor liaison expenditure
H108: ED_VEG271_00098 | K108: Rural | M108: ED_VEG272_00098 | O108: Tree replacement program costs
H109: ED_VEG271_00099 | J109: Number of maintenance spans (0's) | K109: Urban and CBD | M109: ED_VEG272_00099 | O109: Other vegetation management costs not specified in sheet
H110: ED_VEG271_00100 | K110: Rural | M110: ED_VEG272_00100 | N110: =I143 -> ZONE 12 | O110: Tree trimming (excluding hazard trees)
H111: ED_VEG271_00101 | J111: Total length of maintenance spans (KM) | K111: Urban and CBD | M111: ED_VEG272_00101 | O111: Hazard tree cutting
H112: ED_VEG271_00102 | K112: Rural | M112: ED_VEG272_00102 | O112: Ground clearance
H113: ED_VEG271_00103 | J113: Length of vegetation corridors (KM) | K113: Urban and CBD | M113: ED_VEG272_00103 | O113: Vegetation corridor clearance
H114: ED_VEG271_00104 | K114: Rural | M114: ED_VEG272_00104 | O114: Inspection
H115: ED_VEG271_00105 | J115: Average number of trees per maintenance span (0's) | K115: Urban and CBD | M115: ED_VEG272_00105 | O115: Audit
H116: ED_VEG271_00106 | K116: Rural | M116: ED_VEG272_00106 | O116: Contractor liaison expenditure
H117: ED_VEG271_00107 | J117: Average frequency of cutting cycle (years) | K117: Urban and CBD | M117: ED_VEG272_00107 | O117: Tree replacement program costs
H118: ED_VEG271_00108 | K118: Rural | M118: ED_VEG272_00108 | O118: Other vegetation management costs not specified in sheet
H119: ED_VEG271_00109 | I119: ZONE 10 | J119: Route line length within zone (KM) | K119: Urban and CBD | M119: ED_VEG272_00109 | N119: =I155 -> ZONE 13 | O119: Tree trimming (excluding hazard trees)
H120: ED_VEG271_00110 | K120: Rural | M120: ED_VEG272_00110 | O120: Hazard tree cutting
H121: ED_VEG271_00111 | J121: Number of maintenance spans (0's) | K121: Urban and CBD | M121: ED_VEG272_00111 | O121: Ground clearance
H122: ED_VEG271_00112 | K122: Rural | M122: ED_VEG272_00112 | O122: Vegetation corridor clearance
H123: ED_VEG271_00113 | J123: Total length of maintenance spans (KM) | K123: Urban and CBD | M123: ED_VEG272_00113 | O123: Inspection
H124: ED_VEG271_00114 | K124: Rural | M124: ED_VEG272_00114 | O124: Audit
H125: ED_VEG271_00115 | J125: Length of vegetation corridors (KM) | K125: Urban and CBD | M125: ED_VEG272_00115 | O125: Contractor liaison expenditure
H126: ED_VEG271_00116 | K126: Rural | M126: ED_VEG272_00116 | O126: Tree replacement program costs
H127: ED_VEG271_00117 | J127: Average number of trees per maintenance span (0's) | K127: Urban and CBD | M127: ED_VEG272_00117 | O127: Other vegetation management costs not specified in sheet
H128: ED_VEG271_00118 | K128: Rural | M128: ED_VEG272_00118 | N128: =I167 -> ZONE 14 | O128: Tree trimming (excluding hazard trees)
H129: ED_VEG271_00119 | J129: Average frequency of cutting cycle (years) | K129: Urban and CBD | M129: ED_VEG272_00119 | O129: Hazard tree cutting
H130: ED_VEG271_00120 | K130: Rural | M130: ED_VEG272_00120 | O130: Ground clearance
H131: ED_VEG271_00121 | I131: ZONE 11 | J131: Route line length within zone (KM) | K131: Urban and CBD | M131: ED_VEG272_00121 | O131: Vegetation corridor clearance
H132: ED_VEG271_00122 | K132: Rural | M132: ED_VEG272_00122 | O132: Inspection
H133: ED_VEG271_00123 | J133: Number of maintenance spans (0's) | K133: Urban and CBD | M133: ED_VEG272_00123 | O133: Audit
H134: ED_VEG271_00124 | K134: Rural | M134: ED_VEG272_00124 | O134: Contractor liaison expenditure
H135: ED_VEG271_00125 | J135: Total length of maintenance spans (KM) | K135: Urban and CBD | M135: ED_VEG272_00125 | O135: Tree replacement program costs
H136: ED_VEG271_00126 | K136: Rural | M136: ED_VEG272_00126 | O136: Other vegetation management costs not specified in sheet
H137: ED_VEG271_00127 | J137: Length of vegetation corridors (KM) | K137: Urban and CBD | M137: ED_VEG272_00127 | N137: =I179 -> ZONE 15 | O137: Tree trimming (excluding hazard trees)
H138: ED_VEG271_00128 | K138: Rural | M138: ED_VEG272_00128 | O138: Hazard tree cutting
H139: ED_VEG271_00129 | J139: Average number of trees per maintenance span (0's) | K139: Urban and CBD | M139: ED_VEG272_00129 | O139: Ground clearance
H140: ED_VEG271_00130 | K140: Rural | M140: ED_VEG272_00130 | O140: Vegetation corridor clearance
H141: ED_VEG271_00131 | J141: Average frequency of cutting cycle (years) | K141: Urban and CBD | M141: ED_VEG272_00131 | O141: Inspection
H142: ED_VEG271_00132 | K142: Rural | M142: ED_VEG272_00132 | O142: Audit
H143: ED_VEG271_00133 | I143: ZONE 12 | J143: Route line length within zone (KM) | K143: Urban and CBD | M143: ED_VEG272_00133 | O143: Contractor liaison expenditure
H144: ED_VEG271_00134 | K144: Rural | M144: ED_VEG272_00134 | O144: Tree replacement program costs
H145: ED_VEG271_00135 | J145: Number of maintenance spans (0's) | K145: Urban and CBD | M145: ED_VEG272_00135 | O145: Other vegetation management costs not specified in sheet
H146: ED_VEG271_00136 | K146: Rural | M146: ED_VEG272_00136 | N146: =I191 -> ZONE 16 | O146: Tree trimming (excluding hazard trees)
H147: ED_VEG271_00137 | J147: Total length of maintenance spans (KM) | K147: Urban and CBD | M147: ED_VEG272_00137 | O147: Hazard tree cutting
H148: ED_VEG271_00138 | K148: Rural | M148: ED_VEG272_00138 | O148: Ground clearance
H149: ED_VEG271_00139 | J149: Length of vegetation corridors (KM) | K149: Urban and CBD | M149: ED_VEG272_00139 | O149: Vegetation corridor clearance
H150: ED_VEG271_00140 | K150: Rural | M150: ED_VEG272_00140 | O150: Inspection
H151: ED_VEG271_00141 | J151: Average number of trees per maintenance span (0's) | K151: Urban and CBD | M151: ED_VEG272_00141 | O151: Audit
H152: ED_VEG271_00142 | K152: Rural | M152: ED_VEG272_00142 | O152: Contractor liaison expenditure
H153: ED_VEG271_00143 | J153: Average frequency of cutting cycle (years) | K153: Urban and CBD | M153: ED_VEG272_00143 | O153: Tree replacement program costs
H154: ED_VEG271_00144 | K154: Rural | M154: ED_VEG272_00144 | O154: Other vegetation management costs not specified in sheet
H155: ED_VEG271_00145 | I155: ZONE 13 | J155: Route line length within zone (KM) | K155: Urban and CBD | M155: ED_VEG272_00145 | N155: =I203 -> ZONE 17 | O155: Tree trimming (excluding hazard trees)
H156: ED_VEG271_00146 | K156: Rural | M156: ED_VEG272_00146 | O156: Hazard tree cutting
H157: ED_VEG271_00147 | J157: Number of maintenance spans (0's) | K157: Urban and CBD | M157: ED_VEG272_00147 | O157: Ground clearance
H158: ED_VEG271_00148 | K158: Rural | M158: ED_VEG272_00148 | O158: Vegetation corridor clearance
H159: ED_VEG271_00149 | J159: Total length of maintenance spans (KM) | K159: Urban and CBD | M159: ED_VEG272_00149 | O159: Inspection
H160: ED_VEG271_00150 | K160: Rural | M160: ED_VEG272_00150 | O160: Audit
H161: ED_VEG271_00151 | J161: Length of vegetation corridors (KM) | K161: Urban and CBD | M161: ED_VEG272_00151 | O161: Contractor liaison expenditure
H162: ED_VEG271_00152 | K162: Rural | M162: ED_VEG272_00152 | O162: Tree replacement program costs
H163: ED_VEG271_00153 | J163: Average number of trees per maintenance span (0's) | K163: Urban and CBD | M163: ED_VEG272_00153 | O163: Other vegetation management costs not specified in sheet
H164: ED_VEG271_00154 | K164: Rural | M164: ED_VEG272_00154 | N164: =I215 -> ZONE 18 | O164: Tree trimming (excluding hazard trees)
H165: ED_VEG271_00155 | J165: Average frequency of cutting cycle (years) | K165: Urban and CBD | M165: ED_VEG272_00155 | O165: Hazard tree cutting
H166: ED_VEG271_00156 | K166: Rural | M166: ED_VEG272_00156 | O166: Ground clearance
H167: ED_VEG271_00157 | I167: ZONE 14 | J167: Route line length within zone (KM) | K167: Urban and CBD | M167: ED_VEG272_00157 | O167: Vegetation corridor clearance
H168: ED_VEG271_00158 | K168: Rural | M168: ED_VEG272_00158 | O168: Inspection
H169: ED_VEG271_00159 | J169: Number of maintenance spans (0's) | K169: Urban and CBD | M169: ED_VEG272_00159 | O169: Audit
H170: ED_VEG271_00160 | K170: Rural | M170: ED_VEG272_00160 | O170: Contractor liaison expenditure
H171: ED_VEG271_00161 | J171: Total length of maintenance spans (KM) | K171: Urban and CBD | M171: ED_VEG272_00161 | O171: Tree replacement program costs
H172: ED_VEG271_00162 | K172: Rural | M172: ED_VEG272_00162 | O172: Other vegetation management costs not specified in sheet
H173: ED_VEG271_00163 | J173: Length of vegetation corridors (KM) | K173: Urban and CBD
H174: ED_VEG271_00164 | K174: Rural
H175: ED_VEG271_00165 | J175: Average number of trees per maintenance span (0's) | K175: Urban and CBD
H176: ED_VEG271_00166 | K176: Rural
H177: ED_VEG271_00167 | J177: Average frequency of cutting cycle (years) | K177: Urban and CBD
H178: ED_VEG271_00168 | K178: Rural
H179: ED_VEG271_00169 | I179: ZONE 15 | J179: Route line length within zone (KM) | K179: Urban and CBD
H180: ED_VEG271_00170 | K180: Rural
H181: ED_VEG271_00171 | J181: Number of maintenance spans (0's) | K181: Urban and CBD
H182: ED_VEG271_00172 | K182: Rural
H183: ED_VEG271_00173 | J183: Total length of maintenance spans (KM) | K183: Urban and CBD
H184: ED_VEG271_00174 | K184: Rural
H185: ED_VEG271_00175 | J185: Length of vegetation corridors (KM) | K185: Urban and CBD
H186: ED_VEG271_00176 | K186: Rural
H187: ED_VEG271_00177 | J187: Average number of trees per maintenance span (0's) | K187: Urban and CBD
H188: ED_VEG271_00178 | K188: Rural
H189: ED_VEG271_00179 | J189: Average frequency of cutting cycle (years) | K189: Urban and CBD
H190: ED_VEG271_00180 | K190: Rural
H191: ED_VEG271_00181 | I191: ZONE 16 | J191: Route line length within zone (KM) | K191: Urban and CBD
H192: ED_VEG271_00182 | K192: Rural
H193: ED_VEG271_00183 | J193: Number of maintenance spans (0's) | K193: Urban and CBD
H194: ED_VEG271_00184 | K194: Rural
H195: ED_VEG271_00185 | J195: Total length of maintenance spans (KM) | K195: Urban and CBD
H196: ED_VEG271_00186 | K196: Rural
H197: ED_VEG271_00187 | J197: Length of vegetation corridors (KM) | K197: Urban and CBD
H198: ED_VEG271_00188 | K198: Rural
H199: ED_VEG271_00189 | J199: Average number of trees per maintenance span (0's) | K199: Urban and CBD
H200: ED_VEG271_00190 | K200: Rural
H201: ED_VEG271_00191 | J201: Average frequency of cutting cycle (years) | K201: Urban and CBD
H202: ED_VEG271_00192 | K202: Rural
H203: ED_VEG271_00193 | I203: ZONE 17 | J203: Route line length within zone (KM) | K203: Urban and CBD
... 23 more rows

Sheet 2.8 Maintenance
B1: =(LOOKUP(dms_Model,dms_Model_List,dms_Worksheet_List)) -> REGULATORY REPORTING STATEMENT
B2: Australian Distribution Co.
B3: =CONCATENATE("Category Analysis RIN response ",CRY) -> Category Analysis RIN response 2014-15
B4: 2.8 MAINTENANCE
B8: TABLE 2.8.1 - DESCRIPTOR METRICS FOR ROUTINE AND NON-ROUTINE MAINTENANCE | K8: TABLE 2.8.2 - COST METRICS FOR ROUTINE AND NON-ROUTINE MAINTENANCE
E11: ASSET QUANTITY - AT YEAR END (0s) | F11: ASSET QUANTITY - INSPECTED/ MAINTAINED | G11: AVERAGE AGE OF ASSET GROUP | H11: INSPECTION CYCLE (YEARS) | I11: MAINTENANCE CYCLE (YEARS) | M11: ROUTINE MAINTENANCE EXPENDITURE ($0's) | N11: NON-ROUTINE MAINTENANCE EXPENDITURE ($0's)
B12: MAINTENANCE ACTIVITY | C12: MAINTENANCE ASSET CATEGORY | D12: UNIT OF MEASURE - ASSET QUANTITY | E12: =CRY -> 2014-15 | F12: =CRY -> 2014-15 | G12: =CRY -> 2014-15 | K12: MAINTENANCE ACTIVITY | L12: MAINTENANCE ASSET CATEGORY | M12: =CRY -> 2014-15 | N12: =CRY -> 2014-15
A13: ED_MAI281_00001 | B13: Pole top, overhead line & service line maintenance | C13: Pole tops and overhead lines | D13: Number of poles | E13: ='[2]2.8 Maintenance'!E13+'[3]2.8 Maintenance'!E13 -> 50704 | F13: ='[2]2.8 Maintenance'!F13+'[3]2.8 Maintenance'!F13 -> 15503 | G13: ='[2]2.8 Maintenance'!G13+'[3]2.8 Maintenance'!G13 -> 32.53 | H13: ='[2]2.8 Maintenance'!H13+'[3]2.8 Maintenance'!H13 -> 2 | I13: ='[2]2.8 Maintenance'!I13+'[3]2.8 Maintenance'!I13 -> 0 | J13: ED_MAI282_00001 | K13: Pole top, overhead line & service line maintenance | L13: Pole tops and overhead lines | M13: ='[2]2.8 Maintenance'!M13+'[3]2.8 Maintenance'!M13 -> 326996.78 | N13: ='[2]2.8 Maintenance'!N13+'[3]2.8 Maintenance'!N13 -> 677624.1
A14: ED_MAI281_00002 | C14: Service lines | D14: Number of customers | E14: ='[2]2.8 Maintenance'!E14+'[3]2.8 Maintenance'!E14 -> 181726 | F14: ='[2]2.8 Maintenance'!F14+'[3]2.8 Maintenance'!F14 -> 12651 | G14: ='[2]2.8 Maintenance'!G14+'[3]2.8 Maintenance'!G14 -> 33.947 | H14: ='[2]2.8 Maintenance'!H14+'[3]2.8 Maintenance'!H14 -> 5 | I14: ='[2]2.8 Maintenance'!I14+'[3]2.8 Maintenance'!I14 -> 0 | J14: ED_MAI282_00002 | L14: Service lines | M14: ='[2]2.8 Maintenance'!M14+'[3]2.8 Maintenance'!M14 -> 0 | N14: ='[2]2.8 Maintenance'!N14+'[3]2.8 Maintenance'!N14 -> 80484.47
A15: ED_MAI281_00003 | B15: Pole inspection and treatment | C15: All poles | D15: Number of poles | E15: ='[2]2.8 Maintenance'!E15+'[3]2.8 Maintenance'!E15 -> 50704 | F15: ='[2]2.8 Maintenance'!F15+'[3]2.8 Maintenance'!F15 -> 11613 | G15: ='[2]2.8 Maintenance'!G15+'[3]2.8 Maintenance'!G15 -> 32.53 | H15: ='[2]2.8 Maintenance'!H15+'[3]2.8 Maintenance'!H15 -> 5 | I15: ='[2]2.8 Maintenance'!I15+'[3]2.8 Maintenance'!I15 -> 0 | J15: ED_MAI282_00003 | K15: Pole inspection and treatment | L15: All poles | M15: ='[2]2.8 Maintenance'!M15+'[3]2.8 Maintenance'!M15 -> 2108752.73 | N15: ='[2]2.8 Maintenance'!N15+'[3]2.8 Maintenance'!N15 -> 0
A16: ED_MAI281_00004 | B16: Overhead asset inspection | C16: All overhead assets | D16: Line patrolled (route KM) | E16: ='[2]2.8 Maintenance'!E16+'[3]2.8 Maintenance'!E16 -> 2366.755 | F16: ='[2]2.8 Maintenance'!F16+'[3]2.8 Maintenance'!F16 -> 2592.68 | G16: ='[2]2.8 Maintenance'!G16+'[3]2.8 Maintenance'!G16 -> 45.07 | H16: ='[2]2.8 Maintenance'!H16+'[3]2.8 Maintenance'!H16 -> 0 | I16: ='[2]2.8 Maintenance'!I16+'[3]2.8 Maintenance'!I16 -> 0 | J16: ED_MAI282_00004 | K16: Overhead asset inspection | L16: All overhead assets | M16: ='[2]2.8 Maintenance'!M16+'[3]2.8 Maintenance'!M16 -> 184741.4 | N16: ='[2]2.8 Maintenance'!N16+'[3]2.8 Maintenance'!N16 -> 2838.36
A17: ED_MAI281_00005 | B17: Network underground cable maintenance: by voltage | C17: LV - 11 to 22 KV | D17: Length (KM) | E17: ='[2]2.8 Maintenance'!E17+'[3]2.8 Maintenance'!E17 -> 2879.796 | F17: ='[2]2.8 Maintenance'!F17+'[3]2.8 Maintenance'!F17 -> 3.219 | G17: ='[2]2.8 Maintenance'!G17+'[3]2.8 Maintenance'!G17 -> 32.882 | H17: ='[2]2.8 Maintenance'!H17+'[3]2.8 Maintenance'!H17 -> 0 | I17: ='[2]2.8 Maintenance'!I17+'[3]2.8 Maintenance'!I17 -> 0 | J17: ED_MAI282_00005 | K17: Network underground cable maintenance: by voltage | L17: LV - 11 to 22 KV | M17: ='[2]2.8 Maintenance'!M17+'[3]2.8 Maintenance'!M17 -> 94725.09 | N17: ='[2]2.8 Maintenance'!N17+'[3]2.8 Maintenance'!N17 -> 476086.18
A18: ED_MAI281_00006 | C18: 33 KV and above | D18: Length (KM) | E18: ='[2]2.8 Maintenance'!E18+'[3]2.8 Maintenance'!E18 -> 6.022 | F18: ='[2]2.8 Maintenance'!F18+'[3]2.8 Maintenance'!F18 -> 0 | G18: ='[2]2.8 Maintenance'!G18+'[3]2.8 Maintenance'!G18 -> 7.022 | H18: ='[2]2.8 Maintenance'!H18+'[3]2.8 Maintenance'!H18 -> 0 | I18: ='[2]2.8 Maintenance'!I18+'[3]2.8 Maintenance'!I18 -> 0 | J18: ED_MAI282_00006 | L18: 33 KV and above | M18: ='[2]2.8 Maintenance'!M18+'[3]2.8 Maintenance'!M18 -> 0 | N18: ='[2]2.8 Maintenance'!N18+'[3]2.8 Maintenance'!N18 -> 0
A19: ED_MAI281_00007 | B19: Network underground cable maintenance: by location | C19: Cbd | D19: Length (KM) | E19: ='[2]2.8 Maintenance'!E19+'[3]2.8 Maintenance'!E19 -> 0 | F19: ='[2]2.8 Maintenance'!F19+'[3]2.8 Maintenance'!F19 -> 0 | G19: ='[2]2.8 Maintenance'!G19+'[3]2.8 Maintenance'!G19 -> 0 | H19: ='[2]2.8 Maintenance'!H19+'[3]2.8 Maintenance'!H19 -> 0 | I19: ='[2]2.8 Maintenance'!I19+'[3]2.8 Maintenance'!I19 -> 0 | J19: ED_MAI282_00007 | K19: Network underground cable maintenance: by location | L19: CBD | M19: ='[2]2.8 Maintenance'!M19+'[3]2.8 Maintenance'!M19 -> 0 | N19: ='[2]2.8 Maintenance'!N19+'[3]2.8 Maintenance'!N19 -> 0
A20: ED_MAI281_00008 | C20: Non-CBD | D20: Length (KM) | E20: ='[2]2.8 Maintenance'!E20+'[3]2.8 Maintenance'!E20 -> 2885.817 | F20: ='[2]2.8 Maintenance'!F20+'[3]2.8 Maintenance'!F20 -> 3.219 | G20: ='[2]2.8 Maintenance'!G20+'[3]2.8 Maintenance'!G20 -> 32.882 | H20: ='[2]2.8 Maintenance'!H20+'[3]2.8 Maintenance'!H20 -> 0 | I20: ='[2]2.8 Maintenance'!I20+'[3]2.8 Maintenance'!I20 -> 0 | J20: ED_MAI282_00008 | L20: Non-CBD | M20: ='[2]2.8 Maintenance'!M20+'[3]2.8 Maintenance'!M20 -> 94725.09 | N20: ='[2]2.8 Maintenance'!N20+'[3]2.8 Maintenance'!N20 -> 476086.18
A21: ED_MAI281_00009 | B21: Distribution substation equipment & property maintenance | C21: Distribution substation transformers | D21: Number of installed transformers | E21: ='[2]2.8 Maintenance'!E21+'[3]2.8 Maintenance'!E21 -> 5071 | F21: ='[2]2.8 Maintenance'!F21+'[3]2.8 Maintenance'!F21 -> 666 | G21: ='[2]2.8 Maintenance'!G21+'[3]2.8 Maintenance'!G21 -> 24.926 | H21: ='[2]2.8 Maintenance'!H21+'[3]2.8 Maintenance'!H21 -> 5 | I21: ='[2]2.8 Maintenance'!I21+'[3]2.8 Maintenance'!I21 -> 0 | J21: ED_MAI282_00009 | K21: Distribution substation equipment & property maintenance | L21: Distribution substation transformers | M21: ='[2]2.8 Maintenance'!M21+'[3]2.8 Maintenance'!M21 -> 108885.5 | N21: ='[2]2.8 Maintenance'!N21+'[3]2.8 Maintenance'!N21 -> 153858.36
A22: ED_MAI281_00010 | C22: Distribution substation switchgear (within-substations and stand-alone switchgear) | D22: Number of switches | E22: ='[2]2.8 Maintenance'!E22+'[3]2.8 Maintenance'!E22 -> 96926 | F22: ='[2]2.8 Maintenance'!F22+'[3]2.8 Maintenance'!F22 -> 278 | G22: ='[2]2.8 Maintenance'!G22+'[3]2.8 Maintenance'!G22 -> 26.487 | H22: ='[2]2.8 Maintenance'!H22+'[3]2.8 Maintenance'!H22 -> 5 | I22: ='[2]2.8 Maintenance'!I22+'[3]2.8 Maintenance'!I22 -> 5 | J22: ED_MAI282_00010 | L22: Distribution substation switchgear (within-substations and stand-alone switchgear) | M22: ='[2]2.8 Maintenance'!M22+'[3]2.8 Maintenance'!M22 -> 70432.77 | N22: ='[2]2.8 Maintenance'!N22+'[3]2.8 Maintenance'!N22 -> 105227.41
A23: ED_MAI281_00011 | C23: Distribution substation - other equipment | D23: Earth mat | E23: ='[2]2.8 Maintenance'!E23+'[3]2.8 Maintenance'!E23 -> 468 | F23: ='[2]2.8 Maintenance'!F23+'[3]2.8 Maintenance'!F23 -> 145 | G23: ='[2]2.8 Maintenance'!G23+'[3]2.8 Maintenance'!G23 -> 23.5 | H23: ='[2]2.8 Maintenance'!H23+'[3]2.8 Maintenance'!H23 -> 10 | I23: ='[2]2.8 Maintenance'!I23+'[3]2.8 Maintenance'!I23 -> 0 | J23: ED_MAI282_00011 | L23: Distribution substation - other equipment | M23: ='[2]2.8 Maintenance'!M23+'[3]2.8 Maintenance'!M23 -> 284985.85 | N23: ='[2]2.8 Maintenance'!N23+'[3]2.8 Maintenance'!N23 -> 87946.37
A24: ED_MAI281_00012 | C24: Distribution substation - property | D24: Number of distribution substation properties maintained | E24: ='[2]2.8 Maintenance'!E24+'[3]2.8 Maintenance'!E24 -> 4895 | F24: ='[2]2.8 Maintenance'!F24+'[3]2.8 Maintenance'!F24 -> 330 | G24: ='[2]2.8 Maintenance'!G24+'[3]2.8 Maintenance'!G24 -> 24.926 | H24: ='[2]2.8 Maintenance'!H24+'[3]2.8 Maintenance'!H24 -> 5 | I24: ='[2]2.8 Maintenance'!I24+'[3]2.8 Maintenance'!I24 -> 0 | J24: ED_MAI282_00012 | L24: Distribution substation - property | M24: ='[2]2.8 Maintenance'!M24+'[3]2.8 Maintenance'!M24 -> 368502.87 | N24: ='[2]2.8 Maintenance'!N24+'[3]2.8 Maintenance'!N24 -> 26077.97
A25: ED_MAI281_00013 | B25: Zone substation equipment maintenance | C25: Transformers - zone substation | D25: Number of zone substation transformers | E25: ='[2]2.8 Maintenance'!E25+'[3]2.8 Maintenance'!E25 -> 31 | F25: ='[2]2.8 Maintenance'!F25+'[3]2.8 Maintenance'!F25 -> 31 | G25: ='[2]2.8 Maintenance'!G25+'[3]2.8 Maintenance'!G25 -> 31.515 | H25: ='[2]2.8 Maintenance'!H25+'[3]2.8 Maintenance'!H25 -> 0.083 | I25: ='[2]2.8 Maintenance'!I25+'[3]2.8 Maintenance'!I25 -> 0 | J25: ED_MAI282_00013 | K25: Zone substation equipment maintenance | L25: Transformers - zone substation | M25: ='[2]2.8 Maintenance'!M25+'[3]2.8 Maintenance'!M25 -> 241626.48 | N25: ='[2]2.8 Maintenance'!N25+'[3]2.8 Maintenance'!N25 -> 16016.7
A26: ED_MAI281_00014 | C26: Transformers - distribution | D26: Number of distribution transformers within zone substations | E26: ='[2]2.8 Maintenance'!E26+'[3]2.8 Maintenance'!E26 -> 0 | F26: ='[2]2.8 Maintenance'!F26+'[3]2.8 Maintenance'!F26 -> 0 | G26: ='[2]2.8 Maintenance'!G26+'[3]2.8 Maintenance'!G26 -> 0 | H26: ='[2]2.8 Maintenance'!H26+'[3]2.8 Maintenance'!H26 -> 0 | I26: ='[2]2.8 Maintenance'!I26+'[3]2.8 Maintenance'!I26 -> 0 | J26: ED_MAI282_00014 | L26: Transformers - distribution | M26: ='[2]2.8 Maintenance'!M26+'[3]2.8 Maintenance'!M26 -> 0 | N26: ='[2]2.8 Maintenance'!N26+'[3]2.8 Maintenance'!N26 -> 0
A27: ED_MAI281_00015 | C27: Transformers - HV | D27: Number of HV transformers | E27: ='[2]2.8 Maintenance'!E27+'[3]2.8 Maintenance'!E27 -> 0 | F27: ='[2]2.8 Maintenance'!F27+'[3]2.8 Maintenance'!F27 -> 0 | G27: ='[2]2.8 Maintenance'!G27+'[3]2.8 Maintenance'!G27 -> 0 | H27: ='[2]2.8 Maintenance'!H27+'[3]2.8 Maintenance'!H27 -> 0 | I27: ='[2]2.8 Maintenance'!I27+'[3]2.8 Maintenance'!I27 -> 0 | J27: ED_MAI282_00015 | L27: Transformers - HV | M27: ='[2]2.8 Maintenance'!M27+'[3]2.8 Maintenance'!M27 -> 0 | N27: ='[2]2.8 Maintenance'!N27+'[3]2.8 Maintenance'!N27 -> 0
A28: ED_MAI281_00016 | C28: Zone substation - other equipment | D28: DNSP to nominate | E28: ='[2]2.8 Maintenance'!E28+'[3]2.8 Maintenance'!E28 -> 29 | F28: ='[2]2.8 Maintenance'!F28+'[3]2.8 Maintenance'!F28 -> 29 | G28: ='[2]2.8 Maintenance'!G28+'[3]2.8 Maintenance'!G28 -> 33.107 | H28: ='[2]2.8 Maintenance'!H28+'[3]2.8 Maintenance'!H28 -> 0.083 | I28: ='[2]2.8 Maintenance'!I28+'[3]2.8 Maintenance'!I28 -> 0 | J28: ED_MAI282_00016 | L28: Zone substation - other equipment | M28: ='[2]2.8 Maintenance'!M28+'[3]2.8 Maintenance'!M28 -> 571263.91 | N28: ='[2]2.8 Maintenance'!N28+'[3]2.8 Maintenance'!N28 -> 32473.24
A29: ED_MAI281_00017 | B29: Zone substation property maintenance | C29: All zone substation properties | D29: Number of zone substation properties maintained | E29: ='[2]2.8 Maintenance'!E29+'[3]2.8 Maintenance'!E29 -> 15 | F29: ='[2]2.8 Maintenance'!F29+'[3]2.8 Maintenance'!F29 -> 15 | G29: ='[2]2.8 Maintenance'!G29+'[3]2.8 Maintenance'!G29 -> 30.533 | H29: ='[2]2.8 Maintenance'!H29+'[3]2.8 Maintenance'!H29 -> 0.083 | I29: ='[2]2.8 Maintenance'!I29+'[3]2.8 Maintenance'!I29 -> 0 | J29: ED_MAI282_00017 | K29: Zone substation property maintenance | L29: All zone substation properties | M29: ='[2]2.8 Maintenance'!M29+'[3]2.8 Maintenance'!M29 -> 481868.46 | N29: ='[2]2.8 Maintenance'!N29+'[3]2.8 Maintenance'!N29 -> 0
A30: ED_MAI281_00018 | B30: Public lighting maintenance | C30: Minor roads | D30: Number of public lights maintained | E30: ='[2]2.8 Maintenance'!E30+'[3]2.8 Maintenance'!E30 -> 0 | F30: ='[2]2.8 Maintenance'!F30+'[3]2.8 Maintenance'!F30 -> 0 | G30: ='[2]2.8 Maintenance'!G30+'[3]2.8 Maintenance'!G30 -> 0 | H30: ='[2]2.8 Maintenance'!H30+'[3]2.8 Maintenance'!H30 -> 0 | I30: ='[2]2.8 Maintenance'!I30+'[3]2.8 Maintenance'!I30 -> 0 | J30: ED_MAI282_00018 | K30: Public lighting maintenance | L30: Minor roads | M30: ='[2]2.8 Maintenance'!M30+'[3]2.8 Maintenance'!M30 -> 0 | N30: ='[2]2.8 Maintenance'!N30+'[3]2.8 Maintenance'!N30 -> 0
A31: ED_MAI281_00019 | C31: Major roads | D31: Number of public lights maintained | E31: ='[2]2.8 Maintenance'!E31+'[3]2.8 Maintenance'!E31 -> 0 | F31: ='[2]2.8 Maintenance'!F31+'[3]2.8 Maintenance'!F31 -> 0 | G31: ='[2]2.8 Maintenance'!G31+'[3]2.8 Maintenance'!G31 -> 0 | H31: ='[2]2.8 Maintenance'!H31+'[3]2.8 Maintenance'!H31 -> 0 | I31: ='[2]2.8 Maintenance'!I31+'[3]2.8 Maintenance'!I31 -> 0 | J31: ED_MAI282_00019 | L31: Major roads | M31: ='[2]2.8 Maintenance'!M31+'[3]2.8 Maintenance'!M31 -> 0 | N31: ='[2]2.8 Maintenance'!N31+'[3]2.8 Maintenance'!N31 -> 0
A32: ED_MAI281_00020 | B32: SCADA & network control maintenance | C32: SCADA & network control maintenance | D32: Number of systems | E32: 262 | F32: 0 | G32: 11 | H32: 0 | I32: 0 | J32: ED_MAI282_00020 | K32: SCADA & network control maintenance | L32: SCADA & network control maintenance | M32: ='[2]2.8 Maintenance'!M32+'[3]2.8 Maintenance'!M32 -> 7512.54 | N32: ='[2]2.8 Maintenance'!N32+'[3]2.8 Maintenance'!N32 -> 16012.86
A33: ED_MAI281_00021 | B33: Protection systems maintenance | C33: Protection systems maintenance | D33: Number of systems | E33: 3160 | F33: 386 | G33: 15 | H33: 0.08 | I33: 3 | J33: ED_MAI282_00021 | K33: Protection systems maintenance | L33: Protection systems maintenance | M33: ='[2]2.8 Maintenance'!M33+'[3]2.8 Maintenance'!M33 -> 1235271.22 | N33: ='[2]2.8 Maintenance'!N33+'[3]2.8 Maintenance'!N33 -> 35948.51
A34: ED_MAI281_00022 | B34: Subtransmission asset maintenance - for DNSPs with dual function assets | C34: Subtransmission asset maintenance - for DNSPs with dual function assets | D34: Number of zone substation transformers | E34: 0 | F34: 0 | G34: 0 | H34: 0 | I34: 0 | J34: ED_MAI282_00022 | K34: Subtransmission asset maintenance - for DNSPs with dual function assets | L34: Subtransmission asset maintenance - for DNSPs with dual function assets | M34: ='[2]2.8 Maintenance'!M34+'[3]2.8 Maintenance'!M34 -> 22034.26 | N34: ='[2]2.8 Maintenance'!N34+'[3]2.8 Maintenance'!N34 -> 10950.6
A35: ED_MAI281_00023 | D35: Number of zone substation properties maintained | E35: 12 | J35: ED_MAI282_00023 | K35: Various assets | L35: includes rates, electricity, communications equip, metering | M35: ='[2]2.8 Maintenance'!M35+'[3]2.8 Maintenance'!M35 -> 0 | N35: ='[2]2.8 Maintenance'!N35+'[3]2.8 Maintenance'!N35 -> 0
A36: ED_MAI281_00024 | D36: Transmission lines | J36: ED_MAI282_00024 | K36: Ground clearance - access tracks | L36: Ground clearance - access tracks | M36: ='[2]2.8 Maintenance'!M36+'[3]2.8 Maintenance'!M36 -> 0 | N36: ='[2]2.8 Maintenance'!N36+'[3]2.8 Maintenance'!N36 -> 0
A37: ED_MAI281_00025 | B37: Various assets | C37: includes rates, electricity, communications equip, metering | D37: Units not quoted as various UOM | E37: 0 | F37: 0 | G37: 0 | H37: 0 | I37: 0 | J37: ED_MAI282_00025 | K37: Other | L37: < DNSP to nominate > | M37: ='[2]2.8 Maintenance'!M37+'[3]2.8 Maintenance'!M37 -> 0 | N37: ='[2]2.8 Maintenance'!N37+'[3]2.8 Maintenance'!N37 -> 0
A38: ED_MAI281_00026 | B38: Ground clearance - access tracks | C38: Ground clearance - access tracks | D38: Units not quoted | E38: 0 | F38: 0 | G38: 0 | H38: 0 | I38: 0
B39: Other

Sheet 2.9 Emergency Response
B1: =(LOOKUP(dms_Model,dms_Model_List,dms_Worksheet_List)) -> REGULATORY REPORTING STATEMENT
B2: Australian Distribution Co.
B3: =CONCATENATE("Category Analysis RIN response ",CRY) -> Category Analysis RIN response 2014-15
B4: 2.9 EMERGENCY RESPONSE
B6: TABLE 2.9.1 - EMERGENCY RESPONSE EXPENDITURE (OPEX)
D9: EXPENDITURE ($0's)
D10: =CRY -> 2014-15
A11: ED_EME291_99999 | B11: (A) TOTAL EMERGENCY RESPONSE EXPENDITURE ($0's) | C11: Total Expenditure | D11: 3267113.6
A12: ED_EME291_00002 | B12: (B) MAJOR EVENTS O&M EXPENDITURE ($0's) | D12: 0
A13: ED_EME291_00003
A14: ED_EME291_00004
A15: ED_EME291_00005
A16: ED_EME291_00006
A17: ED_EME291_00007
A18: ED_EME291_00008
A19: ED_EME291_00009
A20: ED_EME291_00010
A21: ED_EME291_00011
A22: ED_EME291_00012
A23: ED_EME291_00013
A24: ED_EME291_00014
A25: ED_EME291_00015
A26: ED_EME291_00016
A27: ED_EME291_00017
A28: ED_EME291_00018
A29: ED_EME291_00019
A30: ED_EME291_00020
A31: ED_EME291_00021
A32: ED_EME291_00022
A33: ED_EME291_00023
A34: ED_EME291_00024
A35: ED_EME291_00025
A36: ED_EME291_00026
A37: ED_EME291_00027
A38: ED_EME291_00028
A39: ED_EME291_00029
A40: ED_EME291_00030
A41: ED_EME291_00031
A42: ED_EME291_00032
A43: ED_EME291_00033
A44: ED_EME291_00034
A45: ED_EME291_00035
A46: ED_EME291_00036
A47: ED_EME291_00037
A48: ED_EME291_00038
A49: ED_EME291_00039
A50: ED_EME291_00040
A51: ED_EME291_00041
A52: ED_EME291_00042
A53: ED_EME291_00043
A54: ED_EME291_00044
A55: ED_EME291_00045 | B55: (C) MAJOR EVENT DAYS O&M EXPENDITURE ($0's) | D55: 0
A56: ED_EME291_00046
A57: ED_EME291_00047
A58: ED_EME291_00048
A59: ED_EME291_00049
A60: ED_EME291_00050
A61: ED_EME291_00051
A62: ED_EME291_00052
A63: ED_EME291_00053
A64: ED_EME291_00054
A65: ED_EME291_00055
A66: ED_EME291_00056
A67: ED_EME291_00057
A68: ED_EME291_00058
A69: ED_EME291_00059
A70: ED_EME291_00060
A71: ED_EME291_00061
A72: ED_EME291_00062
A73: ED_EME291_00063
A74: ED_EME291_00064
A75: ED_EME291_00065
A76: ED_EME291_00066
A77: ED_EME291_00067
A78: ED_EME291_00068
A79: ED_EME291_00069
A80: ED_EME291_00070
A81: ED_EME291_00071
A82: ED_EME291_00072
A83: ED_EME291_00073
A84: ED_EME291_00074
A85: ED_EME291_00075
A86: ED_EME291_00076
A87: ED_EME291_00077
A88: ED_EME291_00078
A89: ED_EME291_00079
A90: ED_EME291_00080
A91: ED_EME291_00081
A92: ED_EME291_00082
A93: ED_EME291_00083
A94: ED_EME291_00084
A95: ED_EME291_00085
A96: ED_EME291_00086
A97: ED_EME291_00087
A98: ED_EME291_00088
A99: ED_EME291_00089
A100: ED_EME291_00090
A101: ED_EME291_00091
A102: ED_EME291_00092
A103: ED_EME291_00093
A104: ED_EME291_00094
A105: ED_EME291_00095
A106: ED_EME291_00096
A107: ED_EME291_00097
A108: ED_EME291_00098
A109: ED_EME291_00099
A110: ED_EME291_00100
A111: ED_EME291_00101
A112: ED_EME291_00102
A113: ED_EME291_00103
A114: ED_EME291_00104
A115: ED_EME291_00105
A116: ED_EME291_00106
A117: ED_EME291_00107
A118: ED_EME291_00108
A119: ED_EME291_00109
A120: ED_EME291_00110
A121: ED_EME291_00111
A122: ED_EME291_00112
A123: ED_EME291_00113
A124: ED_EME291_00114
A125: ED_EME291_00115
A126: ED_EME291_00116
A127: ED_EME291_00117
A128: ED_EME291_00118
A129: ED_EME291_00119
A130: ED_EME291_00120
A131: ED_EME291_00121
A132: ED_EME291_00122
A133: ED_EME291_00123
A134: ED_EME291_00124
A135: ED_EME291_00125
A136: ED_EME291_00126
A137: ED_EME291_00127
A138: ED_EME291_00128
A139: ED_EME291_00129
A140: ED_EME291_00130
A141: ED_EME291_00131
A142: ED_EME291_00132
A143: ED_EME291_00133
A144: ED_EME291_00134
A145: ED_EME291_00135
A146: ED_EME291_00136
A147: ED_EME291_00137
A148: ED_EME291_00138
A149: ED_EME291_00139
A150: ED_EME291_00140
A151: ED_EME291_00141
A152: ED_EME291_00142
A153: ED_EME291_00143
A154: ED_EME291_00144
A155: ED_EME291_00145
A156: ED_EME291_00146
A157: ED_EME291_00147
A158: ED_EME291_00148
A159: ED_EME291_00149
A160: ED_EME291_00150
A161: ED_EME291_00151
A162: ED_EME291_00152
A163: ED_EME291_00153
A164: ED_EME291_00154
A165: ED_EME291_00155
A166: ED_EME291_00156
A167: ED_EME291_00157
A168: ED_EME291_00158
A169: ED_EME291_00159
A170: ED_EME291_00160
A171: ED_EME291_00161
A172: ED_EME291_00162
A173: ED_EME291_00163
A174: ED_EME291_00164
A175: ED_EME291_00165
A176: ED_EME291_00166
A177: ED_EME291_00167
A178: ED_EME291_00168
A179: ED_EME291_00169
A180: ED_EME291_00170
A181: ED_EME291_00171
A182: ED_EME291_00172
A183: ED_EME291_00173
A184: ED_EME291_00174
A185: ED_EME291_00175
A186: ED_EME291_00176
A187: ED_EME291_00177
A188: ED_EME291_00178
A189: ED_EME291_00179
A190: ED_EME291_00180
A191: ED_EME291_00181
A192: ED_EME291_00182
A193: ED_EME291_00183
A194: ED_EME291_00184
A195: ED_EME291_00185
A196: ED_EME291_00186
A197: ED_EME291_00187
A198: ED_EME291_00188
A199: ED_EME291_00189
A200: ED_EME291_00190
A201: ED_EME291_00191
A202: ED_EME291_00192
A203: ED_EME291_00193
... 400 more rows

Sheet 2.10 Overheads
B1: =(LOOKUP(dms_Model,dms_Model_List,dms_Worksheet_List)) -> REGULATORY REPORTING STATEMENT
B2: Australian Distribution Co.
B3: =CONCATENATE("Category Analysis RIN response ",CRY) -> Category Analysis RIN response 2014-15
B4: 2.10 OVERHEADS
B8: TABLE 2.10.1 - NETWORK OVERHEADS EXPENDITURE
E10: EXPENDITURE ($0's)
A11: OVE2101 | E11: =CRY -> 2014-15
A12: ED_OVE2101_00001 | B12: NETWORK OVERHEADS | C12: Total Overhead Expenditure - Standard Control Services | D12: Network management | E12: =SUM('[2]2.10 Overheads'!E12,'[3]2.10 Overheads'!E12) -> 0
A13: ED_OVE2101_00002 | D13: Network planning | E13: =SUM('[2]2.10 Overheads'!E13,'[3]2.10 Overheads'!E13) -> 3215707.7
A14: ED_OVE2101_00003 | D14: Network control and operational switching | E14: =SUM('[2]2.10 Overheads'!E14,'[3]2.10 Overheads'!E14) -> 4744234.28
A15: ED_OVE2101_00004 | D15: Quality and standard functions | E15: =SUM('[2]2.10 Overheads'!E15,'[3]2.10 Overheads'!E15) -> 1416802.1
A16: ED_OVE2101_00005 | D16: Project governance and related functions | E16: =SUM('[2]2.10 Overheads'!E16,'[3]2.10 Overheads'!E16) -> 0
A17: ED_OVE2101_00006 | D17: Other | E17: =SUM('[2]2.10 Overheads'!E17,'[3]2.10 Overheads'!E17) -> 0
A18: ED_OVE2101_00007 | D18: Regulatory Operations | E18: =SUM('[2]2.10 Overheads'!E18,'[3]2.10 Overheads'!E18) -> 5729018.71
A19: ED_OVE2101_00008 | D19: National Electricity Market Operations | E19: =SUM('[2]2.10 Overheads'!E19,'[3]2.10 Overheads'!E19) -> 1005158.23
A20: ED_OVE2101_00009 | D20: Training Apprenticeship & Engineers | E20: =SUM('[2]2.10 Overheads'!E20,'[3]2.10 Overheads'!E20) -> 1855598.12
A21: ED_OVE2101_00010 | D21: Customer Service | E21: =SUM('[2]2.10 Overheads'!E21,'[3]2.10 Overheads'!E21) -> 5166206.33
A22: ED_OVE2101_00011 | D22: Advertising & marketing | E22: =SUM('[2]2.10 Overheads'!E22,'[3]2.10 Overheads'!E22) -> 1003205.96
A23: ED_OVE2101_00012 | D23: Business Overhead | E23: =SUM('[2]2.10 Overheads'!E23,'[3]2.10 Overheads'!E23) -> 4538041.25
A24: ED_OVE2101_00013 | D24: Restructuring Expenditure | E24: =SUM('[2]2.10 Overheads'!E24,'[3]2.10 Overheads'!E24) -> 16684707.82
A25: ED_OVE2101_00014 | D25: Recoveries | E25: =SUM('[2]2.10 Overheads'!E25,'[3]2.10 Overheads'!E25) -> -354838.72
A26: ED_OVE2101_00015
A27: ED_OVE2101_00016
A28: ED_OVE2101_00017
A29: ED_OVE2101_00018
A30: ED_OVE2101_00019
A31: ED_OVE2101_00020
A32: ED_OVE2101_00021
A33: ED_OVE2101_00022
A34: ED_OVE2101_00023
A35: ED_OVE2101_00024
A36: ED_OVE2101_00025
A37: ED_OVE2101_00026
A38: ED_OVE2101_00027
A39: ED_OVE2101_00028
A40: ED_OVE2101_00029 | B40: NETWORK OVERHEADS | C40: Total Overhead Expenditure - Alternative Control Services | D40: Network management | E40: ='[2]2.10 Overheads'!E40+'[3]2.10 Overheads'!E40 -> 0
A41: ED_OVE2101_00030 | D41: Network planning | E41: ='[2]2.10 Overheads'!E41+'[3]2.10 Overheads'!E41 -> 0
A42: ED_OVE2101_00031 | D42: Network control and operational switching | E42: ='[2]2.10 Overheads'!E42+'[3]2.10 Overheads'!E42 -> 0
A43: ED_OVE2101_00032 | D43: Quality and standard functions | E43: ='[2]2.10 Overheads'!E43+'[3]2.10 Overheads'!E43 -> 0
A44: ED_OVE2101_00033 | D44: Project governance and related functions | E44: ='[2]2.10 Overheads'!E44+'[3]2.10 Overheads'!E44 -> 0
A45: ED_OVE2101_00034
A46: ED_OVE2101_00035
A47: ED_OVE2101_00036
A48: ED_OVE2101_00037
A49: ED_OVE2101_00038
A50: ED_OVE2101_00039
A51: ED_OVE2101_00040
A52: ED_OVE2101_00041
A53: ED_OVE2101_00042
A54: ED_OVE2101_00043
A55: ED_OVE2101_00044
A56: ED_OVE2101_00045
A57: ED_OVE2101_00046
A58: ED_OVE2101_00047
A59: ED_OVE2101_00048
A60: ED_OVE2101_00049
A61: ED_OVE2101_00050
A62: ED_OVE2101_00051
A63: ED_OVE2101_00052
A64: ED_OVE2101_00053
A65: ED_OVE2101_00054
A66: ED_OVE2101_00055
A67: ED_OVE2101_00056
A68: ED_OVE2101_00057 | B68: NETWORK OVERHEADS | C68: Total Overhead Expenditure - Negotiated Services | D68: Total
A69: ED_OVE2101_00058 | C69: Total Overhead Expenditure - Unregulated Services | D69: Total
A70: ED_OVE2101_00059 | B70: NETWORK OVERHEADS | C70: Capitalised Overheads - Standard Control Services | D70: Network management | E70: ='[2]2.10 Overheads'!E70+'[3]2.10 Overheads'!E70 -> 0
A71: ED_OVE2101_00060 | D71: Network planning | E71: ='[2]2.10 Overheads'!E71+'[3]2.10 Overheads'!E71 -> 0
A72: ED_OVE2101_00061 | D72: Network control and operational switching | E72: ='[2]2.10 Overheads'!E72+'[3]2.10 Overheads'!E72 -> 0
A73: ED_OVE2101_00062 | D73: Quality and standard functions | E73: ='[2]2.10 Overheads'!E73+'[3]2.10 Overheads'!E73 -> 0
A74: ED_OVE2101_00063 | D74: Project governance and related functions | E74: ='[2]2.10 Overheads'!E74+'[3]2.10 Overheads'!E74 -> 0
A75: ED_OVE2101_00064
A76: ED_OVE2101_00065
A77: ED_OVE2101_00066
A78: ED_OVE2101_00067
A79: ED_OVE2101_00068
A80: ED_OVE2101_00069
A81: ED_OVE2101_00070
A82: ED_OVE2101_00071
A83: ED_OVE2101_00072
A84: ED_OVE2101_00073
A85: ED_OVE2101_00074
A86: ED_OVE2101_00075
A87: ED_OVE2101_00076
A88: ED_OVE2101_00077
A89: ED_OVE2101_00078
A90: ED_OVE2101_00079
A91: ED_OVE2101_00080
A92: ED_OVE2101_00081
A93: ED_OVE2101_00082
A94: ED_OVE2101_00083
A95: ED_OVE2101_00084
A96: ED_OVE2101_00085
A97: ED_OVE2101_00086
B105: TABLE 2.10.2 - CORPORATE OVERHEADS EXPENDITURE
E107: EXPENDITURE ($0's)
A108: OVE2102 | E108: =CRY -> 2014-15
A109: ED_OVE2102_00002 | B109: CORPORATE OVERHEADS | C109: Total Overhead Expenditure - Standard Control Services | D109: Corporate Accounts
A110: ED_OVE2102_00003 | D110: Core Systems Replacement Program | E110: ='[2]2.10 Overheads'!E110+'[3]2.10 Overheads'!E110 -> 394656.41
A111: ED_OVE2102_00004 | D111: Property & Security | E111: ='[2]2.10 Overheads'!E111+'[3]2.10 Overheads'!E111 -> 819061.815
A112: ED_OVE2102_00005 | D112: Executive | E112: ='[2]2.10 Overheads'!E112+'[3]2.10 Overheads'!E112 -> 44563.891
A113: ED_OVE2102_00006 | D113: Regulatory Corporate | E113: ='[2]2.10 Overheads'!E113+'[3]2.10 Overheads'!E113 -> 280402.111
A114: ED_OVE2102_00007 | D114: Legal & Secretariat Division | E114: ='[2]2.10 Overheads'!E114+'[3]2.10 Overheads'!E114 -> 438561.429
A115: ED_OVE2102_00008 | D115: Business Systems Division | E115: ='[2]2.10 Overheads'!E115+'[3]2.10 Overheads'!E115 -> 2045553.331
A116: ED_OVE2102_00009 | D116: People & Performance | E116: ='[2]2.10 Overheads'!E116+'[3]2.10 Overheads'!E116 -> 619910.738
A117: ED_OVE2102_00010 | D117: Corporate Finance | E117: ='[2]2.10 Overheads'!E117+'[3]2.10 Overheads'!E117 -> 1563310.558
A118: ED_OVE2102_00011 | D118: Accounts Payable | E118: ='[2]2.10 Overheads'!E118+'[3]2.10 Overheads'!E118 -> 73354.079
A119: ED_OVE2102_00012 | D119: Environment, Health, Safety, & Quality (EHSQ) | E119: ='[2]2.10 Overheads'!E119+'[3]2.10 Overheads'!E119 -> 875027.433
A120: ED_OVE2102_00013 | D120: Contracts & Procurement | E120: ='[2]2.10 Overheads'!E120+'[3]2.10 Overheads'!E120 -> 320063.58
A121: ED_OVE2102_00014 | D121: Storage and Warehouse | E121: ='[2]2.10 Overheads'!E121+'[3]2.10 Overheads'!E121 -> 649871.155
A122: ED_OVE2102_00015
A123: ED_OVE2102_00016
A124: ED_OVE2102_00017
A125: ED_OVE2102_00018
A126: ED_OVE2102_00019
A127: ED_OVE2102_00020
A128: ED_OVE2102_00021
A129: ED_OVE2102_00022
A130: ED_OVE2102_00023 | B130: CORPORATE OVERHEADS | C130: Total Overhead Expenditure - Alternative Control Services | D130: Corporate Accounts
A131: ED_OVE2102_00024 | D131: Core Systems Replacement Program | E131: ='[2]2.10 Overheads'!E131+'[3]2.10 Overheads'!E131 -> 144752.594
A132: ED_OVE2102_00025 | D132: Property & Security | E132: ='[2]2.10 Overheads'!E132+'[3]2.10 Overheads'!E132 -> 300416.563
A133: ED_OVE2102_00026 | D133: Executive | E133: ='[2]2.10 Overheads'!E133+'[3]2.10 Overheads'!E133 -> 16345.202
A134: ED_OVE2102_00027 | D134: Regulatory Corporate | E134: ='[2]2.10 Overheads'!E134+'[3]2.10 Overheads'!E134 -> 102846.253
A135: ED_OVE2102_00028 | D135: Legal & Secretariat Division | E135: ='[2]2.10 Overheads'!E135+'[3]2.10 Overheads'!E135 -> 160856.134
A136: ED_OVE2102_00029 | D136: Business Systems Division | E136: ='[2]2.10 Overheads'!E136+'[3]2.10 Overheads'!E136 -> 750270.724
A137: ED_OVE2102_00030 | D137: People & Performance | E137: ='[2]2.10 Overheads'!E137+'[3]2.10 Overheads'!E137 -> 227371.671
A138: ED_OVE2102_00031 | D138: Corporate Finance | E138: ='[2]2.10 Overheads'!E138+'[3]2.10 Overheads'!E138 -> 573393.089
A139: ED_OVE2102_00032 | D139: Accounts Payable | E139: ='[2]2.10 Overheads'!E139+'[3]2.10 Overheads'!E139 -> 26904.905
A140: ED_OVE2102_00033 | D140: Environment, Health, Safety, & Quality (EHSQ) | E140: ='[2]2.10 Overheads'!E140+'[3]2.10 Overheads'!E140 -> 320943.705
A141: ED_OVE2102_00034 | D141: Contracts & Procurement | E141: ='[2]2.10 Overheads'!E141+'[3]2.10 Overheads'!E141 -> 117393.338
A142: ED_OVE2102_00035 | D142: Storage and Warehouse | E142: ='[2]2.10 Overheads'!E142+'[3]2.10 Overheads'!E142 -> 238360.592
A143: ED_OVE2102_00036
A144: ED_OVE2102_00037
A145: ED_OVE2102_00038
A146: ED_OVE2102_00039
A147: ED_OVE2102_00040
A148: ED_OVE2102_00041
A149: ED_OVE2102_00042
A150: ED_OVE2102_00043
A151: ED_OVE2102_00044 | B151: CORPORATE OVERHEADS | C151: Total Overhead Expenditure - Negotiated Services | D151: Total
A152: ED_OVE2102_00045 | C152: Total Overhead Expenditure - Unregulated Services | D152: Total | E152: ='[2]2.10 Overheads'!E152+'[3]2.10 Overheads'!E152 -> 633958.29
A153: ED_OVE2102_00046 | B153: CORPORATE OVERHEADS | C153: Capitalised Overheads - Standard Control Services | D153: Corporate Accounts | E153: ='[2]2.10 Overheads'!E153+'[3]2.10 Overheads'!E153 -> 0
A154: ED_OVE2102_00047 | D154: Core Systems Replacement Program | E154: ='[2]2.10 Overheads'!E154+'[3]2.10 Overheads'!E154 -> 675158.909
A155: ED_OVE2102_00048 | D155: Property & Security | E155: ='[2]2.10 Overheads'!E155+'[3]2.10 Overheads'!E155 -> 1401210.947
A156: ED_OVE2102_00049 | D156: Executive | E156: ='[2]2.10 Overheads'!E156+'[3]2.10 Overheads'!E156 -> 76237.728
A157: ED_OVE2102_00050 | D157: Regulatory Corporate | E157: ='[2]2.10 Overheads'!E157+'[3]2.10 Overheads'!E157 -> 479698.236
A158: ED_OVE2102_00051 | D158: Legal & Secretariat Division | E158: ='[2]2.10 Overheads'!E158+'[3]2.10 Overheads'!E158 -> 750269.472
A159: ED_OVE2102_00052 | D159: Business Systems Division | E159: ='[2]2.10 Overheads'!E159+'[3]2.10 Overheads'!E159 -> 3499432.725
A160: ED_OVE2102_00053 | D160: People & Performance | E160: ='[2]2.10 Overheads'!E160+'[3]2.10 Overheads'!E160 -> 1060513.012
A161: ED_OVE2102_00054 | D161: Corporate Finance | E161: ='[2]2.10 Overheads'!E161+'[3]2.10 Overheads'!E161 -> 2674435.343
A162: ED_OVE2102_00055 | D162: Accounts Payable | E162: ='[2]2.10 Overheads'!E162+'[3]2.10 Overheads'!E162 -> 125490.576
A163: ED_OVE2102_00056 | D163: Environment, Health, Safety, & Quality (EHSQ) | E163: ='[2]2.10 Overheads'!E163+'[3]2.10 Overheads'!E163 -> 1496954.192
A164: ED_OVE2102_00057 | D164: Contracts & Procurement | E164: ='[2]2.10 Overheads'!E164+'[3]2.10 Overheads'!E164 -> 547549.139
A165: ED_OVE2102_00058 | D165: Storage and Warehouse | E165: ='[2]2.10 Overheads'!E165+'[3]2.10 Overheads'!E165 -> 1111767.83
A166: ED_OVE2102_00059
A167: ED_OVE2102_00060
A168: ED_OVE2102_00061
A169: ED_OVE2102_00062
A170: ED_OVE2102_00063
A171: ED_OVE2102_00064
A172: ED_OVE2102_00065
A173: ED_OVE2102_00066

Sheet 2.11 Labour
B1: =(LOOKUP(dms_Model,dms_Model_List,dms_Worksheet_List)) -> REGULATORY REPORTING STATEMENT
B2: Australian Distribution Co.
B3: =CONCATENATE("Category Analysis RIN response ",CRY) -> Category Analysis RIN response 2014-15
B4: 2.11 LABOUR
B6: TABLE 2.11.1 - COST METRICS PER ANNUM | J6: TABLE 2.11.2 - EXTRA DESCRIPTOR METRICS FOR CURRENT YEAR
E10: ASL (0'S) | F10: TOTAL LABOUR EXPENDITURE ($0's) | G10: AVERAGE PRODUCTIVE WORK HOURS PER ASL (0'S) | H10: STAND-DOWN OCCURENCES PER ASL (0'S) | M10: AVERAGE PRODUCTIVE WORK HOURS ORDINARY TIME (0's) | O10: AVERAGE PRODUCTIVE WORK HOURS OVERTIME (0's)
M11: PER ASL | N11: HOURLY RATE PER ASL | O11: PER ASL | P11: HOURLY RATE PER ASL
E12: =CRY -> 2014-15 | F12: =CRY -> 2014-15 | G12: =CRY -> 2014-15 | H12: =CRY -> 2014-15 | M12: =CRY -> 2014-15 | N12: =CRY -> 2014-15 | O12: =CRY -> 2014-15 | P12: =CRY -> 2014-15
A13: ED_LAB2111_00001 | B13: CORPORATE OVERHEADS INTERNAL LABOUR COSTS | C13: LABOUR CLASSIFICATION LEVEL | D13: Executive manager | E13: =SUM('[2]2.11 Labour'!E13,'[3]2.11 Labour'!E13) -> 3.125912748 | F13: =SUM('[2]2.11 Labour'!F13,'[3]2.11 Labour'!F13) -> 2160.924662 | G13: =SUM('[2]2.11 Labour'!G13,'[3]2.11 Labour'!G13) -> 1646.4 | H13: =SUM('[2]2.11 Labour'!H13,'[3]2.11 Labour'!H13) -> 0 | I13: ED_LAB2112_00001 | J13: CORPORATE OVERHEADS INTERNAL LABOUR COSTS | K13: LABOUR CLASSIFICATION LEVEL | L13: Executive manager | M13: =SUM('[2]2.11 Labour'!M13,'[3]2.11 Labour'!M13) -> 1646.4 | N13: =SUM('[2]2.11 Labour'!N13,'[3]2.11 Labour'!N13) -> 419.8821545 | O13: =SUM('[2]2.11 Labour'!O13,'[3]2.11 Labour'!O13) -> 0 | P13: =SUM('[2]2.11 Labour'!P13,'[3]2.11 Labour'!P13) -> 0
A14: ED_LAB2111_00002 | D14: Employee (optional) | E14: =SUM('[2]2.11 Labour'!E14,'[3]2.11 Labour'!E14) -> 0 | F14: =SUM('[2]2.11 Labour'!F14,'[3]2.11 Labour'!F14) -> 0 | G14: =SUM('[2]2.11 Labour'!G14,'[3]2.11 Labour'!G14) -> 0 | H14: =SUM('[2]2.11 Labour'!H14,'[3]2.11 Labour'!H14) -> 0 | I14: ED_LAB2112_00002 | L14: Employee (optional) | M14: =SUM('[2]2.11 Labour'!M14,'[3]2.11 Labour'!M14) -> 0 | N14: =SUM('[2]2.11 Labour'!N14,'[3]2.11 Labour'!N14) -> 0 | O14: =SUM('[2]2.11 Labour'!O14,'[3]2.11 Labour'!O14) -> 0 | P14: =SUM('[2]2.11 Labour'!P14,'[3]2.11 Labour'!P14) -> 0
A15: ED_LAB2111_00003 | D15: Labour hire (optional) | E15: =SUM('[2]2.11 Labour'!E15,'[3]2.11 Labour'!E15) -> 0 | F15: =SUM('[2]2.11 Labour'!F15,'[3]2.11 Labour'!F15) -> 0 | G15: =SUM('[2]2.11 Labour'!G15,'[3]2.11 Labour'!G15) -> 0 | H15: =SUM('[2]2.11 Labour'!H15,'[3]2.11 Labour'!H15) -> 0 | I15: ED_LAB2112_00003 | L15: Labour hire (optional) | M15: =SUM('[2]2.11 Labour'!M15,'[3]2.11 Labour'!M15) -> 0 | N15: =SUM('[2]2.11 Labour'!N15,'[3]2.11 Labour'!N15) -> 0 | O15: =SUM('[2]2.11 Labour'!O15,'[3]2.11 Labour'!O15) -> 0 | P15: =SUM('[2]2.11 Labour'!P15,'[3]2.11 Labour'!P15) -> 0
A16: ED_LAB2111_00004 | D16: Senior manager | E16: =SUM('[2]2.11 Labour'!E16,'[3]2.11 Labour'!E16) -> 4.680853961 | F16: =SUM('[2]2.11 Labour'!F16,'[3]2.11 Labour'!F16) -> 1235.680564 | G16: =SUM('[2]2.11 Labour'!G16,'[3]2.11 Labour'!G16) -> 1646.4 | H16: =SUM('[2]2.11 Labour'!H16,'[3]2.11 Labour'!H16) -> 0 | I16: ED_LAB2112_00004 | L16: Senior manager | M16: =SUM('[2]2.11 Labour'!M16,'[3]2.11 Labour'!M16) -> 1646.4 | N16: =SUM('[2]2.11 Labour'!N16,'[3]2.11 Labour'!N16) -> 160.3414353 | O16: =SUM('[2]2.11 Labour'!O16,'[3]2.11 Labour'!O16) -> 0 | P16: =SUM('[2]2.11 Labour'!P16,'[3]2.11 Labour'!P16) -> 0
A17: ED_LAB2111_00005 | D17: Employee (optional) | E17: =SUM('[2]2.11 Labour'!E17,'[3]2.11 Labour'!E17) -> 0 | F17: =SUM('[2]2.11 Labour'!F17,'[3]2.11 Labour'!F17) -> 0 | G17: =SUM('[2]2.11 Labour'!G17,'[3]2.11 Labour'!G17) -> 0 | H17: =SUM('[2]2.11 Labour'!H17,'[3]2.11 Labour'!H17) -> 0 | I17: ED_LAB2112_00005 | L17: Employee (optional) | M17: =SUM('[2]2.11 Labour'!M17,'[3]2.11 Labour'!M17) -> 0 | N17: =SUM('[2]2.11 Labour'!N17,'[3]2.11 Labour'!N17) -> 0 | O17: =SUM('[2]2.11 Labour'!O17,'[3]2.11 Labour'!O17) -> 0 | P17: =SUM('[2]2.11 Labour'!P17,'[3]2.11 Labour'!P17) -> 0
A18: ED_LAB2111_00006 | D18: Labour hire (optional) | E18: =SUM('[2]2.11 Labour'!E18,'[3]2.11 Labour'!E18) -> 0 | F18: =SUM('[2]2.11 Labour'!F18,'[3]2.11 Labour'!F18) -> 0 | G18: =SUM('[2]2.11 Labour'!G18,'[3]2.11 Labour'!G18) -> 0 | H18: =SUM('[2]2.11 Labour'!H18,'[3]2.11 Labour'!H18) -> 0 | I18: ED_LAB2112_00006 | L18: Labour hire (optional) | M18: =SUM('[2]2.11 Labour'!M18,'[3]2.11 Labour'!M18) -> 0 | N18: =SUM('[2]2.11 Labour'!N18,'[3]2.11 Labour'!N18) -> 0 | O18: =SUM('[2]2.11 Labour'!O18,'[3]2.11 Labour'!O18) -> 0 | P18: =SUM('[2]2.11 Labour'!P18,'[3]2.11 Labour'!P18) -> 0
A19: ED_LAB2111_00007 | D19: Manager | E19: =SUM('[2]2.11 Labour'!E19,'[3]2.11 Labour'!E19) -> 15.62715919 | F19: =SUM('[2]2.11 Labour'!F19,'[3]2.11 Labour'!F19) -> 2792.722126 | G19: =SUM('[2]2.11 Labour'!G19,'[3]2.11 Labour'!G19) -> 1646.4 | H19: =SUM('[2]2.11 Labour'!H19,'[3]2.11 Labour'!H19) -> 0 | I19: ED_LAB2112_00007 | L19: Manager | M19: =SUM('[2]2.11 Labour'!M19,'[3]2.11 Labour'!M19) -> 1646.4 | N19: =SUM('[2]2.11 Labour'!N19,'[3]2.11 Labour'!N19) -> 108.5456271 | O19: =SUM('[2]2.11 Labour'!O19,'[3]2.11 Labour'!O19) -> 0 | P19: =SUM('[2]2.11 Labour'!P19,'[3]2.11 Labour'!P19) -> 0
A20: ED_LAB2111_00008 | D20: Employee (optional) | E20: =SUM('[2]2.11 Labour'!E20,'[3]2.11 Labour'!E20) -> 0 | F20: =SUM('[2]2.11 Labour'!F20,'[3]2.11 Labour'!F20) -> 0 | G20: =SUM('[2]2.11 Labour'!G20,'[3]2.11 Labour'!G20) -> 0 | H20: =SUM('[2]2.11 Labour'!H20,'[3]2.11 Labour'!H20) -> 0 | I20: ED_LAB2112_00008 | L20: Employee (optional) | M20: =SUM('[2]2.11 Labour'!M20,'[3]2.11 Labour'!M20) -> 0 | N20: =SUM('[2]2.11 Labour'!N20,'[3]2.11 Labour'!N20) -> 0 | O20: =SUM('[2]2.11 Labour'!O20,'[3]2.11 Labour'!O20) -> 0 | P20: =SUM('[2]2.11 Labour'!P20,'[3]2.11 Labour'!P20) -> 0
A21: ED_LAB2111_00009 | D21: Labour hire (optional) | E21: =SUM('[2]2.11 Labour'!E21,'[3]2.11 Labour'!E21) -> 0 | F21: =SUM('[2]2.11 Labour'!F21,'[3]2.11 Labour'!F21) -> 0 | G21: =SUM('[2]2.11 Labour'!G21,'[3]2.11 Labour'!G21) -> 0 | H21: =SUM('[2]2.11 Labour'!H21,'[3]2.11 Labour'!H21) -> 0 | I21: ED_LAB2112_00009 | L21: Labour hire (optional) | M21: =SUM('[2]2.11 Labour'!M21,'[3]2.11 Labour'!M21) -> 0 | N21: =SUM('[2]2.11 Labour'!N21,'[3]2.11 Labour'!N21) -> 0 | O21: =SUM('[2]2.11 Labour'!O21,'[3]2.11 Labour'!O21) -> 0 | P21: =SUM('[2]2.11 Labour'!P21,'[3]2.11 Labour'!P21) -> 0
A22: ED_LAB2111_00010 | D22: Professional | E22: =SUM('[2]2.11 Labour'!E22,'[3]2.11 Labour'!E22) -> 19.40855267 | F22: =SUM('[2]2.11 Labour'!F22,'[3]2.11 Labour'!F22) -> 2970.315737 | G22: =SUM('[2]2.11 Labour'!G22,'[3]2.11 Labour'!G22) -> 1646.4 | H22: =SUM('[2]2.11 Labour'!H22,'[3]2.11 Labour'!H22) -> 0 | I22: ED_LAB2112_00010 | L22: Professional | M22: =SUM('[2]2.11 Labour'!M22,'[3]2.11 Labour'!M22) -> 1646.4 | N22: =SUM('[2]2.11 Labour'!N22,'[3]2.11 Labour'!N22) -> 92.95528962 | O22: =SUM('[2]2.11 Labour'!O22,'[3]2.11 Labour'!O22) -> 0 | P22: =SUM('[2]2.11 Labour'!P22,'[3]2.11 Labour'!P22) -> 0
A23: ED_LAB2111_00011 | D23: Employee (optional) | E23: =SUM('[2]2.11 Labour'!E23,'[3]2.11 Labour'!E23) -> 0 | F23: =SUM('[2]2.11 Labour'!F23,'[3]2.11 Labour'!F23) -> 0 | G23: =SUM('[2]2.11 Labour'!G23,'[3]2.11 Labour'!G23) -> 0 | H23: =SUM('[2]2.11 Labour'!H23,'[3]2.11 Labour'!H23) -> 0 | I23: ED_LAB2112_00011 | L23: Employee (optional) | M23: =SUM('[2]2.11 Labour'!M23,'[3]2.11 Labour'!M23) -> 0 | N23: =SUM('[2]2.11 Labour'!N23,'[3]2.11 Labour'!N23) -> 0 | O23: =SUM('[2]2.11 Labour'!O23,'[3]2.11 Labour'!O23) -> 0 | P23: =SUM('[2]2.11 Labour'!P23,'[3]2.11 Labour'!P23) -> 0
A24: ED_LAB2111_00012 | D24: Labour hire (optional) | E24: =SUM('[2]2.11 Labour'!E24,'[3]2.11 Labour'!E24) -> 0 | F24: =SUM('[2]2.11 Labour'!F24,'[3]2.11 Labour'!F24) -> 0 | G24: =SUM('[2]2.11 Labour'!G24,'[3]2.11 Labour'!G24) -> 0 | H24: =SUM('[2]2.11 Labour'!H24,'[3]2.11 Labour'!H24) -> 0 | I24: ED_LAB2112_00012 | L24: Labour hire (optional) | M24: =SUM('[2]2.11 Labour'!M24,'[3]2.11 Labour'!M24) -> 0 | N24: =SUM('[2]2.11 Labour'!N24,'[3]2.11 Labour'!N24) -> 0 | O24: =SUM('[2]2.11 Labour'!O24,'[3]2.11 Labour'!O24) -> 0 | P24: =SUM('[2]2.11 Labour'!P24,'[3]2.11 Labour'!P24) -> 0
A25: ED_LAB2111_00013 | D25: Semi professional | E25: =SUM('[2]2.11 Labour'!E25,'[3]2.11 Labour'!E25) -> 39.46520863 | F25: =SUM('[2]2.11 Labour'!F25,'[3]2.11 Labour'!F25) -> 5049.651257 | G25: =SUM('[2]2.11 Labour'!G25,'[3]2.11 Labour'!G25) -> 1646.4 | H25: =SUM('[2]2.11 Labour'!H25,'[3]2.11 Labour'!H25) -> 0 | I25: ED_LAB2112_00013 | L25: Semi professional | M25: =SUM('[2]2.11 Labour'!M25,'[3]2.11 Labour'!M25) -> 1646.4 | N25: =SUM('[2]2.11 Labour'!N25,'[3]2.11 Labour'!N25) -> 77.71621214 | O25: =SUM('[2]2.11 Labour'!O25,'[3]2.11 Labour'!O25) -> 0 | P25: =SUM('[2]2.11 Labour'!P25,'[3]2.11 Labour'!P25) -> 0
A26: ED_LAB2111_00014 | D26: Employee (optional) | E26: =SUM('[2]2.11 Labour'!E26,'[3]2.11 Labour'!E26) -> 0 | F26: =SUM('[2]2.11 Labour'!F26,'[3]2.11 Labour'!F26) -> 0 | G26: =SUM('[2]2.11 Labour'!G26,'[3]2.11 Labour'!G26) -> 0 | H26: =SUM('[2]2.11 Labour'!H26,'[3]2.11 Labour'!H26) -> 0 | I26: ED_LAB2112_00014 | L26: Employee (optional) | M26: =SUM('[2]2.11 Labour'!M26,'[3]2.11 Labour'!M26) -> 0 | N26: =SUM('[2]2.11 Labour'!N26,'[3]2.11 Labour'!N26) -> 0 | O26: =SUM('[2]2.11 Labour'!O26,'[3]2.11 Labour'!O26) -> 0 | P26: =SUM('[2]2.11 Labour'!P26,'[3]2.11 Labour'!P26) -> 0
A27: ED_LAB2111_00015 | D27: Labour hire (optional) | E27: =SUM('[2]2.11 Labour'!E27,'[3]2.11 Labour'!E27) -> 0 | F27: =SUM('[2]2.11 Labour'!F27,'[3]2.11 Labour'!F27) -> 0 | G27: =SUM('[2]2.11 Labour'!G27,'[3]2.11 Labour'!G27) -> 0 | H27: =SUM('[2]2.11 Labour'!H27,'[3]2.11 Labour'!H27) -> 0 | I27: ED_LAB2112_00015 | L27: Labour hire (optional) | M27: =SUM('[2]2.11 Labour'!M27,'[3]2.11 Labour'!M27) -> 0 | N27: =SUM('[2]2.11 Labour'!N27,'[3]2.11 Labour'!N27) -> 0 | O27: =SUM('[2]2.11 Labour'!O27,'[3]2.11 Labour'!O27) -> 0 | P27: =SUM('[2]2.11 Labour'!P27,'[3]2.11 Labour'!P27) -> 0
A28: ED_LAB2111_00016 | D28: Support staff | E28: =SUM('[2]2.11 Labour'!E28,'[3]2.11 Labour'!E28) -> 4.642381189 | F28: =SUM('[2]2.11 Labour'!F28,'[3]2.11 Labour'!F28) -> 467.0372542 | G28: =SUM('[2]2.11 Labour'!G28,'[3]2.11 Labour'!G28) -> 1646.4 | H28: =SUM('[2]2.11 Labour'!H28,'[3]2.11 Labour'!H28) -> 0 | I28: ED_LAB2112_00016 | L28: Support staff | M28: =SUM('[2]2.11 Labour'!M28,'[3]2.11 Labour'!M28) -> 1646.4 | N28: =SUM('[2]2.11 Labour'!N28,'[3]2.11 Labour'!N28) -> 61.10480595 | O28: =SUM('[2]2.11 Labour'!O28,'[3]2.11 Labour'!O28) -> 0 | P28: =SUM('[2]2.11 Labour'!P28,'[3]2.11 Labour'!P28) -> 0
A29: ED_LAB2111_00017 | D29: Employee (optional) | E29: =SUM('[2]2.11 Labour'!E29,'[3]2.11 Labour'!E29) -> 0 | F29: =SUM('[2]2.11 Labour'!F29,'[3]2.11 Labour'!F29) -> 0 | G29: =SUM('[2]2.11 Labour'!G29,'[3]2.11 Labour'!G29) -> 0 | H29: =SUM('[2]2.11 Labour'!H29,'[3]2.11 Labour'!H29) -> 0 | I29: ED_LAB2112_00017 | L29: Employee (optional) | M29: =SUM('[2]2.11 Labour'!M29,'[3]2.11 Labour'!M29) -> 0 | N29: =SUM('[2]2.11 Labour'!N29,'[3]2.11 Labour'!N29) -> 0 | O29: =SUM('[2]2.11 Labour'!O29,'[3]2.11 Labour'!O29) -> 0 | P29: =SUM('[2]2.11 Labour'!P29,'[3]2.11 Labour'!P29) -> 0
A30: ED_LAB2111_00018 | D30: Labour hire (optional) | E30: =SUM('[2]2.11 Labour'!E30,'[3]2.11 Labour'!E30) -> 0 | F30: =SUM('[2]2.11 Labour'!F30,'[3]2.11 Labour'!F30) -> 0 | G30: =SUM('[2]2.11 Labour'!G30,'[3]2.11 Labour'!G30) -> 0 | H30: =SUM('[2]2.11 Labour'!H30,'[3]2.11 Labour'!H30) -> 0 | I30: ED_LAB2112_00018 | L30: Labour hire (optional) | M30: =SUM('[2]2.11 Labour'!M30,'[3]2.11 Labour'!M30) -> 0 | N30: =SUM('[2]2.11 Labour'!N30,'[3]2.11 Labour'!N30) -> 0 | O30: =SUM('[2]2.11 Labour'!O30,'[3]2.11 Labour'!O30) -> 0 | P30: =SUM('[2]2.11 Labour'!P30,'[3]2.11 Labour'!P30) -> 0
A31: ED_LAB2111_00019 | D31: Intern, junior staff, apprentice | E31: =SUM('[2]2.11 Labour'!E31,'[3]2.11 Labour'!E31) -> 0 | F31: =SUM('[2]2.11 Labour'!F31,'[3]2.11 Labour'!F31) -> 0 | G31: =SUM('[2]2.11 Labour'!G31,'[3]2.11 Labour'!G31) -> 0 | H31: =SUM('[2]2.11 Labour'!H31,'[3]2.11 Labour'!H31) -> 0 | I31: ED_LAB2112_00019 | L31: Intern, junior staff, apprentice | M31: =SUM('[2]2.11 Labour'!M31,'[3]2.11 Labour'!M31) -> 0 | N31: =SUM('[2]2.11 Labour'!N31,'[3]2.11 Labour'!N31) -> 0 | O31: =SUM('[2]2.11 Labour'!O31,'[3]2.11 Labour'!O31) -> 0 | P31: =SUM('[2]2.11 Labour'!P31,'[3]2.11 Labour'!P31) -> 0
A32: ED_LAB2111_00020 | D32: Employee (optional) | E32: =SUM('[2]2.11 Labour'!E32,'[3]2.11 Labour'!E32) -> 0 | F32: =SUM('[2]2.11 Labour'!F32,'[3]2.11 Labour'!F32) -> 0 | G32: =SUM('[2]2.11 Labour'!G32,'[3]2.11 Labour'!G32) -> 0 | H32: =SUM('[2]2.11 Labour'!H32,'[3]2.11 Labour'!H32) -> 0 | I32: ED_LAB2112_00020 | L32: Employee (optional) | M32: =SUM('[2]2.11 Labour'!M32,'[3]2.11 Labour'!M32) -> 0 | N32: =SUM('[2]2.11 Labour'!N32,'[3]2.11 Labour'!N32) -> 0 | O32: =SUM('[2]2.11 Labour'!O32,'[3]2.11 Labour'!O32) -> 0 | P32: =SUM('[2]2.11 Labour'!P32,'[3]2.11 Labour'!P32) -> 0
A33: ED_LAB2111_00021 | D33: Labour hire (optional) | E33: =SUM('[2]2.11 Labour'!E33,'[3]2.11 Labour'!E33) -> 0 | F33: =SUM('[2]2.11 Labour'!F33,'[3]2.11 Labour'!F33) -> 0 | G33: =SUM('[2]2.11 Labour'!G33,'[3]2.11 Labour'!G33) -> 0 | H33: =SUM('[2]2.11 Labour'!H33,'[3]2.11 Labour'!H33) -> 0 | I33: ED_LAB2112_00021 | L33: Labour hire (optional) | M33: =SUM('[2]2.11 Labour'!M33,'[3]2.11 Labour'!M33) -> 0 | N33: =SUM('[2]2.11 Labour'!N33,'[3]2.11 Labour'!N33) -> 0 | O33: =SUM('[2]2.11 Labour'!O33,'[3]2.11 Labour'!O33) -> 0 | P33: =SUM('[2]2.11 Labour'!P33,'[3]2.11 Labour'!P33) -> 0
A34: ED_LAB2111_00022 | B34: NETWORK OVERHEADS INTERNAL LABOUR COSTS | C34: LABOUR CLASSIFICATION LEVEL | D34: Executive manager | E34: =SUM('[2]2.11 Labour'!E34,'[3]2.11 Labour'!E34) -> 1.833333333 | F34: =SUM('[2]2.11 Labour'!F34,'[3]2.11 Labour'!F34) -> 1392648.957 | G34: =SUM('[2]2.11 Labour'!G34,'[3]2.11 Labour'!G34) -> 1435 | H34: =SUM('[2]2.11 Labour'!H34,'[3]2.11 Labour'!H34) -> 0 | I34: ED_LAB2112_00022 | J34: NETWORK OVERHEADS INTERNAL LABOUR COSTS | K34: LABOUR CLASSIFICATION LEVEL | L34: Executive manager | M34: =SUM('[2]2.11 Labour'!M34,'[3]2.11 Labour'!M34) -> 1435 | N34: =SUM('[2]2.11 Labour'!N34,'[3]2.11 Labour'!N34) -> 529.356588 | O34: =SUM('[2]2.11 Labour'!O34,'[3]2.11 Labour'!O34) -> 0 | P34: =SUM('[2]2.11 Labour'!P34,'[3]2.11 Labour'!P34) -> 0
A35: ED_LAB2111_00023 | D35: Employee (optional) | E35: =SUM('[2]2.11 Labour'!E35,'[3]2.11 Labour'!E35) -> 0 | F35: =SUM('[2]2.11 Labour'!F35,'[3]2.11 Labour'!F35) -> 0 | G35: =SUM('[2]2.11 Labour'!G35,'[3]2.11 Labour'!G35) -> 0 | H35: =SUM('[2]2.11 Labour'!H35,'[3]2.11 Labour'!H35) -> 0 | I35: ED_LAB2112_00023 | L35: Employee (optional) | M35: =SUM('[2]2.11 Labour'!M35,'[3]2.11 Labour'!M35) -> 0 | N35: =SUM('[2]2.11 Labour'!N35,'[3]2.11 Labour'!N35) -> 0 | O35: =SUM('[2]2.11 Labour'!O35,'[3]2.11 Labour'!O35) -> 0 | P35: =SUM('[2]2.11 Labour'!P35,'[3]2.11 Labour'!P35) -> 0
A36: ED_LAB2111_00024 | D36: Labour hire (optional) | E36: =SUM('[2]2.11 Labour'!E36,'[3]2.11 Labour'!E36) -> 0 | F36: =SUM('[2]2.11 Labour'!F36,'[3]2.11 Labour'!F36) -> 0 | G36: =SUM('[2]2.11 Labour'!G36,'[3]2.11 Labour'!G36) -> 0 | H36: =SUM('[2]2.11 Labour'!H36,'[3]2.11 Labour'!H36) -> 0 | I36: ED_LAB2112_00024 | L36: Labour hire (optional) | M36: =SUM('[2]2.11 Labour'!M36,'[3]2.11 Labour'!M36) -> 0 | N36: =SUM('[2]2.11 Labour'!N36,'[3]2.11 Labour'!N36) -> 0 | O36: =SUM('[2]2.11 Labour'!O36,'[3]2.11 Labour'!O36) -> 0 | P36: =SUM('[2]2.11 Labour'!P36,'[3]2.11 Labour'!P36) -> 0
A37: ED_LAB2111_00025 | D37: Senior manager | E37: =SUM('[2]2.11 Labour'!E37,'[3]2.11 Labour'!E37) -> 8.319444444 | F37: =SUM('[2]2.11 Labour'!F37,'[3]2.11 Labour'!F37) -> 2745159.118 | G37: =SUM('[2]2.11 Labour'!G37,'[3]2.11 Labour'!G37) -> 1564.629215 | H37: =SUM('[2]2.11 Labour'!H37,'[3]2.11 Labour'!H37) -> 0 | I37: ED_LAB2112_00025 | L37: Senior manager | M37: =SUM('[2]2.11 Labour'!M37,'[3]2.11 Labour'!M37) -> 1564.629215 | N37: =SUM('[2]2.11 Labour'!N37,'[3]2.11 Labour'!N37) -> 210.8928041 | O37: =SUM('[2]2.11 Labour'!O37,'[3]2.11 Labour'!O37) -> 0 | P37: =SUM('[2]2.11 Labour'!P37,'[3]2.11 Labour'!P37) -> 0
A38: ED_LAB2111_00026 | D38: Employee (optional) | E38: =SUM('[2]2.11 Labour'!E38,'[3]2.11 Labour'!E38) -> 0 | F38: =SUM('[2]2.11 Labour'!F38,'[3]2.11 Labour'!F38) -> 0 | G38: =SUM('[2]2.11 Labour'!G38,'[3]2.11 Labour'!G38) -> 0 | H38: =SUM('[2]2.11 Labour'!H38,'[3]2.11 Labour'!H38) -> 0 | I38: ED_LAB2112_00026 | L38: Employee (optional) | M38: =SUM('[2]2.11 Labour'!M38,'[3]2.11 Labour'!M38) -> 0 | N38: =SUM('[2]2.11 Labour'!N38,'[3]2.11 Labour'!N38) -> 0 | O38: =SUM('[2]2.11 Labour'!O38,'[3]2.11 Labour'!O38) -> 0 | P38: =SUM('[2]2.11 Labour'!P38,'[3]2.11 Labour'!P38) -> 0
A39: ED_LAB2111_00027 | D39: Labour hire (optional) | E39: =SUM('[2]2.11 Labour'!E39,'[3]2.11 Labour'!E39) -> 0 | F39: =SUM('[2]2.11 Labour'!F39,'[3]2.11 Labour'!F39) -> 0 | G39: =SUM('[2]2.11 Labour'!G39,'[3]2.11 Labour'!G39) -> 0 | H39: =SUM('[2]2.11 Labour'!H39,'[3]2.11 Labour'!H39) -> 0 | I39: ED_LAB2112_00027 | L39: Labour hire (optional) | M39: =SUM('[2]2.11 Labour'!M39,'[3]2.11 Labour'!M39) -> 0 | N39: =SUM('[2]2.11 Labour'!N39,'[3]2.11 Labour'!N39) -> 0 | O39: =SUM('[2]2.11 Labour'!O39,'[3]2.11 Labour'!O39) -> 0 | P39: =SUM('[2]2.11 Labour'!P39,'[3]2.11 Labour'!P39) -> 0
A40: ED_LAB2111_00028 | D40: Manager | E40: =SUM('[2]2.11 Labour'!E40,'[3]2.11 Labour'!E40) -> 31.90972373 | F40: =SUM('[2]2.11 Labour'!F40,'[3]2.11 Labour'!F40) -> 8137550.835 | G40: =SUM('[2]2.11 Labour'!G40,'[3]2.11 Labour'!G40) -> 1502.141681 | H40: =SUM('[2]2.11 Labour'!H40,'[3]2.11 Labour'!H40) -> 0 | I40: ED_LAB2112_00028 | L40: Manager | M40: =SUM('[2]2.11 Labour'!M40,'[3]2.11 Labour'!M40) -> 1502.141681 | N40: =SUM('[2]2.11 Labour'!N40,'[3]2.11 Labour'!N40) -> 169.7695406 | O40: =SUM('[2]2.11 Labour'!O40,'[3]2.11 Labour'!O40) -> 4.435325143 | P40: =SUM('[2]2.11 Labour'!P40,'[3]2.11 Labour'!P40) -> 81.77792694
A41: ED_LAB2111_00029 | D41: Employee (optional) | E41: =SUM('[2]2.11 Labour'!E41,'[3]2.11 Labour'!E41) -> 0 | F41: =SUM('[2]2.11 Labour'!F41,'[3]2.11 Labour'!F41) -> 0 | G41: =SUM('[2]2.11 Labour'!G41,'[3]2.11 Labour'!G41) -> 0 | H41: =SUM('[2]2.11 Labour'!H41,'[3]2.11 Labour'!H41) -> 0 | I41: ED_LAB2112_00029 | L41: Employee (optional) | M41: =SUM('[2]2.11 Labour'!M41,'[3]2.11 Labour'!M41) -> 0 | N41: =SUM('[2]2.11 Labour'!N41,'[3]2.11 Labour'!N41) -> 0 | O41: =SUM('[2]2.11 Labour'!O41,'[3]2.11 Labour'!O41) -> 0 | P41: =SUM('[2]2.11 Labour'!P41,'[3]2.11 Labour'!P41) -> 0
A42: ED_LAB2111_00030 | D42: Labour hire (optional) | E42: =SUM('[2]2.11 Labour'!E42,'[3]2.11 Labour'!E42) -> 0 | F42: =SUM('[2]2.11 Labour'!F42,'[3]2.11 Labour'!F42) -> 0 | G42: =SUM('[2]2.11 Labour'!G42,'[3]2.11 Labour'!G42) -> 0 | H42: =SUM('[2]2.11 Labour'!H42,'[3]2.11 Labour'!H42) -> 0 | I42: ED_LAB2112_00030 | L42: Labour hire (optional) | M42: =SUM('[2]2.11 Labour'!M42,'[3]2.11 Labour'!M42) -> 0 | N42: =SUM('[2]2.11 Labour'!N42,'[3]2.11 Labour'!N42) -> 0 | O42: =SUM('[2]2.11 Labour'!O42,'[3]2.11 Labour'!O42) -> 0 | P42: =SUM('[2]2.11 Labour'!P42,'[3]2.11 Labour'!P42) -> 0
A43: ED_LAB2111_00031 | D43: Professional | E43: =SUM('[2]2.11 Labour'!E43,'[3]2.11 Labour'!E43) -> 31.66944747 | F43: =SUM('[2]2.11 Labour'!F43,'[3]2.11 Labour'!F43) -> 6721148.415 | G43: =SUM('[2]2.11 Labour'!G43,'[3]2.11 Labour'!G43) -> 1637.00044 | H43: =SUM('[2]2.11 Labour'!H43,'[3]2.11 Labour'!H43) -> 0.2320848827 | I43: ED_LAB2112_00031 | L43: Professional | M43: =SUM('[2]2.11 Labour'!M43,'[3]2.11 Labour'!M43) -> 1637.00044 | N43: =SUM('[2]2.11 Labour'!N43,'[3]2.11 Labour'!N43) -> 129.6445316 | O43: =SUM('[2]2.11 Labour'!O43,'[3]2.11 Labour'!O43) -> 45.74408826 | P43: =SUM('[2]2.11 Labour'!P43,'[3]2.11 Labour'!P43) -> 100.3496469
A44: ED_LAB2111_00032 | D44: Employee (optional) | E44: =SUM('[2]2.11 Labour'!E44,'[3]2.11 Labour'!E44) -> 0 | F44: =SUM('[2]2.11 Labour'!F44,'[3]2.11 Labour'!F44) -> 0 | G44: =SUM('[2]2.11 Labour'!G44,'[3]2.11 Labour'!G44) -> 0 | H44: =SUM('[2]2.11 Labour'!H44,'[3]2.11 Labour'!H44) -> 0 | I44: ED_LAB2112_00032 | L44: Employee (optional) | M44: =SUM('[2]2.11 Labour'!M44,'[3]2.11 Labour'!M44) -> 0 | N44: =SUM('[2]2.11 Labour'!N44,'[3]2.11 Labour'!N44) -> 0 | O44: =SUM('[2]2.11 Labour'!O44,'[3]2.11 Labour'!O44) -> 0 | P44: =SUM('[2]2.11 Labour'!P44,'[3]2.11 Labour'!P44) -> 0
A45: ED_LAB2111_00033 | D45: Labour hire (optional) | E45: =SUM('[2]2.11 Labour'!E45,'[3]2.11 Labour'!E45) -> 0 | F45: =SUM('[2]2.11 Labour'!F45,'[3]2.11 Labour'!F45) -> 0 | G45: =SUM('[2]2.11 Labour'!G45,'[3]2.11 Labour'!G45) -> 0 | H45: =SUM('[2]2.11 Labour'!H45,'[3]2.11 Labour'!H45) -> 0 | I45: ED_LAB2112_00033 | L45: Labour hire (optional) | M45: =SUM('[2]2.11 Labour'!M45,'[3]2.11 Labour'!M45) -> 0 | N45: =SUM('[2]2.11 Labour'!N45,'[3]2.11 Labour'!N45) -> 0 | O45: =SUM('[2]2.11 Labour'!O45,'[3]2.11 Labour'!O45) -> 0 | P45: =SUM('[2]2.11 Labour'!P45,'[3]2.11 Labour'!P45) -> 0
A46: ED_LAB2111_00034 | D46: Semi professional | E46: =SUM('[2]2.11 Labour'!E46,'[3]2.11 Labour'!E46) -> 25.42722222 | F46: =SUM('[2]2.11 Labour'!F46,'[3]2.11 Labour'!F46) -> 4701743.367 | G46: =SUM('[2]2.11 Labour'!G46,'[3]2.11 Labour'!G46) -> 1888.468982 | H46: =SUM('[2]2.11 Labour'!H46,'[3]2.11 Labour'!H46) -> 0 | I46: ED_LAB2112_00034 | L46: Semi professional | M46: =SUM('[2]2.11 Labour'!M46,'[3]2.11 Labour'!M46) -> 1888.468982 | N46: =SUM('[2]2.11 Labour'!N46,'[3]2.11 Labour'!N46) -> 97.9152069 | O46: =SUM('[2]2.11 Labour'!O46,'[3]2.11 Labour'!O46) -> 37.25338111 | P46: =SUM('[2]2.11 Labour'!P46,'[3]2.11 Labour'!P46) -> 105.6582951
A47: ED_LAB2111_00035 | D47: Employee (optional) | E47: =SUM('[2]2.11 Labour'!E47,'[3]2.11 Labour'!E47) -> 0 | F47: =SUM('[2]2.11 Labour'!F47,'[3]2.11 Labour'!F47) -> 0 | G47: =SUM('[2]2.11 Labour'!G47,'[3]2.11 Labour'!G47) -> 0 | H47: =SUM('[2]2.11 Labour'!H47,'[3]2.11 Labour'!H47) -> 0 | I47: ED_LAB2112_00035 | L47: Employee (optional) | M47: =SUM('[2]2.11 Labour'!M47,'[3]2.11 Labour'!M47) -> 0 | N47: =SUM('[2]2.11 Labour'!N47,'[3]2.11 Labour'!N47) -> 0 | O47: =SUM('[2]2.11 Labour'!O47,'[3]2.11 Labour'!O47) -> 0 | P47: =SUM('[2]2.11 Labour'!P47,'[3]2.11 Labour'!P47) -> 0
A48: ED_LAB2111_00036 | D48: Labour hire (optional) | E48: =SUM('[2]2.11 Labour'!E48,'[3]2.11 Labour'!E48) -> 0 | F48: =SUM('[2]2.11 Labour'!F48,'[3]2.11 Labour'!F48) -> 0 | G48: =SUM('[2]2.11 Labour'!G48,'[3]2.11 Labour'!G48) -> 0 | H48: =SUM('[2]2.11 Labour'!H48,'[3]2.11 Labour'!H48) -> 0 | I48: ED_LAB2112_00036 | L48: Labour hire (optional) | M48: =SUM('[2]2.11 Labour'!M48,'[3]2.11 Labour'!M48) -> 0 | N48: =SUM('[2]2.11 Labour'!N48,'[3]2.11 Labour'!N48) -> 0 | O48: =SUM('[2]2.11 Labour'!O48,'[3]2.11 Labour'!O48) -> 0 | P48: =SUM('[2]2.11 Labour'!P48,'[3]2.11 Labour'!P48) -> 0
A49: ED_LAB2111_00037 | D49: Support staff | E49: =SUM('[2]2.11 Labour'!E49,'[3]2.11 Labour'!E49) -> 75.81736651 | F49: =SUM('[2]2.11 Labour'!F49,'[3]2.11 Labour'!F49) -> 10765117.82 | G49: =SUM('[2]2.11 Labour'!G49,'[3]2.11 Labour'!G49) -> 1623.6233 | H49: =SUM('[2]2.11 Labour'!H49,'[3]2.11 Labour'!H49) -> 0.09232713192 | I49: ED_LAB2112_00037 | L49: Support staff | M49: =SUM('[2]2.11 Labour'!M49,'[3]2.11 Labour'!M49) -> 1623.6233 | N49: =SUM('[2]2.11 Labour'!N49,'[3]2.11 Labour'!N49) -> 87.45100744 | O49: =SUM('[2]2.11 Labour'!O49,'[3]2.11 Labour'!O49) -> 58.14419839 | P49: =SUM('[2]2.11 Labour'!P49,'[3]2.11 Labour'!P49) -> 78.88645159
A50: ED_LAB2111_00038 | D50: Employee (optional) | E50: =SUM('[2]2.11 Labour'!E50,'[3]2.11 Labour'!E50) -> 0 | F50: =SUM('[2]2.11 Labour'!F50,'[3]2.11 Labour'!F50) -> 0 | G50: =SUM('[2]2.11 Labour'!G50,'[3]2.11 Labour'!G50) -> 0 | H50: =SUM('[2]2.11 Labour'!H50,'[3]2.11 Labour'!H50) -> 0 | I50: ED_LAB2112_00038 | L50: Employee (optional) | M50: =SUM('[2]2.11 Labour'!M50,'[3]2.11 Labour'!M50) -> 0 | N50: =SUM('[2]2.11 Labour'!N50,'[3]2.11 Labour'!N50) -> 0 | O50: =SUM('[2]2.11 Labour'!O50,'[3]2.11 Labour'!O50) -> 0 | P50: =SUM('[2]2.11 Labour'!P50,'[3]2.11 Labour'!P50) -> 0
A51: ED_LAB2111_00039 | D51: Labour hire (optional) | E51: =SUM('[2]2.11 Labour'!E51,'[3]2.11 Labour'!E51) -> 0 | F51: =SUM('[2]2.11 Labour'!F51,'[3]2.11 Labour'!F51) -> 0 | G51: =SUM('[2]2.11 Labour'!G51,'[3]2.11 Labour'!G51) -> 0 | H51: =SUM('[2]2.11 Labour'!H51,'[3]2.11 Labour'!H51) -> 0 | I51: ED_LAB2112_00039 | L51: Labour hire (optional) | M51: =SUM('[2]2.11 Labour'!M51,'[3]2.11 Labour'!M51) -> 0 | N51: =SUM('[2]2.11 Labour'!N51,'[3]2.11 Labour'!N51) -> 0 | O51: =SUM('[2]2.11 Labour'!O51,'[3]2.11 Labour'!O51) -> 0 | P51: =SUM('[2]2.11 Labour'!P51,'[3]2.11 Labour'!P51) -> 0
A52: ED_LAB2111_00040 | D52: Intern, junior staff, apprentice | E52: =SUM('[2]2.11 Labour'!E52,'[3]2.11 Labour'!E52) -> 5.897222222 | F52: =SUM('[2]2.11 Labour'!F52,'[3]2.11 Labour'!F52) -> 694105.7219 | G52: =SUM('[2]2.11 Labour'!G52,'[3]2.11 Labour'!G52) -> 1553.457416 | H52: =SUM('[2]2.11 Labour'!H52,'[3]2.11 Labour'!H52) -> 0 | I52: ED_LAB2112_00040 | L52: Intern, junior staff, apprentice | M52: =SUM('[2]2.11 Labour'!M52,'[3]2.11 Labour'!M52) -> 1553.457416 | N52: =SUM('[2]2.11 Labour'!N52,'[3]2.11 Labour'!N52) -> 75.76677092 | O52: =SUM('[2]2.11 Labour'!O52,'[3]2.11 Labour'!O52) -> 78.30975035 | P52: =SUM('[2]2.11 Labour'!P52,'[3]2.11 Labour'!P52) -> 81.0683831
A53: ED_LAB2111_00041 | D53: Employee (optional) | E53: =SUM('[2]2.11 Labour'!E53,'[3]2.11 Labour'!E53) -> 0 | F53: =SUM('[2]2.11 Labour'!F53,'[3]2.11 Labour'!F53) -> 0 | G53: =SUM('[2]2.11 Labour'!G53,'[3]2.11 Labour'!G53) -> 0 | H53: =SUM('[2]2.11 Labour'!H53,'[3]2.11 Labour'!H53) -> 0 | I53: ED_LAB2112_00041 | L53: Employee (optional) | M53: =SUM('[2]2.11 Labour'!M53,'[3]2.11 Labour'!M53) -> 0 | N53: =SUM('[2]2.11 Labour'!N53,'[3]2.11 Labour'!N53) -> 0 | O53: =SUM('[2]2.11 Labour'!O53,'[3]2.11 Labour'!O53) -> 0 | P53: =SUM('[2]2.11 Labour'!P53,'[3]2.11 Labour'!P53) -> 0
A54: ED_LAB2111_00042 | D54: Labour hire (optional) | E54: =SUM('[2]2.11 Labour'!E54,'[3]2.11 Labour'!E54) -> 0 | F54: =SUM('[2]2.11 Labour'!F54,'[3]2.11 Labour'!F54) -> 0 | G54: =SUM('[2]2.11 Labour'!G54,'[3]2.11 Labour'!G54) -> 0 | H54: =SUM('[2]2.11 Labour'!H54,'[3]2.11 Labour'!H54) -> 0 | I54: ED_LAB2112_00042 | L54: Labour hire (optional) | M54: =SUM('[2]2.11 Labour'!M54,'[3]2.11 Labour'!M54) -> 0 | N54: =SUM('[2]2.11 Labour'!N54,'[3]2.11 Labour'!N54) -> 0 | O54: =SUM('[2]2.11 Labour'!O54,'[3]2.11 Labour'!O54) -> 0 | P54: =SUM('[2]2.11 Labour'!P54,'[3]2.11 Labour'!P54) -> 0
A55: ED_LAB2111_00043 | B55: TOTAL DIRECT NETWORK LABOUR INTERNAL LABOUR COSTS | C55: LABOUR CLASSIFICATION LEVEL | D55: Skilled electrical worker | E55: =SUM('[2]2.11 Labour'!E55,'[3]2.11 Labour'!E55) -> 165.825968 | F55: =SUM('[2]2.11 Labour'!F55,'[3]2.11 Labour'!F55) -> 29984325.96 | G55: =SUM('[2]2.11 Labour'!G55,'[3]2.11 Labour'!G55) -> 1840.855504 | H55: =SUM('[2]2.11 Labour'!H55,'[3]2.11 Labour'!H55) -> 13.22223549 | I55: ED_LAB2112_00043 | J55: TOTAL DIRECT NETWORK LABOUR INTERNAL LABOUR COSTS | K55: LABOUR CLASSIFICATION LEVEL | L55: Skilled electrical worker | M55: =SUM('[2]2.11 Labour'!M55,'[3]2.11 Labour'!M55) -> 1840.855504 | N55: =SUM('[2]2.11 Labour'!N55,'[3]2.11 Labour'!N55) -> 98.22500259 | O55: =SUM('[2]2.11 Labour'!O55,'[3]2.11 Labour'!O55) -> 231.26004 | P55: =SUM('[2]2.11 Labour'!P55,'[3]2.11 Labour'!P55) -> 93.93386698
A56: ED_LAB2111_00044 | D56: Employee (optional) | E56: =SUM('[2]2.11 Labour'!E56,'[3]2.11 Labour'!E56) -> 0 | F56: =SUM('[2]2.11 Labour'!F56,'[3]2.11 Labour'!F56) -> 0 | G56: =SUM('[2]2.11 Labour'!G56,'[3]2.11 Labour'!G56) -> 0 | H56: =SUM('[2]2.11 Labour'!H56,'[3]2.11 Labour'!H56) -> 0 | I56: ED_LAB2112_00044 | L56: Employee (optional) | M56: =SUM('[2]2.11 Labour'!M56,'[3]2.11 Labour'!M56) -> 0 | N56: =SUM('[2]2.11 Labour'!N56,'[3]2.11 Labour'!N56) -> 0 | O56: =SUM('[2]2.11 Labour'!O56,'[3]2.11 Labour'!O56) -> 0 | P56: =SUM('[2]2.11 Labour'!P56,'[3]2.11 Labour'!P56) -> 0
A57: ED_LAB2111_00045 | D57: Labour hire (optional) | E57: =SUM('[2]2.11 Labour'!E57,'[3]2.11 Labour'!E57) -> 0 | F57: =SUM('[2]2.11 Labour'!F57,'[3]2.11 Labour'!F57) -> 0 | G57: =SUM('[2]2.11 Labour'!G57,'[3]2.11 Labour'!G57) -> 0 | H57: =SUM('[2]2.11 Labour'!H57,'[3]2.11 Labour'!H57) -> 0 | I57: ED_LAB2112_00045 | L57: Labour hire (optional) | M57: =SUM('[2]2.11 Labour'!M57,'[3]2.11 Labour'!M57) -> 0 | N57: =SUM('[2]2.11 Labour'!N57,'[3]2.11 Labour'!N57) -> 0 | O57: =SUM('[2]2.11 Labour'!O57,'[3]2.11 Labour'!O57) -> 0 | P57: =SUM('[2]2.11 Labour'!P57,'[3]2.11 Labour'!P57) -> 0
A58: ED_LAB2111_00046 | D58: Skilled non electical worker | E58: =SUM('[2]2.11 Labour'!E58,'[3]2.11 Labour'!E58) -> 0 | F58: =SUM('[2]2.11 Labour'!F58,'[3]2.11 Labour'!F58) -> 0 | G58: =SUM('[2]2.11 Labour'!G58,'[3]2.11 Labour'!G58) -> 0 | H58: =SUM('[2]2.11 Labour'!H58,'[3]2.11 Labour'!H58) -> 0 | I58: ED_LAB2112_00046 | L58: Skilled non electical worker | M58: =SUM('[2]2.11 Labour'!M58,'[3]2.11 Labour'!M58) -> 0 | N58: =SUM('[2]2.11 Labour'!N58,'[3]2.11 Labour'!N58) -> 0 | O58: =SUM('[2]2.11 Labour'!O58,'[3]2.11 Labour'!O58) -> 0 | P58: =SUM('[2]2.11 Labour'!P58,'[3]2.11 Labour'!P58) -> 0
A59: ED_LAB2111_00047 | D59: Employee (optional) | E59: =SUM('[2]2.11 Labour'!E59,'[3]2.11 Labour'!E59) -> 0 | F59: =SUM('[2]2.11 Labour'!F59,'[3]2.11 Labour'!F59) -> 0 | G59: =SUM('[2]2.11 Labour'!G59,'[3]2.11 Labour'!G59) -> 0 | H59: =SUM('[2]2.11 Labour'!H59,'[3]2.11 Labour'!H59) -> 0 | I59: ED_LAB2112_00047 | L59: Employee (optional) | M59: =SUM('[2]2.11 Labour'!M59,'[3]2.11 Labour'!M59) -> 0 | N59: =SUM('[2]2.11 Labour'!N59,'[3]2.11 Labour'!N59) -> 0 | O59: =SUM('[2]2.11 Labour'!O59,'[3]2.11 Labour'!O59) -> 0 | P59: =SUM('[2]2.11 Labour'!P59,'[3]2.11 Labour'!P59) -> 0
A60: ED_LAB2111_00048 | D60: Labour hire (optional) | E60: =SUM('[2]2.11 Labour'!E60,'[3]2.11 Labour'!E60) -> 0 | F60: =SUM('[2]2.11 Labour'!F60,'[3]2.11 Labour'!F60) -> 0 | G60: =SUM('[2]2.11 Labour'!G60,'[3]2.11 Labour'!G60) -> 0 | H60: =SUM('[2]2.11 Labour'!H60,'[3]2.11 Labour'!H60) -> 0 | I60: ED_LAB2112_00048 | L60: Labour hire (optional) | M60: =SUM('[2]2.11 Labour'!M60,'[3]2.11 Labour'!M60) -> 0 | N60: =SUM('[2]2.11 Labour'!N60,'[3]2.11 Labour'!N60) -> 0 | O60: =SUM('[2]2.11 Labour'!O60,'[3]2.11 Labour'!O60) -> 0 | P60: =SUM('[2]2.11 Labour'!P60,'[3]2.11 Labour'!P60) -> 0
A61: ED_LAB2111_00049 | D61: Apprentice | E61: =SUM('[2]2.11 Labour'!E61,'[3]2.11 Labour'!E61) -> 18.55486004 | F61: =SUM('[2]2.11 Labour'!F61,'[3]2.11 Labour'!F61) -> 2148543.183 | G61: =SUM('[2]2.11 Labour'!G61,'[3]2.11 Labour'!G61) -> 1320.329729 | H61: =SUM('[2]2.11 Labour'!H61,'[3]2.11 Labour'!H61) -> 5.739736099 | I61: ED_LAB2112_00049 | L61: Apprentice | M61: =SUM('[2]2.11 Labour'!M61,'[3]2.11 Labour'!M61) -> 1320.329729 | N61: =SUM('[2]2.11 Labour'!N61,'[3]2.11 Labour'!N61) -> 87.70089024 | O61: =SUM('[2]2.11 Labour'!O61,'[3]2.11 Labour'!O61) -> 140.0910594 | P61: =SUM('[2]2.11 Labour'!P61,'[3]2.11 Labour'!P61) -> 65.22575086
A62: ED_LAB2111_00050 | D62: Employee (optional) | E62: =SUM('[2]2.11 Labour'!E62,'[3]2.11 Labour'!E62) -> 0 | F62: =SUM('[2]2.11 Labour'!F62,'[3]2.11 Labour'!F62) -> 0 | G62: =SUM('[2]2.11 Labour'!G62,'[3]2.11 Labour'!G62) -> 0 | H62: =SUM('[2]2.11 Labour'!H62,'[3]2.11 Labour'!H62) -> 0 | I62: ED_LAB2112_00050 | L62: Employee (optional) | M62: =SUM('[2]2.11 Labour'!M62,'[3]2.11 Labour'!M62) -> 0 | N62: =SUM('[2]2.11 Labour'!N62,'[3]2.11 Labour'!N62) -> 0 | O62: =SUM('[2]2.11 Labour'!O62,'[3]2.11 Labour'!O62) -> 0 | P62: =SUM('[2]2.11 Labour'!P62,'[3]2.11 Labour'!P62) -> 0
A63: ED_LAB2111_00051 | D63: Labour hire (optional) | E63: =SUM('[2]2.11 Labour'!E63,'[3]2.11 Labour'!E63) -> 0 | F63: =SUM('[2]2.11 Labour'!F63,'[3]2.11 Labour'!F63) -> 0 | G63: =SUM('[2]2.11 Labour'!G63,'[3]2.11 Labour'!G63) -> 0 | H63: =SUM('[2]2.11 Labour'!H63,'[3]2.11 Labour'!H63) -> 0 | I63: ED_LAB2112_00051 | L63: Labour hire (optional) | M63: =SUM('[2]2.11 Labour'!M63,'[3]2.11 Labour'!M63) -> 0 | N63: =SUM('[2]2.11 Labour'!N63,'[3]2.11 Labour'!N63) -> 0 | O63: =SUM('[2]2.11 Labour'!O63,'[3]2.11 Labour'!O63) -> 0 | P63: =SUM('[2]2.11 Labour'!P63,'[3]2.11 Labour'!P63) -> 0
A64: ED_LAB2111_00052 | D64: Unskilled worker | E64: =SUM('[2]2.11 Labour'!E64,'[3]2.11 Labour'!E64) -> 54.87916667 | F64: =SUM('[2]2.11 Labour'!F64,'[3]2.11 Labour'!F64) -> 6830304.226 | G64: =SUM('[2]2.11 Labour'!G64,'[3]2.11 Labour'!G64) -> 1409.744451 | H64: =SUM('[2]2.11 Labour'!H64,'[3]2.11 Labour'!H64) -> 22.65158302 | I64: ED_LAB2112_00052 | L64: Unskilled worker | M64: =SUM('[2]2.11 Labour'!M64,'[3]2.11 Labour'!M64) -> 1409.744451 | N64: =SUM('[2]2.11 Labour'!N64,'[3]2.11 Labour'!N64) -> 88.28606212 | O64: =SUM('[2]2.11 Labour'!O64,'[3]2.11 Labour'!O64) -> 153.6340749 | P64: =SUM('[2]2.11 Labour'!P64,'[3]2.11 Labour'!P64) -> 72.23941119
A65: ED_LAB2111_00053 | D65: Employee (optional) | E65: =SUM('[2]2.11 Labour'!E65,'[3]2.11 Labour'!E65) -> 0 | F65: =SUM('[2]2.11 Labour'!F65,'[3]2.11 Labour'!F65) -> 0 | G65: =SUM('[2]2.11 Labour'!G65,'[3]2.11 Labour'!G65) -> 0 | H65: =SUM('[2]2.11 Labour'!H65,'[3]2.11 Labour'!H65) -> 0 | I65: ED_LAB2112_00053 | L65: Employee (optional) | M65: =SUM('[2]2.11 Labour'!M65,'[3]2.11 Labour'!M65) -> 0 | N65: =SUM('[2]2.11 Labour'!N65,'[3]2.11 Labour'!N65) -> 0 | O65: =SUM('[2]2.11 Labour'!O65,'[3]2.11 Labour'!O65) -> 0 | P65: =SUM('[2]2.11 Labour'!P65,'[3]2.11 Labour'!P65) -> 0
A66: ED_LAB2111_00054 | D66: Labour hire (optional) | E66: =SUM('[2]2.11 Labour'!E66,'[3]2.11 Labour'!E66) -> 0 | F66: =SUM('[2]2.11 Labour'!F66,'[3]2.11 Labour'!F66) -> 0 | G66: =SUM('[2]2.11 Labour'!G66,'[3]2.11 Labour'!G66) -> 0 | H66: =SUM('[2]2.11 Labour'!H66,'[3]2.11 Labour'!H66) -> 0 | I66: ED_LAB2112_00054 | L66: Labour hire (optional) | M66: =SUM('[2]2.11 Labour'!M66,'[3]2.11 Labour'!M66) -> 0 | N66: =SUM('[2]2.11 Labour'!N66,'[3]2.11 Labour'!N66) -> 0 | O66: =SUM('[2]2.11 Labour'!O66,'[3]2.11 Labour'!O66) -> 0 | P66: =SUM('[2]2.11 Labour'!P66,'[3]2.11 Labour'!P66) -> 0

Sheet 2.12 Input tables
B1: =(LOOKUP(dms_Model,dms_Model_List,dms_Worksheet_List)) -> REGULATORY REPORTING STATEMENT
B2: Australian Distribution Co.
B3: =CONCATENATE("Category Analysis RIN response ",CRY) -> Category Analysis RIN response 2014-15
B4: 2.12 INPUT TABLES
E5: 1
M7: DIRECT MATERIAL EXPENDITURE | N7: DIRECT LABOUR EXPENDITURE | O7: CONTRACT EXPENDITURE | P7: OTHER EXPENDITURE | Q7: RELATED PARTY CONTRACT EXPENDITURE | R7: RELATED PARTY CONTRACT MARGIN EXPENDITURE
E8: DNSP NAME | F8: SERVICE | G8: SERVICE SUBCATEGORY | H8: DATA CATEGORY | I8: DATA SUBCATEGORY | J8: MEASUREMENT | K8: DENOMINATION | M8: =CRY -> 2014-15 | N8: 2014-15 | O8: 2014-15 | P8: 2014-15 | Q8: 2014-15 | R8: 2014-15
A9: ED_INP212_00001 | B9: VEGETATION MANAGEMENT | C9: ='2.7 Vegetation management'!I11 -> ZONE 1 | E9: DNSP NAME | F9: INPUT COSTS | G9: VEGETATION MANAGEMENT | H9: DIRECT MATERIAL COST | I9: =$C$9 -> ZONE 1 | J9: EXPENDITURE | K9: $0's | M9: =SUM('[2]2.12 Input tables'!M9,'[3]2.12 Input tables'!M9) -> 3273.41 | N9: =SUM('[2]2.12 Input tables'!N9,'[3]2.12 Input tables'!N9) -> 1035660.73 | O9: =SUM('[2]2.12 Input tables'!O9,'[3]2.12 Input tables'!O9) -> 243776.2 | P9: =SUM('[2]2.12 Input tables'!P9,'[3]2.12 Input tables'!P9) -> 478176.92 | Q9: =SUM('[2]2.12 Input tables'!Q9,'[3]2.12 Input tables'!Q9) -> 0 | R9: =SUM('[2]2.12 Input tables'!R9,'[3]2.12 Input tables'!R9) -> 0
A10: ED_INP212_00002 | C10: ='2.7 Vegetation management'!I23 -> ZONE 2 | E10: DNSP NAME | F10: INPUT COSTS | G10: VEGETATION MANAGEMENT | H10: DIRECT MATERIAL COST | I10: =$C$10 -> ZONE 2 | J10: EXPENDITURE | K10: $0's | M10: =SUM('[2]2.12 Input tables'!M10,'[3]2.12 Input tables'!M10) -> 732.32 | N10: =SUM('[2]2.12 Input tables'!N10,'[3]2.12 Input tables'!N10) -> 29365.02 | O10: =SUM('[2]2.12 Input tables'!O10,'[3]2.12 Input tables'!O10) -> 641790.27 | P10: =SUM('[2]2.12 Input tables'!P10,'[3]2.12 Input tables'!P10) -> 13115.48 | Q10: =SUM('[2]2.12 Input tables'!Q10,'[3]2.12 Input tables'!Q10) -> 0 | R10: =SUM('[2]2.12 Input tables'!R10,'[3]2.12 Input tables'!R10) -> 0
A11: ED_INP212_00003 | C11: ='2.7 Vegetation management'!I35 -> ZONE 3 | E11: DNSP NAME | F11: INPUT COSTS | G11: VEGETATION MANAGEMENT | H11: DIRECT MATERIAL COST | I11: =$C$11 -> ZONE 3 | J11: EXPENDITURE | K11: $0's
A12: ED_INP212_00004 | C12: ='2.7 Vegetation management'!I47 -> ZONE 4 | E12: DNSP NAME | F12: INPUT COSTS | G12: VEGETATION MANAGEMENT | H12: DIRECT MATERIAL COST | I12: =$C$12 -> ZONE 4 | J12: EXPENDITURE | K12: $0's
A13: ED_INP212_00005 | C13: ='2.7 Vegetation management'!I59 -> ZONE 5 | E13: DNSP NAME | F13: INPUT COSTS | G13: VEGETATION MANAGEMENT | H13: DIRECT MATERIAL COST | I13: =$C$13 -> ZONE 5 | J13: EXPENDITURE | K13: $0's
A14: ED_INP212_00006 | C14: ='2.7 Vegetation management'!I71 -> ZONE 6 | E14: DNSP NAME | F14: INPUT COSTS | G14: VEGETATION MANAGEMENT | H14: DIRECT MATERIAL COST | I14: =$C$14 -> ZONE 6 | J14: EXPENDITURE | K14: $0's
A15: ED_INP212_00007 | C15: ='2.7 Vegetation management'!I83 -> ZONE 7 | E15: DNSP NAME | F15: INPUT COSTS | G15: VEGETATION MANAGEMENT | H15: DIRECT MATERIAL COST | I15: =$C$15 -> ZONE 7 | J15: EXPENDITURE | K15: $0's
A16: ED_INP212_00008 | C16: ='2.7 Vegetation management'!I95 -> ZONE 8 | E16: DNSP NAME | F16: INPUT COSTS | G16: VEGETATION MANAGEMENT | H16: DIRECT MATERIAL COST | I16: =$C$16 -> ZONE 8 | J16: EXPENDITURE | K16: $0's
A17: ED_INP212_00009 | C17: ='2.7 Vegetation management'!I107 -> ZONE 9 | E17: DNSP NAME | F17: INPUT COSTS | G17: VEGETATION MANAGEMENT | H17: DIRECT MATERIAL COST | I17: =$C$17 -> ZONE 9 | J17: EXPENDITURE | K17: $0's
A18: ED_INP212_00010 | C18: ='2.7 Vegetation management'!I119 -> ZONE 10 | E18: DNSP NAME | F18: INPUT COSTS | G18: VEGETATION MANAGEMENT | H18: DIRECT MATERIAL COST | I18: =$C$18 -> ZONE 10 | J18: EXPENDITURE | K18: $0's
A19: ED_INP212_00011 | C19: ='2.7 Vegetation management'!I131 -> ZONE 11 | E19: DNSP NAME | F19: INPUT COSTS | G19: VEGETATION MANAGEMENT | H19: DIRECT MATERIAL COST | I19: =$C$19 -> ZONE 11 | J19: EXPENDITURE | K19: $0's
A20: ED_INP212_00012 | C20: ='2.7 Vegetation management'!I143 -> ZONE 12 | E20: DNSP NAME | F20: INPUT COSTS | G20: VEGETATION MANAGEMENT | H20: DIRECT MATERIAL COST | I20: =$C$20 -> ZONE 12 | J20: EXPENDITURE | K20: $0's
A21: ED_INP212_00013 | C21: ='2.7 Vegetation management'!I155 -> ZONE 13 | E21: DNSP NAME | F21: INPUT COSTS | G21: VEGETATION MANAGEMENT | H21: DIRECT MATERIAL COST | I21: =$C$21 -> ZONE 13 | J21: EXPENDITURE | K21: $0's
A22: ED_INP212_00014 | C22: ='2.7 Vegetation management'!I167 -> ZONE 14 | E22: DNSP NAME | F22: INPUT COSTS | G22: VEGETATION MANAGEMENT | H22: DIRECT MATERIAL COST | I22: =$C$22 -> ZONE 14 | J22: EXPENDITURE | K22: $0's
A23: ED_INP212_00015 | C23: ='2.7 Vegetation management'!I179 -> ZONE 15 | E23: DNSP NAME | F23: INPUT COSTS | G23: VEGETATION MANAGEMENT | H23: DIRECT MATERIAL COST | I23: =$C$23 -> ZONE 15 | J23: EXPENDITURE | K23: $0's
A24: ED_INP212_00016 | C24: ='2.7 Vegetation management'!I191 -> ZONE 16 | E24: DNSP NAME | F24: INPUT COSTS | G24: VEGETATION MANAGEMENT | H24: DIRECT MATERIAL COST | I24: =$C$24 -> ZONE 16 | J24: EXPENDITURE | K24: $0's
A25: ED_INP212_00017 | C25: ='2.7 Vegetation management'!I203 -> ZONE 17 | E25: DNSP NAME | F25: INPUT COSTS | G25: VEGETATION MANAGEMENT | H25: DIRECT MATERIAL COST | I25: =$C$25 -> ZONE 17 | J25: EXPENDITURE | K25: $0's
A26: ED_INP212_00018 | C26: ='2.7 Vegetation management'!I215 -> ZONE 18 | E26: DNSP NAME | F26: INPUT COSTS | G26: VEGETATION MANAGEMENT | H26: DIRECT MATERIAL COST | I26: =$C$26 -> ZONE 18 | J26: EXPENDITURE | K26: $0's
A27: ED_INP212_00019 | B27: ROUTINE MAINTENANCE | C27: Pole top, overhead line & service line maintenance | E27: DNSP NAME | F27: INPUT COSTS | G27: ROUTINE MAINTENANCE | H27: DIRECT MATERIAL COST | I27: =$C$27 -> Pole top, overhead line & service line maintenance | J27: EXPENDITURE | K27: $0's | M27: =SUM('[2]2.12 Input tables'!M27,'[3]2.12 Input tables'!M27) -> 21073.13 | N27: =SUM('[2]2.12 Input tables'!N27,'[3]2.12 Input tables'!N27) -> 217978.37 | O27: =SUM('[2]2.12 Input tables'!O27,'[3]2.12 Input tables'!O27) -> 11079.42 | P27: =SUM('[2]2.12 Input tables'!P27,'[3]2.12 Input tables'!P27) -> 76865.86 | Q27: =SUM('[2]2.12 Input tables'!Q27,'[3]2.12 Input tables'!Q27) -> 0 | R27: =SUM('[2]2.12 Input tables'!R27,'[3]2.12 Input tables'!R27) -> 0
A28: ED_INP212_00020 | C28: Pole inspection and treatment | E28: DNSP NAME | F28: INPUT COSTS | G28: ROUTINE MAINTENANCE | H28: DIRECT MATERIAL COST | I28: =$C$28 -> Pole inspection and treatment | J28: EXPENDITURE | K28: $0's | M28: =SUM('[2]2.12 Input tables'!M28,'[3]2.12 Input tables'!M28) -> 65105.48 | N28: =SUM('[2]2.12 Input tables'!N28,'[3]2.12 Input tables'!N28) -> 1359123.43 | O28: =SUM('[2]2.12 Input tables'!O28,'[3]2.12 Input tables'!O28) -> 63282.19 | P28: =SUM('[2]2.12 Input tables'!P28,'[3]2.12 Input tables'!P28) -> 621241.63 | Q28: =SUM('[2]2.12 Input tables'!Q28,'[3]2.12 Input tables'!Q28) -> 0 | R28: =SUM('[2]2.12 Input tables'!R28,'[3]2.12 Input tables'!R28) -> 0
A29: ED_INP212_00021 | C29: Overhead asset inspection | E29: DNSP NAME | F29: INPUT COSTS | G29: ROUTINE MAINTENANCE | H29: DIRECT MATERIAL COST | I29: =$C$29 -> Overhead asset inspection | J29: EXPENDITURE | K29: $0's | M29: =SUM('[2]2.12 Input tables'!M29,'[3]2.12 Input tables'!M29) -> 359.13 | N29: =SUM('[2]2.12 Input tables'!N29,'[3]2.12 Input tables'!N29) -> 120261.55 | O29: =SUM('[2]2.12 Input tables'!O29,'[3]2.12 Input tables'!O29) -> 13651.79 | P29: =SUM('[2]2.12 Input tables'!P29,'[3]2.12 Input tables'!P29) -> 50468.93 | Q29: =SUM('[2]2.12 Input tables'!Q29,'[3]2.12 Input tables'!Q29) -> 0 | R29: =SUM('[2]2.12 Input tables'!R29,'[3]2.12 Input tables'!R29) -> 0
A30: ED_INP212_00022 | C30: Network underground cable maintenance | E30: DNSP NAME | F30: INPUT COSTS | G30: ROUTINE MAINTENANCE | H30: DIRECT MATERIAL COST | I30: =$C$30 -> Network underground cable maintenance | J30: EXPENDITURE | K30: $0's | M30: =SUM('[2]2.12 Input tables'!M30,'[3]2.12 Input tables'!M30) -> 576.51 | N30: =SUM('[2]2.12 Input tables'!N30,'[3]2.12 Input tables'!N30) -> 41666.63 | O30: =SUM('[2]2.12 Input tables'!O30,'[3]2.12 Input tables'!O30) -> 32756.62 | P30: =SUM('[2]2.12 Input tables'!P30,'[3]2.12 Input tables'!P30) -> 19725.33 | Q30: =SUM('[2]2.12 Input tables'!Q30,'[3]2.12 Input tables'!Q30) -> 0 | R30: =SUM('[2]2.12 Input tables'!R30,'[3]2.12 Input tables'!R30) -> 0
A31: ED_INP212_00023 | C31: Distribution substation equipment & property maintenance | E31: DNSP NAME | F31: INPUT COSTS | G31: ROUTINE MAINTENANCE | H31: DIRECT MATERIAL COST | I31: =$C$31 -> Distribution substation equipment & property maintenance | J31: EXPENDITURE | K31: $0's | M31: =SUM('[2]2.12 Input tables'!M31,'[3]2.12 Input tables'!M31) -> 33115.49 | N31: =SUM('[2]2.12 Input tables'!N31,'[3]2.12 Input tables'!N31) -> 428540.39 | O31: =SUM('[2]2.12 Input tables'!O31,'[3]2.12 Input tables'!O31) -> 179430.14 | P31: =SUM('[2]2.12 Input tables'!P31,'[3]2.12 Input tables'!P31) -> 191720.97 | Q31: =SUM('[2]2.12 Input tables'!Q31,'[3]2.12 Input tables'!Q31) -> 0 | R31: =SUM('[2]2.12 Input tables'!R31,'[3]2.12 Input tables'!R31) -> 0
A32: ED_INP212_00024 | C32: Zone substation equipment maintenance | E32: DNSP NAME | F32: INPUT COSTS | G32: ROUTINE MAINTENANCE | H32: DIRECT MATERIAL COST | I32: =$C$32 -> Zone substation equipment maintenance | J32: EXPENDITURE | K32: $0's | M32: =SUM('[2]2.12 Input tables'!M32,'[3]2.12 Input tables'!M32) -> 19882.52 | N32: =SUM('[2]2.12 Input tables'!N32,'[3]2.12 Input tables'!N32) -> 454932.5 | O32: =SUM('[2]2.12 Input tables'!O32,'[3]2.12 Input tables'!O32) -> 157042.69 | P32: =SUM('[2]2.12 Input tables'!P32,'[3]2.12 Input tables'!P32) -> 181032.68 | Q32: =SUM('[2]2.12 Input tables'!Q32,'[3]2.12 Input tables'!Q32) -> 0 | R32: =SUM('[2]2.12 Input tables'!R32,'[3]2.12 Input tables'!R32) -> 0
A33: ED_INP212_00025 | C33: Zone substation property maintenance | E33: DNSP NAME | F33: INPUT COSTS | G33: ROUTINE MAINTENANCE | H33: DIRECT MATERIAL COST | I33: =$C$33 -> Zone substation property maintenance | J33: EXPENDITURE | K33: $0's | M33: =SUM('[2]2.12 Input tables'!M33,'[3]2.12 Input tables'!M33) -> 480.57 | N33: =SUM('[2]2.12 Input tables'!N33,'[3]2.12 Input tables'!N33) -> 37518.6 | O33: =SUM('[2]2.12 Input tables'!O33,'[3]2.12 Input tables'!O33) -> 31566.8 | P33: =SUM('[2]2.12 Input tables'!P33,'[3]2.12 Input tables'!P33) -> 412302.49 | Q33: =SUM('[2]2.12 Input tables'!Q33,'[3]2.12 Input tables'!Q33) -> 2178.12 | R33: =SUM('[2]2.12 Input tables'!R33,'[3]2.12 Input tables'!R33) -> 0
A34: ED_INP212_00026 | C34: Public lighting maintenance | E34: DNSP NAME | F34: INPUT COSTS | G34: ROUTINE MAINTENANCE | H34: DIRECT MATERIAL COST | I34: =$C$34 -> Public lighting maintenance | J34: EXPENDITURE | K34: $0's | M34: =SUM('[2]2.12 Input tables'!M34,'[3]2.12 Input tables'!M34) -> 0 | N34: =SUM('[2]2.12 Input tables'!N34,'[3]2.12 Input tables'!N34) -> 0 | O34: =SUM('[2]2.12 Input tables'!O34,'[3]2.12 Input tables'!O34) -> 0 | P34: =SUM('[2]2.12 Input tables'!P34,'[3]2.12 Input tables'!P34) -> 0 | Q34: =SUM('[2]2.12 Input tables'!Q34,'[3]2.12 Input tables'!Q34) -> 0 | R34: =SUM('[2]2.12 Input tables'!R34,'[3]2.12 Input tables'!R34) -> 0
A35: ED_INP212_00027 | C35: Scada & network control maintenance | E35: DNSP NAME | F35: INPUT COSTS | G35: ROUTINE MAINTENANCE | H35: DIRECT MATERIAL COST | I35: =$C$35 -> Scada & network control maintenance | J35: EXPENDITURE | K35: $0's | M35: =SUM('[2]2.12 Input tables'!M35,'[3]2.12 Input tables'!M35) -> 0 | N35: =SUM('[2]2.12 Input tables'!N35,'[3]2.12 Input tables'!N35) -> 8848.24 | O35: =SUM('[2]2.12 Input tables'!O35,'[3]2.12 Input tables'!O35) -> -3547.78 | P35: =SUM('[2]2.12 Input tables'!P35,'[3]2.12 Input tables'!P35) -> 2212.08 | Q35: =SUM('[2]2.12 Input tables'!Q35,'[3]2.12 Input tables'!Q35) -> 0 | R35: =SUM('[2]2.12 Input tables'!R35,'[3]2.12 Input tables'!R35) -> 0
A36: ED_INP212_00028 | C36: Protection systems maintenance | E36: DNSP NAME | F36: INPUT COSTS | G36: ROUTINE MAINTENANCE | H36: DIRECT MATERIAL COST | I36: =$C$36 -> Protection systems maintenance | J36: EXPENDITURE | K36: $0's | M36: =SUM('[2]2.12 Input tables'!M36,'[3]2.12 Input tables'!M36) -> 15764.56 | N36: =SUM('[2]2.12 Input tables'!N36,'[3]2.12 Input tables'!N36) -> 893133.31 | O36: =SUM('[2]2.12 Input tables'!O36,'[3]2.12 Input tables'!O36) -> 413.11 | P36: =SUM('[2]2.12 Input tables'!P36,'[3]2.12 Input tables'!P36) -> 325960.24 | Q36: =SUM('[2]2.12 Input tables'!Q36,'[3]2.12 Input tables'!Q36) -> 0 | R36: =SUM('[2]2.12 Input tables'!R36,'[3]2.12 Input tables'!R36) -> 0
A37: ED_INP212_00029 | C37: Subtransmission asset maintenance - for dnsps with dual function assets | E37: DNSP NAME | F37: INPUT COSTS | G37: ROUTINE MAINTENANCE | H37: DIRECT MATERIAL COST | I37: =$C$37 -> Subtransmission asset maintenance - for dnsps with dual function assets | J37: EXPENDITURE | K37: $0's | M37: =SUM('[2]2.12 Input tables'!M37,'[3]2.12 Input tables'!M37) -> 0 | N37: =SUM('[2]2.12 Input tables'!N37,'[3]2.12 Input tables'!N37) -> 15266.33 | O37: =SUM('[2]2.12 Input tables'!O37,'[3]2.12 Input tables'!O37) -> 0 | P37: =SUM('[2]2.12 Input tables'!P37,'[3]2.12 Input tables'!P37) -> 6767.93 | Q37: =SUM('[2]2.12 Input tables'!Q37,'[3]2.12 Input tables'!Q37) -> 0 | R37: =SUM('[2]2.12 Input tables'!R37,'[3]2.12 Input tables'!R37) -> 0
A38: ED_INP212_00031 | C38: Other | E38: DNSP NAME | F38: INPUT COSTS | G38: ROUTINE MAINTENANCE | H38: DIRECT MATERIAL COST | I38: =$C$38 -> Other | J38: EXPENDITURE | K38: $0's | M38: =SUM('[2]2.12 Input tables'!M38,'[3]2.12 Input tables'!M38) -> 0 | N38: =SUM('[2]2.12 Input tables'!N38,'[3]2.12 Input tables'!N38) -> 0 | O38: =SUM('[2]2.12 Input tables'!O38,'[3]2.12 Input tables'!O38) -> 0 | P38: =SUM('[2]2.12 Input tables'!P38,'[3]2.12 Input tables'!P38) -> 0 | Q38: =SUM('[2]2.12 Input tables'!Q38,'[3]2.12 Input tables'!Q38) -> 0 | R38: =SUM('[2]2.12 Input tables'!R38,'[3]2.12 Input tables'!R38) -> 0
A39: ED_INP212_00032 | B39: NON-ROUTINE MAINTENANCE | C39: Pole top, overhead line & service line maintenance | E39: DNSP NAME | F39: INPUT COSTS | G39: NON-ROUTINE MAINTENANCE | H39: DIRECT MATERIAL COST | I39: =$C$39 -> Pole top, overhead line & service line maintenance | J39: EXPENDITURE | K39: $0's | M39: =SUM('[2]2.12 Input tables'!M39,'[3]2.12 Input tables'!M39) -> 95591.65 | N39: =SUM('[2]2.12 Input tables'!N39,'[3]2.12 Input tables'!N39) -> 433713.9 | O39: =SUM('[2]2.12 Input tables'!O39,'[3]2.12 Input tables'!O39) -> 51989.19 | P39: =SUM('[2]2.12 Input tables'!P39,'[3]2.12 Input tables'!P39) -> 176813.83 | Q39: =SUM('[2]2.12 Input tables'!Q39,'[3]2.12 Input tables'!Q39) -> 2031.81 | R39: =SUM('[2]2.12 Input tables'!R39,'[3]2.12 Input tables'!R39) -> 0
A40: ED_INP212_00033 | C40: Pole inspection and treatment | E40: DNSP NAME | F40: INPUT COSTS | G40: NON-ROUTINE MAINTENANCE | H40: DIRECT MATERIAL COST | I40: =$C$40 -> Pole inspection and treatment | J40: EXPENDITURE | K40: $0's | M40: =SUM('[2]2.12 Input tables'!M40,'[3]2.12 Input tables'!M40) -> 0 | N40: =SUM('[2]2.12 Input tables'!N40,'[3]2.12 Input tables'!N40) -> 0 | O40: =SUM('[2]2.12 Input tables'!O40,'[3]2.12 Input tables'!O40) -> 0 | P40: =SUM('[2]2.12 Input tables'!P40,'[3]2.12 Input tables'!P40) -> 0 | Q40: =SUM('[2]2.12 Input tables'!Q40,'[3]2.12 Input tables'!Q40) -> 0 | R40: =SUM('[2]2.12 Input tables'!R40,'[3]2.12 Input tables'!R40) -> 0
A41: ED_INP212_00034 | C41: Overhead asset inspection | E41: DNSP NAME | F41: INPUT COSTS | G41: NON-ROUTINE MAINTENANCE | H41: DIRECT MATERIAL COST | I41: =$C$41 -> Overhead asset inspection | J41: EXPENDITURE | K41: $0's | M41: =SUM('[2]2.12 Input tables'!M41,'[3]2.12 Input tables'!M41) -> 0 | N41: =SUM('[2]2.12 Input tables'!N41,'[3]2.12 Input tables'!N41) -> 2014.91 | O41: =SUM('[2]2.12 Input tables'!O41,'[3]2.12 Input tables'!O41) -> 0 | P41: =SUM('[2]2.12 Input tables'!P41,'[3]2.12 Input tables'!P41) -> 823.45 | Q41: =SUM('[2]2.12 Input tables'!Q41,'[3]2.12 Input tables'!Q41) -> 0 | R41: =SUM('[2]2.12 Input tables'!R41,'[3]2.12 Input tables'!R41) -> 0
A42: ED_INP212_00035 | C42: Network underground cable maintenance | E42: DNSP NAME | F42: INPUT COSTS | G42: NON-ROUTINE MAINTENANCE | H42: DIRECT MATERIAL COST | I42: =$C$42 -> Network underground cable maintenance | J42: EXPENDITURE | K42: $0's | M42: =SUM('[2]2.12 Input tables'!M42,'[3]2.12 Input tables'!M42) -> 44215.89 | N42: =SUM('[2]2.12 Input tables'!N42,'[3]2.12 Input tables'!N42) -> 256526.98 | O42: =SUM('[2]2.12 Input tables'!O42,'[3]2.12 Input tables'!O42) -> 64773.14 | P42: =SUM('[2]2.12 Input tables'!P42,'[3]2.12 Input tables'!P42) -> 110570.17 | Q42: =SUM('[2]2.12 Input tables'!Q42,'[3]2.12 Input tables'!Q42) -> 0 | R42: =SUM('[2]2.12 Input tables'!R42,'[3]2.12 Input tables'!R42) -> 0
A43: ED_INP212_00036 | C43: Distribution substation equipment & property maintenance | E43: DNSP NAME | F43: INPUT COSTS | G43: NON-ROUTINE MAINTENANCE | H43: DIRECT MATERIAL COST | I43: =$C$43 -> Distribution substation equipment & property maintenance | J43: EXPENDITURE | K43: $0's | M43: =SUM('[2]2.12 Input tables'!M43,'[3]2.12 Input tables'!M43) -> 24017.53 | N43: =SUM('[2]2.12 Input tables'!N43,'[3]2.12 Input tables'!N43) -> 204503.67 | O43: =SUM('[2]2.12 Input tables'!O43,'[3]2.12 Input tables'!O43) -> 62124.7 | P43: =SUM('[2]2.12 Input tables'!P43,'[3]2.12 Input tables'!P43) -> 82464.21 | Q43: =SUM('[2]2.12 Input tables'!Q43,'[3]2.12 Input tables'!Q43) -> 0 | R43: =SUM('[2]2.12 Input tables'!R43,'[3]2.12 Input tables'!R43) -> 0
A44: ED_INP212_00037 | C44: Zone substation equipment maintenance | E44: DNSP NAME | F44: INPUT COSTS | G44: NON-ROUTINE MAINTENANCE | H44: DIRECT MATERIAL COST | I44: =$C$44 -> Zone substation equipment maintenance | J44: EXPENDITURE | K44: $0's | M44: =SUM('[2]2.12 Input tables'!M44,'[3]2.12 Input tables'!M44) -> 863.72 | N44: =SUM('[2]2.12 Input tables'!N44,'[3]2.12 Input tables'!N44) -> 33215.3 | O44: =SUM('[2]2.12 Input tables'!O44,'[3]2.12 Input tables'!O44) -> 1925 | P44: =SUM('[2]2.12 Input tables'!P44,'[3]2.12 Input tables'!P44) -> 12485.92 | Q44: =SUM('[2]2.12 Input tables'!Q44,'[3]2.12 Input tables'!Q44) -> 0 | R44: =SUM('[2]2.12 Input tables'!R44,'[3]2.12 Input tables'!R44) -> 0
A45: ED_INP212_00038 | C45: Zone substation property maintenance | E45: DNSP NAME | F45: INPUT COSTS | G45: NON-ROUTINE MAINTENANCE | H45: DIRECT MATERIAL COST | I45: =$C$45 -> Zone substation property maintenance | J45: EXPENDITURE | K45: $0's | M45: =SUM('[2]2.12 Input tables'!M45,'[3]2.12 Input tables'!M45) -> 0 | N45: =SUM('[2]2.12 Input tables'!N45,'[3]2.12 Input tables'!N45) -> 0 | O45: =SUM('[2]2.12 Input tables'!O45,'[3]2.12 Input tables'!O45) -> 0 | P45: =SUM('[2]2.12 Input tables'!P45,'[3]2.12 Input tables'!P45) -> 0 | Q45: =SUM('[2]2.12 Input tables'!Q45,'[3]2.12 Input tables'!Q45) -> 0 | R45: =SUM('[2]2.12 Input tables'!R45,'[3]2.12 Input tables'!R45) -> 0
A46: ED_INP212_00039 | C46: Public lighting maintenance | E46: DNSP NAME | F46: INPUT COSTS | G46: NON-ROUTINE MAINTENANCE | H46: DIRECT MATERIAL COST | I46: =$C$46 -> Public lighting maintenance | J46: EXPENDITURE | K46: $0's | M46: =SUM('[2]2.12 Input tables'!M46,'[3]2.12 Input tables'!M46) -> 0 | N46: =SUM('[2]2.12 Input tables'!N46,'[3]2.12 Input tables'!N46) -> 0 | O46: =SUM('[2]2.12 Input tables'!O46,'[3]2.12 Input tables'!O46) -> 0 | P46: =SUM('[2]2.12 Input tables'!P46,'[3]2.12 Input tables'!P46) -> 0 | Q46: =SUM('[2]2.12 Input tables'!Q46,'[3]2.12 Input tables'!Q46) -> 0 | R46: =SUM('[2]2.12 Input tables'!R46,'[3]2.12 Input tables'!R46) -> 0
A47: ED_INP212_00040 | C47: SCADA & network control maintenance | E47: DNSP NAME | F47: INPUT COSTS | G47: NON-ROUTINE MAINTENANCE | H47: DIRECT MATERIAL COST | I47: =$C$47 -> SCADA & network control maintenance | J47: EXPENDITURE | K47: $0's | M47: =SUM('[2]2.12 Input tables'!M47,'[3]2.12 Input tables'!M47) -> 0 | N47: =SUM('[2]2.12 Input tables'!N47,'[3]2.12 Input tables'!N47) -> 12895.11 | O47: =SUM('[2]2.12 Input tables'!O47,'[3]2.12 Input tables'!O47) -> 0 | P47: =SUM('[2]2.12 Input tables'!P47,'[3]2.12 Input tables'!P47) -> 3117.75 | Q47: =SUM('[2]2.12 Input tables'!Q47,'[3]2.12 Input tables'!Q47) -> 0 | R47: =SUM('[2]2.12 Input tables'!R47,'[3]2.12 Input tables'!R47) -> 0
A48: ED_INP212_00041 | C48: Protection systems maintenance | E48: DNSP NAME | F48: INPUT COSTS | G48: NON-ROUTINE MAINTENANCE | H48: DIRECT MATERIAL COST | I48: =$C$48 -> Protection systems maintenance | J48: EXPENDITURE | K48: $0's | M48: =SUM('[2]2.12 Input tables'!M48,'[3]2.12 Input tables'!M48) -> 95.74 | N48: =SUM('[2]2.12 Input tables'!N48,'[3]2.12 Input tables'!N48) -> 25715.22 | O48: =SUM('[2]2.12 Input tables'!O48,'[3]2.12 Input tables'!O48) -> 0 | P48: =SUM('[2]2.12 Input tables'!P48,'[3]2.12 Input tables'!P48) -> 10137.55 | Q48: =SUM('[2]2.12 Input tables'!Q48,'[3]2.12 Input tables'!Q48) -> 0 | R48: =SUM('[2]2.12 Input tables'!R48,'[3]2.12 Input tables'!R48) -> 0
A49: ED_INP212_00042 | C49: Subtransmission asset maintenance - for DNSP with dual function assets | E49: DNSP NAME | F49: INPUT COSTS | G49: NON-ROUTINE MAINTENANCE | H49: DIRECT MATERIAL COST | I49: =$C$49 -> Subtransmission asset maintenance - for DNSP with dual function assets | J49: EXPENDITURE | K49: $0's | M49: =SUM('[2]2.12 Input tables'!M49,'[3]2.12 Input tables'!M49) -> 0 | N49: =SUM('[2]2.12 Input tables'!N49,'[3]2.12 Input tables'!N49) -> 5523.74 | O49: =SUM('[2]2.12 Input tables'!O49,'[3]2.12 Input tables'!O49) -> 3202 | P49: =SUM('[2]2.12 Input tables'!P49,'[3]2.12 Input tables'!P49) -> 2224.86 | Q49: =SUM('[2]2.12 Input tables'!Q49,'[3]2.12 Input tables'!Q49) -> 0 | R49: =SUM('[2]2.12 Input tables'!R49,'[3]2.12 Input tables'!R49) -> 0
A50: ED_INP212_00044 | C50: Other | E50: DNSP NAME | F50: INPUT COSTS | G50: NON-ROUTINE MAINTENANCE | H50: DIRECT MATERIAL COST | I50: =$C$50 -> Other | J50: EXPENDITURE | K50: $0's | M50: =SUM('[2]2.12 Input tables'!M50,'[3]2.12 Input tables'!M50) -> 0 | N50: =SUM('[2]2.12 Input tables'!N50,'[3]2.12 Input tables'!N50) -> 0 | O50: =SUM('[2]2.12 Input tables'!O50,'[3]2.12 Input tables'!O50) -> 0 | P50: =SUM('[2]2.12 Input tables'!P50,'[3]2.12 Input tables'!P50) -> 0 | Q50: =SUM('[2]2.12 Input tables'!Q50,'[3]2.12 Input tables'!Q50) -> 0 | R50: =SUM('[2]2.12 Input tables'!R50,'[3]2.12 Input tables'!R50) -> 0
A51: ED_INP212_00045 | B51: OVERHEADS | C51: Network overheads | E51: DNSP NAME | F51: INPUT COSTS | G51: OVERHEADS | H51: DIRECT MATERIAL COST | I51: =$C$51 -> Network overheads | J51: EXPENDITURE | K51: $0's | M51: =SUM('[2]2.12 Input tables'!M51,'[3]2.12 Input tables'!M51) -> 39391.42 | N51: =SUM('[2]2.12 Input tables'!N51,'[3]2.12 Input tables'!N51) -> 13653175.36 | O51: =SUM('[2]2.12 Input tables'!O51,'[3]2.12 Input tables'!O51) -> 2335120.6 | P51: =SUM('[2]2.12 Input tables'!P51,'[3]2.12 Input tables'!P51) -> 28976154.4 | Q51: =SUM('[2]2.12 Input tables'!Q51,'[3]2.12 Input tables'!Q51) -> 1858645.94 | R51: =SUM('[2]2.12 Input tables'!R51,'[3]2.12 Input tables'!R51) -> 0
A52: ED_INP212_00046 | C52: Corporate overheads | E52: DNSP NAME | F52: INPUT COSTS | G52: OVERHEADS | H52: DIRECT MATERIAL COST | I52: =$C$52 -> Corporate overheads | J52: EXPENDITURE | K52: $0's | M52: =SUM('[2]2.12 Input tables'!M52,'[3]2.12 Input tables'!M52) -> 9400.37407 | N52: =SUM('[2]2.12 Input tables'!N52,'[3]2.12 Input tables'!N52) -> 15749749.79 | O52: =SUM('[2]2.12 Input tables'!O52,'[3]2.12 Input tables'!O52) -> 2887611.867 | P52: =SUM('[2]2.12 Input tables'!P52,'[3]2.12 Input tables'!P52) -> 6990105.667 | Q52: =SUM('[2]2.12 Input tables'!Q52,'[3]2.12 Input tables'!Q52) -> 0 | R52: =SUM('[2]2.12 Input tables'!R52,'[3]2.12 Input tables'!R52) -> 0
A53: ED_INP212_00047 | B53: AUGMENTATION | C53: Subtransmission substations, switching stations, zone substations | E53: DNSP NAME | F53: INPUT COSTS | G53: AUGMENTATION | H53: DIRECT MATERIAL COST | I53: =$C$53 -> Subtransmission substations, switching stations, zone substations | J53: EXPENDITURE | K53: $0's | M53: =SUM('[2]2.12 Input tables'!M53,'[3]2.12 Input tables'!M53) -> 62663.55 | N53: =SUM('[2]2.12 Input tables'!N53,'[3]2.12 Input tables'!N53) -> 237189.9 | O53: =SUM('[2]2.12 Input tables'!O53,'[3]2.12 Input tables'!O53) -> 184060.88 | P53: =SUM('[2]2.12 Input tables'!P53,'[3]2.12 Input tables'!P53) -> 91900.71 | Q53: =SUM('[2]2.12 Input tables'!Q53,'[3]2.12 Input tables'!Q53) -> 96513.83 | R53: =SUM('[2]2.12 Input tables'!R53,'[3]2.12 Input tables'!R53) -> 0
A54: ED_INP212_00048 | C54: Subtransmission lines | E54: DNSP NAME | F54: INPUT COSTS | G54: AUGMENTATION | H54: DIRECT MATERIAL COST | I54: =$C$54 -> Subtransmission lines | J54: EXPENDITURE | K54: $0's | M54: =SUM('[2]2.12 Input tables'!M54,'[3]2.12 Input tables'!M54) -> 65515.57 | N54: =SUM('[2]2.12 Input tables'!N54,'[3]2.12 Input tables'!N54) -> 313233 | O54: =SUM('[2]2.12 Input tables'!O54,'[3]2.12 Input tables'!O54) -> 773050.31 | P54: =SUM('[2]2.12 Input tables'!P54,'[3]2.12 Input tables'!P54) -> 337002 | Q54: =SUM('[2]2.12 Input tables'!Q54,'[3]2.12 Input tables'!Q54) -> 0 | R54: =SUM('[2]2.12 Input tables'!R54,'[3]2.12 Input tables'!R54) -> 0
A55: ED_INP212_00049 | C55: HV feeders | E55: DNSP NAME | F55: INPUT COSTS | G55: AUGMENTATION | H55: DIRECT MATERIAL COST | I55: =$C$55 -> HV feeders | J55: EXPENDITURE | K55: $0's | M55: =SUM('[2]2.12 Input tables'!M55,'[3]2.12 Input tables'!M55) -> 75190.39 | N55: =SUM('[2]2.12 Input tables'!N55,'[3]2.12 Input tables'!N55) -> 246832.17 | O55: =SUM('[2]2.12 Input tables'!O55,'[3]2.12 Input tables'!O55) -> 354826.94 | P55: =SUM('[2]2.12 Input tables'!P55,'[3]2.12 Input tables'!P55) -> 143355.59 | Q55: =SUM('[2]2.12 Input tables'!Q55,'[3]2.12 Input tables'!Q55) -> 0 | R55: =SUM('[2]2.12 Input tables'!R55,'[3]2.12 Input tables'!R55) -> 0
A56: ED_INP212_00050 | C56: Distribution substations | E56: DNSP NAME | F56: INPUT COSTS | G56: AUGMENTATION | H56: DIRECT MATERIAL COST | I56: =$C$56 -> Distribution substations | J56: EXPENDITURE | K56: $0's | M56: =SUM('[2]2.12 Input tables'!M56,'[3]2.12 Input tables'!M56) -> 0 | N56: =SUM('[2]2.12 Input tables'!N56,'[3]2.12 Input tables'!N56) -> 0 | O56: =SUM('[2]2.12 Input tables'!O56,'[3]2.12 Input tables'!O56) -> 0 | P56: =SUM('[2]2.12 Input tables'!P56,'[3]2.12 Input tables'!P56) -> 0 | Q56: =SUM('[2]2.12 Input tables'!Q56,'[3]2.12 Input tables'!Q56) -> 0 | R56: =SUM('[2]2.12 Input tables'!R56,'[3]2.12 Input tables'!R56) -> 0
A57: ED_INP212_00051 | C57: LV feeders | E57: DNSP NAME | F57: INPUT COSTS | G57: AUGMENTATION | H57: DIRECT MATERIAL COST | I57: =$C$57 -> LV feeders | J57: EXPENDITURE | K57: $0's | M57: =SUM('[2]2.12 Input tables'!M57,'[3]2.12 Input tables'!M57) -> 0 | N57: =SUM('[2]2.12 Input tables'!N57,'[3]2.12 Input tables'!N57) -> 0 | O57: =SUM('[2]2.12 Input tables'!O57,'[3]2.12 Input tables'!O57) -> 0 | P57: =SUM('[2]2.12 Input tables'!P57,'[3]2.12 Input tables'!P57) -> 0 | Q57: =SUM('[2]2.12 Input tables'!Q57,'[3]2.12 Input tables'!Q57) -> 0 | R57: =SUM('[2]2.12 Input tables'!R57,'[3]2.12 Input tables'!R57) -> 0
A58: ED_INP212_00052 | C58: Other assets | E58: DNSP NAME | F58: INPUT COSTS | G58: AUGMENTATION | H58: DIRECT MATERIAL COST | I58: =$C$58 -> Other assets | J58: EXPENDITURE | K58: $0's | M58: =SUM('[2]2.12 Input tables'!M58,'[3]2.12 Input tables'!M58) -> 0 | N58: =SUM('[2]2.12 Input tables'!N58,'[3]2.12 Input tables'!N58) -> 0 | O58: =SUM('[2]2.12 Input tables'!O58,'[3]2.12 Input tables'!O58) -> 0 | P58: =SUM('[2]2.12 Input tables'!P58,'[3]2.12 Input tables'!P58) -> 0 | Q58: =SUM('[2]2.12 Input tables'!Q58,'[3]2.12 Input tables'!Q58) -> 0 | R58: =SUM('[2]2.12 Input tables'!R58,'[3]2.12 Input tables'!R58) -> 0
A59: ED_INP212_00053 | B59: CONNECTIONS | C59: Simple and complex customer connections | E59: DNSP NAME | F59: INPUT COSTS | G59: CONNECTIONS | H59: DIRECT MATERIAL COST | I59: =$C$59 -> Simple and complex customer connections | J59: EXPENDITURE | K59: $0's | M59: =SUM('[2]2.12 Input tables'!M59,'[3]2.12 Input tables'!M59) -> 7456510.73 | N59: =SUM('[2]2.12 Input tables'!N59,'[3]2.12 Input tables'!N59) -> 5111059.99 | O59: =SUM('[2]2.12 Input tables'!O59,'[3]2.12 Input tables'!O59) -> 3832214.01 | P59: =SUM('[2]2.12 Input tables'!P59,'[3]2.12 Input tables'!P59) -> 2121524.2 | Q59: =SUM('[2]2.12 Input tables'!Q59,'[3]2.12 Input tables'!Q59) -> 0 | R59: =SUM('[2]2.12 Input tables'!R59,'[3]2.12 Input tables'!R59) -> 0
A60: ED_INP212_00054 | B60: EMERGENCY RESPONSE | C60: Major storms | E60: DNSP NAME | F60: INPUT COSTS | G60: EMERGENCY RESPONSE | H60: DIRECT MATERIAL COST | I60: =$C$60 -> Major storms | J60: EXPENDITURE | K60: $0's | M60: =SUM('[2]2.12 Input tables'!M60,'[3]2.12 Input tables'!M60) -> 275909.03 | N60: =SUM('[2]2.12 Input tables'!N60,'[3]2.12 Input tables'!N60) -> 1984981.65 | O60: =SUM('[2]2.12 Input tables'!O60,'[3]2.12 Input tables'!O60) -> 251849.05 | P60: =SUM('[2]2.12 Input tables'!P60,'[3]2.12 Input tables'!P60) -> 754373.87 | Q60: =SUM('[2]2.12 Input tables'!Q60,'[3]2.12 Input tables'!Q60) -> 0 | R60: =SUM('[2]2.12 Input tables'!R60,'[3]2.12 Input tables'!R60) -> 0
A61: ED_INP212_00055 | C61: Major event days | E61: DNSP NAME | F61: INPUT COSTS | G61: EMERGENCY RESPONSE | H61: DIRECT MATERIAL COST | I61: =$C$61 -> Major event days | J61: EXPENDITURE | K61: $0's | M61: =SUM('[2]2.12 Input tables'!M61,'[3]2.12 Input tables'!M61) -> 0 | N61: =SUM('[2]2.12 Input tables'!N61,'[3]2.12 Input tables'!N61) -> 0 | O61: =SUM('[2]2.12 Input tables'!O61,'[3]2.12 Input tables'!O61) -> 0 | P61: =SUM('[2]2.12 Input tables'!P61,'[3]2.12 Input tables'!P61) -> 0 | Q61: =SUM('[2]2.12 Input tables'!Q61,'[3]2.12 Input tables'!Q61) -> 0 | R61: =SUM('[2]2.12 Input tables'!R61,'[3]2.12 Input tables'!R61) -> 0
A62: ED_INP212_00056 | B62: PUBLIC LIGHTING | C62: All public lighting services | E62: DNSP NAME | F62: INPUT COSTS | G62: PUBLIC LIGHTING | H62: DIRECT MATERIAL COST | I62: =$C$62 -> All public lighting services | J62: EXPENDITURE | K62: $0's | M62: =SUM('[2]2.12 Input tables'!M62,'[3]2.12 Input tables'!M62) -> 0 | N62: =SUM('[2]2.12 Input tables'!N62,'[3]2.12 Input tables'!N62) -> 0 | O62: =SUM('[2]2.12 Input tables'!O62,'[3]2.12 Input tables'!O62) -> 0 | P62: =SUM('[2]2.12 Input tables'!P62,'[3]2.12 Input tables'!P62) -> 0 | Q62: =SUM('[2]2.12 Input tables'!Q62,'[3]2.12 Input tables'!Q62) -> 0 | R62: =SUM('[2]2.12 Input tables'!R62,'[3]2.12 Input tables'!R62) -> 0
A63: ED_INP212_00057 | B63: METERING | C63: All metering services | E63: DNSP NAME | F63: INPUT COSTS | G63: METERING | H63: DIRECT MATERIAL COST | I63: =$C$63 -> All metering services | J63: EXPENDITURE | K63: $0's | M63: =SUM('[2]2.12 Input tables'!M63,'[3]2.12 Input tables'!M63) -> 1055452.12 | N63: =SUM('[2]2.12 Input tables'!N63,'[3]2.12 Input tables'!N63) -> 2673521.34 | O63: =SUM('[2]2.12 Input tables'!O63,'[3]2.12 Input tables'!O63) -> 1960864.76 | P63: =SUM('[2]2.12 Input tables'!P63,'[3]2.12 Input tables'!P63) -> 1053557.04 | Q63: =SUM('[2]2.12 Input tables'!Q63,'[3]2.12 Input tables'!Q63) -> 0 | R63: =SUM('[2]2.12 Input tables'!R63,'[3]2.12 Input tables'!R63) -> 0
A64: ED_INP212_00058 | B64: FEE-BASED SERVICES | C64: All fee-based services | E64: DNSP NAME | F64: INPUT COSTS | G64: FEE-BASED SERVICES | H64: DIRECT MATERIAL COST | I64: =$C$64 -> All fee-based services | J64: EXPENDITURE | K64: $0's | M64: =SUM('[2]2.12 Input tables'!M64,'[3]2.12 Input tables'!M64) -> 166095.5 | N64: =SUM('[2]2.12 Input tables'!N64,'[3]2.12 Input tables'!N64) -> 2019356.67 | O64: =SUM('[2]2.12 Input tables'!O64,'[3]2.12 Input tables'!O64) -> 128796.08 | P64: =SUM('[2]2.12 Input tables'!P64,'[3]2.12 Input tables'!P64) -> 834130.17 | Q64: =SUM('[2]2.12 Input tables'!Q64,'[3]2.12 Input tables'!Q64) -> 0 | R64: =SUM('[2]2.12 Input tables'!R64,'[3]2.12 Input tables'!R64) -> 0
A65: ED_INP212_00059 | B65: QUOTED SERVICES | C65: All quoted services | E65: DNSP NAME | F65: INPUT COSTS | G65: QUOTED SERVICES | H65: DIRECT MATERIAL COST | I65: =$C$65 -> All quoted services | J65: EXPENDITURE | K65: $0's | M65: =SUM('[2]2.12 Input tables'!M65,'[3]2.12 Input tables'!M65) -> 585437.01 | N65: =SUM('[2]2.12 Input tables'!N65,'[3]2.12 Input tables'!N65) -> 1408579.76 | O65: =SUM('[2]2.12 Input tables'!O65,'[3]2.12 Input tables'!O65) -> 952792.89 | P65: =SUM('[2]2.12 Input tables'!P65,'[3]2.12 Input tables'!P65) -> 548269.99 | Q65: =SUM('[2]2.12 Input tables'!Q65,'[3]2.12 Input tables'!Q65) -> 0 | R65: =SUM('[2]2.12 Input tables'!R65,'[3]2.12 Input tables'!R65) -> 0
A66: ED_INP212_00060 | B66: REPLACEMENT | C66: Poles | E66: DNSP NAME | F66: INPUT COSTS | G66: REPLACEMENT | H66: DIRECT MATERIAL COST | I66: =$C$66 -> Poles | J66: EXPENDITURE | K66: $0's | M66: =SUM('[2]2.12 Input tables'!M66,'[3]2.12 Input tables'!M66) -> 2709498.21 | N66: =SUM('[2]2.12 Input tables'!N66,'[3]2.12 Input tables'!N66) -> 4101981.76 | O66: =SUM('[2]2.12 Input tables'!O66,'[3]2.12 Input tables'!O66) -> 2115514.09 | P66: =SUM('[2]2.12 Input tables'!P66,'[3]2.12 Input tables'!P66) -> 1757810.98 | Q66: =SUM('[2]2.12 Input tables'!Q66,'[3]2.12 Input tables'!Q66) -> 0 | R66: =SUM('[2]2.12 Input tables'!R66,'[3]2.12 Input tables'!R66) -> 0
A67: ED_INP212_00061 | C67: Pole top structures | E67: DNSP NAME | F67: INPUT COSTS | G67: REPLACEMENT | H67: DIRECT MATERIAL COST | I67: =$C$67 -> Pole top structures | J67: EXPENDITURE | K67: $0's | M67: =SUM('[2]2.12 Input tables'!M67,'[3]2.12 Input tables'!M67) -> 147608.04 | N67: =SUM('[2]2.12 Input tables'!N67,'[3]2.12 Input tables'!N67) -> 543037.34 | O67: =SUM('[2]2.12 Input tables'!O67,'[3]2.12 Input tables'!O67) -> 70143.74 | P67: =SUM('[2]2.12 Input tables'!P67,'[3]2.12 Input tables'!P67) -> 236496.3 | Q67: =SUM('[2]2.12 Input tables'!Q67,'[3]2.12 Input tables'!Q67) -> 0 | R67: =SUM('[2]2.12 Input tables'!R67,'[3]2.12 Input tables'!R67) -> 0
A68: ED_INP212_00062 | C68: Overhead conductors | E68: DNSP NAME | F68: INPUT COSTS | G68: REPLACEMENT | H68: DIRECT MATERIAL COST | I68: =$C$68 -> Overhead conductors | J68: EXPENDITURE | K68: $0's | M68: =SUM('[2]2.12 Input tables'!M68,'[3]2.12 Input tables'!M68) -> 28110.27 | N68: =SUM('[2]2.12 Input tables'!N68,'[3]2.12 Input tables'!N68) -> 127578.4 | O68: =SUM('[2]2.12 Input tables'!O68,'[3]2.12 Input tables'!O68) -> 19148.88 | P68: =SUM('[2]2.12 Input tables'!P68,'[3]2.12 Input tables'!P68) -> 57230.07 | Q68: =SUM('[2]2.12 Input tables'!Q68,'[3]2.12 Input tables'!Q68) -> 0 | R68: =SUM('[2]2.12 Input tables'!R68,'[3]2.12 Input tables'!R68) -> 0
A69: ED_INP212_00063 | C69: Underground cables | E69: DNSP NAME | F69: INPUT COSTS | G69: REPLACEMENT | H69: DIRECT MATERIAL COST | I69: =$C$69 -> Underground cables | J69: EXPENDITURE | K69: $0's | M69: =SUM('[2]2.12 Input tables'!M69,'[3]2.12 Input tables'!M69) -> 193584.89 | N69: =SUM('[2]2.12 Input tables'!N69,'[3]2.12 Input tables'!N69) -> 484790.35 | O69: =SUM('[2]2.12 Input tables'!O69,'[3]2.12 Input tables'!O69) -> 287312.21 | P69: =SUM('[2]2.12 Input tables'!P69,'[3]2.12 Input tables'!P69) -> 182242.77 | Q69: =SUM('[2]2.12 Input tables'!Q69,'[3]2.12 Input tables'!Q69) -> 0 | R69: =SUM('[2]2.12 Input tables'!R69,'[3]2.12 Input tables'!R69) -> 0
A70: ED_INP212_00064 | C70: Service lines | E70: DNSP NAME | F70: INPUT COSTS | G70: REPLACEMENT | H70: DIRECT MATERIAL COST | I70: =$C$70 -> Service lines | J70: EXPENDITURE | K70: $0's | M70: =SUM('[2]2.12 Input tables'!M70,'[3]2.12 Input tables'!M70) -> 4840.78 | N70: =SUM('[2]2.12 Input tables'!N70,'[3]2.12 Input tables'!N70) -> 19042.8 | O70: =SUM('[2]2.12 Input tables'!O70,'[3]2.12 Input tables'!O70) -> 9323.75 | P70: =SUM('[2]2.12 Input tables'!P70,'[3]2.12 Input tables'!P70) -> 6300.11 | Q70: =SUM('[2]2.12 Input tables'!Q70,'[3]2.12 Input tables'!Q70) -> 0 | R70: =SUM('[2]2.12 Input tables'!R70,'[3]2.12 Input tables'!R70) -> 0
A71: ED_INP212_00065 | C71: Transformers | E71: DNSP NAME | F71: INPUT COSTS | G71: REPLACEMENT | H71: DIRECT MATERIAL COST | I71: =$C$71 -> Transformers | J71: EXPENDITURE | K71: $0's | M71: =SUM('[2]2.12 Input tables'!M71,'[3]2.12 Input tables'!M71) -> 534554.88 | N71: =SUM('[2]2.12 Input tables'!N71,'[3]2.12 Input tables'!N71) -> 444284.54 | O71: =SUM('[2]2.12 Input tables'!O71,'[3]2.12 Input tables'!O71) -> 163969.12 | P71: =SUM('[2]2.12 Input tables'!P71,'[3]2.12 Input tables'!P71) -> 187360.5 | Q71: =SUM('[2]2.12 Input tables'!Q71,'[3]2.12 Input tables'!Q71) -> 0 | R71: =SUM('[2]2.12 Input tables'!R71,'[3]2.12 Input tables'!R71) -> 0
A72: ED_INP212_00066 | C72: Switchgear | E72: DNSP NAME | F72: INPUT COSTS | G72: REPLACEMENT | H72: DIRECT MATERIAL COST | I72: =$C$72 -> Switchgear | J72: EXPENDITURE | K72: $0's | M72: =SUM('[2]2.12 Input tables'!M72,'[3]2.12 Input tables'!M72) -> 845351.82 | N72: =SUM('[2]2.12 Input tables'!N72,'[3]2.12 Input tables'!N72) -> 979046.35 | O72: =SUM('[2]2.12 Input tables'!O72,'[3]2.12 Input tables'!O72) -> 300550.44 | P72: =SUM('[2]2.12 Input tables'!P72,'[3]2.12 Input tables'!P72) -> 358042.85 | Q72: =SUM('[2]2.12 Input tables'!Q72,'[3]2.12 Input tables'!Q72) -> 0 | R72: =SUM('[2]2.12 Input tables'!R72,'[3]2.12 Input tables'!R72) -> 0
A73: ED_INP212_00067 | C73: Public lighting | E73: DNSP NAME | F73: INPUT COSTS | G73: REPLACEMENT | H73: DIRECT MATERIAL COST | I73: =$C$74 -> SCADA network control and protection systems | J73: EXPENDITURE | K73: $0's | M73: =SUM('[2]2.12 Input tables'!M73,'[3]2.12 Input tables'!M73) -> 0 | N73: =SUM('[2]2.12 Input tables'!N73,'[3]2.12 Input tables'!N73) -> 0 | O73: =SUM('[2]2.12 Input tables'!O73,'[3]2.12 Input tables'!O73) -> 0 | P73: =SUM('[2]2.12 Input tables'!P73,'[3]2.12 Input tables'!P73) -> 0 | Q73: =SUM('[2]2.12 Input tables'!Q73,'[3]2.12 Input tables'!Q73) -> 0 | R73: =SUM('[2]2.12 Input tables'!R73,'[3]2.12 Input tables'!R73) -> 0
A74: ED_INP212_00068 | C74: SCADA network control and protection systems | E74: DNSP NAME | F74: INPUT COSTS | G74: REPLACEMENT | H74: DIRECT MATERIAL COST | I74: =$C$74 -> SCADA network control and protection systems | J74: EXPENDITURE | K74: $0's | M74: =SUM('[2]2.12 Input tables'!M74,'[3]2.12 Input tables'!M74) -> 78320.66 | N74: =SUM('[2]2.12 Input tables'!N74,'[3]2.12 Input tables'!N74) -> 678777.16 | O74: =SUM('[2]2.12 Input tables'!O74,'[3]2.12 Input tables'!O74) -> 179447.64 | P74: =SUM('[2]2.12 Input tables'!P74,'[3]2.12 Input tables'!P74) -> 231287.53 | Q74: =SUM('[2]2.12 Input tables'!Q74,'[3]2.12 Input tables'!Q74) -> 0 | R74: =SUM('[2]2.12 Input tables'!R74,'[3]2.12 Input tables'!R74) -> 0
A75: ED_INP212_00069 | C75: Other | E75: DNSP NAME | F75: INPUT COSTS | G75: REPLACEMENT | H75: DIRECT MATERIAL COST | I75: =$C$75 -> Other | J75: EXPENDITURE | K75: $0's | M75: =SUM('[2]2.12 Input tables'!M75,'[3]2.12 Input tables'!M75) -> 199145.01 | N75: =SUM('[2]2.12 Input tables'!N75,'[3]2.12 Input tables'!N75) -> 278505.5 | O75: =SUM('[2]2.12 Input tables'!O75,'[3]2.12 Input tables'!O75) -> 144977.28 | P75: =SUM('[2]2.12 Input tables'!P75,'[3]2.12 Input tables'!P75) -> 106326.32 | Q75: =SUM('[2]2.12 Input tables'!Q75,'[3]2.12 Input tables'!Q75) -> 0 | R75: =SUM('[2]2.12 Input tables'!R75,'[3]2.12 Input tables'!R75) -> 0
A76: ED_INP212_00070 | B76: NON-NETWORK EXPENDITURE | C76: IT and communications | E76: DNSP NAME | F76: INPUT COSTS | G76: NON-NETWORK | H76: DIRECT MATERIAL COST | I76: =$C$76 -> IT and communications | J76: EXPENDITURE | K76: $0's | M76: =SUM('[2]2.12 Input tables'!M76,'[3]2.12 Input tables'!M76) -> 36630.64 | N76: =SUM('[2]2.12 Input tables'!N76,'[3]2.12 Input tables'!N76) -> 3902317.55 | O76: =SUM('[2]2.12 Input tables'!O76,'[3]2.12 Input tables'!O76) -> 15940089.03 | P76: =SUM('[2]2.12 Input tables'!P76,'[3]2.12 Input tables'!P76) -> 3742516.92 | Q76: =SUM('[2]2.12 Input tables'!Q76,'[3]2.12 Input tables'!Q76) -> 23975 | R76: =SUM('[2]2.12 Input tables'!R76,'[3]2.12 Input tables'!R76) -> 0
A77: ED_INP212_00071 | C77: Motor vehicles | E77: DNSP NAME | F77: INPUT COSTS | G77: NON-NETWORK | H77: DIRECT MATERIAL COST | I77: =$C$77 -> Motor vehicles | J77: EXPENDITURE | K77: $0's | M77: =SUM('[2]2.12 Input tables'!M77,'[3]2.12 Input tables'!M77) -> 0 | N77: =SUM('[2]2.12 Input tables'!N77,'[3]2.12 Input tables'!N77) -> 0 | O77: =SUM('[2]2.12 Input tables'!O77,'[3]2.12 Input tables'!O77) -> 0 | P77: =SUM('[2]2.12 Input tables'!P77,'[3]2.12 Input tables'!P77) -> 8748758.35 | Q77: =SUM('[2]2.12 Input tables'!Q77,'[3]2.12 Input tables'!Q77) -> 0 | R77: =SUM('[2]2.12 Input tables'!R77,'[3]2.12 Input tables'!R77) -> 0
A78: ED_INP212_00072 | C78: Buildings and property | E78: DNSP NAME | F78: INPUT COSTS | G78: NON-NETWORK | H78: DIRECT MATERIAL COST | I78: =$C$78 -> Buildings and property | J78: EXPENDITURE | K78: $0's | M78: =SUM('[2]2.12 Input tables'!M78,'[3]2.12 Input tables'!M78) -> 113764.73 | N78: =SUM('[2]2.12 Input tables'!N78,'[3]2.12 Input tables'!N78) -> 226055.84 | O78: =SUM('[2]2.12 Input tables'!O78,'[3]2.12 Input tables'!O78) -> 1184134.27 | P78: =SUM('[2]2.12 Input tables'!P78,'[3]2.12 Input tables'!P78) -> 1327071.99 | Q78: =SUM('[2]2.12 Input tables'!Q78,'[3]2.12 Input tables'!Q78) -> 0 | R78: =SUM('[2]2.12 Input tables'!R78,'[3]2.12 Input tables'!R78) -> 0
A79: ED_INP212_00073 | C79: Other | E79: DNSP NAME | F79: INPUT COSTS | G79: NON-NETWORK | H79: DIRECT MATERIAL COST | I79: =$C$79 -> Other | J79: EXPENDITURE | K79: $0's | M79: =SUM('[2]2.12 Input tables'!M79,'[3]2.12 Input tables'!M79) -> 0 | N79: =SUM('[2]2.12 Input tables'!N79,'[3]2.12 Input tables'!N79) -> 0 | O79: =SUM('[2]2.12 Input tables'!O79,'[3]2.12 Input tables'!O79) -> 0 | P79: =SUM('[2]2.12 Input tables'!P79,'[3]2.12 Input tables'!P79) -> 285073.83 | Q79: =SUM('[2]2.12 Input tables'!Q79,'[3]2.12 Input tables'!Q79) -> 0 | R79: =SUM('[2]2.12 Input tables'!R79,'[3]2.12 Input tables'!R79) -> 0

Sheet 4.1 Public lighting
B1: =(LOOKUP(dms_Model,dms_Model_List,dms_Worksheet_List)) -> REGULATORY REPORTING STATEMENT
B2: Australian Distribution Co.
B3: =CONCATENATE("Category Analysis RIN response ",CRY) -> Category Analysis RIN response 2014-15
B4: 4.1 PUBLIC LIGHTING
B6: TABLE 4.1.1 - DESCRIPTOR METRICS OVER 2013-14 YEAR
C9: LIGHT TYPE | D9: VOLUME (0's)
A10: PUB411 | D10: =CRY -> 2014-15
A11: ED_PUB411_00001 | B11: POPULATION OF LIGHTS | C11: DNSP to enter description
A12: ED_PUB411_00002
A13: ED_PUB411_00003
A14: ED_PUB411_00004
A15: ED_PUB411_00005
A16: ED_PUB411_00006
A17: ED_PUB411_00007
A18: ED_PUB411_00008
A19: ED_PUB411_00009
A20: ED_PUB411_00010
A21: ED_PUB411_00011
A22: ED_PUB411_00012
A23: ED_PUB411_00013
A24: ED_PUB411_00014
A25: ED_PUB411_00015
A26: ED_PUB411_00016
A27: ED_PUB411_00017
A28: ED_PUB411_00018
A29: ED_PUB411_00019
A30: ED_PUB411_00020
A31: ED_PUB411_00021
A32: ED_PUB411_00022
A33: ED_PUB411_00023
A34: ED_PUB411_00024
A35: ED_PUB411_00025
A36: ED_PUB411_00026
A37: ED_PUB411_00027
A38: ED_PUB411_00028
A39: ED_PUB411_00029
A40: ED_PUB411_00030
A41: ED_PUB411_00031
A42: ED_PUB411_00032
A43: ED_PUB411_00033
A44: ED_PUB411_00034
A45: ED_PUB411_00035
A46: ED_PUB411_00036
A47: ED_PUB411_00037
A48: ED_PUB411_00038
A49: ED_PUB411_00039
A50: ED_PUB411_00040
A51: ED_PUB411_00041
A52: ED_PUB411_00042
A53: ED_PUB411_00043
A54: ED_PUB411_00044
A55: ED_PUB411_00045
A56: ED_PUB411_00046
A57: ED_PUB411_00047
A58: ED_PUB411_00048
A59: ED_PUB411_00049
A60: ED_PUB411_00050
A61: ED_PUB411_00051
A62: ED_PUB411_00052
A63: ED_PUB411_00053
A64: ED_PUB411_00054
A65: ED_PUB411_00055
A66: ED_PUB411_00056
A67: ED_PUB411_00057
A68: ED_PUB411_00058
A69: ED_PUB411_00059
A70: ED_PUB411_00060
A71: ED_PUB411_00061
A72: ED_PUB411_00062
A73: ED_PUB411_00063
A74: ED_PUB411_00064
A75: ED_PUB411_00065
A76: ED_PUB411_00066
A77: ED_PUB411_00067
A78: ED_PUB411_00068
A79: ED_PUB411_00069
A80: ED_PUB411_00070
A81: ED_PUB411_00071
A82: ED_PUB411_00072
A83: ED_PUB411_00073
A84: ED_PUB411_00074
A85: ED_PUB411_00075
A86: ED_PUB411_00076
A87: ED_PUB411_00077
A88: ED_PUB411_00078
A89: ED_PUB411_00079
A90: ED_PUB411_00080
A91: ED_PUB411_00081
A92: ED_PUB411_00082
A93: ED_PUB411_00083
A94: ED_PUB411_00084
A95: ED_PUB411_00085
A96: ED_PUB411_00086
A97: ED_PUB411_00087
A98: ED_PUB411_00088
A99: ED_PUB411_00089
A100: ED_PUB411_00090
A101: ED_PUB411_00091
A102: ED_PUB411_00092
A103: ED_PUB411_00093
A104: ED_PUB411_00094
A105: ED_PUB411_00095
A106: ED_PUB411_00096
A107: ED_PUB411_00097
A108: ED_PUB411_00098
A109: ED_PUB411_00099
A110: ED_PUB411_00100
A111: ED_PUB411_00101
A112: ED_PUB411_00102
B117: TABLE 4.1.2 - DESCRIPTOR METRICS ANNUALLY
D120: VOLUMES & EXPENDITURE
A121: PUB412 | B121: SERVICE/SERVICE QUALITY - Volumes and Expenditure | C121: DESCRIPTOR METRIC | D121: =CRY -> 2014-15
A122: ED_PUB412_00001 | B122: LIGHT INSTALLATION | C122: Major road light installation (volume)
A123: ED_PUB412_00002 | C123: Minor road light installation (volume)
A124: ED_PUB412_00003 | C124: Number of poles installed
A125: ED_PUB412_00004 | C125: Total cost ($'s)
A126: ED_PUB412_00005 | B126: LIGHT REPLACEMENT | C126: Major road light replacement (volume)
A127: ED_PUB412_00006 | C127: Minor road light replacement (volume)
A128: ED_PUB412_00007 | C128: Number of poles replaced
A129: ED_PUB412_00008 | C129: Total cost ($'s)
A130: ED_PUB412_00009 | B130: LIGHT MAINTENANCE | C130: Major road light maintenance (volume)
A131: ED_PUB412_00010 | C131: Minor road light maintenance (volume)
A132: ED_PUB412_00011 | C132: Number of poles installed
A133: ED_PUB412_00012 | C133: Total cost ($'s)
A134: ED_PUB412_00013 | B134: QUALITY OF SUPPLY | C134: Mean days to rectify/replace public lighting assets (days)
A135: ED_PUB412_00014 | C135: GSO breaches (volume 0's)
A136: ED_PUB412_00015 | C136: GSL payments ($0's)
A137: ED_PUB412_00016 | C137: Customer complaints (volume 0's)
B143: TABLE 4.1.3 - COST METRICS
D146: AVERAGE UNIT COST ($)
A147: PUB413 | B147: ROAD TYPE | C147: LIGHT TYPE | D147: =CRY -> 2014-15
A148: PUB413_00001 | B148: LIGHT INSTALLATION - Major Road | C148: DNSP to enter description
A149: PUB413_00002
A150: PUB413_00003
A151: PUB413_00004
A152: PUB413_00005
A153: PUB413_00006
A154: PUB413_00007
A155: PUB413_00008
A156: PUB413_00009
A157: PUB413_00010
A158: PUB413_00011
A159: PUB413_00012
A160: PUB413_00013
A161: PUB413_00014
A162: PUB413_00015
A163: PUB413_00010 | B163: LIGHT INSTALLATION - Minor Road | C163: DNSP to enter description
A164: PUB413_00011
A165: PUB413_00012
A166: PUB413_00013
A167: PUB413_00014
A168: PUB413_00014
A169: PUB413_00015
A170: PUB413_00016
A171: PUB413_00017
A172: PUB413_00018
A173: PUB413_00019
A174: PUB413_00020
A175: PUB413_00021
A176: PUB413_00022
A177: PUB413_00023
A178: PUB413_00024 | B178: LIGHT REPLACEMENT - Major Road | C178: DNSP to enter description
A179: PUB413_00025
A180: PUB413_00026
A181: PUB413_00027
A182: PUB413_00028
A183: PUB413_00029
A184: PUB413_00030
A185: PUB413_00025
A186: PUB413_00026
A187: PUB413_00027
A188: PUB413_00028
A189: PUB413_00029
A190: PUB413_00030
A191: PUB413_00025
A192: PUB413_00031
A193: PUB413_00032 | B193: LIGHT REPLACEMENT - Minor Road | C193: DNSP to enter description
A194: PUB413_00033
A195: PUB413_00034
A196: PUB413_00035
A197: PUB413_00036
A198: PUB413_00036
A199: PUB413_00033
A200: PUB413_00034
A201: PUB413_00035
A202: PUB413_00036
A203: PUB413_00033
A204: PUB413_00034
A205: PUB413_00035
A206: PUB413_00036
A207: PUB413_00037
A208: PUB413_00038 | B208: LIGHT MAINTENANCE - Major Road | C208: DNSP to enter description
A209: PUB413_00039
A210: PUB413_00040
A211: PUB413_00041
A212: PUB413_00042
A213: PUB413_00043
A214: PUB413_00044
A215: PUB413_00039
A216: PUB413_00040
... 21 more rows

Sheet 4.2 Metering
B1: =(LOOKUP(dms_Model,dms_Model_List,dms_Worksheet_List)) -> REGULATORY REPORTING STATEMENT
B2: Australian Distribution Co.
B3: =CONCATENATE("Category Analysis RIN response ",CRY) -> Category Analysis RIN response 2014-15
B4: 4.2 METERING
B7: TABLE 4.2.1 - METERING DESCRIPTOR METRIC | F7: TABLE 4.2.2 - COST METRICS
D10: VOLUMES (0's) | H10: EXPENDITURE ($0's) | J10: VOLUMES (0's)
B11: ASSET CATEGORY | C11: ASSET SUBCATEGORY | D11: =CRY -> 2014-15 | F11: SERVICE SUBCATEGORY | G11: METER TYPE | H11: =CRY -> 2014-15 | J11: =CRY -> 2014-15
A12: ED_MET421_00001 | B12: Meter Type 4 | C12: Single phase meter population | D12: ='[2]4.2 Metering'!D12+'[3]4.2 Metering'!D12 -> 0 | E12: ED_MET422_00001 | F12: Meter purchase | G12: Meter Type 4 | H12: ='[2]4.2 Metering'!H12+'[3]4.2 Metering'!H12 -> 0 | I12: ED_MET422_00001 | J12: ='[2]4.2 Metering'!J12+'[3]4.2 Metering'!J12 -> 0
A13: ED_MET421_00002 | C13: Multi phase meter population | D13: ='[2]4.2 Metering'!D13+'[3]4.2 Metering'!D13 -> 0 | E13: ED_MET422_00002 | G13: Meter Type 5 | H13: ='[2]4.2 Metering'!H13+'[3]4.2 Metering'!H13 -> 1048677.64 | I13: ED_MET422_00002 | J13: ='[2]4.2 Metering'!J13+'[3]4.2 Metering'!J13 -> 8200
A14: ED_MET421_00003 | C14: Current transformer connected meter population | D14: ='[2]4.2 Metering'!D14+'[3]4.2 Metering'!D14 -> 0 | E14: ED_MET422_00003 | G14: Meter Type 6 | H14: ='[2]4.2 Metering'!H14+'[3]4.2 Metering'!H14 -> 0 | I14: ED_MET422_00003 | J14: ='[2]4.2 Metering'!J14+'[3]4.2 Metering'!J14 -> 0
A15: ED_MET421_00004 | C15: Direct connect meter population | D15: ='[2]4.2 Metering'!D15+'[3]4.2 Metering'!D15 -> 0 | E15: ED_MET422_00004 | F15: Meter testing | G15: Meter Type 4 | H15: ='[2]4.2 Metering'!H15+'[3]4.2 Metering'!H15 -> 0 | I15: ED_MET422_00004 | J15: ='[2]4.2 Metering'!J15+'[3]4.2 Metering'!J15 -> 0
A16: ED_MET421_00005 | B16: Meter Type 5 | C16: Single phase meter population | D16: ='[2]4.2 Metering'!D16+'[3]4.2 Metering'!D16 -> 58700 | E16: ED_MET422_00005 | G16: Meter Type 5 | H16: ='[2]4.2 Metering'!H16+'[3]4.2 Metering'!H16 -> 0 | I16: ED_MET422_00005 | J16: ='[2]4.2 Metering'!J16+'[3]4.2 Metering'!J16 -> 0
A17: ED_MET421_00006 | C17: Multi phase meter population | D17: ='[2]4.2 Metering'!D17+'[3]4.2 Metering'!D17 -> 19800 | E17: ED_MET422_00006 | G17: Meter Type 6 | H17: ='[2]4.2 Metering'!H17+'[3]4.2 Metering'!H17 -> 206240.3246 | I17: ED_MET422_00006 | J17: ='[2]4.2 Metering'!J17+'[3]4.2 Metering'!J17 -> 910
A18: ED_MET421_00007 | C18: Current transformer connected meter population | D18: ='[2]4.2 Metering'!D18+'[3]4.2 Metering'!D18 -> 1600 | E18: ED_MET422_00007 | F18: Meter investigation | G18: Meter Type 4 | H18: ='[2]4.2 Metering'!H18+'[3]4.2 Metering'!H18 -> 0 | I18: ED_MET422_00007 | J18: ='[2]4.2 Metering'!J18+'[3]4.2 Metering'!J18 -> 0
A19: ED_MET421_00008 | C19: Direct connect meter population | D19: ='[2]4.2 Metering'!D19+'[3]4.2 Metering'!D19 -> 76900 | E19: ED_MET422_00008 | G19: Meter Type 5 | H19: ='[2]4.2 Metering'!H19+'[3]4.2 Metering'!H19 -> 0 | I19: ED_MET422_00008 | J19: ='[2]4.2 Metering'!J19+'[3]4.2 Metering'!J19 -> 0
A20: ED_MET421_00009 | B20: Meter Type 6 | C20: Single phase meter population | D20: ='[2]4.2 Metering'!D20+'[3]4.2 Metering'!D20 -> 88500 | E20: ED_MET422_00009 | G20: Meter Type 6 | H20: ='[2]4.2 Metering'!H20+'[3]4.2 Metering'!H20 -> 181310.1754 | I20: ED_MET422_00009 | J20: ='[2]4.2 Metering'!J20+'[3]4.2 Metering'!J20 -> 800
A21: ED_MET421_00010 | C21: Multi phase meter population | D21: ='[2]4.2 Metering'!D21+'[3]4.2 Metering'!D21 -> 36500 | E21: ED_MET422_00010 | F21: Scheduled meter reading | G21: Meter Type 4 | H21: ='[2]4.2 Metering'!H21+'[3]4.2 Metering'!H21 -> 0 | I21: ED_MET422_00010 | J21: ='[2]4.2 Metering'!J21+'[3]4.2 Metering'!J21 -> 0
A22: ED_MET421_00011 | C22: Current transformer connected meter population | D22: ='[2]4.2 Metering'!D22+'[3]4.2 Metering'!D22 -> 0 | E22: ED_MET422_00011 | G22: Meter Type 5 | H22: ='[2]4.2 Metering'!H22+'[3]4.2 Metering'!H22 -> 570416 | I22: ED_MET422_00011 | J22: ='[2]4.2 Metering'!J22+'[3]4.2 Metering'!J22 -> 17600
A23: ED_MET421_00012 | C23: Direct connect meter population | D23: ='[2]4.2 Metering'!D23+'[3]4.2 Metering'!D23 -> 125000 | E23: ED_MET422_00012 | G23: Meter Type 6 | H23: ='[2]4.2 Metering'!H23+'[3]4.2 Metering'!H23 -> 910751.26 | I23: ED_MET422_00012 | J23: ='[2]4.2 Metering'!J23+'[3]4.2 Metering'!J23 -> 2368000
E24: ED_MET422_00013 | F24: Special meter reading | G24: Meter Type 4 | H24: ='[2]4.2 Metering'!H24+'[3]4.2 Metering'!H24 -> 0 | I24: ED_MET422_00013 | J24: ='[2]4.2 Metering'!J24+'[3]4.2 Metering'!J24 -> 0
E25: ED_MET422_00014 | G25: Meter Type 5 | H25: ='[2]4.2 Metering'!H25+'[3]4.2 Metering'!H25 -> 17145 | I25: ED_MET422_00014 | J25: ='[2]4.2 Metering'!J25+'[3]4.2 Metering'!J25 -> 300
E26: ED_MET422_00015 | G26: Meter Type 6 | H26: ='[2]4.2 Metering'!H26+'[3]4.2 Metering'!H26 -> 431.25 | I26: ED_MET422_00015 | J26: ='[2]4.2 Metering'!J26+'[3]4.2 Metering'!J26 -> 69000
E27: ED_MET422_00016 | F27: New meter installation | G27: Meter Type 4 | H27: ='[2]4.2 Metering'!H27+'[3]4.2 Metering'!H27 -> 0 | I27: ED_MET422_00016 | J27: ='[2]4.2 Metering'!J27+'[3]4.2 Metering'!J27 -> 0
E28: ED_MET422_00017 | G28: Meter Type 5 | H28: ='[2]4.2 Metering'!H28+'[3]4.2 Metering'!H28 -> 9321 | I28: ED_MET422_00017 | J28: ='[2]4.2 Metering'!J28+'[3]4.2 Metering'!J28 -> 10
E29: ED_MET422_00018 | G29: Meter Type 6 | H29: ='[2]4.2 Metering'!H29+'[3]4.2 Metering'!H29 -> 2195503.58 | I29: ED_MET422_00018 | J29: ='[2]4.2 Metering'!J29+'[3]4.2 Metering'!J29 -> 2300
E30: ED_MET422_00019 | F30: Meter replacement | G30: Meter Type 4 | H30: ='[2]4.2 Metering'!H30+'[3]4.2 Metering'!H30 -> 0 | I30: ED_MET422_00019 | J30: ='[2]4.2 Metering'!J30+'[3]4.2 Metering'!J30 -> 0
E31: ED_MET422_00020 | G31: Meter Type 5 | H31: ='[2]4.2 Metering'!H31+'[3]4.2 Metering'!H31 -> 37284 | I31: ED_MET422_00020 | J31: ='[2]4.2 Metering'!J31+'[3]4.2 Metering'!J31 -> 40
E32: ED_MET422_00021 | G32: Meter Type 6 | H32: ='[2]4.2 Metering'!H32+'[3]4.2 Metering'!H32 -> 611640.5 | I32: ED_MET422_00021 | J32: ='[2]4.2 Metering'!J32+'[3]4.2 Metering'!J32 -> 2605
E33: ED_MET422_00022 | F33: Meter maintenance | G33: Meter Type 4 | H33: ='[2]4.2 Metering'!H33+'[3]4.2 Metering'!H33 -> 0 | I33: ED_MET422_00022 | J33: ='[2]4.2 Metering'!J33+'[3]4.2 Metering'!J33 -> 0
E34: ED_MET422_00023 | G34: Meter Type 5 | H34: ='[2]4.2 Metering'!H34+'[3]4.2 Metering'!H34 -> 0 | I34: ED_MET422_00023 | J34: ='[2]4.2 Metering'!J34+'[3]4.2 Metering'!J34 -> 0
E35: ED_MET422_00024 | G35: Meter Type 6 | H35: ='[2]4.2 Metering'!H35+'[3]4.2 Metering'!H35 -> 0 | I35: ED_MET422_00024 | J35: ='[2]4.2 Metering'!J35+'[3]4.2 Metering'!J35 -> 0
E36: ED_MET422_00025 | F36: Remote meter reading | G36: Meter Type 4 | H36: ='[2]4.2 Metering'!H36+'[3]4.2 Metering'!H36 -> 0 | I36: ED_MET422_00025 | J36: ='[2]4.2 Metering'!J36+'[3]4.2 Metering'!J36 -> 0
E37: ED_MET422_00026 | F37: Remote meter re-configuration | G37: Meter Type 4 | H37: ='[2]4.2 Metering'!H37+'[3]4.2 Metering'!H37 -> 0 | I37: ED_MET422_00026 | J37: ='[2]4.2 Metering'!J37+'[3]4.2 Metering'!J37 -> 0
E38: ED_MET422_00027 | F38: Other metering | G38: Meter Type 4 | H38: ='[2]4.2 Metering'!H38+'[3]4.2 Metering'!H38 -> 0
E39: ED_MET422_00028 | G39: Meter Type 5 | H39: ='[2]4.2 Metering'!H39+'[3]4.2 Metering'!H39 -> 0
E40: ED_MET422_00029 | G40: Meter Type 6 | H40: ='[2]4.2 Metering'!H40+'[3]4.2 Metering'!H40 -> 954674.53
E41: ED_MET422_00030 | G41: Meter Type 7 | H41: ='[2]4.2 Metering'!H41+'[3]4.2 Metering'!H41 -> 0
E42: ED_MET422_00031 | F42: IT infrastructure capex | G42: Meter Type 4 | H42: ='[2]4.2 Metering'!H42+'[3]4.2 Metering'!H42 -> 0
E43: ED_MET422_00032 | F43: IT infrastructure opex | G43: Meter Type 4 | H43: ='[2]4.2 Metering'!H43+'[3]4.2 Metering'!H43 -> 0
E44: ED_MET422_00033 | F44: Communications infrastructure capex | G44: Meter Type 4 | H44: ='[2]4.2 Metering'!H44+'[3]4.2 Metering'!H44 -> 0
E45: ED_MET422_00034 | F45: Communications infrastructure opex | G45: Meter Type 4 | H45: 0

Sheet 4.3 Fee-based services
B1: =(LOOKUP(dms_Model,dms_Model_List,dms_Worksheet_List)) -> REGULATORY REPORTING STATEMENT
B2: Australian Distribution Co.
B3: =CONCATENATE("Category Analysis RIN response ",CRY) -> Category Analysis RIN response 2014-15
B4: 4.3 ANCILLARY SERVICES - FEE BASED SERVICES
B6: TABLE 4.3.1 - COST METRICS FOR FEE-BASED SERVICES
D9: EXPENDITURE ($0's) | F9: VOLUMES (0's)
B10: SERVICE | C10: SERVICE SUBCATEGORY | D10: =CRY -> 2014-15 | F10: =CRY -> 2014-15
A11: ED_FEE431_00001 | B11: Premise Re-energisation – Existing Network Connection | C11: Re-energise premise – Business Hours | D11: ='[2]4.3 Fee-based services'!D11+'[3]4.3 Fee-based services'!D11 -> 661696.25 | E11: ED_FEE431_00001 | F11: ='[2]4.3 Fee-based services'!F11+'[3]4.3 Fee-based services'!F11 -> 4551.417
A12: ED_FEE431_00002 | B12: Premise Re-energisation – Existing Network Connection | C12: Re-energise premise – After Hours | D12: ='[2]4.3 Fee-based services'!D12+'[3]4.3 Fee-based services'!D12 -> 42397.13 | E12: ED_FEE431_00002 | F12: ='[2]4.3 Fee-based services'!F12+'[3]4.3 Fee-based services'!F12 -> 841
A13: ED_FEE431_00003 | B13: Premise Re-energisation – Existing Network Connection | C13: Re-energise premise – Non payment | D13: ='[2]4.3 Fee-based services'!D13+'[3]4.3 Fee-based services'!D13 -> 5418.18 | E13: ED_FEE431_00003 | F13: ='[2]4.3 Fee-based services'!F13+'[3]4.3 Fee-based services'!F13 -> 0
A14: ED_FEE431_00004 | B14: Premise De-energisation – Existing Network Connection | C14: De-energise premise – Business Hours | D14: ='[2]4.3 Fee-based services'!D14+'[3]4.3 Fee-based services'!D14 -> 288069.12 | E14: ED_FEE431_00004 | F14: ='[2]4.3 Fee-based services'!F14+'[3]4.3 Fee-based services'!F14 -> 1966.917
A15: ED_FEE431_00005 | B15: Premise De-energisation – Existing Network Connection | C15: De-energise premise for debt non-payment | D15: ='[2]4.3 Fee-based services'!D15+'[3]4.3 Fee-based services'!D15 -> 76887.17 | E15: ED_FEE431_00005 | F15: ='[2]4.3 Fee-based services'!F15+'[3]4.3 Fee-based services'!F15 -> 256.349
A16: ED_FEE431_00006 | B16: Temporary Network Connections | C16: Temporary Builders’ Supply – Overhead (Business Hours) | D16: ='[2]4.3 Fee-based services'!D16+'[3]4.3 Fee-based services'!D16 -> 192261.14 | E16: ED_FEE431_00006 | F16: ='[2]4.3 Fee-based services'!F16+'[3]4.3 Fee-based services'!F16 -> 168.168
A17: ED_FEE431_00007 | B17: Temporary Network Connections | C17: Temporary Builders’ Supply – Underground (Business Hours) | D17: ='[2]4.3 Fee-based services'!D17+'[3]4.3 Fee-based services'!D17 -> 0 | E17: ED_FEE431_00007 | F17: ='[2]4.3 Fee-based services'!F17+'[3]4.3 Fee-based services'!F17 -> 0
A18: ED_FEE431_00008 | B18: Temporary De-energisation | C18: Temporary de-energisation – LV (Business Hours) | D18: ='[2]4.3 Fee-based services'!D18+'[3]4.3 Fee-based services'!D18 -> 43260.13 | E18: ED_FEE431_00008 | F18: ='[2]4.3 Fee-based services'!F18+'[3]4.3 Fee-based services'!F18 -> 134
A19: ED_FEE431_00009 | B19: Temporary De-energisation | C19: Temporary de-energisation – HV (Business Hours) | D19: ='[2]4.3 Fee-based services'!D19+'[3]4.3 Fee-based services'!D19 -> 0 | E19: ED_FEE431_00009 | F19: ='[2]4.3 Fee-based services'!F19+'[3]4.3 Fee-based services'!F19 -> 0
A20: ED_FEE431_00010 | B20: Network Connection Alterations and Additions | C20: Overhead Service Relocation – Single Visit (Business Hours) | D20: ='[2]4.3 Fee-based services'!D20+'[3]4.3 Fee-based services'!D20 -> 1248882.11 | E20: ED_FEE431_00010 | F20: ='[2]4.3 Fee-based services'!F20+'[3]4.3 Fee-based services'!F20 -> 336.726
A21: ED_FEE431_00011 | B21: Network Connection Alterations and Additions | C21: Underground Service Relocation – Single Visit (Business Hours) | D21: ='[2]4.3 Fee-based services'!D21+'[3]4.3 Fee-based services'!D21 -> 0 | E21: ED_FEE431_00011 | F21: ='[2]4.3 Fee-based services'!F21+'[3]4.3 Fee-based services'!F21 -> 0
A22: ED_FEE431_00012 | B22: Miscellaneous Customer Initiated Services | C22: Install & Remove Tiger Tails – Establishment (Business Hours) | D22: ='[2]4.3 Fee-based services'!D22+'[3]4.3 Fee-based services'!D22 -> 32587.73 | E22: ED_FEE431_00012 | F22: ='[2]4.3 Fee-based services'!F22+'[3]4.3 Fee-based services'!F22 -> 51
A23: ED_FEE431_00013 | B23: Miscellaneous Customer Initiated Services | C23: Install & Remove Warning Flags – Installation (Business Hours) | D23: ='[2]4.3 Fee-based services'!D23+'[3]4.3 Fee-based services'!D23 -> 0 | E23: ED_FEE431_00013 | F23: ='[2]4.3 Fee-based services'!F23+'[3]4.3 Fee-based services'!F23 -> 0
A24: ED_FEE431_00014 | B24: Embedded Generation - Operational & Maintenance Fees | C24: Embedded Generation - Operational & Maintenance Fees | D24: ='[2]4.3 Fee-based services'!D24+'[3]4.3 Fee-based services'!D24 -> 0 | E24: ED_FEE431_00014 | F24: ='[2]4.3 Fee-based services'!F24+'[3]4.3 Fee-based services'!F24 -> 0
A25: ED_FEE431_00015 | B25: Connection Enquiry Processing - PV Installations* | C25: Connection Enquiry Processing - PV Installations* | D25: ='[2]4.3 Fee-based services'!D25+'[3]4.3 Fee-based services'!D25 -> 430599.14 | E25: ED_FEE431_00015 | F25: ='[2]4.3 Fee-based services'!F25+'[3]4.3 Fee-based services'!F25 -> 6
A26: ED_FEE431_00016 | B26: Network Design & Investigation / Analysis Services - PV Installations | C26: Network Design & Investigation / Analysis Services - PV Installations | D26: ='[2]4.3 Fee-based services'!D26+'[3]4.3 Fee-based services'!D26 -> 0 | E26: ED_FEE431_00016 | F26: ='[2]4.3 Fee-based services'!F26+'[3]4.3 Fee-based services'!F26 -> 0
A27: ED_FEE431_00017 | B27: Rescheduled Site Visits | C27: Rescheduled Site Visits | D27: ='[2]4.3 Fee-based services'!D27+'[3]4.3 Fee-based services'!D27 -> 30672.04 | E27: ED_FEE431_00017 | F27: ='[2]4.3 Fee-based services'!F27+'[3]4.3 Fee-based services'!F27 -> 23.999
A28: ED_FEE431_00018 | B28: Issue of copies of electrical drawings | C28: Issue of copies of electrical drawings | D28: ='[2]4.3 Fee-based services'!D28+'[3]4.3 Fee-based services'!D28 -> 4858.92 | E28: ED_FEE431_00018 | F28: ='[2]4.3 Fee-based services'!F28+'[3]4.3 Fee-based services'!F28 -> 0
A29: ED_FEE431_00019 | B29: Meter Investigations | C29: Meter Test (Whole Current) – Business Hours | D29: ='[2]4.3 Fee-based services'!D29+'[3]4.3 Fee-based services'!D29 -> 90789.36 | E29: ED_FEE431_00019 | F29: ='[2]4.3 Fee-based services'!F29+'[3]4.3 Fee-based services'!F29 -> 435.085
A30: ED_FEE431_00024 | B30: Miscellaneous Fee-Based Services | E30: ED_FEE431_00024
A31: ED_FEE431_00025 | B31: Miscellaneous Fee-Based Services | E31: ED_FEE431_00025
A32: ED_FEE431_00026 | B32: Miscellaneous Fee-Based Services | E32: ED_FEE431_00026
A33: ED_FEE431_00027 | B33: Miscellaneous Fee-Based Services | E33: ED_FEE431_00027
A34: ED_FEE431_00028 | B34: Miscellaneous Fee-Based Services | E34: ED_FEE431_00028
A35: ED_FEE431_00029 | B35: Miscellaneous Fee-Based Services | E35: ED_FEE431_00029
A36: ED_FEE431_00030 | B36: Miscellaneous Fee-Based Services | E36: ED_FEE431_00030
A37: ED_FEE431_00031 | B37: Miscellaneous Fee-Based Services | E37: ED_FEE431_00031
A38: ED_FEE431_00032 | B38: Miscellaneous Fee-Based Services | E38: ED_FEE431_00032
A39: ED_FEE431_00033 | B39: Miscellaneous Fee-Based Services | E39: ED_FEE431_00033
A40: ED_FEE431_00034 | B40: Miscellaneous Fee-Based Services | E40: ED_FEE431_00034
A41: ED_FEE431_00035 | B41: Miscellaneous Fee-Based Services | E41: ED_FEE431_00035
A42: ED_FEE431_00036 | B42: Miscellaneous Fee-Based Services | E42: ED_FEE431_00036
A43: ED_FEE431_00037 | B43: Miscellaneous Fee-Based Services | E43: ED_FEE431_00037
A44: ED_FEE431_00038 | B44: Miscellaneous Fee-Based Services | E44: ED_FEE431_00038
A45: ED_FEE431_00039 | B45: Miscellaneous Fee-Based Services | E45: ED_FEE431_00039
A46: ED_FEE431_00040 | B46: Miscellaneous Fee-Based Services | E46: ED_FEE431_00040
A47: ED_FEE431_00041 | B47: Miscellaneous Fee-Based Services | E47: ED_FEE431_00041
A48: ED_FEE431_00042 | B48: Miscellaneous Fee-Based Services | E48: ED_FEE431_00042
A49: ED_FEE431_00043 | B49: Miscellaneous Fee-Based Services | E49: ED_FEE431_00043
A50: ED_FEE431_00044 | B50: Miscellaneous Fee-Based Services | E50: ED_FEE431_00044
A51: ED_FEE431_00045 | B51: Miscellaneous Fee-Based Services | E51: ED_FEE431_00045
A52: ED_FEE431_00046 | B52: Miscellaneous Fee-Based Services | E52: ED_FEE431_00046
A53: ED_FEE431_00047 | B53: Miscellaneous Fee-Based Services | E53: ED_FEE431_00047
A54: ED_FEE431_00048 | B54: Miscellaneous Fee-Based Services | E54: ED_FEE431_00048
A55: ED_FEE431_00049 | B55: Miscellaneous Fee-Based Services | E55: ED_FEE431_00049
A56: ED_FEE431_00050 | B56: Miscellaneous Fee-Based Services | E56: ED_FEE431_00050
A57: ED_FEE431_00051 | B57: Miscellaneous Fee-Based Services | E57: ED_FEE431_00051
A58: ED_FEE431_00052 | B58: Miscellaneous Fee-Based Services | E58: ED_FEE431_00052
A59: ED_FEE431_00053 | B59: Miscellaneous Fee-Based Services | E59: ED_FEE431_00053
A60: ED_FEE431_00054 | B60: Miscellaneous Fee-Based Services | E60: ED_FEE431_00054
A61: ED_FEE431_00055 | B61: Miscellaneous Fee-Based Services | E61: ED_FEE431_00055
A62: ED_FEE431_00056 | B62: Miscellaneous Fee-Based Services | E62: ED_FEE431_00056
A63: ED_FEE431_00057 | B63: Miscellaneous Fee-Based Services | E63: ED_FEE431_00057
A64: ED_FEE431_00058 | B64: Miscellaneous Fee-Based Services | E64: ED_FEE431_00058
A65: ED_FEE431_00059 | B65: Miscellaneous Fee-Based Services | E65: ED_FEE431_00059
A66: ED_FEE431_00060 | B66: Miscellaneous Fee-Based Services | E66: ED_FEE431_00060
A67: ED_FEE431_00061 | B67: Miscellaneous Fee-Based Services | E67: ED_FEE431_00061
A68: ED_FEE431_00062 | B68: Miscellaneous Fee-Based Services | E68: ED_FEE431_00062
A69: ED_FEE431_00063 | B69: Miscellaneous Fee-Based Services | E69: ED_FEE431_00063
A70: ED_FEE431_00064 | B70: Miscellaneous Fee-Based Services | E70: ED_FEE431_00064
A71: ED_FEE431_00065 | B71: Miscellaneous Fee-Based Services | E71: ED_FEE431_00065
A72: ED_FEE431_00066 | B72: Miscellaneous Fee-Based Services | E72: ED_FEE431_00066
A73: ED_FEE431_00067 | B73: Miscellaneous Fee-Based Services | E73: ED_FEE431_00067
A74: ED_FEE431_00068 | B74: Miscellaneous Fee-Based Services | E74: ED_FEE431_00068
A75: ED_FEE431_00069 | B75: Miscellaneous Fee-Based Services | E75: ED_FEE431_00069
A76: ED_FEE431_00070 | B76: Miscellaneous Fee-Based Services | E76: ED_FEE431_00070
A77: ED_FEE431_00071 | B77: Miscellaneous Fee-Based Services | E77: ED_FEE431_00071
A78: ED_FEE431_00072 | B78: Miscellaneous Fee-Based Services | E78: ED_FEE431_00072
A79: ED_FEE431_00073 | B79: Miscellaneous Fee-Based Services | E79: ED_FEE431_00073
A80: ED_FEE431_00074 | B80: Miscellaneous Fee-Based Services | E80: ED_FEE431_00074
A81: ED_FEE431_00075 | B81: Miscellaneous Fee-Based Services | E81: ED_FEE431_00075
A82: ED_FEE431_00076 | B82: Miscellaneous Fee-Based Services | E82: ED_FEE431_00076
A83: ED_FEE431_00077 | B83: Miscellaneous Fee-Based Services | E83: ED_FEE431_00077
A84: ED_FEE431_00078 | B84: Miscellaneous Fee-Based Services | E84: ED_FEE431_00078
A85: ED_FEE431_00079 | B85: Miscellaneous Fee-Based Services | E85: ED_FEE431_00079
A86: ED_FEE431_00080 | B86: Miscellaneous Fee-Based Services | E86: ED_FEE431_00080
A87: ED_FEE431_00081 | B87: Miscellaneous Fee-Based Services | E87: ED_FEE431_00081
A88: ED_FEE431_00082 | B88: Miscellaneous Fee-Based Services | E88: ED_FEE431_00082
A89: ED_FEE431_00083 | B89: Miscellaneous Fee-Based Services | E89: ED_FEE431_00083
A90: ED_FEE431_00084 | B90: Miscellaneous Fee-Based Services | E90: ED_FEE431_00084
A91: ED_FEE431_00085 | B91: Miscellaneous Fee-Based Services | E91: ED_FEE431_00085
A92: ED_FEE431_00086 | B92: Miscellaneous Fee-Based Services | E92: ED_FEE431_00086
A93: ED_FEE431_00087 | B93: Miscellaneous Fee-Based Services | E93: ED_FEE431_00087
A94: ED_FEE431_00088 | B94: Miscellaneous Fee-Based Services | E94: ED_FEE431_00088
A95: ED_FEE431_00089 | B95: Miscellaneous Fee-Based Services | E95: ED_FEE431_00089
A96: ED_FEE431_00090 | B96: Miscellaneous Fee-Based Services | E96: ED_FEE431_00090
A97: ED_FEE431_00091 | B97: Miscellaneous Fee-Based Services | E97: ED_FEE431_00091
A98: ED_FEE431_00092 | B98: Miscellaneous Fee-Based Services | E98: ED_FEE431_00092
A99: ED_FEE431_00093 | B99: Miscellaneous Fee-Based Services | E99: ED_FEE431_00093
A100: ED_FEE431_00094 | B100: Miscellaneous Fee-Based Services | E100: ED_FEE431_00094
A101: ED_FEE431_00095 | B101: Miscellaneous Fee-Based Services | E101: ED_FEE431_00095
A102: ED_FEE431_00096 | B102: Miscellaneous Fee-Based Services | E102: ED_FEE431_00096
A103: ED_FEE431_00097 | B103: Miscellaneous Fee-Based Services | E103: ED_FEE431_00097
A104: ED_FEE431_00098 | B104: Miscellaneous Fee-Based Services | E104: ED_FEE431_00098
A105: ED_FEE431_00099 | B105: Miscellaneous Fee-Based Services | E105: ED_FEE431_00099
A106: ED_FEE431_00100 | B106: Miscellaneous Fee-Based Services | E106: ED_FEE431_00100
A107: ED_FEE431_00101 | B107: Miscellaneous Fee-Based Services | E107: ED_FEE431_00101
A108: ED_FEE431_00102 | B108: Miscellaneous Fee-Based Services | E108: ED_FEE431_00102
A109: ED_FEE431_00103 | B109: Miscellaneous Fee-Based Services | E109: ED_FEE431_00103
A110: ED_FEE431_00104 | B110: Miscellaneous Fee-Based Services | E110: ED_FEE431_00104
A111: ED_FEE431_00105 | B111: Miscellaneous Fee-Based Services | E111: ED_FEE431_00105
A112: ED_FEE431_00106 | B112: Miscellaneous Fee-Based Services | E112: ED_FEE431_00106
A113: ED_FEE431_00107 | B113: Miscellaneous Fee-Based Services | E113: ED_FEE431_00107
A114: ED_FEE431_00108 | B114: Miscellaneous Fee-Based Services | E114: ED_FEE431_00108
A115: ED_FEE431_00109 | B115: Miscellaneous Fee-Based Services | E115: ED_FEE431_00109
A116: ED_FEE431_00110 | B116: Miscellaneous Fee-Based Services | E116: ED_FEE431_00110
A117: ED_FEE431_00111 | B117: Miscellaneous Fee-Based Services | E117: ED_FEE431_00111
A118: ED_FEE431_00112 | B118: Miscellaneous Fee-Based Services | E118: ED_FEE431_00112
A119: ED_FEE431_00113 | B119: Miscellaneous Fee-Based Services | E119: ED_FEE431_00113
A120: ED_FEE431_00114 | B120: Miscellaneous Fee-Based Services | E120: ED_FEE431_00114
A121: ED_FEE431_00115 | B121: Miscellaneous Fee-Based Services | E121: ED_FEE431_00115
A122: ED_FEE431_00116 | B122: Miscellaneous Fee-Based Services | E122: ED_FEE431_00116
A123: ED_FEE431_00117 | B123: Miscellaneous Fee-Based Services | E123: ED_FEE431_00117
A124: ED_FEE431_00118 | B124: Miscellaneous Fee-Based Services | E124: ED_FEE431_00118
A125: ED_FEE431_00119 | B125: Miscellaneous Fee-Based Services | E125: ED_FEE431_00119
A126: ED_FEE431_00120 | B126: Miscellaneous Fee-Based Services | E126: ED_FEE431_00120
A127: ED_FEE431_00121 | B127: Miscellaneous Fee-Based Services | E127: ED_FEE431_00121
A128: ED_FEE431_00122 | B128: Miscellaneous Fee-Based Services | E128: ED_FEE431_00122
A129: ED_FEE431_00123 | B129: Miscellaneous Fee-Based Services | E129: ED_FEE431_00123
A130: ED_FEE431_00124 | B130: Miscellaneous Fee-Based Services | E130: ED_FEE431_00124
A131: ED_FEE431_00125 | B131: Miscellaneous Fee-Based Services | E131: ED_FEE431_00125
A132: ED_FEE431_00126 | B132: Miscellaneous Fee-Based Services | E132: ED_FEE431_00126
A133: ED_FEE431_00127 | B133: Miscellaneous Fee-Based Services | E133: ED_FEE431_00127
A134: ED_FEE431_00128 | B134: Miscellaneous Fee-Based Services | E134: ED_FEE431_00128
A135: ED_FEE431_00129 | B135: Miscellaneous Fee-Based Services | E135: ED_FEE431_00129
A136: ED_FEE431_00130 | B136: Miscellaneous Fee-Based Services | E136: ED_FEE431_00130
A137: ED_FEE431_00131 | B137: Miscellaneous Fee-Based Services | E137: ED_FEE431_00131
A138: ED_FEE431_00132 | B138: Miscellaneous Fee-Based Services | E138: ED_FEE431_00132
A139: ED_FEE431_00133 | B139: Miscellaneous Fee-Based Services | E139: ED_FEE431_00133
A140: ED_FEE431_00134 | B140: Miscellaneous Fee-Based Services | E140: ED_FEE431_00134
A141: ED_FEE431_00135 | B141: Miscellaneous Fee-Based Services | E141: ED_FEE431_00135
A142: ED_FEE431_00136 | B142: Miscellaneous Fee-Based Services | E142: ED_FEE431_00136
A143: ED_FEE431_00137 | B143: Miscellaneous Fee-Based Services | E143: ED_FEE431_00137
A144: ED_FEE431_00138 | B144: Miscellaneous Fee-Based Services | E144: ED_FEE431_00138
A145: ED_FEE431_00139 | B145: Miscellaneous Fee-Based Services | E145: ED_FEE431_00139
A146: ED_FEE431_00140 | B146: Miscellaneous Fee-Based Services | E146: ED_FEE431_00140
A147: ED_FEE431_00141 | B147: Miscellaneous Fee-Based Services | E147: ED_FEE431_00141
A148: ED_FEE431_00142 | B148: Miscellaneous Fee-Based Services | E148: ED_FEE431_00142
A149: ED_FEE431_00143 | B149: Miscellaneous Fee-Based Services | E149: ED_FEE431_00143
A150: ED_FEE431_00144 | B150: Miscellaneous Fee-Based Services | E150: ED_FEE431_00144
A151: ED_FEE431_00145 | B151: Miscellaneous Fee-Based Services | E151: ED_FEE431_00145
A152: ED_FEE431_00146 | B152: Miscellaneous Fee-Based Services | E152: ED_FEE431_00146
A153: ED_FEE431_00147 | B153: Miscellaneous Fee-Based Services | E153: ED_FEE431_00147
A154: ED_FEE431_00148 | B154: Miscellaneous Fee-Based Services | E154: ED_FEE431_00148
A155: ED_FEE431_00149 | B155: Miscellaneous Fee-Based Services | E155: ED_FEE431_00149
A156: ED_FEE431_00150 | B156: Miscellaneous Fee-Based Services | E156: ED_FEE431_00150
A157: ED_FEE431_00151 | B157: Miscellaneous Fee-Based Services | E157: ED_FEE431_00151
A158: ED_FEE431_00152 | B158: Miscellaneous Fee-Based Services | E158: ED_FEE431_00152
A159: ED_FEE431_00153 | B159: Miscellaneous Fee-Based Services | E159: ED_FEE431_00153
A160: ED_FEE431_00154 | B160: Miscellaneous Fee-Based Services | E160: ED_FEE431_00154
A161: ED_FEE431_00155 | B161: Miscellaneous Fee-Based Services | E161: ED_FEE431_00155
A162: ED_FEE431_00156 | B162: Miscellaneous Fee-Based Services | E162: ED_FEE431_00156
A163: ED_FEE431_00157 | B163: Miscellaneous Fee-Based Services | E163: ED_FEE431_00157
A164: ED_FEE431_00158 | B164: Miscellaneous Fee-Based Services | E164: ED_FEE431_00158
A165: ED_FEE431_00159 | B165: Miscellaneous Fee-Based Services | E165: ED_FEE431_00159
A166: ED_FEE431_00160 | B166: Miscellaneous Fee-Based Services | E166: ED_FEE431_00160
A167: ED_FEE431_00161 | B167: Miscellaneous Fee-Based Services | E167: ED_FEE431_00161
A168: ED_FEE431_00162 | B168: Miscellaneous Fee-Based Services | E168: ED_FEE431_00162
A169: ED_FEE431_00163 | B169: Miscellaneous Fee-Based Services | E169: ED_FEE431_00163
A170: ED_FEE431_00164 | B170: Miscellaneous Fee-Based Services | E170: ED_FEE431_00164
A171: ED_FEE431_00165 | B171: Miscellaneous Fee-Based Services | E171: ED_FEE431_00165
A172: ED_FEE431_00166 | B172: Miscellaneous Fee-Based Services | E172: ED_FEE431_00166
A173: ED_FEE431_00167 | B173: Miscellaneous Fee-Based Services | E173: ED_FEE431_00167
A174: ED_FEE431_00168 | B174: Miscellaneous Fee-Based Services | E174: ED_FEE431_00168
A175: ED_FEE431_00169 | B175: Miscellaneous Fee-Based Services | E175: ED_FEE431_00169
A176: ED_FEE431_00170 | B176: Miscellaneous Fee-Based Services | E176: ED_FEE431_00170
A177: ED_FEE431_00171 | B177: Miscellaneous Fee-Based Services | E177: ED_FEE431_00171
A178: ED_FEE431_00172 | B178: Miscellaneous Fee-Based Services | E178: ED_FEE431_00172
A179: ED_FEE431_00173 | B179: Miscellaneous Fee-Based Services | E179: ED_FEE431_00173
A180: ED_FEE431_00174 | B180: Miscellaneous Fee-Based Services | E180: ED_FEE431_00174
A181: ED_FEE431_00175 | B181: Miscellaneous Fee-Based Services | E181: ED_FEE431_00175
A182: ED_FEE431_00176 | B182: Miscellaneous Fee-Based Services | E182: ED_FEE431_00176
A183: ED_FEE431_00177 | B183: Miscellaneous Fee-Based Services | E183: ED_FEE431_00177
A184: ED_FEE431_00178 | B184: Miscellaneous Fee-Based Services | E184: ED_FEE431_00178
A185: ED_FEE431_00179 | B185: Miscellaneous Fee-Based Services | E185: ED_FEE431_00179
A186: ED_FEE431_00180 | B186: Miscellaneous Fee-Based Services | E186: ED_FEE431_00180
A187: ED_FEE431_00181 | B187: Miscellaneous Fee-Based Services | E187: ED_FEE431_00181
A188: ED_FEE431_00182 | B188: Miscellaneous Fee-Based Services | E188: ED_FEE431_00182
A189: ED_FEE431_00183 | B189: Miscellaneous Fee-Based Services | E189: ED_FEE431_00183
A190: ED_FEE431_00184 | B190: Miscellaneous Fee-Based Services | E190: ED_FEE431_00184
A191: ED_FEE431_00185 | B191: Miscellaneous Fee-Based Services | E191: ED_FEE431_00185
A192: ED_FEE431_00186 | B192: Miscellaneous Fee-Based Services | E192: ED_FEE431_00186
A193: ED_FEE431_00187 | B193: Miscellaneous Fee-Based Services | E193: ED_FEE431_00187
A194: ED_FEE431_00188 | B194: Miscellaneous Fee-Based Services | E194: ED_FEE431_00188
A195: ED_FEE431_00189 | B195: Miscellaneous Fee-Based Services | E195: ED_FEE431_00189
A196: ED_FEE431_00190 | B196: Miscellaneous Fee-Based Services | E196: ED_FEE431_00190
A197: ED_FEE431_00191 | B197: Miscellaneous Fee-Based Services | E197: ED_FEE431_00191
A198: ED_FEE431_00192 | B198: Miscellaneous Fee-Based Services | E198: ED_FEE431_00192
A199: ED_FEE431_00193 | B199: Miscellaneous Fee-Based Services | E199: ED_FEE431_00193
A200: ED_FEE431_00194 | B200: Miscellaneous Fee-Based Services | E200: ED_FEE431_00194
A201: ED_FEE431_00195 | B201: Miscellaneous Fee-Based Services | E201: ED_FEE431_00195
A202: ED_FEE431_00196 | B202: Miscellaneous Fee-Based Services | E202: ED_FEE431_00196
A203: ED_FEE431_00197 | B203: Miscellaneous Fee-Based Services | E203: ED_FEE431_00197
... 274 more rows

Sheet 4.4 Quoted services
B1: =(LOOKUP(dms_Model,dms_Model_List,dms_Worksheet_List)) -> REGULATORY REPORTING STATEMENT
B2: Australian Distribution Co.
B3: =CONCATENATE("Category Analysis RIN response ",CRY) -> Category Analysis RIN response 2014-15
B4: 4.4 ANCILLARY SERVICES - QUOTED SERVICES
B6: TABLE 4.4.1 - COST METRICS FOR QUOTED SERVICES
D9: EXPENDITURE ($0's) | F9: VOLUMES (0's)
B10: SERVICE | C10: SERVICE SUBCATEGORY | D10: =CRY -> 2014-15 | F10: =CRY -> 2014-15
A11: ED_QUO441_00001 | B11: Quoted Service opex | C11: Customer Requested Shutdown | D11: ='[2]4.4 Quoted services'!D11+'[3]4.4 Quoted services'!D11 -> 95340.99 | E11: ED_QUO441_00001 | F11: ='[2]4.4 Quoted services'!F11+'[3]4.4 Quoted services'!F11 -> 105
A12: ED_QUO441_00002 | B12: Quoted Service opex | C12: Protection Modification | D12: ='[2]4.4 Quoted services'!D12+'[3]4.4 Quoted services'!D12 -> 0 | E12: ED_QUO441_00002 | F12: ='[2]4.4 Quoted services'!F12+'[3]4.4 Quoted services'!F12 -> 0
A13: ED_QUO441_00003 | B13: Quoted Service opex | C13: Temporary Supply | D13: ='[2]4.4 Quoted services'!D13+'[3]4.4 Quoted services'!D13 -> 0 | E13: ED_QUO441_00003 | F13: ='[2]4.4 Quoted services'!F13+'[3]4.4 Quoted services'!F13 -> 0
A14: ED_QUO441_00004 | B14: Quoted Service opex | C14: Tri-gen Connection | D14: ='[2]4.4 Quoted services'!D14+'[3]4.4 Quoted services'!D14 -> 0 | E14: ED_QUO441_00004 | F14: ='[2]4.4 Quoted services'!F14+'[3]4.4 Quoted services'!F14 -> 0
A15: ED_QUO441_00005 | B15: Quoted Service opex | C15: PV Installation Studies (Greater Than 200kW) | D15: ='[2]4.4 Quoted services'!D15+'[3]4.4 Quoted services'!D15 -> 0 | E15: ED_QUO441_00005 | F15: ='[2]4.4 Quoted services'!F15+'[3]4.4 Quoted services'!F15 -> 0
A16: ED_QUO441_00006 | B16: Quoted Service opex | C16: PV Installation Studies (Less Than or Equal to 200kW) | D16: ='[2]4.4 Quoted services'!D16+'[3]4.4 Quoted services'!D16 -> 0 | E16: ED_QUO441_00006 | F16: ='[2]4.4 Quoted services'!F16+'[3]4.4 Quoted services'!F16 -> 0
A17: ED_QUO441_00007 | B17: Quoted Service opex | C17: Miscellaneous | D17: ='[2]4.4 Quoted services'!D17+'[3]4.4 Quoted services'!D17 -> 32196.57 | E17: ED_QUO441_00007 | F17: ='[2]4.4 Quoted services'!F17+'[3]4.4 Quoted services'!F17 -> 45
A18: ED_QUO441_00008 | B18: Quoted Service opex | C18: Third Party Damages | D18: ='[2]4.4 Quoted services'!D18+'[3]4.4 Quoted services'!D18 -> 216378.25 | E18: ED_QUO441_00008 | F18: ='[2]4.4 Quoted services'!F18+'[3]4.4 Quoted services'!F18 -> 69
A19: ED_QUO441_00009 | B19: Quoted Service opex | C19: Termination of mains | D19: ='[2]4.4 Quoted services'!D19+'[3]4.4 Quoted services'!D19 -> 149935.89 | E19: ED_QUO441_00009 | F19: ='[2]4.4 Quoted services'!F19+'[3]4.4 Quoted services'!F19 -> 209
A20: ED_QUO441_00010 | B20: Quoted Service opex | C20: Removal of Assets | D20: ='[2]4.4 Quoted services'!D20+'[3]4.4 Quoted services'!D20 -> 85079.4 | E20: ED_QUO441_00010 | F20: ='[2]4.4 Quoted services'!F20+'[3]4.4 Quoted services'!F20 -> 125
A21: ED_QUO441_00011 | B21: Quoted Service opex | C21: Relocation of Assets | D21: ='[2]4.4 Quoted services'!D21+'[3]4.4 Quoted services'!D21 -> 0 | E21: ED_QUO441_00011 | F21: ='[2]4.4 Quoted services'!F21+'[3]4.4 Quoted services'!F21 -> 0
A22: ED_QUO441_00012 | B22: Quoted Service opex | C22: Customer Initiated Replacement | D22: ='[2]4.4 Quoted services'!D22+'[3]4.4 Quoted services'!D22 -> 89333.14 | E22: ED_QUO441_00012 | F22: ='[2]4.4 Quoted services'!F22+'[3]4.4 Quoted services'!F22 -> 17
A23: ED_QUO441_00013 | B23: Quoted Service opex | C23: Relocation of Assets Capital | D23: ='[2]4.4 Quoted services'!D23+'[3]4.4 Quoted services'!D23 -> 2826815.41 | E23: ED_QUO441_00013 | F23: ='[2]4.4 Quoted services'!F23+'[3]4.4 Quoted services'!F23 -> 75
A24: ED_QUO441_00014 | B24: Quoted Services | E24: ED_QUO441_00014
A25: ED_QUO441_00015 | B25: Quoted Services | E25: ED_QUO441_00015
A26: ED_QUO441_00016 | B26: Quoted Services | E26: ED_QUO441_00016
A27: ED_QUO441_00017 | B27: Quoted Services | E27: ED_QUO441_00017
A28: ED_QUO441_00018 | B28: Quoted Services | E28: ED_QUO441_00018
A29: ED_QUO441_00019 | B29: Quoted Services | E29: ED_QUO441_00019
A30: ED_QUO441_00020 | B30: Quoted Services | E30: ED_QUO441_00020
A31: ED_QUO441_00021 | B31: Quoted Services | E31: ED_QUO441_00021
A32: ED_QUO441_00022 | B32: Quoted Services | E32: ED_QUO441_00022
A33: ED_QUO441_00023 | B33: Quoted Services | E33: ED_QUO441_00023
A34: ED_QUO441_00024 | B34: Quoted Services | E34: ED_QUO441_00024
A35: ED_QUO441_00025 | B35: Quoted Services | E35: ED_QUO441_00025
A36: ED_QUO441_00026 | B36: Quoted Services | E36: ED_QUO441_00026
A37: ED_QUO441_00027 | B37: Quoted Services | E37: ED_QUO441_00027
A38: ED_QUO441_00028 | B38: Quoted Services | E38: ED_QUO441_00028
A39: ED_QUO441_00029 | B39: Quoted Services | E39: ED_QUO441_00029
A40: ED_QUO441_00030 | B40: Quoted Services | E40: ED_QUO441_00030
A41: ED_QUO441_00031 | B41: Quoted Services | E41: ED_QUO441_00031
A42: ED_QUO441_00032 | B42: Quoted Services | E42: ED_QUO441_00032
A43: ED_QUO441_00033 | B43: Quoted Services | E43: ED_QUO441_00033
A44: ED_QUO441_00034 | B44: Quoted Services | E44: ED_QUO441_00034
A45: ED_QUO441_00035 | B45: Quoted Services | E45: ED_QUO441_00035
A46: ED_QUO441_00036 | B46: Quoted Services | E46: ED_QUO441_00036
A47: ED_QUO441_00037 | B47: Quoted Services | E47: ED_QUO441_00037
A48: ED_QUO441_00038 | B48: Quoted Services | E48: ED_QUO441_00038
A49: ED_QUO441_00039 | B49: Quoted Services | E49: ED_QUO441_00039
A50: ED_QUO441_00040 | B50: Quoted Services | E50: ED_QUO441_00040
A51: ED_QUO441_00041 | B51: Quoted Services | E51: ED_QUO441_00041
A52: ED_QUO441_00042 | B52: Quoted Services | E52: ED_QUO441_00042
A53: ED_QUO441_00043 | B53: Quoted Services | E53: ED_QUO441_00043
A54: ED_QUO441_00044 | B54: Quoted Services | E54: ED_QUO441_00044
A55: ED_QUO441_00045 | B55: Quoted Services | E55: ED_QUO441_00045
A56: ED_QUO441_00046 | B56: Quoted Services | E56: ED_QUO441_00046
A57: ED_QUO441_00047 | B57: Quoted Services | E57: ED_QUO441_00047
A58: ED_QUO441_00048 | B58: Quoted Services | E58: ED_QUO441_00048
A59: ED_QUO441_00049 | B59: Quoted Services | E59: ED_QUO441_00049
A60: ED_QUO441_00050 | B60: Quoted Services | E60: ED_QUO441_00050
A61: ED_QUO441_00051 | B61: Quoted Services | E61: ED_QUO441_00051
A62: ED_QUO441_00052 | B62: Quoted Services | E62: ED_QUO441_00052
A63: ED_QUO441_00053 | B63: Quoted Services | E63: ED_QUO441_00053
A64: ED_QUO441_00054 | B64: Quoted Services | E64: ED_QUO441_00054
A65: ED_QUO441_00055 | B65: Quoted Services | E65: ED_QUO441_00055
A66: ED_QUO441_00056 | B66: Quoted Services | E66: ED_QUO441_00056
A67: ED_QUO441_00057 | B67: Quoted Services | E67: ED_QUO441_00057
A68: ED_QUO441_00058 | B68: Quoted Services | E68: ED_QUO441_00058
A69: ED_QUO441_00059 | B69: Quoted Services | E69: ED_QUO441_00059
A70: ED_QUO441_00060 | B70: Quoted Services | E70: ED_QUO441_00060
A71: ED_QUO441_00061 | B71: Quoted Services | E71: ED_QUO441_00061
A72: ED_QUO441_00062 | B72: Quoted Services | E72: ED_QUO441_00062
A73: ED_QUO441_00063 | B73: Quoted Services | E73: ED_QUO441_00063
A74: ED_QUO441_00064 | B74: Quoted Services | E74: ED_QUO441_00064
A75: ED_QUO441_00065 | B75: Quoted Services | E75: ED_QUO441_00065
A76: ED_QUO441_00066 | B76: Quoted Services | E76: ED_QUO441_00066
A77: ED_QUO441_00067 | B77: Quoted Services | E77: ED_QUO441_00067
A78: ED_QUO441_00068 | B78: Quoted Services | E78: ED_QUO441_00068
A79: ED_QUO441_00069 | B79: Quoted Services | E79: ED_QUO441_00069
A80: ED_QUO441_00070 | B80: Quoted Services | E80: ED_QUO441_00070
A81: ED_QUO441_00071 | B81: Quoted Services | E81: ED_QUO441_00071
A82: ED_QUO441_00072 | B82: Quoted Services | E82: ED_QUO441_00072
A83: ED_QUO441_00073 | B83: Quoted Services | E83: ED_QUO441_00073
A84: ED_QUO441_00074 | B84: Quoted Services | E84: ED_QUO441_00074
A85: ED_QUO441_00075 | B85: Quoted Services | E85: ED_QUO441_00075
A86: ED_QUO441_00076 | B86: Quoted Services | E86: ED_QUO441_00076
A87: ED_QUO441_00077 | B87: Quoted Services | E87: ED_QUO441_00077
A88: ED_QUO441_00078 | B88: Quoted Services | E88: ED_QUO441_00078
A89: ED_QUO441_00079 | B89: Quoted Services | E89: ED_QUO441_00079
A90: ED_QUO441_00080 | B90: Quoted Services | E90: ED_QUO441_00080
A91: ED_QUO441_00081 | B91: Quoted Services | E91: ED_QUO441_00081
A92: ED_QUO441_00082 | B92: Quoted Services | E92: ED_QUO441_00082
A93: ED_QUO441_00083 | B93: Quoted Services | E93: ED_QUO441_00083
A94: ED_QUO441_00084 | B94: Quoted Services | E94: ED_QUO441_00084
A95: ED_QUO441_00085 | B95: Quoted Services | E95: ED_QUO441_00085
A96: ED_QUO441_00086 | B96: Quoted Services | E96: ED_QUO441_00086
A97: ED_QUO441_00087 | B97: Quoted Services | E97: ED_QUO441_00087
A98: ED_QUO441_00088 | B98: Quoted Services | E98: ED_QUO441_00088
A99: ED_QUO441_00089 | B99: Quoted Services | E99: ED_QUO441_00089
A100: ED_QUO441_00090 | B100: Quoted Services | E100: ED_QUO441_00090
A101: ED_QUO441_00091 | B101: Quoted Services | E101: ED_QUO441_00091
A102: ED_QUO441_00092 | B102: Quoted Services | E102: ED_QUO441_00092
A103: ED_QUO441_00093 | B103: Quoted Services | E103: ED_QUO441_00093
A104: ED_QUO441_00094 | B104: Quoted Services | E104: ED_QUO441_00094
A105: ED_QUO441_00095 | B105: Quoted Services | E105: ED_QUO441_00095
A106: ED_QUO441_00096 | B106: Quoted Services | E106: ED_QUO441_00096
A107: ED_QUO441_00097 | B107: Quoted Services | E107: ED_QUO441_00097
A108: ED_QUO441_00098 | B108: Quoted Services | E108: ED_QUO441_00098
A109: ED_QUO441_00099 | B109: Quoted Services | E109: ED_QUO441_00099
A110: ED_QUO441_00100 | B110: Quoted Services | E110: ED_QUO441_00100
A111: ED_QUO441_00101 | B111: Quoted Services | E111: ED_QUO441_00101
A112: ED_QUO441_00102 | B112: Quoted Services | E112: ED_QUO441_00102
A113: ED_QUO441_00103 | B113: Quoted Services | E113: ED_QUO441_00103
A114: ED_QUO441_00104 | B114: Quoted Services | E114: ED_QUO441_00104
A115: ED_QUO441_00105 | B115: Quoted Services | E115: ED_QUO441_00105
A116: ED_QUO441_00106 | B116: Quoted Services | E116: ED_QUO441_00106
A117: ED_QUO441_00107 | B117: Quoted Services | E117: ED_QUO441_00107
A118: ED_QUO441_00108 | B118: Quoted Services | E118: ED_QUO441_00108
A119: ED_QUO441_00109 | B119: Quoted Services | E119: ED_QUO441_00109
A120: ED_QUO441_00110 | B120: Quoted Services | E120: ED_QUO441_00110
A121: ED_QUO441_00111 | B121: Quoted Services | E121: ED_QUO441_00111
A122: ED_QUO441_00112 | B122: Quoted Services | E122: ED_QUO441_00112
A123: ED_QUO441_00113 | B123: Quoted Services | E123: ED_QUO441_00113
A124: ED_QUO441_00114 | B124: Quoted Services | E124: ED_QUO441_00114
A125: ED_QUO441_00115 | B125: Quoted Services | E125: ED_QUO441_00115
A126: ED_QUO441_00116 | B126: Quoted Services | E126: ED_QUO441_00116
A127: ED_QUO441_00117 | B127: Quoted Services | E127: ED_QUO441_00117
A128: ED_QUO441_00118 | B128: Quoted Services | E128: ED_QUO441_00118
A129: ED_QUO441_00119 | B129: Quoted Services | E129: ED_QUO441_00119
A130: ED_QUO441_00120 | B130: Quoted Services | E130: ED_QUO441_00120
A131: ED_QUO441_00121 | B131: Quoted Services | E131: ED_QUO441_00121
A132: ED_QUO441_00122 | B132: Quoted Services | E132: ED_QUO441_00122
A133: ED_QUO441_00123 | B133: Quoted Services | E133: ED_QUO441_00123
A134: ED_QUO441_00124 | B134: Quoted Services | E134: ED_QUO441_00124
A135: ED_QUO441_00125 | B135: Quoted Services | E135: ED_QUO441_00125
A136: ED_QUO441_00126 | B136: Quoted Services | E136: ED_QUO441_00126
A137: ED_QUO441_00127 | B137: Quoted Services | E137: ED_QUO441_00127
A138: ED_QUO441_00128 | B138: Quoted Services | E138: ED_QUO441_00128
A139: ED_QUO441_00129 | B139: Quoted Services | E139: ED_QUO441_00129
A140: ED_QUO441_00130 | B140: Quoted Services | E140: ED_QUO441_00130
A141: ED_QUO441_00131 | B141: Quoted Services | E141: ED_QUO441_00131
A142: ED_QUO441_00132 | B142: Quoted Services | E142: ED_QUO441_00132
A143: ED_QUO441_00133 | B143: Quoted Services | E143: ED_QUO441_00133
A144: ED_QUO441_00134 | B144: Quoted Services | E144: ED_QUO441_00134
A145: ED_QUO441_00135 | B145: Quoted Services | E145: ED_QUO441_00135
A146: ED_QUO441_00136 | B146: Quoted Services | E146: ED_QUO441_00136
A147: ED_QUO441_00137 | B147: Quoted Services | E147: ED_QUO441_00137
A148: ED_QUO441_00138 | B148: Quoted Services | E148: ED_QUO441_00138
A149: ED_QUO441_00139 | B149: Quoted Services | E149: ED_QUO441_00139
A150: ED_QUO441_00140 | B150: Quoted Services | E150: ED_QUO441_00140
A151: ED_QUO441_00141 | B151: Quoted Services | E151: ED_QUO441_00141
A152: ED_QUO441_00142 | B152: Quoted Services | E152: ED_QUO441_00142
A153: ED_QUO441_00143 | B153: Quoted Services | E153: ED_QUO441_00143
A154: ED_QUO441_00144 | B154: Quoted Services | E154: ED_QUO441_00144
A155: ED_QUO441_00145 | B155: Quoted Services | E155: ED_QUO441_00145
A156: ED_QUO441_00146 | B156: Quoted Services | E156: ED_QUO441_00146
A157: ED_QUO441_00147 | B157: Quoted Services | E157: ED_QUO441_00147
A158: ED_QUO441_00148 | B158: Quoted Services | E158: ED_QUO441_00148
A159: ED_QUO441_00149 | B159: Quoted Services | E159: ED_QUO441_00149
A160: ED_QUO441_00150 | B160: Quoted Services | E160: ED_QUO441_00150
A161: ED_QUO441_00151 | B161: Quoted Services | E161: ED_QUO441_00151
A162: ED_QUO441_00152 | B162: Quoted Services | E162: ED_QUO441_00152
A163: ED_QUO441_00153 | B163: Quoted Services | E163: ED_QUO441_00153
A164: ED_QUO441_00154 | B164: Quoted Services | E164: ED_QUO441_00154
A165: ED_QUO441_00155 | B165: Quoted Services | E165: ED_QUO441_00155
A166: ED_QUO441_00156 | B166: Quoted Services | E166: ED_QUO441_00156
A167: ED_QUO441_00157 | B167: Quoted Services | E167: ED_QUO441_00157
A168: ED_QUO441_00158 | B168: Quoted Services | E168: ED_QUO441_00158
A169: ED_QUO441_00159 | B169: Quoted Services | E169: ED_QUO441_00159
A170: ED_QUO441_00160 | B170: Quoted Services | E170: ED_QUO441_00160
A171: ED_QUO441_00161 | B171: Quoted Services | E171: ED_QUO441_00161
A172: ED_QUO441_00162 | B172: Quoted Services | E172: ED_QUO441_00162
A173: ED_QUO441_00163 | B173: Quoted Services | E173: ED_QUO441_00163
A174: ED_QUO441_00164 | B174: Quoted Services | E174: ED_QUO441_00164
A175: ED_QUO441_00165 | B175: Quoted Services | E175: ED_QUO441_00165
A176: ED_QUO441_00166 | B176: Quoted Services | E176: ED_QUO441_00166
A177: ED_QUO441_00167 | B177: Quoted Services | E177: ED_QUO441_00167
A178: ED_QUO441_00168 | B178: Quoted Services | E178: ED_QUO441_00168
A179: ED_QUO441_00169 | B179: Quoted Services | E179: ED_QUO441_00169
A180: ED_QUO441_00170 | B180: Quoted Services | E180: ED_QUO441_00170
A181: ED_QUO441_00171 | B181: Quoted Services | E181: ED_QUO441_00171
A182: ED_QUO441_00172 | B182: Quoted Services | E182: ED_QUO441_00172
A183: ED_QUO441_00173 | B183: Quoted Services | E183: ED_QUO441_00173
A184: ED_QUO441_00174 | B184: Quoted Services | E184: ED_QUO441_00174
A185: ED_QUO441_00175 | B185: Quoted Services | E185: ED_QUO441_00175
A186: ED_QUO441_00176 | B186: Quoted Services | E186: ED_QUO441_00176
A187: ED_QUO441_00177 | B187: Quoted Services | E187: ED_QUO441_00177
A188: ED_QUO441_00178 | B188: Quoted Services | E188: ED_QUO441_00178
A189: ED_QUO441_00179 | B189: Quoted Services | E189: ED_QUO441_00179
A190: ED_QUO441_00180 | B190: Quoted Services | E190: ED_QUO441_00180
A191: ED_QUO441_00181 | B191: Quoted Services | E191: ED_QUO441_00181
A192: ED_QUO441_00182 | B192: Quoted Services | E192: ED_QUO441_00182
A193: ED_QUO441_00183 | B193: Quoted Services | E193: ED_QUO441_00183
A194: ED_QUO441_00184 | B194: Quoted Services | E194: ED_QUO441_00184
A195: ED_QUO441_00185 | B195: Quoted Services | E195: ED_QUO441_00185
A196: ED_QUO441_00186 | B196: Quoted Services | E196: ED_QUO441_00186
A197: ED_QUO441_00187 | B197: Quoted Services | E197: ED_QUO441_00187
A198: ED_QUO441_00188 | B198: Quoted Services | E198: ED_QUO441_00188
A199: ED_QUO441_00189 | B199: Quoted Services | E199: ED_QUO441_00189
A200: ED_QUO441_00190 | B200: Quoted Services | E200: ED_QUO441_00190
A201: ED_QUO441_00191 | B201: Quoted Services | E201: ED_QUO441_00191
A202: ED_QUO441_00192 | B202: Quoted Services | E202: ED_QUO441_00192
A203: ED_QUO441_00193 | B203: Quoted Services | E203: ED_QUO441_00193
... 280 more rows

Sheet 5.2 Asset Age Profile
B1: =(LOOKUP(dms_Model,dms_Model_List,dms_Worksheet_List)) -> REGULATORY REPORTING STATEMENT
B2: Australian Distribution Co.
B3: =CONCATENATE("Category Analysis RIN response ",CRY) -> Category Analysis RIN response 2014-15
B4: 5.2 ASSET AGE PROFILE
B6: TABLE 5.2.1 - ASSET AGE PROFILE
E7: 1 | P7: 2 | AA7: 3
N9: ECONOMIC LIFE (YEARS) | AJ9: INSTALLED ASSETS -˃ QUANTITY CURRENTLY IN COMMISSION BY YEAR
B10: ASSET GROUP | C10: ASSET CATEGORY | E10: DNSP NAME | F10: SERVICE | G10: ASSET GROUP | H10: ASSET CATEGORY | I10: DATA TYPE | J10: DATA TYPE SUBCATEGORY | K10: MEASUREMENT | L10: DENOMINATION | N10: MEAN | P10: DNSP NAME | Q10: SERVICE | R10: ASSET GROUP | S10: ASSET CATEGORY | T10: DATA TYPE | U10: DATA TYPE SUBCATEGORY | V10: MEASUREMENT | W10: DENOMINATION | Y10: STANDARD DEVIATION | AA10: DNSP NAME | AB10: SERVICE | AC10: ASSET GROUP | AD10: ASSET CATEGORY | AE10: DATA TYPE | AF10: DATA TYPE SUBCATEGORY | AG10: MEASUREMENT | AH10: DENOMINATION | AJ10: 2014-15 | AK10: 2013-14 | AL10: 2012-13 | AM10: 2011-12 | AN10: 2010-11 | AO10: 2009-10 | AP10: 2008-09 | AQ10: 2007-08 | AR10: 2006-07 | AS10: 2005-06 | AT10: 2004-05 | AU10: 2003-04 | AV10: 2002-03 | AW10: 2001-02 | AX10: 2000-01 | AY10: 1999-00 | AZ10: 1998-99 | BA10: 1997-98 | BB10: 1996-97 | BC10: 1995-96 | BD10: 1994-95 | BE10: 1993-94 | BF10: 1992-93 | BG10: 1991-92 | BH10: 1990-91 | BI10: 1989-90 | BJ10: 1988-89 | BK10: 1987-88 | BL10: 1986-87 | BM10: 1985-86 | BN10: 1984-85 | BO10: 1983-84 | BP10: 1982-83 | BQ10: 1981-82 | BR10: 1980-81 | BS10: 1979-80 | BT10: 1978-79 | BU10: 1977-78 | BV10: 1976-77 | BW10: 1975-76 | BX10: 1974-75 | BY10: 1973-74 | BZ10: 1972-73 | CA10: 1971-72 | CB10: 1970-71 | CC10: 1969-70 | CD10: 1968-69 | CE10: 1967-68 | CF10: 1966-67 | CG10: 1965-66 | CH10: 1964-65 | CI10: 1963-64 | CJ10: 1962-63 | CK10: 1961-62 | CL10: 1960-61 | CM10: 1959-60 | CN10: 1958-59 | CO10: 1957-58 | CP10: 1956-57 | CQ10: 1955-56 | CR10: 1954-55 | CS10: 1953-54 | CT10: 1952-53 | CU10: 1951-52 | CV10: 1950-51 | CW10: 1949-50 | CX10: 1948-49 | CY10: 1947-48 | CZ10: 1946-47 | DA10: 1945-46 | DB10: 1944-45 | DC10: 1943-44 | DD10: 1942-43 | DE10: 1941-42 | DF10: 1940-41 | DG10: 1939-40 | DH10: 1938-39 | DI10: 1937-38 | DJ10: 1936-37 | DK10: 1935-36 | DL10: 1934-35 | DM10: 1933-34 | DN10: 1932-33 | DO10: 1931-32 | DP10: 1930-31 | DQ10: 1929-30 | DR10: 1928-29 | DS10: 1927-28 | DT10: 1926-27 | DU10: 1925-26 | DV10: 1924-25 | DW10: 1923-24 | DX10: 1922-23 | DY10: 1921-22 | DZ10: 1920-21 | EA10: 1919-20 | EB10: 1918-19 | EC10: 1917-18 | ED10: 1916-17 | EE10: 1915-16 | EF10: 1914-15 | EG10: 1913-14 | EH10: 1912-13 | EI10: 1911-12 | EJ10: 1910-11
A11: ED_ASS521_00001 | B11: POLES BY: HIGHEST OPERATING VOLTAGE ; MATERIAL TYPE; STAKING (IF WOOD) | C11: Staking of a wooden pole | E11: DNSP NAME | F11: REPEX | G11: POLES | H11: =C11 -> Staking of a wooden pole | I11: DESCRIPTOR METRIC | J11: MEAN ECONOMIC LIFE | K11: YEARS | L11: NUMBER | N11: ='[2]5.2 Asset Age Profile'!N11+'[3]5.2 Asset Age Profile'!N11 -> 0 | O11: ='[2]5.2 Asset Age Profile'!O11+'[3]5.2 Asset Age Profile'!O11 -> 0 | P11: ='[2]5.2 Asset Age Profile'!P11+'[3]5.2 Asset Age Profile'!P11 -> 0 | Q11: ='[2]5.2 Asset Age Profile'!Q11+'[3]5.2 Asset Age Profile'!Q11 -> 0 | R11: ='[2]5.2 Asset Age Profile'!R11+'[3]5.2 Asset Age Profile'!R11 -> 0 | S11: ='[2]5.2 Asset Age Profile'!S11+'[3]5.2 Asset Age Profile'!S11 -> 0 | T11: ='[2]5.2 Asset Age Profile'!T11+'[3]5.2 Asset Age Profile'!T11 -> 0 | U11: ='[2]5.2 Asset Age Profile'!U11+'[3]5.2 Asset Age Profile'!U11 -> 0 | V11: ='[2]5.2 Asset Age Profile'!V11+'[3]5.2 Asset Age Profile'!V11 -> 0 | W11: ='[2]5.2 Asset Age Profile'!W11+'[3]5.2 Asset Age Profile'!W11 -> 0 | X11: ='[2]5.2 Asset Age Profile'!X11+'[3]5.2 Asset Age Profile'!X11 -> 0 | Y11: ='[2]5.2 Asset Age Profile'!Y11+'[3]5.2 Asset Age Profile'!Y11 -> 0 | Z11: ='[2]5.2 Asset Age Profile'!Z11+'[3]5.2 Asset Age Profile'!Z11 -> 0 | AA11: ='[2]5.2 Asset Age Profile'!AA11+'[3]5.2 Asset Age Profile'!AA11 -> 0 | AB11: ='[2]5.2 Asset Age Profile'!AB11+'[3]5.2 Asset Age Profile'!AB11 -> 0 | AC11: ='[2]5.2 Asset Age Profile'!AC11+'[3]5.2 Asset Age Profile'!AC11 -> 0 | AD11: ='[2]5.2 Asset Age Profile'!AD11+'[3]5.2 Asset Age Profile'!AD11 -> 0 | AE11: ='[2]5.2 Asset Age Profile'!AE11+'[3]5.2 Asset Age Profile'!AE11 -> 0 | AF11: ='[2]5.2 Asset Age Profile'!AF11+'[3]5.2 Asset Age Profile'!AF11 -> 0 | AG11: ='[2]5.2 Asset Age Profile'!AG11+'[3]5.2 Asset Age Profile'!AG11 -> 0 | AH11: ='[2]5.2 Asset Age Profile'!AH11+'[3]5.2 Asset Age Profile'!AH11 -> 0 | AI11: ='[2]5.2 Asset Age Profile'!AI11+'[3]5.2 Asset Age Profile'!AI11 -> 0 | AJ11: ='[2]5.2 Asset Age Profile'!AJ11+'[3]5.2 Asset Age Profile'!AJ11 -> 676 | AK11: ='[2]5.2 Asset Age Profile'!AK11+'[3]5.2 Asset Age Profile'!AK11 -> 615 | AL11: ='[2]5.2 Asset Age Profile'!AL11+'[3]5.2 Asset Age Profile'!AL11 -> 746 | AM11: ='[2]5.2 Asset Age Profile'!AM11+'[3]5.2 Asset Age Profile'!AM11 -> 864 | AN11: ='[2]5.2 Asset Age Profile'!AN11+'[3]5.2 Asset Age Profile'!AN11 -> 920 | AO11: ='[2]5.2 Asset Age Profile'!AO11+'[3]5.2 Asset Age Profile'!AO11 -> 790 | AP11: ='[2]5.2 Asset Age Profile'!AP11+'[3]5.2 Asset Age Profile'!AP11 -> 1020 | AQ11: ='[2]5.2 Asset Age Profile'!AQ11+'[3]5.2 Asset Age Profile'!AQ11 -> 2835 | AR11: ='[2]5.2 Asset Age Profile'!AR11+'[3]5.2 Asset Age Profile'!AR11 -> 3012 | AS11: ='[2]5.2 Asset Age Profile'!AS11+'[3]5.2 Asset Age Profile'!AS11 -> 1491 | AT11: ='[2]5.2 Asset Age Profile'!AT11+'[3]5.2 Asset Age Profile'!AT11 -> 567 | AU11: ='[2]5.2 Asset Age Profile'!AU11+'[3]5.2 Asset Age Profile'!AU11 -> 52 | AV11: ='[2]5.2 Asset Age Profile'!AV11+'[3]5.2 Asset Age Profile'!AV11 -> 8 | AW11: ='[2]5.2 Asset Age Profile'!AW11+'[3]5.2 Asset Age Profile'!AW11 -> 9 | AX11: ='[2]5.2 Asset Age Profile'!AX11+'[3]5.2 Asset Age Profile'!AX11 -> 1 | AY11: ='[2]5.2 Asset Age Profile'!AY11+'[3]5.2 Asset Age Profile'!AY11 -> 1 | AZ11: ='[2]5.2 Asset Age Profile'!AZ11+'[3]5.2 Asset Age Profile'!AZ11 -> 0 | BA11: ='[2]5.2 Asset Age Profile'!BA11+'[3]5.2 Asset Age Profile'!BA11 -> 0 | BB11: ='[2]5.2 Asset Age Profile'!BB11+'[3]5.2 Asset Age Profile'!BB11 -> 0 | BC11: ='[2]5.2 Asset Age Profile'!BC11+'[3]5.2 Asset Age Profile'!BC11 -> 0 | BD11: ='[2]5.2 Asset Age Profile'!BD11+'[3]5.2 Asset Age Profile'!BD11 -> 0 | BE11: ='[2]5.2 Asset Age Profile'!BE11+'[3]5.2 Asset Age Profile'!BE11 -> 0 | BF11: ='[2]5.2 Asset Age Profile'!BF11+'[3]5.2 Asset Age Profile'!BF11 -> 0 | BG11: ='[2]5.2 Asset Age Profile'!BG11+'[3]5.2 Asset Age Profile'!BG11 -> 0 | BH11: ='[2]5.2 Asset Age Profile'!BH11+'[3]5.2 Asset Age Profile'!BH11 -> 0 | BI11: ='[2]5.2 Asset Age Profile'!BI11+'[3]5.2 Asset Age Profile'!BI11 -> 0 | BJ11: ='[2]5.2 Asset Age Profile'!BJ11+'[3]5.2 Asset Age Profile'!BJ11 -> 0 | BK11: ='[2]5.2 Asset Age Profile'!BK11+'[3]5.2 Asset Age Profile'!BK11 -> 0 | BL11: ='[2]5.2 Asset Age Profile'!BL11+'[3]5.2 Asset Age Profile'!BL11 -> 0 | BM11: ='[2]5.2 Asset Age Profile'!BM11+'[3]5.2 Asset Age Profile'!BM11 -> 0 | BN11: ='[2]5.2 Asset Age Profile'!BN11+'[3]5.2 Asset Age Profile'!BN11 -> 0 | BO11: ='[2]5.2 Asset Age Profile'!BO11+'[3]5.2 Asset Age Profile'!BO11 -> 0 | BP11: ='[2]5.2 Asset Age Profile'!BP11+'[3]5.2 Asset Age Profile'!BP11 -> 0 | BQ11: ='[2]5.2 Asset Age Profile'!BQ11+'[3]5.2 Asset Age Profile'!BQ11 -> 0 | BR11: ='[2]5.2 Asset Age Profile'!BR11+'[3]5.2 Asset Age Profile'!BR11 -> 0 | BS11: ='[2]5.2 Asset Age Profile'!BS11+'[3]5.2 Asset Age Profile'!BS11 -> 0 | BT11: ='[2]5.2 Asset Age Profile'!BT11+'[3]5.2 Asset Age Profile'!BT11 -> 0 | BU11: ='[2]5.2 Asset Age Profile'!BU11+'[3]5.2 Asset Age Profile'!BU11 -> 0 | BV11: ='[2]5.2 Asset Age Profile'!BV11+'[3]5.2 Asset Age Profile'!BV11 -> 0 | BW11: ='[2]5.2 Asset Age Profile'!BW11+'[3]5.2 Asset Age Profile'!BW11 -> 0 | BX11: ='[2]5.2 Asset Age Profile'!BX11+'[3]5.2 Asset Age Profile'!BX11 -> 0 | BY11: ='[2]5.2 Asset Age Profile'!BY11+'[3]5.2 Asset Age Profile'!BY11 -> 0 | BZ11: ='[2]5.2 Asset Age Profile'!BZ11+'[3]5.2 Asset Age Profile'!BZ11 -> 0 | CA11: ='[2]5.2 Asset Age Profile'!CA11+'[3]5.2 Asset Age Profile'!CA11 -> 0 | CB11: ='[2]5.2 Asset Age Profile'!CB11+'[3]5.2 Asset Age Profile'!CB11 -> 0 | CC11: ='[2]5.2 Asset Age Profile'!CC11+'[3]5.2 Asset Age Profile'!CC11 -> 0 | CD11: ='[2]5.2 Asset Age Profile'!CD11+'[3]5.2 Asset Age Profile'!CD11 -> 0 | CE11: ='[2]5.2 Asset Age Profile'!CE11+'[3]5.2 Asset Age Profile'!CE11 -> 0 | CF11: ='[2]5.2 Asset Age Profile'!CF11+'[3]5.2 Asset Age Profile'!CF11 -> 0 | CG11: ='[2]5.2 Asset Age Profile'!CG11+'[3]5.2 Asset Age Profile'!CG11 -> 0 | CH11: ='[2]5.2 Asset Age Profile'!CH11+'[3]5.2 Asset Age Profile'!CH11 -> 0 | CI11: ='[2]5.2 Asset Age Profile'!CI11+'[3]5.2 Asset Age Profile'!CI11 -> 0 | CJ11: ='[2]5.2 Asset Age Profile'!CJ11+'[3]5.2 Asset Age Profile'!CJ11 -> 0 | CK11: ='[2]5.2 Asset Age Profile'!CK11+'[3]5.2 Asset Age Profile'!CK11 -> 0 | CL11: ='[2]5.2 Asset Age Profile'!CL11+'[3]5.2 Asset Age Profile'!CL11 -> 0 | CM11: ='[2]5.2 Asset Age Profile'!CM11+'[3]5.2 Asset Age Profile'!CM11 -> 0 | CN11: ='[2]5.2 Asset Age Profile'!CN11+'[3]5.2 Asset Age Profile'!CN11 -> 0 | CO11: ='[2]5.2 Asset Age Profile'!CO11+'[3]5.2 Asset Age Profile'!CO11 -> 0 | CP11: ='[2]5.2 Asset Age Profile'!CP11+'[3]5.2 Asset Age Profile'!CP11 -> 0 | CQ11: ='[2]5.2 Asset Age Profile'!CQ11+'[3]5.2 Asset Age Profile'!CQ11 -> 0 | CR11: ='[2]5.2 Asset Age Profile'!CR11+'[3]5.2 Asset Age Profile'!CR11 -> 0 | CS11: ='[2]5.2 Asset Age Profile'!CS11+'[3]5.2 Asset Age Profile'!CS11 -> 0 | CT11: ='[2]5.2 Asset Age Profile'!CT11+'[3]5.2 Asset Age Profile'!CT11 -> 0 | CU11: ='[2]5.2 Asset Age Profile'!CU11+'[3]5.2 Asset Age Profile'!CU11 -> 0 | CV11: ='[2]5.2 Asset Age Profile'!CV11+'[3]5.2 Asset Age Profile'!CV11 -> 0 | CW11: ='[2]5.2 Asset Age Profile'!CW11+'[3]5.2 Asset Age Profile'!CW11 -> 0 | CX11: ='[2]5.2 Asset Age Profile'!CX11+'[3]5.2 Asset Age Profile'!CX11 -> 0 | CY11: ='[2]5.2 Asset Age Profile'!CY11+'[3]5.2 Asset Age Profile'!CY11 -> 0 | CZ11: ='[2]5.2 Asset Age Profile'!CZ11+'[3]5.2 Asset Age Profile'!CZ11 -> 0 | DA11: ='[2]5.2 Asset Age Profile'!DA11+'[3]5.2 Asset Age Profile'!DA11 -> 0 | DB11: ='[2]5.2 Asset Age Profile'!DB11+'[3]5.2 Asset Age Profile'!DB11 -> 0 | DC11: ='[2]5.2 Asset Age Profile'!DC11+'[3]5.2 Asset Age Profile'!DC11 -> 0 | DD11: ='[2]5.2 Asset Age Profile'!DD11+'[3]5.2 Asset Age Profile'!DD11 -> 0 | DE11: ='[2]5.2 Asset Age Profile'!DE11+'[3]5.2 Asset Age Profile'!DE11 -> 0 | DF11: ='[2]5.2 Asset Age Profile'!DF11+'[3]5.2 Asset Age Profile'!DF11 -> 0 | DG11: ='[2]5.2 Asset Age Profile'!DG11+'[3]5.2 Asset Age Profile'!DG11 -> 0 | DH11: ='[2]5.2 Asset Age Profile'!DH11+'[3]5.2 Asset Age Profile'!DH11 -> 0 | DI11: ='[2]5.2 Asset Age Profile'!DI11+'[3]5.2 Asset Age Profile'!DI11 -> 0 | DJ11: ='[2]5.2 Asset Age Profile'!DJ11+'[3]5.2 Asset Age Profile'!DJ11 -> 0 | DK11: ='[2]5.2 Asset Age Profile'!DK11+'[3]5.2 Asset Age Profile'!DK11 -> 0 | DL11: ='[2]5.2 Asset Age Profile'!DL11+'[3]5.2 Asset Age Profile'!DL11 -> 0 | DM11: ='[2]5.2 Asset Age Profile'!DM11+'[3]5.2 Asset Age Profile'!DM11 -> 0 | DN11: ='[2]5.2 Asset Age Profile'!DN11+'[3]5.2 Asset Age Profile'!DN11 -> 0 | DO11: ='[2]5.2 Asset Age Profile'!DO11+'[3]5.2 Asset Age Profile'!DO11 -> 0 | DP11: ='[2]5.2 Asset Age Profile'!DP11+'[3]5.2 Asset Age Profile'!DP11 -> 0 | DQ11: ='[2]5.2 Asset Age Profile'!DQ11+'[3]5.2 Asset Age Profile'!DQ11 -> 0 | DR11: ='[2]5.2 Asset Age Profile'!DR11+'[3]5.2 Asset Age Profile'!DR11 -> 0 | DS11: ='[2]5.2 Asset Age Profile'!DS11+'[3]5.2 Asset Age Profile'!DS11 -> 0 | DT11: ='[2]5.2 Asset Age Profile'!DT11+'[3]5.2 Asset Age Profile'!DT11 -> 0 | DU11: ='[2]5.2 Asset Age Profile'!DU11+'[3]5.2 Asset Age Profile'!DU11 -> 0 | DV11: ='[2]5.2 Asset Age Profile'!DV11+'[3]5.2 Asset Age Profile'!DV11 -> 0 | DW11: ='[2]5.2 Asset Age Profile'!DW11+'[3]5.2 Asset Age Profile'!DW11 -> 0 | DX11: ='[2]5.2 Asset Age Profile'!DX11+'[3]5.2 Asset Age Profile'!DX11 -> 0 | DY11: ='[2]5.2 Asset Age Profile'!DY11+'[3]5.2 Asset Age Profile'!DY11 -> 0 | DZ11: ='[2]5.2 Asset Age Profile'!DZ11+'[3]5.2 Asset Age Profile'!DZ11 -> 0 | EA11: ='[2]5.2 Asset Age Profile'!EA11+'[3]5.2 Asset Age Profile'!EA11 -> 0 | EB11: ='[2]5.2 Asset Age Profile'!EB11+'[3]5.2 Asset Age Profile'!EB11 -> 0 | EC11: ='[2]5.2 Asset Age Profile'!EC11+'[3]5.2 Asset Age Profile'!EC11 -> 0 | ED11: ='[2]5.2 Asset Age Profile'!ED11+'[3]5.2 Asset Age Profile'!ED11 -> 0 | EE11: ='[2]5.2 Asset Age Profile'!EE11+'[3]5.2 Asset Age Profile'!EE11 -> 0 | EF11: ='[2]5.2 Asset Age Profile'!EF11+'[3]5.2 Asset Age Profile'!EF11 -> 0 | EG11: ='[2]5.2 Asset Age Profile'!EG11+'[3]5.2 Asset Age Profile'!EG11 -> 0 | EH11: ='[2]5.2 Asset Age Profile'!EH11+'[3]5.2 Asset Age Profile'!EH11 -> 0 | EI11: ='[2]5.2 Asset Age Profile'!EI11+'[3]5.2 Asset Age Profile'!EI11 -> 0 | EJ11: ='[2]5.2 Asset Age Profile'!EJ11+'[3]5.2 Asset Age Profile'!EJ11 -> 0
A12: ED_ASS521_00002 | C12: ˂ = 1 kV; Wood | E12: TNSP NAME | F12: REPEX | G12: POLES | H12: =C12 -> ˂ = 1 kV; Wood | I12: DESCRIPTOR METRIC | J12: MEAN ECONOMIC LIFE | K12: YEARS | L12: NUMBER | N12: ='[2]5.2 Asset Age Profile'!N12+'[3]5.2 Asset Age Profile'!N12 -> 42 | O12: ='[2]5.2 Asset Age Profile'!O12+'[3]5.2 Asset Age Profile'!O12 -> 0 | P12: ='[2]5.2 Asset Age Profile'!P12+'[3]5.2 Asset Age Profile'!P12 -> 0 | Q12: ='[2]5.2 Asset Age Profile'!Q12+'[3]5.2 Asset Age Profile'!Q12 -> 0 | R12: ='[2]5.2 Asset Age Profile'!R12+'[3]5.2 Asset Age Profile'!R12 -> 0 | S12: ='[2]5.2 Asset Age Profile'!S12+'[3]5.2 Asset Age Profile'!S12 -> 0 | T12: ='[2]5.2 Asset Age Profile'!T12+'[3]5.2 Asset Age Profile'!T12 -> 0 | U12: ='[2]5.2 Asset Age Profile'!U12+'[3]5.2 Asset Age Profile'!U12 -> 0 | V12: ='[2]5.2 Asset Age Profile'!V12+'[3]5.2 Asset Age Profile'!V12 -> 0 | W12: ='[2]5.2 Asset Age Profile'!W12+'[3]5.2 Asset Age Profile'!W12 -> 0 | X12: ='[2]5.2 Asset Age Profile'!X12+'[3]5.2 Asset Age Profile'!X12 -> 0 | Y12: ='[2]5.2 Asset Age Profile'!Y12+'[3]5.2 Asset Age Profile'!Y12 -> 22 | Z12: ='[2]5.2 Asset Age Profile'!Z12+'[3]5.2 Asset Age Profile'!Z12 -> 0 | AA12: ='[2]5.2 Asset Age Profile'!AA12+'[3]5.2 Asset Age Profile'!AA12 -> 0 | AB12: ='[2]5.2 Asset Age Profile'!AB12+'[3]5.2 Asset Age Profile'!AB12 -> 0 | AC12: ='[2]5.2 Asset Age Profile'!AC12+'[3]5.2 Asset Age Profile'!AC12 -> 0 | AD12: ='[2]5.2 Asset Age Profile'!AD12+'[3]5.2 Asset Age Profile'!AD12 -> 0 | AE12: ='[2]5.2 Asset Age Profile'!AE12+'[3]5.2 Asset Age Profile'!AE12 -> 0 | AF12: ='[2]5.2 Asset Age Profile'!AF12+'[3]5.2 Asset Age Profile'!AF12 -> 0 | AG12: ='[2]5.2 Asset Age Profile'!AG12+'[3]5.2 Asset Age Profile'!AG12 -> 0 | AH12: ='[2]5.2 Asset Age Profile'!AH12+'[3]5.2 Asset Age Profile'!AH12 -> 0 | AI12: ='[2]5.2 Asset Age Profile'!AI12+'[3]5.2 Asset Age Profile'!AI12 -> 0 | AJ12: ='[2]5.2 Asset Age Profile'!AJ12+'[3]5.2 Asset Age Profile'!AJ12 -> 3 | AK12: ='[2]5.2 Asset Age Profile'!AK12+'[3]5.2 Asset Age Profile'!AK12 -> 3 | AL12: ='[2]5.2 Asset Age Profile'!AL12+'[3]5.2 Asset Age Profile'!AL12 -> 5 | AM12: ='[2]5.2 Asset Age Profile'!AM12+'[3]5.2 Asset Age Profile'!AM12 -> 8 | AN12: ='[2]5.2 Asset Age Profile'!AN12+'[3]5.2 Asset Age Profile'!AN12 -> 19 | AO12: ='[2]5.2 Asset Age Profile'!AO12+'[3]5.2 Asset Age Profile'!AO12 -> 10 | AP12: ='[2]5.2 Asset Age Profile'!AP12+'[3]5.2 Asset Age Profile'!AP12 -> 9 | AQ12: ='[2]5.2 Asset Age Profile'!AQ12+'[3]5.2 Asset Age Profile'!AQ12 -> 16 | AR12: ='[2]5.2 Asset Age Profile'!AR12+'[3]5.2 Asset Age Profile'!AR12 -> 26 | AS12: ='[2]5.2 Asset Age Profile'!AS12+'[3]5.2 Asset Age Profile'!AS12 -> 28 | AT12: ='[2]5.2 Asset Age Profile'!AT12+'[3]5.2 Asset Age Profile'!AT12 -> 73 | AU12: ='[2]5.2 Asset Age Profile'!AU12+'[3]5.2 Asset Age Profile'!AU12 -> 75 | AV12: ='[2]5.2 Asset Age Profile'!AV12+'[3]5.2 Asset Age Profile'!AV12 -> 92 | AW12: ='[2]5.2 Asset Age Profile'!AW12+'[3]5.2 Asset Age Profile'!AW12 -> 54 | AX12: ='[2]5.2 Asset Age Profile'!AX12+'[3]5.2 Asset Age Profile'!AX12 -> 80 | AY12: ='[2]5.2 Asset Age Profile'!AY12+'[3]5.2 Asset Age Profile'!AY12 -> 91 | AZ12: ='[2]5.2 Asset Age Profile'!AZ12+'[3]5.2 Asset Age Profile'!AZ12 -> 12 | BA12: ='[2]5.2 Asset Age Profile'!BA12+'[3]5.2 Asset Age Profile'!BA12 -> 36 | BB12: ='[2]5.2 Asset Age Profile'!BB12+'[3]5.2 Asset Age Profile'!BB12 -> 4 | BC12: ='[2]5.2 Asset Age Profile'!BC12+'[3]5.2 Asset Age Profile'!BC12 -> 61 | BD12: ='[2]5.2 Asset Age Profile'!BD12+'[3]5.2 Asset Age Profile'!BD12 -> 71 | BE12: ='[2]5.2 Asset Age Profile'!BE12+'[3]5.2 Asset Age Profile'!BE12 -> 17 | BF12: ='[2]5.2 Asset Age Profile'!BF12+'[3]5.2 Asset Age Profile'!BF12 -> 43 | BG12: ='[2]5.2 Asset Age Profile'!BG12+'[3]5.2 Asset Age Profile'!BG12 -> 24 | BH12: ='[2]5.2 Asset Age Profile'!BH12+'[3]5.2 Asset Age Profile'!BH12 -> 25 | BI12: ='[2]5.2 Asset Age Profile'!BI12+'[3]5.2 Asset Age Profile'!BI12 -> 72 | BJ12: ='[2]5.2 Asset Age Profile'!BJ12+'[3]5.2 Asset Age Profile'!BJ12 -> 21 | BK12: ='[2]5.2 Asset Age Profile'!BK12+'[3]5.2 Asset Age Profile'!BK12 -> 160 | BL12: ='[2]5.2 Asset Age Profile'!BL12+'[3]5.2 Asset Age Profile'!BL12 -> 96 | BM12: ='[2]5.2 Asset Age Profile'!BM12+'[3]5.2 Asset Age Profile'!BM12 -> 303 | BN12: ='[2]5.2 Asset Age Profile'!BN12+'[3]5.2 Asset Age Profile'!BN12 -> 384 | BO12: ='[2]5.2 Asset Age Profile'!BO12+'[3]5.2 Asset Age Profile'!BO12 -> 1146 | BP12: ='[2]5.2 Asset Age Profile'!BP12+'[3]5.2 Asset Age Profile'!BP12 -> 161 | BQ12: ='[2]5.2 Asset Age Profile'!BQ12+'[3]5.2 Asset Age Profile'!BQ12 -> 467 | BR12: ='[2]5.2 Asset Age Profile'!BR12+'[3]5.2 Asset Age Profile'!BR12 -> 1197 | BS12: ='[2]5.2 Asset Age Profile'!BS12+'[3]5.2 Asset Age Profile'!BS12 -> 117 | BT12: ='[2]5.2 Asset Age Profile'!BT12+'[3]5.2 Asset Age Profile'!BT12 -> 102 | BU12: ='[2]5.2 Asset Age Profile'!BU12+'[3]5.2 Asset Age Profile'!BU12 -> 352 | BV12: ='[2]5.2 Asset Age Profile'!BV12+'[3]5.2 Asset Age Profile'!BV12 -> 28 | BW12: ='[2]5.2 Asset Age Profile'!BW12+'[3]5.2 Asset Age Profile'!BW12 -> 1111 | BX12: ='[2]5.2 Asset Age Profile'!BX12+'[3]5.2 Asset Age Profile'!BX12 -> 1538 | BY12: ='[2]5.2 Asset Age Profile'!BY12+'[3]5.2 Asset Age Profile'!BY12 -> 1948 | BZ12: ='[2]5.2 Asset Age Profile'!BZ12+'[3]5.2 Asset Age Profile'!BZ12 -> 957 | CA12: ='[2]5.2 Asset Age Profile'!CA12+'[3]5.2 Asset Age Profile'!CA12 -> 1050 | CB12: ='[2]5.2 Asset Age Profile'!CB12+'[3]5.2 Asset Age Profile'!CB12 -> 752 | CC12: ='[2]5.2 Asset Age Profile'!CC12+'[3]5.2 Asset Age Profile'!CC12 -> 1052 | CD12: ='[2]5.2 Asset Age Profile'!CD12+'[3]5.2 Asset Age Profile'!CD12 -> 844 | CE12: ='[2]5.2 Asset Age Profile'!CE12+'[3]5.2 Asset Age Profile'!CE12 -> 487 | CF12: ='[2]5.2 Asset Age Profile'!CF12+'[3]5.2 Asset Age Profile'!CF12 -> 1256 | CG12: ='[2]5.2 Asset Age Profile'!CG12+'[3]5.2 Asset Age Profile'!CG12 -> 400 | CH12: ='[2]5.2 Asset Age Profile'!CH12+'[3]5.2 Asset Age Profile'!CH12 -> 160 | CI12: ='[2]5.2 Asset Age Profile'!CI12+'[3]5.2 Asset Age Profile'!CI12 -> 344 | CJ12: ='[2]5.2 Asset Age Profile'!CJ12+'[3]5.2 Asset Age Profile'!CJ12 -> 492 | CK12: ='[2]5.2 Asset Age Profile'!CK12+'[3]5.2 Asset Age Profile'!CK12 -> 12 | CL12: ='[2]5.2 Asset Age Profile'!CL12+'[3]5.2 Asset Age Profile'!CL12 -> 473 | CM12: ='[2]5.2 Asset Age Profile'!CM12+'[3]5.2 Asset Age Profile'!CM12 -> 41 | CN12: ='[2]5.2 Asset Age Profile'!CN12+'[3]5.2 Asset Age Profile'!CN12 -> 10 | CO12: ='[2]5.2 Asset Age Profile'!CO12+'[3]5.2 Asset Age Profile'!CO12 -> 656 | CP12: ='[2]5.2 Asset Age Profile'!CP12+'[3]5.2 Asset Age Profile'!CP12 -> 9 | CQ12: ='[2]5.2 Asset Age Profile'!CQ12+'[3]5.2 Asset Age Profile'!CQ12 -> 11 | CR12: ='[2]5.2 Asset Age Profile'!CR12+'[3]5.2 Asset Age Profile'!CR12 -> 9 | CS12: ='[2]5.2 Asset Age Profile'!CS12+'[3]5.2 Asset Age Profile'!CS12 -> 9 | CT12: ='[2]5.2 Asset Age Profile'!CT12+'[3]5.2 Asset Age Profile'!CT12 -> 9 | CU12: ='[2]5.2 Asset Age Profile'!CU12+'[3]5.2 Asset Age Profile'!CU12 -> 9 | CV12: ='[2]5.2 Asset Age Profile'!CV12+'[3]5.2 Asset Age Profile'!CV12 -> 9 | CW12: ='[2]5.2 Asset Age Profile'!CW12+'[3]5.2 Asset Age Profile'!CW12 -> 43 | CX12: ='[2]5.2 Asset Age Profile'!CX12+'[3]5.2 Asset Age Profile'!CX12 -> 9 | CY12: ='[2]5.2 Asset Age Profile'!CY12+'[3]5.2 Asset Age Profile'!CY12 -> 290 | CZ12: ='[2]5.2 Asset Age Profile'!CZ12+'[3]5.2 Asset Age Profile'!CZ12 -> 345 | DA12: ='[2]5.2 Asset Age Profile'!DA12+'[3]5.2 Asset Age Profile'!DA12 -> 177 | DB12: ='[2]5.2 Asset Age Profile'!DB12+'[3]5.2 Asset Age Profile'!DB12 -> 9 | DC12: ='[2]5.2 Asset Age Profile'!DC12+'[3]5.2 Asset Age Profile'!DC12 -> 763 | DD12: ='[2]5.2 Asset Age Profile'!DD12+'[3]5.2 Asset Age Profile'!DD12 -> 223 | DE12: ='[2]5.2 Asset Age Profile'!DE12+'[3]5.2 Asset Age Profile'!DE12 -> 306 | DF12: ='[2]5.2 Asset Age Profile'!DF12+'[3]5.2 Asset Age Profile'!DF12 -> 0 | DG12: ='[2]5.2 Asset Age Profile'!DG12+'[3]5.2 Asset Age Profile'!DG12 -> 0 | DH12: ='[2]5.2 Asset Age Profile'!DH12+'[3]5.2 Asset Age Profile'!DH12 -> 0 | DI12: ='[2]5.2 Asset Age Profile'!DI12+'[3]5.2 Asset Age Profile'!DI12 -> 93 | DJ12: ='[2]5.2 Asset Age Profile'!DJ12+'[3]5.2 Asset Age Profile'!DJ12 -> 0 | DK12: ='[2]5.2 Asset Age Profile'!DK12+'[3]5.2 Asset Age Profile'!DK12 -> 35 | DL12: ='[2]5.2 Asset Age Profile'!DL12+'[3]5.2 Asset Age Profile'!DL12 -> 0 | DM12: ='[2]5.2 Asset Age Profile'!DM12+'[3]5.2 Asset Age Profile'!DM12 -> 0 | DN12: ='[2]5.2 Asset Age Profile'!DN12+'[3]5.2 Asset Age Profile'!DN12 -> 0 | DO12: ='[2]5.2 Asset Age Profile'!DO12+'[3]5.2 Asset Age Profile'!DO12 -> 0 | DP12: ='[2]5.2 Asset Age Profile'!DP12+'[3]5.2 Asset Age Profile'!DP12 -> 0 | DQ12: ='[2]5.2 Asset Age Profile'!DQ12+'[3]5.2 Asset Age Profile'!DQ12 -> 0 | DR12: ='[2]5.2 Asset Age Profile'!DR12+'[3]5.2 Asset Age Profile'!DR12 -> 0 | DS12: ='[2]5.2 Asset Age Profile'!DS12+'[3]5.2 Asset Age Profile'!DS12 -> 21 | DT12: ='[2]5.2 Asset Age Profile'!DT12+'[3]5.2 Asset Age Profile'!DT12 -> 10 | DU12: ='[2]5.2 Asset Age Profile'!DU12+'[3]5.2 Asset Age Profile'!DU12 -> 0 | DV12: ='[2]5.2 Asset Age Profile'!DV12+'[3]5.2 Asset Age Profile'!DV12 -> 0 | DW12: ='[2]5.2 Asset Age Profile'!DW12+'[3]5.2 Asset Age Profile'!DW12 -> 0 | DX12: ='[2]5.2 Asset Age Profile'!DX12+'[3]5.2 Asset Age Profile'!DX12 -> 0 | DY12: ='[2]5.2 Asset Age Profile'!DY12+'[3]5.2 Asset Age Profile'!DY12 -> 0 | DZ12: ='[2]5.2 Asset Age Profile'!DZ12+'[3]5.2 Asset Age Profile'!DZ12 -> 0 | EA12: ='[2]5.2 Asset Age Profile'!EA12+'[3]5.2 Asset Age Profile'!EA12 -> 2 | EB12: ='[2]5.2 Asset Age Profile'!EB12+'[3]5.2 Asset Age Profile'!EB12 -> 0 | EC12: ='[2]5.2 Asset Age Profile'!EC12+'[3]5.2 Asset Age Profile'!EC12 -> 0 | ED12: ='[2]5.2 Asset Age Profile'!ED12+'[3]5.2 Asset Age Profile'!ED12 -> 0 | EE12: ='[2]5.2 Asset Age Profile'!EE12+'[3]5.2 Asset Age Profile'!EE12 -> 0 | EF12: ='[2]5.2 Asset Age Profile'!EF12+'[3]5.2 Asset Age Profile'!EF12 -> 0 | EG12: ='[2]5.2 Asset Age Profile'!EG12+'[3]5.2 Asset Age Profile'!EG12 -> 0 | EH12: ='[2]5.2 Asset Age Profile'!EH12+'[3]5.2 Asset Age Profile'!EH12 -> 0 | EI12: ='[2]5.2 Asset Age Profile'!EI12+'[3]5.2 Asset Age Profile'!EI12 -> 0 | EJ12: ='[2]5.2 Asset Age Profile'!EJ12+'[3]5.2 Asset Age Profile'!EJ12 -> 0
